Workbook

Sheet Totals
A1: District Name | B1: ='School listing'!B1 -> Sedona-Oak Creek Joint Unified School District #9
A2: CTDS Number | B2: ='School listing'!B2 -> 130209000
A3: County | B3: ='School listing'!B3 -> Yavapai | G3: As required by Laws 2017, Ch. 211, §4, based on amounts reported in columns HU through IE for the Special Education only portion of Group A Revenue, and Programs 200, 512, 514, and 515 Spending:
G4: =IF(JP16=0,"The District's programs 200, 512, 514, and 515 special education spending was equal to base, weighted, IDEA, and other special education funding.",IF(JP16>0,"The District's programs 200, 512, 514, and 515 special education spending was less than base, weighted, IDEA, and other special education funding.","The District's programs 200, 512, 514, and 515 special education spending was greater than base, weighted, IDEA, and other special education funding.")) -> The District's programs 200, 512, 514, and 515 special education spending was less than base, weighted, IDEA, and other special education funding.
G6: Columns G through HY (other than GV through HO) present expenditures from Funds 0-799 (excluding 575).
G8: Programs 100-630 | N8: From Federal Funds - Programs 100-630 | Q8: Programs 700-900 | R8: Programs 100-630 | Y8: From Federal Funds - Program 100-630 | AB8: Programs 700-900 | AC8: Programs 100-630 | AJ8: From Federal Funds - Program 100-630 | AM8: Programs 700-900 | AN8: Programs 100-630 | AV8: From Federal Funds - Program 100-630 | AY8: Programs 700-900 | AZ8: Programs 100-630 | BG8: From Federal Funds - Program 100-630 | BJ8: Programs 700-900 | BK8: Programs 100-630 | BS8: From Federal Funds - Program 100-630 | BV8: Programs 700-900 | BW8: Programs 100-630 | CD8: From Federal Funds - Program 100-630 | CG8: Programs 700-900 | CH8: Programs 100-630 | CO8: From Federal Funds - Program 100-630 | CR8: Programs 100-630 | CY8: From Federal Funds - Program 100-630 | DB8: Programs 700-900 | DC8: Programs 100-630 | DJ8: From Federal Funds - Program 100-630 | DM8: Programs 700-900 | DN8: Programs 700-900 | DO8: Programs 100-630 | DV8: From Federal Funds - Program 100-630 | DY8: Programs 700-900 | DZ8: Programs 100-630 | EH8: Programs 700-900 | EI8: Programs 100-630 | EK8: Programs 700-900 | EL8: Programs 700-900 | EM8: All Programs | EN8: Programs 100-630 | EX8: Programs 700-900 | EY8: Programs 100-630 | FI8: Programs 700-900 | FJ8: Teacher Salaries & Benefits (Function 1000) | GV8: Classroom Site Fund Expenditures | HP8: Technology Expenditures | HX8: Support Services—Instruction Expenditures Functions | HZ8: Revenues from State & Local Sources | IE8: Revenues from Federal Sources | IG8: Other Allocated, Non-Student Count Generated Revenues | IT8: Total Allocated Revenue | IU8: Total Group A Revenue and Programs 200, 512, 514, and 515 Spending | JF8: Special Education Only Portion-Group A Revenue and Programs 200, 512, 514, and 515 Spending | JS8: Expenditures Funds 900-949 All Programs, Functions, Objects | JT8: Revenues Funds 900-949 All Programs, Functions, Objects
G9: Function 1000—Instruction | R9: Function 2100—Support Services-Students | AC9: Function 2200—Support Services-Instructional Staff | AN9: Function 2300—Support Services-General Administration | AZ9: Function 2400—Support Services-School Administration | BK9: Functions 2500, 2900—Support Services-Central Services, Other | BW9: Function 2600—Support Services-Operation and Maintenance of Plant | CH9: Function 2700—Support Services-Student Transportation | CR9: Function 3100—Food Service Operations | DC9: Function 3200—Enterprise Operations | DN9: Function 3300—Community Service Operations | DO9: Function 3400—Bookstore Operations | DZ9: Function 4000—Facilities Acquisition and Construction | EI9: Function 5000—Debt Service | EL9: All Functions | EM9: Function 3300—Community Services Operations | EN9: From Federal Funds - Functions 1000-3000 | EY9: From State & Local Sources - Functions 1000-3000 | FJ9: Regular Education (Programs 100, 280, 520, and 550) | FQ9: Special Education (Programs 200-230, 250, and 300-399) | FX9: Vocational Education (Programs 270 and 540) | GE9: Other Programs (Programs 240, 260, 265, 510-515 and 530) | GL9: Cocurricular Activities, Athletics, and Other (Program 600-630) | GV9: Function 1000—Instruction | HA9: Function 2100—Support Services-Students | HF9: Function 2200—Support Services-Instruction | HK9: Other | HP9: All Functions | HX9: All Objects | HZ9: Generated by Student Count | ID9: Allocated Revenues | IE9: Generated by Student Count | IF9: Allocated Revenues | IG9: State & Local Taxes | IL9: From Other State & Local Sources | IQ9: From Federal Sources | IU9: Formula Funding | JD9: Spending | JE9: Comparison | JF9: Formula Funding | JO9: Spending | JP9: Comparison | JQ9: Other Spending | JR9: Comparison
F10: Payments to Other AZ Districts Tuition 6561 Other Services 6591 CTED 6870, 6880 | M10: Charges for | X10: Charges for | AI10: Charges for | AT10: Judgments | AU10: Charges for | BF10: Charges for | BR10: Charges for | CC10: Charges for | CN10: Charges for | CX10: Charges for | DI10: Charges for | DU10: Charges for | EF10: Charges for | ET10: Judgments | EV10: Charges for | FG10: Charges for | GS10: Portion of Total Teacher Salaries from State and Local Sources | GT10: Instructional Aide Salaries from Federal Sources | GU10: Instructional Aide Salaries from State and Local Sources | HU10: Supplies—Technology-Related | HV10: Noninstructional software | HW10: Instructional software subscriptions | HZ10: Base Support (after any necessary adjustment) | IC10: Other (includes IIF, Tuition, Grants) | ID10: From Student Count Generated Amount | IE10: Federal Grants | IF10: From Student Count Generated Amount | IG10: District Transportation Funding | IH10: District Voter Approved Override | II10: District Small School Adjustment | IJ10: Grants | IL10: Private Donations & Tax Credit Eligible Fees | IM10: Transportation Fees | IN10: Other Fees (Not tax credit nor transportation fees) | IO10: School Lunch Sales | IP10: Other (school plant, auxiliary operations, etc.) | IQ10: Impact Aid | IR10: Child Nutrition Programs | IS10: Other Grants | IU10: Group A Total (WSC * BL * TEI ) | IW10: Group B (excluding K-3 and K-3 Reading) | IX10: Base (Self-Contained Student Count * Base Level * TEI) | IY10: Total Formula Funding | IZ10: IDEA | JA10: Total Weighted, Base, IDEA Funding | JB10: Other Revenues Designated or Received as Reimbursement for Special Education Costs | JC10: Total Formula Funding, IDEA, Special Education Designated Revenue | JD10: Total Special Education Spending | JE10: Comparison of Revenue to Spending | JF10: Group A Total (WSC * BL * TEI) | JG10: CSF Allocation | JH10: Group B (excluding K-3 and K-3 Reading) | JI10: Base (Self-Contained Student Count * Base Level * TEI) | JJ10: Total Formula Funding | JK10: IDEA | JL10: Total Weighted, Base, IDEA Funding | JM10: Other Revenues Designated or Received as Reimbursement for Special Education Costs | JN10: Total Formula Funding, IDEA, Special Education Designated Revenue | JO10: Total Special Education Spending | JP10: Comparison of Revenue to Spending | JQ10: M&O, UCO, CSF, IDEA, and Funds with identified SPED Revenues | JR10: Comparison of Spending from Formula Funding to Other Funds
H11: Employee | I11: Purchased | J11: Supplies | K11: Property | M11: District Services | Q11: All 6000 | S11: Employee | T11: Purchased | U11: Supplies | V11: Property | X11: District Services | AB11: All 6000 | AD11: Employee | AE11: Purchased | AF11: Supplies | AG11: Property | AI11: District Services | AM11: All 6000 | AO11: Employee | AP11: Purchased | AQ11: Supplies | AR11: Property | AT11: Against a | AU11: District Services | AY11: All 6000 | BA11: Employee | BB11: Purchased | BC11: Supplies | BD11: Property | BF11: District Services | BJ11: All 6000 | BL11: Employee | BM11: Purchased | BN11: Supplies | BO11: Property | BQ11: Interest | BR11: District Services | BV11: All | BX11: Employee | BY11: Purchased | BZ11: Supplies | CA11: Property | CC11: District Services | CG11: All 6000 | CI11: Employee | CJ11: Purchased | CK11: Supplies | CL11: Property | CN11: District Services | CS11: Employee | CT11: Purchased | CU11: Supplies | CV11: Property | CX11: District Services | DB11: All 6000 | DD11: Employee | DE11: Purchased | DF11: Supplies | DG11: Property | DI11: District Services | DM11: All 6000 | DN11: All 6000 | DP11: Employee | DQ11: Purchased | DR11: Supplies | DS11: Property | DU11: District Services | DY11: All 6000 | EA11: Employee | EB11: Purchased | EC11: Supplies | ED11: Property | EF11: District Services | EH11: All 6000 | EI11: Redemption of | EJ11: Interest | EK11: All 6000 | EL11: Property | EM11: Property | EO11: Employee | EP11: Purchased | EQ11: Supplies | ER11: Property | ET11: Against a | EU11: Interest | EV11: District Services | EX11: All 6000 | EZ11: Employee | FA11: Purchased | FB11: Supplies | FC11: Property | FE11: Judgments Against | FF11: Interest | FG11: District Services | FI11: All 6000 | FJ11: Certified | FK11: Noncertified | FL11: Certified | FM11: Noncertified | FN11: Contract | FO11: Contract | FQ11: Certified | FR11: Noncertified | FS11: Certified | FT11: Noncertified | FU11: Contract | FV11: Contract | FX11: Certified | FY11: Noncertified | FZ11: Certified | GA11: Noncertified | GB11: Contract | GC11: Contract | GE11: Certified | GF11: Noncertified | GG11: Certified | GH11: Noncertified | GI11: Contract | GJ11: Contract | GL11: Certified | GM11: Noncertified | GN11: Certified | GO11: Noncertified | GP11: Contract | GQ11: Contract | GW11: Employee | GX11: Purchased | GY11: Supplies | HB11: Employee | HC11: Purchased | HD11: Supplies | HG11: Employee | HH11: Purchased | HI11: Supplies | HL11: Employee | HM11: Purchased | HN11: Supplies | HQ11: Technology-Related | HR11: Rental of Computers | HT11: Software reported in library books, | HU11: and Short-term Noninstructional | HV11: subscriptions (more than 12 months) | HW11: (more than 12 months)
E12: Unweighted Attending Student Count | G12: Salaries | H12: Benefits | I12: Services | J12: 6600 | K12: 6700 | L12: Dues and Fees | M12: & Miscellaneous | Q12: Object Codes | R12: Salaries | S12: Benefits | T12: Services | U12: 6600 | V12: 6700 | W12: Dues and Fees | X12: & Miscellaneous | AB12: Object Codes | AC12: Salaries | AD12: Benefits | AE12: Services | AF12: 6600 | AG12: 6700 | AH12: Dues and Fees | AI12: & Miscellaneous | AM12: Object Codes | AN12: Salaries | AO12: Benefits | AP12: Services | AQ12: 6600 | AR12: 6700 | AS12: Dues and Fees | AT12: District/ Charter | AU12: & Miscellaneous | AY12: Object Codes | AZ12: Salaries | BA12: Benefits | BB12: Services | BC12: 6600 | BD12: 6700 | BE12: Dues and Fees | BF12: & Miscellaneous | BJ12: Object Codes | BK12: Salaries | BL12: Benefits | BM12: Services | BN12: 6600 | BO12: 6700 | BP12: Dues and Fees | BR12: & Miscellaneous | BV12: Object Codes | BW12: Salaries | BX12: Benefits | BY12: Services | BZ12: 6600 | CA12: 6700 | CB12: Dues and Fees | CC12: & Miscellaneous | CG12: Object Codes | CH12: Salaries | CI12: Benefits | CJ12: Services | CK12: 6600 | CL12: 6700 | CM12: Dues and Fees | CN12: & Miscellaneous | CR12: Salaries | CS12: Benefits | CT12: Services | CU12: 6600 | CV12: 6700 | CW12: Dues and Fees | CX12: & Miscellaneous | DB12: Object Codes | DC12: Salaries | DD12: Benefits | DE12: Services | DF12: 6600 | DG12: 6700 | DH12: Dues and Fees | DI12: & Miscellaneous | DM12: Object Codes | DN12: Object Codes | DO12: Salaries | DP12: Benefits | DQ12: Services | DR12: 6600 | DS12: 6700 | DT12: Dues and Fees | DU12: & Miscellaneous | DY12: Object Codes | DZ12: Salaries | EA12: Benefits | EB12: Services | EC12: 6600 | ED12: 6700 | EE12: Dues and Fees | EF12: & Miscellaneous | EH12: Object Codes | EI12: Principal | EJ12: and other debt costs | EK12: Object Codes | EN12: Salaries | EO12: Benefits | EP12: Services | EQ12: 6600 | ER12: 6700 | ES12: Dues and Fees | ET12: District | EV12: & Miscellaneous | EX12: Object Codes | EY12: Salaries | EZ12: Benefits | FA12: Services | FB12: 6600 | FC12: 6700 | FD12: Dues and Fees | FE12: a District | FG12: & Miscellaneous | FI12: Object Codes | FJ12: Teachers | FK12: Teachers | FL12: Substitutes | FM12: Substitutes | FN12: Teachers | FO12: Substitutes | FP12: Benefits | FQ12: Teachers | FR12: Teachers | FS12: Substitutes | FT12: Substitutes | FU12: Teachers | FV12: Substitutes | FW12: Benefits | FX12: Teachers | FY12: Teachers | FZ12: Substitutes | GA12: Substitutes | GB12: Teachers | GC12: Substitutes | GD12: Benefits | GE12: Teachers | GF12: Teachers | GG12: Substitutes | GH12: Substitutes | GI12: Teachers | GJ12: Substitutes | GK12: Benefits | GL12: Teachers | GM12: Teachers | GN12: Substitutes | GO12: Substitutes | GP12: Teachers | GQ12: Substitutes | GR12: Benefits | GV12: Salaries | GW12: Benefits | GX12: Services | GY12: 6600 | GZ12: Other | HA12: Salaries | HB12: Benefits | HC12: Services | HD12: 6600 | HE12: Other | HF12: Salaries | HG12: Benefits | HH12: Services | HI12: 6600 | HJ12: Other | HK12: Salaries | HL12: Benefits | HM12: Services | HN12: 6600 | HO12: Other | HP12: Technical Services | HQ12: Repairs and Maintenance | HR12: and Related Equipment | HS12: Telecommunications | HT12: textbooks, or instructional aids | HU12: Software Subscription | HV12: Principal and Interest | HW12: Principal and Interest | HX12: Improvement of Instruction | HY12: Library/Media Services | IA12: District Additional Assistance (after any necessary adjustment) | IB12: Classroom Site Fund (after any necessary adjustment)
A13: School # | B13: School Name | C13: CTDS | D13: Primary Unit Code | G13: 6100 | H13: 6200 | I13: 6300, 6400, 6500 (excluding tuition) | K13: (excluding 6740 and 6750) | L13: 6810 | M13: 6885 and 6890 | N13: Salaries | O13: Employee Benefits | P13: All other | Q13: (excluding tuition, 6740, 6750 and 6900) | R13: 6100 | S13: 6200 | T13: 6300, 6400, 6500 (excluding tuition) | V13: (excluding 6740 and 6750) | W13: 6810 | X13: 6885 and 6890 | Y13: Salaries | Z13: Employee Benefits | AA13: All other | AB13: (excluding tuition, 6740, 6750 and 6900) | AC13: 6100 | AD13: 6200 | AE13: 6300, 6400, 6500 (excluding tuition) | AG13: (excluding 6740 and 6750) | AH13: 6810 | AI13: 6885 and 6890 | AJ13: Salaries | AK13: Employee Benefits | AL13: All other | AM13: (excluding tuition, 6740, 6750 and 6900) | AN13: 6100 | AO13: 6200 | AP13: 6300, 6400, 6500 (excluding tuition) | AR13: (excluding 6740 and 6750) | AS13: 6810 | AT13: 6820 | AU13: 6885 and 6890 | AV13: Salaries | AW13: Employee Benefits | AX13: All other | AY13: (excluding tuition, 6740, 6750 and 6900) | AZ13: 6100 | BA13: 6200 | BB13: 6300, 6400, 6500 (excluding tuition) | BD13: (excluding 6740 and 6750) | BE13: 6810 | BF13: 6885 and 6890 | BG13: Salaries | BH13: Employee Benefits | BI13: All other | BJ13: (excluding tuition, 6740, 6750 and 6900) | BK13: 6100 | BL13: 6200 | BM13: 6300, 6400, 6500 (excluding tuition) | BO13: (excluding 6740 and 6750) | BP13: 6810 | BQ13: 6850 | BR13: 6885 and 6890 | BS13: Salaries | BT13: Employee Benefits | BU13: All other | BV13: (excluding tuition, 6740, 6750 and 6900) | BW13: 6100 | BX13: 6200 | BY13: 6300, 6400, 6500 (excluding tuition) | CA13: (excluding 6740 and 6750) | CB13: 6810 | CC13: 6885 and 6890 | CD13: Salaries | CE13: Employee Benefits | CF13: All other | CG13: (excluding tuition, 6740, 6750 and 6900) | CH13: 6100 | CI13: 6200 | CJ13: 6300, 6400, 6500 (excluding tuition) | CL13: (excluding 6740 and 6750) | CM13: 6810 | CN13: 6885 and 6890 | CO13: Salaries | CP13: Employee Benefits | CQ13: All other | CR13: 6100 | CS13: 6200 | CT13: 6300, 6400, 6500 (excluding tuition) | CV13: (excluding 6740 and 6750) | CW13: 6810 | CX13: 6885 and 6890 | CY13: Salaries | CZ13: Employee Benefits | DA13: All other | DB13: (excluding tuition, 6740, 6750 and 6900) | DC13: 6100 | DD13: 6200 | DE13: 6300, 6400, 6500 (excluding tuition) | DG13: (excluding 6740 and 6750) | DH13: 6810 | DI13: 6885 and 6890 | DJ13: Salaries | DK13: Employee Benefits | DL13: All other | DM13: (excluding tuition, 6740, 6750 and 6900) | DN13: (excluding tuition, 6740, 6750 and 6900) | DO13: 6100 | DP13: 6200 | DQ13: 6300, 6400, 6500 (excluding tuition) | DS13: (excluding 6740 and 6750) | DT13: 6810 | DU13: 6885 and 6890 | DV13: Salaries | DW13: Employee Benefits | DX13: All other | DY13: (excluding tuition, 6740, 6750 and 6900) | DZ13: 6100 | EA13: 6200 | EB13: 6300, 6400, 6500 (excluding tuition) | ED13: (excluding 6740 and 6750) | EE13: 6810 | EF13: 6885 and 6890 | EH13: (excluding tuition, 6740, 6750 and 6900) | EI13: 6831, 6832 and 6833 | EJ13: 6841, 6842, 6843, 6860 | EK13: (excluding tuition, 6740, 6750 and 6900) | EN13: 6100 | EO13: 6200 | EP13: 6300, 6400, 6500 (excluding tuition) | ER13: (excluding 6740 and 6750) | ES13: 6810 | ET13: 6820 | EU13: 6850 | EV13: 6885 and 6890 | EX13: (excluding tuition, 6740, 6750 and 6900) | EY13: 6100 | EZ13: 6200 | FA13: 6300, 6400, 6500 (excluding tuition) | FC13: (excluding 6740 and 6750) | FD13: 6810 | FE13: 6820 | FF13: 6850 | FG13: 6885 and 6890 | FI13: (excluding tuition, 6740, 6750 and 6900) | FJ13: (in Object 6100) | FL13: (in Object 6100) | FN13: (in Object 6300) | FO13: (in Object 6300) | FP13: (in Object 6200) | FQ13: (in Object 6100) | FS13: (in Object 6100) | FU13: (in Object 6300) | FV13: (in Object 6300) | FW13: (in Object 6200) | FX13: (in Object 6100) | FZ13: (in Object 6100) | GB13: (in Object 6300) | GC13: (in Object 6300) | GD13: (in Object 6200) | GE13: (in Object 6100) | GG13: (in Object 6100) | GI13: (in Object 6300) | GJ13: (in Object 6300) | GK13: (in Object 6200) | GL13: (in Object 6100) | GN13: (in Object 6100) | GP13: (in Object 6300) | GQ13: (in Object 6300) | GR13: (in Object 6200) | GV13: 6100 | GW13: 6200 | GX13: 6300, 6400, 6500 (excluding tuition) | GZ13: (excluding 6900 and tuition) | HA13: 6100 | HB13: 6200 | HC13: 6300, 6400, 6500 (excluding tuition) | HE13: (excluding 6900 and tuition) | HF13: 6100 | HG13: 6200 | HH13: 6300, 6400, 6500 (excluding tuition) | HJ13: (excluding 6900 and tuition) | HK13: 6100 | HL13: 6200 | HM13: 6300, 6400, 6500 (excluding tuition) | HO13: (excluding 6900 and tuition) | HP13: 6340 | HQ13: 6432 | HR13: 6443 | HS13: 6531 | HT13: 6641-6643 | HU13: 6650 and 6655 | HV13: 6832 and 6842 | HW13: 6833 and 6843 | HX13: 2210 | HY13: 2220 | IK13: Other | IV13: CSF Allocation
A15: Total for all Schools | E15: =SUM(E20:E109) -> 742 | F15: 0 | G15: =SUM(G20:G109) -> 3453519.69 | H15: 1006024.61 | I15: 160763.99 | J15: 184170.18 | K15: 74201.69 | L15: 42933.2 | M15: 23692.32 | N15: =SUM(N20:N109) -> 319845.98 | O15: 80522.19 | P15: 82567.92 | Q15: =SUM(Q20:Q109) -> 0 | R15: 389346.95 | S15: 104703.18 | T15: 195 | U15: 9492.12 | V15: 1537.75 | W15: 0 | X15: 0 | Y15: =SUM(Y20:Y109) -> 11545.34 | Z15: =SUM(Z20:Z109) -> 2391.09 | AA15: =SUM(AA20:AA109) -> 3204.06 | AB15: =SUM(AB20:AB109) -> 0 | AC15: 5500 | AD15: 1018.45 | AE15: 11435.4 | AF15: 9237.44 | AG15: 2662.82 | AH15: 0 | AI15: 0 | AJ15: =SUM(AJ20:AJ109) -> 2800 | AK15: =SUM(AK20:AK109) -> 579.88 | AL15: =SUM(AL20:AL109) -> 3264.9 | AM15: =SUM(AM20:AM109) -> 0 | AN15: 0 | AO15: 0 | AP15: 0 | AQ15: 0 | AR15: 0 | AS15: 0 | AT15: 0 | AU15: 0 | AV15: =SUM(AV20:AV109) -> 0 | AW15: =SUM(AW20:AW109) -> 0 | AX15: =SUM(AX20:AX109) -> 0 | AY15: =SUM(AY20:AY109) -> 0 | AZ15: 296122.29 | BA15: 90159.77 | BB15: 4190.22 | BC15: 2750.05 | BD15: 0 | BE15: 0 | BF15: 0 | BG15: =SUM(BG20:BG109) -> 0 | BH15: =SUM(BH20:BH109) -> 0 | BI15: =SUM(BI20:BI109) -> 0 | BJ15: =SUM(BJ20:BJ109) -> 0 | BK15: 0 | BL15: 0 | BM15: 2400 | BN15: 7922.08 | BO15: 11872.5 | BP15: 0 | BQ15: 0 | BR15: 0 | BS15: =SUM(BS20:BS109) -> 0 | BT15: =SUM(BT20:BT109) -> 0 | BU15: =SUM(BU20:BU109) -> 0 | BV15: =SUM(BV20:BV109) -> 0 | BW15: 223151.63 | BX15: 85152.89 | BY15: 458283.03 | BZ15: 237640.82 | CA15: 27396.5 | CB15: 1656 | CC15: 0 | CD15: =SUM(CD20:CD109) -> 0 | CE15: =SUM(CE20:CE109) -> 0 | CF15: =SUM(CF20:CF109) -> 5446.24 | CG15: =SUM(CG20:CG109) -> 0 | CH15: 0 | CI15: 0 | CJ15: 1413.8 | CK15: 3339.56 | CL15: 0 | CM15: 0 | CN15: 0 | CO15: =SUM(CO20:CO109) -> 0 | CP15: =SUM(CP20:CP109) -> 0 | CQ15: =SUM(CQ20:CQ109) -> 0 | CR15: =SUM(CR20:CR109) -> 0 | CS15: 0 | CT15: 0 | CU15: 0 | CV15: 0 | CW15: 1345 | CX15: 0 | CY15: =SUM(CY20:CY109) -> 0 | CZ15: =SUM(CZ20:CZ109) -> 0 | DA15: =SUM(DA20:DA109) -> 0 | DB15: =SUM(DB20:DB109) -> 0 | DC15: 0 | DD15: 0 | DE15: 0 | DF15: 0 | DG15: 0 | DH15: 0 | DI15: 0 | DJ15: =SUM(DJ20:DJ109) -> 0 | DK15: =SUM(DK20:DK109) -> 0 | DL15: =SUM(DL20:DL109) -> 0 | DM15: 0 | DN15: 0 | DO15: 0 | DP15: 0 | DQ15: 0 | DR15: 0 | DS15: 0 | DT15: 0 | DU15: 0 | DV15: =SUM(DV20:DV109) -> 0 | DW15: =SUM(DW20:DW109) -> 0 | DX15: =SUM(DX20:DX109) -> 0 | DY15: =SUM(DY20:DY109) -> 0 | DZ15: 0 | EA15: 0 | EB15: 0 | EC15: 0 | ED15: 0 | EE15: 0 | EF15: 0 | EH15: =SUM(EH20:EH109) -> 0 | EI15: =SUM(EI20:EI109) -> 220.8 | EJ15: =SUM(EJ20:EJ109) -> 0 | EK15: =SUM(EK20:EK109) -> 0 | EN15: =SUM(EN20:EN109) -> 334191.32 | EO15: 83493.16 | EP15: 1666 | EQ15: 30164.68 | ER15: 62652.44 | ES15: 0 | ET15: 0 | EU15: 0 | EV15: 0 | EX15: =SUM(EX20:EX109) -> 0 | EY15: 4033449.24 | EZ15: 1203565.74 | FA15: 637015.44 | FB15: 424387.57 | FC15: 55018.82 | FD15: 45934.2 | FE15: 0 | FF15: 0 | FG15: 23692.32 | FI15: =SUM(FI20:FI109) -> 0 | FJ15: =SUM(FJ20:FJ109) -> 2299847.12 | FL15: =SUM(FL20:FL109) -> 0 | FN15: =SUM(FN20:FN109) -> 0 | FO15: =SUM(FO20:FO109) -> 66268.75 | FP15: =SUM(FP20:FP109) -> 709664.34 | FQ15: =SUM(FQ20:FQ109) -> 421391.2 | FS15: =SUM(FS20:FS109) -> 0 | FU15: =SUM(FU20:FU109) -> 0 | FV15: =SUM(FV20:FV109) -> 6881.25 | FW15: =SUM(FW20:FW109) -> 109310.96 | FX15: =SUM(FX20:FX109) -> 162532.94 | FZ15: =SUM(FZ20:FZ109) -> 0 | GB15: =SUM(GB20:GB109) -> 0 | GC15: =SUM(GC20:GC109) -> 0 | GD15: =SUM(GD20:GD109) -> 45816.66 | GE15: =SUM(GE20:GE109) -> 33986 | GG15: =SUM(GG20:GG109) -> 0 | GI15: =SUM(GI20:GI109) -> 0 | GJ15: =SUM(GJ20:GJ109) -> 0 | GK15: =SUM(GK20:GK109) -> 6256.88 | GL15: =SUM(GL20:GL109) -> 0 | GN15: =SUM(GN20:GN109) -> 0 | GP15: =SUM(GP20:GP109) -> 0 | GQ15: 0 | GR15: 0 | GS15: 0 | GT15: 75624.13 | GU15: 216034.21 | GV15: 439250.63 | GW15: 101004.31 | GX15: 0 | GY15: 0 | GZ15: 0 | HA15: 41059.15 | HB15: 8439.7 | HC15: 0 | HD15: 0 | HE15: 0 | HF15: 0 | HG15: 0 | HH15: 0 | HI15: 0 | HJ15: 0 | HK15: 0 | HL15: 0 | HM15: 0 | HN15: 0 | HO15: 0 | HP15: 0 | HQ15: 0 | HR15: 0 | HS15: 16052.42 | HT15: =SUM(HT20:HT109) -> 91299.77 | HU15: =SUM(HU20:HU109) -> 13289.44 | HV15: =SUM(HV20:HV109) -> 0 | HW15: =SUM(HW20:HW109) -> 220.8 | HX15: 12296.64 | HY15: =SUM(HY20:HY109) -> 0 | HZ15: 5398158 | IA15: 496807.5109 | IB15: 731653.6963 | IC15: 0 | ID15: 0 | IE15: 0 | IF15: 0 | IG15: 0 | IH15: 0 | II15: 0 | IJ15: 0 | IK15: 0 | IL15: 0 | IM15: 0 | IN15: 0 | IO15: 0 | IP15: 0 | IQ15: 0 | IR15: 0 | IS15: 0 | IT15: 0 | IU15: 1307552.852 | IV15: 205408.5579 | IW15: 689515.297 | IX15: 22804.2544 | IY15: 2225280.961 | IZ15: 0 | JA15: 2225280.961 | JB15: 0 | JC15: 2225280.961 | JD15: 0 | JE15: =SUM(JE20:JE109) -> 2225280.961 | JF15: 713210.6463 | JG15: 112041.0316 | JH15: 689515.297 | JI15: 22804.2544 | JJ15: 1537571.229 | JK15: 0 | JL15: 1537571.229 | JM15: 0 | JN15: 1537571.229 | JO15: 793224.91 | JP15: 744346.3193 | JQ15: 779429.76 | JR15: =IF(JR20="0%","0%",SUM(JR20:JR109)) -> 1.962331817 | JS15: =SUM(JS20:JS109) -> 0 | JT15: =SUM(JT20:JT109) -> 0
A16: District Total | E16: =E15 -> 742 | F16: =F19+F17+F18+F15 -> 0 | G16: =G19+G17+G18+G15 -> 3471648.03 | H16: 1009780.78 | I16: 163494.22 | J16: 199053.74 | K16: 74201.69 | L16: 42933.2 | M16: 23692.32 | N16: =N19+N17+N18+N15 -> 319845.98 | O16: 80522.19 | P16: =P19+P17+P18+P15 -> 83641.14 | Q16: 0 | R16: 546725.36 | S16: 153854.57 | T16: 101868 | U16: 9492.12 | V16: 1537.75 | W16: 0 | X16: 0 | Y16: =Y19+Y17+Y18+Y15 -> 25733.81 | Z16: =Z19+Z17+Z18+Z15 -> 5919.44 | AA16: =AA19+AA17+AA18+AA15 -> 15959.06 | AB16: 0 | AC16: 257593.22 | AD16: 66687.57 | AE16: 87116.6 | AF16: 61819.29 | AG16: 2662.82 | AH16: 500 | AI16: 0 | AJ16: =AJ19+AJ17+AJ18+AJ15 -> 7976.78 | AK16: =AK19+AK17+AK18+AK15 -> 1771.33 | AL16: =AL19+AL17+AL18+AL15 -> 76639.8 | AM16: 0 | AN16: 179826.66 | AO16: 41747.4 | AP16: 30838.34 | AQ16: 2694.8 | AR16: 0 | AS16: 6078 | AT16: 0 | AU16: 0 | AV16: =AV19+AV17+AV18+AV15 -> 0 | AW16: =AW19+AW17+AW18+AW15 -> 0 | AX16: =AX19+AX17+AX18+AX15 -> 30301.5 | AY16: 0 | AZ16: 296122.29 | BA16: 90159.77 | BB16: 10676.72 | BC16: 2750.05 | BD16: 758.37 | BE16: 0 | BF16: 0 | BG16: =BG19+BG17+BG18+BG15 -> 0 | BH16: =BH19+BH17+BH18+BH15 -> 0 | BI16: =BI19+BI17+BI18+BI15 -> 0 | BJ16: 0 | BK16: 291747.95 | BL16: 189644.49 | BM16: 183376.31 | BN16: 66466.68 | BO16: 23255.41 | BP16: 28834.67 | BQ16: 0 | BR16: 0 | BS16: =BS19+BS17+BS18+BS15 -> 0 | BT16: =BT19+BT17+BT18+BT15 -> 0 | BU16: =BU19+BU17+BU18+BU15 -> 42255.72 | BV16: 0 | BW16: 247028.91 | BX16: 91571.43 | BY16: 728650.52 | BZ16: 279667.72 | CA16: 42396.5 | CB16: 1706 | CC16: 0 | CD16: =CD19+CD17+CD18+CD15 -> 0 | CE16: =CE19+CE17+CE18+CE15 -> 0 | CF16: =CF19+CF17+CF18+CF15 -> 31068.56 | CG16: =CG19+CG17+CG18+CG15 -> 0 | CH16: 246541.28 | CI16: 68298.68 | CJ16: 89930.1 | CK16: 68202.63 | CL16: 170079.25 | CM16: 37.5 | CN16: 0 | CO16: =CO19+CO17+CO18+CO15 -> 1897.85 | CP16: =CP19+CP17+CP18+CP15 -> 455.68 | CQ16: =CQ19+CQ17+CQ18+CQ15 -> 170079.25 | CR16: 0 | CS16: 0 | CT16: 355119.86 | CU16: 2688 | CV16: 0 | CW16: 1345 | CX16: 0 | CY16: =CY19+CY17+CY18+CY15 -> 0 | CZ16: =CZ19+CZ17+CZ18+CZ15 -> 0 | DA16: =DA19+DA17+DA18+DA15 -> 277355.52 | DB16: 0 | DC16: 0 | DD16: 0 | DE16: 0 | DF16: 0 | DG16: 0 | DH16: 0 | DI16: 0 | DJ16: =DJ19+DJ17+DJ18+DJ15 -> 0 | DK16: =DK19+DK17+DK18+DK15 -> 0 | DL16: =DL19+DL17+DL18+DL15 -> 0 | DM16: 0 | DN16: 0 | DO16: 0 | DP16: 0 | DQ16: 0 | DR16: 0 | DS16: 0 | DT16: 0 | DU16: 0 | DV16: =DV19+DV17+DV18+DV15 -> 0 | DW16: =DW19+DW17+DW18+DW15 -> 0 | DX16: =DX19+DX17+DX18+DX15 -> 0 | DY16: 0 | DZ16: 0 | EA16: 0 | EB16: 0 | EC16: 0 | ED16: 0 | EE16: 0 | EF16: 0 | EG16: 0 | EH16: 0 | EI16: =EI19+EI17+EI18+EI15 -> 3043570.2 | EJ16: 724978.55 | EK16: 0 | EL16: 0 | EM16: 0 | EN16: 355454.42 | EO16: 88668.64 | EP16: 144139.89 | EQ16: 327443.25 | ER16: 232731.69 | ES16: 22985.72 | ET16: 0 | EU16: 0 | EV16: 0 | EW16: 0 | EX16: 0 | EY16: 5181779.28 | EZ16: 1623076.05 | FA16: =FA19+FA17+FA18+FA15 -> 1606930.78 | FB16: 365391.78 | FC16: 82160.1 | FD16: 58448.65 | FE16: 0 | FF16: 0 | FG16: 23692.32 | FH16: 0 | FI16: 0 | FJ16: 2308547.12 | FK16: 0 | FL16: 0 | FM16: 0 | FN16: 809.22 | FO16: 66268.75 | FP16: 713420.51 | FQ16: 421391.2 | FR16: 0 | FS16: 0 | FT16: 0 | FU16: 0 | FV16: 6881.25 | FW16: 109310.96 | FX16: 162532.94 | FY16: 0 | FZ16: 0 | GA16: 0 | GB16: 0 | GC16: 0 | GD16: 45816.66 | GE16: 33986 | GF16: 0 | GG16: 0 | GH16: 0 | GI16: 0 | GJ16: 0 | GK16: 6256.88 | GL16: 0 | GM16: 0 | GN16: 0 | GO16: 0 | GP16: 0 | GQ16: 0 | GR16: 0 | GS16: 0 | GT16: 75624.13 | GU16: 216034.21 | GV16: 439250.63 | GW16: 101004.31 | GX16: 0 | GY16: 0 | GZ16: 0 | HA16: 49103.5 | HB16: 10166.63 | HC16: 0 | HD16: 0 | HE16: 0 | HF16: 0 | HG16: 0 | HH16: 0 | HI16: 0 | HJ16: 0 | HK16: 0 | HL16: 0 | HM16: =HM19+HM17+HM18+HM15 -> 0 | HN16: 0 | HO16: 0 | HP16: 0 | HQ16: 0 | HR16: 0 | HS16: 41873.72 | HT16: =HT19+HT17+HT18+HT15 -> 103305.4 | HU16: =HU19+HU17+HU18+HU15 -> 125779.2 | HV16: =HV19+HV17+HV18+HV15 -> 0 | HW16: =HW19+HW17+HW18+HW15 -> 220.8 | HX16: 80886.64 | HY16: 0 | HZ16: 5398158 | IA16: 496807.5109 | IB16: 731653.6963 | IC16: 0 | ID16: 6626619.208 | IE16: 831651.85 | IF16: 831651.85 | IG16: 449294.35 | IH16: 891346 | II16: 0 | IJ16: 0 | IK16: 0 | IL16: 309036.86 | IM16: 0 | IN16: 0 | IO16: 88234.25 | IP16: 413448.18 | IQ16: 0 | IR16: 277355.52 | IS16: 214089.15 | IT16: 10101075.37 | IU16: 1307552.852 | IV16: 205408.5579 | IW16: 689515.297 | IX16: 22804.2544 | IY16: 2225280.961 | IZ16: 0 | JA16: 2225280.961 | JB16: 0 | JC16: 2225280.961 | JD16: 0 | JE16: 2225280.961 | JF16: 713210.6463 | JG16: 112041.0316 | JH16: 689515.297 | JI16: 22804.2544 | JJ16: 1537571.229 | JK16: 0 | JL16: 1537571.229 | JM16: 0 | JN16: 1537571.229 | JO16: 1160207.99 | JP16: 377363.2393 | JQ16: 1133309.99 | JR16: 2.926627583 | JS16: 0 | JT16: 0 | JU16: =IF(JP16=0,"The District's programs 200, 512, 514, and 515 special education spending was equal to base, weighted, IDEA, and other special education funding.",IF(JP16>0,"The District's programs 200, 512, 514, and 515 special education spending was less than base, weighted, IDEA, and other special education funding.","The District's programs 200, 512, 514, and 515 special education spending was greater than base, weighted, IDEA, and other special education funding.")) -> The District's programs 200, 512, 514, and 515 special education spending was less than base, weighted, IDEA, and other special education funding.
A17: Private Schools | D17: =IF(VLOOKUP(A17,'School listing'!$A$7:$F$99,6,FALSE)="","",VLOOKUP(A17,'School listing'!$A$7:$F$99,6,FALSE)) ->  | G17: =SUMIF(Calculation!$E$4:$CS$4,Totals!$D17,Calculation!$E$12:$CS$12)+SUMIF('Allocation to schools'!$E$9:$GF$9,Totals!$D17,'Allocation to schools'!$E$12:$GF$12)+SUMIF('Allocation to schools'!$E$9:$GF$9,Totals!$D17,'Allocation to schools'!$E$20:$GF$20) -> 0 | H17: =SUMIF(Calculation!$E$4:$CS$4,Totals!$D17,Calculation!$E$117:$CS$117)+SUMIF('Allocation to schools'!$E$9:$GF$9,Totals!$D17,'Allocation to schools'!$E$13:$GF$13)+SUMIF('Allocation to schools'!$E$9:$GF$9,Totals!$D17,'Allocation to schools'!$E$21:$GF$21) -> 0 | I17: =SUMIF(Calculation!$E$4:$CS$4,Totals!$D17,Calculation!$E$242:$CS$242)+SUMIF('Allocation to schools'!$E$9:$GF$9,Totals!$D17,'Allocation to schools'!$E$14:$GF$14) -> 0 | J17: =SUMIF(Calculation!$E$4:$CS$4,Totals!$D17,Calculation!$E$640:$CS$640)+SUMIF('Allocation to schools'!$E$9:$GF$9,Totals!$D17,'Allocation to schools'!$E$15:$GF$15) -> 0 | K17: =SUMIF(Calculation!$E$4:$CS$4,Totals!$D17,Calculation!$E$751:$CS$751)+SUMIF('Allocation to schools'!$E$9:$GF$9,Totals!$D17,'Allocation to schools'!$E$16:$GF$16) -> 0 | L17: =SUMIF(Calculation!$E$4:$CS$4,Totals!$D17,Calculation!$E$955:$CS$955)+SUMIF('Allocation to schools'!$E$9:$GF$9,Totals!$D17,'Allocation to schools'!$E$17:$GF$17) -> 0 | M17: =SUMIF(Calculation!$E$4:$CS$4,Totals!$D17,Calculation!$E$1120:$CS$1120)+SUMIF('Allocation to schools'!$E$9:$GF$9,Totals!$D17,'Allocation to schools'!$E$18:$GF$18) -> 0 | N17: =SUMIF(Calculation!$E$4:$CS$4,Totals!$D17,Calculation!$E$1503:$CS$1503)+SUMIFS('Allocation to schools'!$E$12:$GF$12,'Allocation to schools'!$E$10:$GF$10,"from federal sources",'Allocation to schools'!$E$9:$GF$9,Totals!$D17)+SUMIFS('Allocation to schools'!$E$20:$GF$20,'Allocation to schools'!$E$10:$GF$10,"from federal sources",'Allocation to schools'!$E$9:$GF$9,Totals!$D17) -> 0 | O17: =SUMIF(Calculation!$E$4:$CS$4,Totals!$D17,Calculation!$E$1504:$CS$1504)+SUMIFS('Allocation to schools'!$E$13:$GF$13,'Allocation to schools'!$E$10:$GF$10,"from federal sources",'Allocation to schools'!$E$9:$GF$9,Totals!$D17)+SUMIFS('Allocation to schools'!$E$21:$GF$21,'Allocation to schools'!$E$10:$GF$10,"from federal sources",'Allocation to schools'!$E$9:$GF$9,Totals!$D17) -> 0 | P17: =SUMIF(Calculation!$E$4:$CS$4,Totals!$D17,Calculation!$E$1505:$CS$1505)+SUMIFS('Allocation to schools'!$E$172:$GF$172,'Allocation to schools'!$E$10:$GF$10,"from federal sources",'Allocation to schools'!$E$9:$GF$9,Totals!$D17) -> 0 | Q17: =SUMIF(Calculation!$E$4:$CS$4,Totals!$D17,Calculation!$E$1229:$CS$1229)+SUMIF('Allocation to schools'!$E$9:$GF$9,Totals!$D17,'Allocation to schools'!$E$19:$GF$19)+SUMIF('Allocation to schools'!$E$9:$GF$9,Totals!$D17,'Allocation to schools'!$E$22:$GF$22) -> 0 | R17: =SUMIF(Calculation!$E$4:$CS$4,Totals!$D17,Calculation!$E$19:$CS$19)+SUMIF('Allocation to schools'!$E$9:$GF$9,Totals!$D17,'Allocation to schools'!$E$23:$GF$23) -> 0 | S17: =SUMIF(Calculation!$E$4:$CS$4,Totals!$D17,Calculation!$E$124:$CS$124)+SUMIF('Allocation to schools'!$E$9:$GF$9,Totals!$D17,'Allocation to schools'!$E$24:$GF$24) -> 0 | T17: =SUMIF(Calculation!$E$4:$CS$4,Totals!$D17,Calculation!$E$269:$CS$269)+SUMIF('Allocation to schools'!$E$9:$GF$9,Totals!$D17,'Allocation to schools'!$E$25:$GF$25) -> 0 | U17: =SUMIF(Calculation!$E$4:$CS$4,Totals!$D17,Calculation!$E$647:$CS$647)+SUMIF('Allocation to schools'!$E$9:$GF$9,Totals!$D17,'Allocation to schools'!$E$26:$GF$26) -> 0 | V17: =SUMIF(Calculation!$E$4:$CS$4,Totals!$D17,Calculation!$E$764:$CS$764)+SUMIF('Allocation to schools'!$E$9:$GF$9,Totals!$D17,'Allocation to schools'!$E$27:$GF$27) -> 0 | W17: =SUMIF(Calculation!$E$4:$CS$4,Totals!$D17,Calculation!$E$962:$CS$962)+SUMIF('Allocation to schools'!$E$9:$GF$9,Totals!$D17,'Allocation to schools'!$E$28:$GF$28) -> 0 | X17: =SUMIF(Calculation!$E$4:$CS$4,Totals!$D17,Calculation!$E$1127:$CS$1127)+SUMIF('Allocation to schools'!$E$9:$GF$9,Totals!$D17,'Allocation to schools'!$E$29:$GF$29) -> 0 | Y17: =SUMIF(Calculation!$E$4:$CS$4,Totals!$D17,Calculation!$E$1506:$CS$1506)+SUMIFS('Allocation to schools'!$E$23:$GF$23,'Allocation to schools'!$E$10:$GF$10,"from federal sources",'Allocation to schools'!$E$9:$GF$9,Totals!$D17) -> 0 | Z17: =SUMIF(Calculation!$E$4:$CS$4,Totals!$D17,Calculation!$E$1507:$CS$1507)+SUMIFS('Allocation to schools'!$E$24:$GF$24,'Allocation to schools'!$E$10:$GF$10,"from federal sources",'Allocation to schools'!$E$9:$GF$9,Totals!$D17) -> 0 | AA17: =SUMIF(Calculation!$E$4:$CS$4,Totals!$D17,Calculation!$E$1520:$CS$1520)+SUMIFS('Allocation to schools'!$E$173:$GF$173,'Allocation to schools'!$E$10:$GF$10,"from federal sources",'Allocation to schools'!$E$9:$GF$9,Totals!$D17) -> 0 | AB17: =SUMIF(Calculation!$E$4:$CS$4,Totals!$D17,Calculation!$E$1240:$CS$1240)+SUMIF('Allocation to schools'!$E$9:$GF$9,Totals!$D17,'Allocation to schools'!$E$30:$GF$30) -> 0 | AC17: =SUMIF(Calculation!$E$4:$CS$4,Totals!$D17,Calculation!$E$26:$CS$26)+SUMIF('Allocation to schools'!$E$9:$GF$9,Totals!$D17,'Allocation to schools'!$E$31:$GF$31) -> 0 | AD17: =SUMIF(Calculation!$E$4:$CS$4,Totals!$D17,Calculation!$E$131:$CS$131)+SUMIF('Allocation to schools'!$E$9:$GF$9,Totals!$D17,'Allocation to schools'!$E$32:$GF$32) -> 0 | AE17: =SUMIF(Calculation!$E$4:$CS$4,Totals!$D17,Calculation!$E$296:$CS$296)+SUMIF('Allocation to schools'!$E$9:$GF$9,Totals!$D17,'Allocation to schools'!$E$33:$GF$33) -> 0 | AF17: =SUMIF(Calculation!$E$4:$CS$4,Totals!$D17,Calculation!$E$654:$CS$654)+SUMIF('Allocation to schools'!$E$9:$GF$9,Totals!$D17,'Allocation to schools'!$E$34:$GF$34) -> 0 | AG17: =SUMIF(Calculation!$E$4:$CS$4,Totals!$D17,Calculation!$E$777:$CS$777)+SUMIF('Allocation to schools'!$E$9:$GF$9,Totals!$D17,'Allocation to schools'!$E$35:$GF$35) -> 0 | AH17: =SUMIF(Calculation!$E$4:$CS$4,Totals!$D17,Calculation!$E$969:$CS$969)+SUMIF('Allocation to schools'!$E$9:$GF$9,Totals!$D17,'Allocation to schools'!$E$36:$GF$36) -> 0 | AI17: =SUMIF(Calculation!$E$4:$CS$4,Totals!$D17,Calculation!$E$1134:$CS$1134)+SUMIF('Allocation to schools'!$E$9:$GF$9,Totals!$D17,'Allocation to schools'!$E$37:$GF$37) -> 0 | AJ17: =SUMIF(Calculation!$E$4:$CS$4,Totals!$D17,Calculation!$E$1521:$CS$1521)+SUMIFS('Allocation to schools'!$E$31:$GF$31,'Allocation to schools'!$E$10:$GF$10,"from federal sources",'Allocation to schools'!$E$9:$GF$9,Totals!$D17) -> 0 | AK17: =SUMIF(Calculation!$E$4:$CS$4,Totals!$D17,Calculation!$E$1522:$CS$1522)+SUMIFS('Allocation to schools'!$E$32:$GF$32,'Allocation to schools'!$E$10:$GF$10,"from federal sources",'Allocation to schools'!$E$9:$GF$9,Totals!$D17) -> 0 | AL17: =SUMIF(Calculation!$E$4:$CS$4,Totals!$D17,Calculation!$E$1535:$CS$1535)+SUMIFS('Allocation to schools'!$E$174:$GF$174,'Allocation to schools'!$E$10:$GF$10,"from federal sources",'Allocation to schools'!$E$9:$GF$9,Totals!$D17) -> 0 | AM17: =SUMIF(Calculation!$E$4:$CS$4,Totals!$D17,Calculation!$E$1251:$CS$1251)+SUMIF('Allocation to schools'!$E$9:$GF$9,Totals!$D17,'Allocation to schools'!$E$38:$GF$38) -> 0 | AN17: =SUMIF(Calculation!$E$4:$CS$4,Totals!$D17,Calculation!$E$33:$CS$33)+SUMIF('Allocation to schools'!$E$9:$GF$9,Totals!$D17,'Allocation to schools'!$E$39:$GF$39) -> 0 | AO17: =SUMIF(Calculation!$E$4:$CS$4,Totals!$D17,Calculation!$E$138:$CS$138)+SUMIF('Allocation to schools'!$E$9:$GF$9,Totals!$D17,'Allocation to schools'!$E$40:$GF$40) -> 0 | AP17: =SUMIF(Calculation!$E$4:$CS$4,Totals!$D17,Calculation!$E$323:$CS$323)+SUMIF('Allocation to schools'!$E$9:$GF$9,Totals!$D17,'Allocation to schools'!$E$41:$GF$41) -> 0 | AQ17: =SUMIF(Calculation!$E$4:$CS$4,Totals!$D17,Calculation!$E$661:$CS$661)+SUMIF('Allocation to schools'!$E$9:$GF$9,Totals!$D17,'Allocation to schools'!$E$42:$GF$42) -> 0 | AR17: =SUMIF(Calculation!$E$4:$CS$4,Totals!$D17,Calculation!$E$790:$CS$790)+SUMIF('Allocation to schools'!$E$9:$GF$9,Totals!$D17,'Allocation to schools'!$E$43:$GF$43) -> 0 | AS17: =SUMIF(Calculation!$E$4:$CS$4,Totals!$D17,Calculation!$E$976:$CS$976)+SUMIF('Allocation to schools'!$E$9:$GF$9,Totals!$D17,'Allocation to schools'!$E$44:$GF$44) -> 0 | AT17: =SUMIF(Calculation!$E$4:$CS$4,Totals!$D17,Calculation!$E$1060:$CS$1060)+SUMIF('Allocation to schools'!$E$9:$GF$9,Totals!$D17,'Allocation to schools'!$E$45:$GF$45) -> 0 | AU17: =SUMIF(Calculation!$E$4:$CS$4,Totals!$D17,Calculation!$E$1141:$CS$1141)+SUMIF('Allocation to schools'!$E$9:$GF$9,Totals!$D17,'Allocation to schools'!$E$46:$GF$46) -> 0 | AV17: =SUMIF(Calculation!$E$4:$CS$4,Totals!$D17,Calculation!$E$1536:$CS$1536)+SUMIFS('Allocation to schools'!$E$39:$GF$39,'Allocation to schools'!$E$10:$GF$10,"from federal sources",'Allocation to schools'!$E$9:$GF$9,Totals!$D17) -> 0 | AW17: =SUMIF(Calculation!$E$4:$CS$4,Totals!$D17,Calculation!$E$1537:$CS$1537)+SUMIFS('Allocation to schools'!$E$40:$GF$40,'Allocation to schools'!$E$10:$GF$10,"from federal sources",'Allocation to schools'!$E$9:$GF$9,Totals!$D17) -> 0 | AX17: =SUMIF(Calculation!$E$4:$CS$4,Totals!$D17,Calculation!$E$1551:$CS$1551)+SUMIFS('Allocation to schools'!$E$175:$GF$175,'Allocation to schools'!$E$10:$GF$10,"from federal sources",'Allocation to schools'!$E$9:$GF$9,Totals!$D17) -> 0 | AY17: =SUMIF(Calculation!$E$4:$CS$4,Totals!$D17,Calculation!$E$1262:$CS$1262)+SUMIF('Allocation to schools'!$E$9:$GF$9,Totals!$D17,'Allocation to schools'!$E$47:$GF$47) -> 0 | AZ17: =SUMIF(Calculation!$E$4:$CS$4,Totals!$D17,Calculation!$E$40:$CS$40)+SUMIF('Allocation to schools'!$E$9:$GF$9,Totals!$D17,'Allocation to schools'!$E$48:$GF$48) -> 0 | BA17: =SUMIF(Calculation!$E$4:$CS$4,Totals!$D17,Calculation!$E$145:$CS$145)+SUMIF('Allocation to schools'!$E$9:$GF$9,Totals!$D17,'Allocation to schools'!$E$49:$GF$49) -> 0 | BB17: =SUMIF(Calculation!$E$4:$CS$4,Totals!$D17,Calculation!$E$350:$CS$350)+SUMIF('Allocation to schools'!$E$9:$GF$9,Totals!$D17,'Allocation to schools'!$E$50:$GF$50) -> 0 | BC17: =SUMIF(Calculation!$E$4:$CS$4,Totals!$D17,Calculation!$E$668:$CS$668)+SUMIF('Allocation to schools'!$E$9:$GF$9,Totals!$D17,'Allocation to schools'!$E$51:$GF$51) -> 0 | BD17: =SUMIF(Calculation!$E$4:$CS$4,Totals!$D17,Calculation!$E$803:$CS$803)+SUMIF('Allocation to schools'!$E$9:$GF$9,Totals!$D17,'Allocation to schools'!$E$52:$GF$52) -> 0 | BE17: =SUMIF(Calculation!$E$4:$CS$4,Totals!$D17,Calculation!$E$983:$CS$983)+SUMIF('Allocation to schools'!$E$9:$GF$9,Totals!$D17,'Allocation to schools'!$E$53:$GF$53) -> 0 | BF17: =SUMIF(Calculation!$E$4:$CS$4,Totals!$D17,Calculation!$E$1148:$CS$1148)+SUMIF('Allocation to schools'!$E$9:$GF$9,Totals!$D17,'Allocation to schools'!$E$54:$GF$54) -> 0 | BG17: =SUMIF(Calculation!$E$4:$CS$4,Totals!$D17,Calculation!$E$1552:$CS$1552)+SUMIFS('Allocation to schools'!$E$48:$GF$48,'Allocation to schools'!$E$10:$GF$10,"from federal sources",'Allocation to schools'!$E$9:$GF$9,Totals!$D17) -> 0 | BH17: =SUMIF(Calculation!$E$4:$CS$4,Totals!$D17,Calculation!$E$1553:$CS$1553)+SUMIFS('Allocation to schools'!$E$49:$GF$49,'Allocation to schools'!$E$10:$GF$10,"from federal sources",'Allocation to schools'!$E$9:$GF$9,Totals!$D17) -> 0 | BI17: =SUMIF(Calculation!$E$4:$CS$4,Totals!$D17,Calculation!$E$1566:$CS$1566)+SUMIFS('Allocation to schools'!$E$176:$GF$176,'Allocation to schools'!$E$10:$GF$10,"from federal sources",'Allocation to schools'!$E$9:$GF$9,Totals!$D17) -> 0 | BJ17: =SUMIF(Calculation!$E$4:$CS$4,Totals!$D17,Calculation!$E$1273:$CS$1273)+SUMIF('Allocation to schools'!$E$9:$GF$9,Totals!$D17,'Allocation to schools'!$E$55:$GF$55) -> 0 | BK17: =SUMIF(Calculation!$E$4:$CS$4,Totals!$D17,Calculation!$E$47:$CS$47)+SUMIF(Calculation!$E$4:$CS$4,Totals!$D17,Calculation!$E$54:$CS$54)+SUMIF('Allocation to schools'!$E$9:$GF$9,Totals!$D17,'Allocation to schools'!$E$56:$GF$56) -> 0 | BL17: =SUMIF(Calculation!$E$4:$CS$4,Totals!$D17,Calculation!$E$152:$CS$152)+SUMIF(Calculation!$E$4:$CS$4,Totals!$D17,Calculation!$E$159:$CS$159)+SUMIF('Allocation to schools'!$E$9:$GF$9,Totals!$D17,'Allocation to schools'!$E$57:$GF$57) -> 0 | BM17: =SUMIF(Calculation!$E$4:$CS$4,Totals!$D17,Calculation!$E$377:$CS$377)+SUMIF(Calculation!$E$4:$CS$4,Totals!$D17,Calculation!$E$404:$CS$404)+SUMIF('Allocation to schools'!$E$9:$GF$9,Totals!$D17,'Allocation to schools'!$E$58:$GF$58) -> 0 | BN17: =SUMIF(Calculation!$E$4:$CS$4,Totals!$D17,Calculation!$E$675:$CS$675)+SUMIF(Calculation!$E$4:$CS$4,Totals!$D17,Calculation!$E$682:$CS$682)+SUMIF('Allocation to schools'!$E$9:$GF$9,Totals!$D17,'Allocation to schools'!$E$59:$GF$59) -> 0 | BO17: =SUMIF(Calculation!$E$4:$CS$4,Totals!$D17,Calculation!$E$816:$CS$816)+SUMIF(Calculation!$E$4:$CS$4,Totals!$D17,Calculation!$E$829:$CS$829)+SUMIF('Allocation to schools'!$E$9:$GF$9,Totals!$D17,'Allocation to schools'!$E$60:$GF$60) -> 0 | BP17: =SUMIF(Calculation!$E$4:$CS$4,Totals!$D17,Calculation!$E$990:$CS$990)+SUMIF(Calculation!$E$4:$CS$4,Totals!$D17,Calculation!$E$997:$CS$997)+SUMIF('Allocation to schools'!$E$9:$GF$9,Totals!$D17,'Allocation to schools'!$E$61:$GF$61) -> 0 | BQ17: =SUMIF(Calculation!$E$4:$CS$4,Totals!$D17,Calculation!$E$1086:$CS$1086)+SUMIF('Allocation to schools'!$E$9:$GF$9,Totals!$D17,'Allocation to schools'!$E$62:$GF$62) -> 0 | BR17: =SUMIF(Calculation!$E$4:$CS$4,Totals!$D17,Calculation!$E$1155:$CS$1155)+SUMIF(Calculation!$E$4:$CS$4,Totals!$D17,Calculation!$E$1162:$CS$1162)+SUMIF('Allocation to schools'!$E$9:$GF$9,Totals!$D17,'Allocation to schools'!$E$63:$GF$63) -> 0 | BS17: =SUMIF(Calculation!$E$4:$CS$4,Totals!$D17,Calculation!$E$1567:$CS$1567)+SUMIF(Calculation!$E$4:$CS$4,Totals!$D17,Calculation!$E$1583:$CS$1583)+SUMIFS('Allocation to schools'!$E$56:$GF$56,'Allocation to schools'!$E$10:$GF$10,"from federal sources",'Allocation to schools'!$E$9:$GF$9,Totals!$D17) -> 0 | BT17: =SUMIF(Calculation!$E$4:$CS$4,Totals!$D17,Calculation!$E$1568:$CS$1568)+SUMIF(Calculation!$E$4:$CS$4,Totals!$D17,Calculation!$E$1584:$CS$1584)+SUMIFS('Allocation to schools'!$E$57:$GF$57,'Allocation to schools'!$E$10:$GF$10,"from federal sources",'Allocation to schools'!$E$9:$GF$9,Totals!$D17) -> 0 | BU17: =SUMIF(Calculation!$E$4:$CS$4,Totals!$D17,Calculation!$E$1582:$CS$1582)+SUMIF(Calculation!$E$4:$CS$4,Totals!$D17,Calculation!$E$1598:$CS$1598)+SUMIFS('Allocation to schools'!$E$177:$GF$177,'Allocation to schools'!$E$10:$GF$10,"from federal sources",'Allocation to schools'!$E$9:$GF$9,Totals!$D17) -> 0 | BV17: =SUMIF(Calculation!$E$4:$CS$4,Totals!$D17,Calculation!$E$1284:$CS$1284)+SUMIF(Calculation!$E$4:$CS$4,Totals!$D17,Calculation!$E$1295:$CS$1295)+SUMIF('Allocation to schools'!$E$9:$GF$9,Totals!$D17,'Allocation to schools'!$E$64:$GF$64) -> 0 | BW17: =SUMIF(Calculation!$E$4:$CS$4,Totals!$D17,Calculation!$E$61:$CS$61)+SUMIF('Allocation to schools'!$E$9:$GF$9,Totals!$D17,'Allocation to schools'!$E$65:$GF$65) -> 0 | BX17: =SUMIF(Calculation!$E$4:$CS$4,Totals!$D17,Calculation!$E$166:$CS$166)+SUMIF('Allocation to schools'!$E$9:$GF$9,Totals!$D17,'Allocation to schools'!$E$66:$GF$66) -> 0 | BY17: =SUMIF(Calculation!$E$4:$CS$4,Totals!$D17,Calculation!$E$431:$CS$431)+SUMIF('Allocation to schools'!$E$9:$GF$9,Totals!$D17,'Allocation to schools'!$E$67:$GF$67) -> 0 | BZ17: =SUMIF(Calculation!$E$4:$CS$4,Totals!$D17,Calculation!$E$689:$CS$689)+SUMIF('Allocation to schools'!$E$9:$GF$9,Totals!$D17,'Allocation to schools'!$E$68:$GF$68) -> 0 | CA17: =SUMIF(Calculation!$E$4:$CS$4,Totals!$D17,Calculation!$E$842:$CS$842)+SUMIF('Allocation to schools'!$E$9:$GF$9,Totals!$D17,'Allocation to schools'!$E$69:$GF$69) -> 0 | CB17: =SUMIF(Calculation!$E$4:$CS$4,Totals!$D17,Calculation!$E$1004:$CS$1004)+SUMIF('Allocation to schools'!$E$9:$GF$9,Totals!$D17,'Allocation to schools'!$E$70:$GF$70) -> 0 | CC17: =SUMIF(Calculation!$E$4:$CS$4,Totals!$D17,Calculation!$E$1169:$CS$1169)+SUMIF('Allocation to schools'!$E$9:$GF$9,Totals!$D17,'Allocation to schools'!$E$71:$GF$71) -> 0 | CD17: =SUMIF(Calculation!$E$4:$CS$4,Totals!$D17,Calculation!$E$1599:$CS$1599)+SUMIFS('Allocation to schools'!$E$65:$GF$65,'Allocation to schools'!$E$10:$GF$10,"from federal sources",'Allocation to schools'!$E$9:$GF$9,Totals!$D17) -> 0 | CE17: =SUMIF(Calculation!$E$4:$CS$4,Totals!$D17,Calculation!$E$1600:$CS$1600)+SUMIFS('Allocation to schools'!$E$66:$GF$66,'Allocation to schools'!$E$10:$GF$10,"from federal sources",'Allocation to schools'!$E$9:$GF$9,Totals!$D17) -> 0 | CF17: =SUMIF(Calculation!$E$4:$CS$4,Totals!$D17,Calculation!$E$1613:$CS$1613)+SUMIFS('Allocation to schools'!$E$178:$GF$178,'Allocation to schools'!$E$10:$GF$10,"from federal sources",'Allocation to schools'!$E$9:$GF$9,Totals!$D17) -> 0 | CG17: =SUMIF(Calculation!$E$4:$CS$4,Totals!$D17,Calculation!$E$1306:$CS$1306)+SUMIF('Allocation to schools'!$E$9:$GF$9,Totals!$D17,'Allocation to schools'!$E$72:$GF$72) -> 0 | CH17: =SUMIF(Calculation!$E$4:$CS$4,Totals!$D17,Calculation!$E$68:$CS$68)+SUMIF('Allocation to schools'!$E$9:$GF$9,Totals!$D17,'Allocation to schools'!$E$73:$GF$73) -> 0 | CI17: =SUMIF(Calculation!$E$4:$CS$4,Totals!$D17,Calculation!$E$173:$CS$173)+SUMIF('Allocation to schools'!$E$9:$GF$9,Totals!$D17,'Allocation to schools'!$E$74:$GF$74) -> 0 | CJ17: =SUMIF(Calculation!$E$4:$CS$4,Totals!$D17,Calculation!$E$458:$CS$458)+SUMIF('Allocation to schools'!$E$9:$GF$9,Totals!$D17,'Allocation to schools'!$E$75:$GF$75) -> 0 | CK17: =SUMIF(Calculation!$E$4:$CS$4,Totals!$D17,Calculation!$E$696:$CS$696)+SUMIF('Allocation to schools'!$E$9:$GF$9,Totals!$D17,'Allocation to schools'!$E$76:$GF$76) -> 0 | CL17: =SUMIF(Calculation!$E$4:$CS$4,Totals!$D17,Calculation!$E$855:$CS$855)+SUMIF('Allocation to schools'!$E$9:$GF$9,Totals!$D17,'Allocation to schools'!$E$77:$GF$77) -> 0 | CM17: =SUMIF(Calculation!$E$4:$CS$4,Totals!$D17,Calculation!$E$1011:$CS$1011)+SUMIF('Allocation to schools'!$E$9:$GF$9,Totals!$D17,'Allocation to schools'!$E$78:$GF$78) -> 0 | CN17: =SUMIF(Calculation!$E$4:$CS$4,Totals!$D17,Calculation!$E$1176:$CS$1176)+SUMIF('Allocation to schools'!$E$9:$GF$9,Totals!$D17,'Allocation to schools'!$E$79:$GF$79) -> 0 | CO17: =SUMIF(Calculation!$E$4:$CS$4,Totals!$D17,Calculation!$E$1614:$CS$1614)+SUMIFS('Allocation to schools'!$E$73:$GF$73,'Allocation to schools'!$E$10:$GF$10,"from federal sources",'Allocation to schools'!$E$9:$GF$9,Totals!$D17) -> 0 | CP17: =SUMIF(Calculation!$E$4:$CS$4,Totals!$D17,Calculation!$E$1615:$CS$1615)+SUMIFS('Allocation to schools'!$E$74:$GF$74,'Allocation to schools'!$E$10:$GF$10,"from federal sources",'Allocation to schools'!$E$9:$GF$9,Totals!$D17) -> 0 | CQ17: =SUMIF(Calculation!$E$4:$CS$4,Totals!$D17,Calculation!$E$1628:$CS$1628)+SUMIFS('Allocation to schools'!$E$179:$GF$179,'Allocation to schools'!$E$10:$GF$10,"from federal sources",'Allocation to schools'!$E$9:$GF$9,Totals!$D17) -> 0 | CR17: =SUMIF(Calculation!$E$4:$CS$4,Totals!$D17,Calculation!$E$75:$CS$75)+SUMIF('Allocation to schools'!$E$9:$GF$9,Totals!$D17,'Allocation to schools'!$E$80:$GF$80) -> 0 | CS17: =SUMIF(Calculation!$E$4:$CS$4,Totals!$D17,Calculation!$E$180:$CS$180)+SUMIF('Allocation to schools'!$E$9:$GF$9,Totals!$D17,'Allocation to schools'!$E$81:$GF$81) -> 0 | CT17: =SUMIF(Calculation!$E$4:$CS$4,Totals!$D17,Calculation!$E$485:$CS$485)+SUMIF('Allocation to schools'!$E$9:$GF$9,Totals!$D17,'Allocation to schools'!$E$82:$GF$82) -> 0 | CU17: =SUMIF(Calculation!$E$4:$CS$4,Totals!$D17,Calculation!$E$703:$CS$703)+SUMIF('Allocation to schools'!$E$9:$GF$9,Totals!$D17,'Allocation to schools'!$E$83:$GF$83) -> 0 | CV17: =SUMIF(Calculation!$E$4:$CS$4,Totals!$D17,Calculation!$E$868:$CS$868)+SUMIF('Allocation to schools'!$E$9:$GF$9,Totals!$D17,'Allocation to schools'!$E$84:$GF$84) -> 0 | CW17: =SUMIF(Calculation!$E$4:$CS$4,Totals!$D17,Calculation!$E$1018:$CS$1018)+SUMIF('Allocation to schools'!$E$9:$GF$9,Totals!$D17,'Allocation to schools'!$E$85:$GF$85) -> 0 | CX17: =SUMIF(Calculation!$E$4:$CS$4,Totals!$D17,Calculation!$E$1183:$CS$1183)+SUMIF('Allocation to schools'!$E$9:$GF$9,Totals!$D17,'Allocation to schools'!$E$86:$GF$86) -> 0 | CY17: =SUMIF(Calculation!$E$4:$CS$4,Totals!$D17,Calculation!$E$1629:$CS$1629)+SUMIFS('Allocation to schools'!$E$80:$GF$80,'Allocation to schools'!$E$10:$GF$10,"from federal sources",'Allocation to schools'!$E$9:$GF$9,Totals!$D17) -> 0 | CZ17: =SUMIF(Calculation!$E$4:$CS$4,Totals!$D17,Calculation!$E$1630:$CS$1630)+SUMIFS('Allocation to schools'!$E$81:$GF$81,'Allocation to schools'!$E$10:$GF$10,"from federal sources",'Allocation to schools'!$E$9:$GF$9,Totals!$D17) -> 0 | DA17: =SUMIF(Calculation!$E$4:$CS$4,Totals!$D17,Calculation!$E$1643:$CS$1643)+SUMIFS('Allocation to schools'!$E$180:$GF$180,'Allocation to schools'!$E$10:$GF$10,"from federal sources",'Allocation to schools'!$E$9:$GF$9,Totals!$D17)+IF(SUMIFS('Allocation to schools'!$E$180:$GI$180,'Allocation to schools'!$E$9:$GI$9,Totals!$D17,'Allocation to schools'!$E$10:$GI$10,"from federal sources")>0,0,SUMIF('Data entry'!$B$13:$CS$13,Totals!$D17,'Data entry'!$B$97:$CS$97)) -> 0 | DB17: =SUMIF(Calculation!$E$4:$CS$4,Totals!$D17,Calculation!$E$1317:$CS$1317)+SUMIF('Allocation to schools'!$E$9:$GF$9,Totals!$D17,'Allocation to schools'!$E$87:$GF$87) -> 0 | DC17: =SUMIF(Calculation!$E$4:$CS$4,Totals!$D17,Calculation!$E$82:$CS$82)+SUMIF('Allocation to schools'!$E$9:$GF$9,Totals!$D17,'Allocation to schools'!$E$88:$GF$88) -> 0 | DD17: =SUMIF(Calculation!$E$4:$CS$4,Totals!$D17,Calculation!$E$187:$CS$187)+SUMIF('Allocation to schools'!$E$9:$GF$9,Totals!$D17,'Allocation to schools'!$E$89:$GF$89) -> 0 | DE17: =SUMIF(Calculation!$E$4:$CS$4,Totals!$D17,Calculation!$E$512:$CS$512)+SUMIF('Allocation to schools'!$E$9:$GF$9,Totals!$D17,'Allocation to schools'!$E$90:$GF$90) -> 0 | DF17: =SUMIF(Calculation!$E$4:$CS$4,Totals!$D17,Calculation!$E$710:$CS$710)+SUMIF('Allocation to schools'!$E$9:$GF$9,Totals!$D17,'Allocation to schools'!$E$91:$GF$91) -> 0 | DG17: =SUMIF(Calculation!$E$4:$CS$4,Totals!$D17,Calculation!$E$881:$CS$881)+SUMIF('Allocation to schools'!$E$9:$GF$9,Totals!$D17,'Allocation to schools'!$E$92:$GF$92) -> 0 | DH17: =SUMIF(Calculation!$E$4:$CS$4,Totals!$D17,Calculation!$E$1025:$CS$1025)+SUMIF('Allocation to schools'!$E$9:$GF$9,Totals!$D17,'Allocation to schools'!$E$93:$GF$93) -> 0 | DI17: =SUMIF(Calculation!$E$4:$CS$4,Totals!$D17,Calculation!$E$1190:$CS$1190)+SUMIF('Allocation to schools'!$E$9:$GF$9,Totals!$D17,'Allocation to schools'!$E$94:$GF$94) -> 0 | DJ17: =SUMIF(Calculation!$E$4:$CS$4,Totals!$D17,Calculation!$E$1644:$CS$1644)+SUMIFS('Allocation to schools'!$E$88:$GF$88,'Allocation to schools'!$E$10:$GF$10,"from federal sources",'Allocation to schools'!$E$9:$GF$9,Totals!$D17) -> 0 | DK17: =SUMIF(Calculation!$E$4:$CS$4,Totals!$D17,Calculation!$E$1645:$CS$1645)+SUMIFS('Allocation to schools'!$E$89:$GF$89,'Allocation to schools'!$E$10:$GF$10,"from federal sources",'Allocation to schools'!$E$9:$GF$9,Totals!$D17) -> 0 | DL17: =SUMIF(Calculation!$E$4:$CS$4,Totals!$D17,Calculation!$E$1658:$CS$1658)+SUMIFS('Allocation to schools'!$E$181:$GF$181,'Allocation to schools'!$E$10:$GF$10,"from federal sources",'Allocation to schools'!$E$9:$GF$9,Totals!$D17) -> 0 | DM17: =SUMIF(Calculation!$E$4:$CS$4,Totals!$D17,Calculation!$E$1328:$CS$1328)+SUMIF('Allocation to schools'!$E$9:$GF$9,Totals!$D17,'Allocation to schools'!$E$95:$GF$95) -> 0 | DN17: =SUMIF(Calculation!$E$4:$CS$4,Totals!$D17,Calculation!$E$1339:$CS$1339)+SUMIF('Allocation to schools'!$E$9:$GF$9,Totals!$D17,'Allocation to schools'!$E$96:$GF$96) -> 0 | DO17: =SUMIF(Calculation!$E$4:$CS$4,Totals!$D17,Calculation!$E$89:$CS$89)+SUMIF('Allocation to schools'!$E$9:$GF$9,Totals!$D17,'Allocation to schools'!$E$97:$GF$97) -> 0 | DP17: =SUMIF(Calculation!$E$4:$CS$4,Totals!$D17,Calculation!$E$194:$CS$194)+SUMIF('Allocation to schools'!$E$9:$GF$9,Totals!$D17,'Allocation to schools'!$E$98:$GF$98) -> 0 | DQ17: =SUMIF(Calculation!$E$4:$CS$4,Totals!$D17,Calculation!$E$539:$CS$539)+SUMIF('Allocation to schools'!$E$9:$GF$9,Totals!$D17,'Allocation to schools'!$E$99:$GF$99) -> 0 | DR17: =SUMIF(Calculation!$E$4:$CS$4,Totals!$D17,Calculation!$E$717:$CS$717)+SUMIF('Allocation to schools'!$E$9:$GF$9,Totals!$D17,'Allocation to schools'!$E$100:$GF$100) -> 0 | DS17: =SUMIF(Calculation!$E$4:$CS$4,Totals!$D17,Calculation!$E$894:$CS$894)+SUMIF('Allocation to schools'!$E$9:$GF$9,Totals!$D17,'Allocation to schools'!$E$101:$GF$101) -> 0 | DT17: =SUMIF(Calculation!$E$4:$CS$4,Totals!$D17,Calculation!$E$1032:$CS$1032)+SUMIF('Allocation to schools'!$E$9:$GF$9,Totals!$D17,'Allocation to schools'!$E$102:$GF$102) -> 0 | DU17: =SUMIF(Calculation!$E$4:$CS$4,Totals!$D17,Calculation!$E$1197:$CS$1197)+SUMIF('Allocation to schools'!$E$9:$GF$9,Totals!$D17,'Allocation to schools'!$E$103:$GF$103) -> 0 | DV17: =SUMIF(Calculation!$E$4:$CS$4,Totals!$D17,Calculation!$E$1659:$CS$1659)+SUMIFS('Allocation to schools'!$E$97:$GF$97,'Allocation to schools'!$E$10:$GF$10,"from federal sources",'Allocation to schools'!$E$9:$GF$9,Totals!$D17) -> 0 | DW17: =SUMIF(Calculation!$E$4:$CS$4,Totals!$D17,Calculation!$E$1660:$CS$1660)+SUMIFS('Allocation to schools'!$E$98:$GF$98,'Allocation to schools'!$E$10:$GF$10,"from federal sources",'Allocation to schools'!$E$9:$GF$9,Totals!$D17) -> 0 | DX17: =SUMIF(Calculation!$E$4:$CS$4,Totals!$D17,Calculation!$E$1673:$CS$1673)+SUMIFS('Allocation to schools'!$E$182:$GF$182,'Allocation to schools'!$E$10:$GF$10,"from federal sources",'Allocation to schools'!$E$9:$GF$9,Totals!$D17) -> 0 | DY17: =SUMIF(Calculation!$E$4:$CS$4,Totals!$D17,Calculation!$E$1350:$CS$1350)+SUMIF('Allocation to schools'!$E$9:$GF$9,Totals!$D17,'Allocation to schools'!$E$104:$GF$104) -> 0 | DZ17: =SUMIF(Calculation!$E$4:$CS$4,Totals!$D17,Calculation!$E$96:$CS$96)+SUMIF('Allocation to schools'!$E$9:$GF$9,Totals!$D17,'Allocation to schools'!$E$105:$GF$105) -> 0 | EA17: =SUMIF(Calculation!$E$4:$CS$4,Totals!$D17,Calculation!$E$201:$CS$201)+SUMIF('Allocation to schools'!$E$9:$GF$9,Totals!$D17,'Allocation to schools'!$E$106:$GF$106) -> 0 | EB17: =SUMIF(Calculation!$E$4:$CS$4,Totals!$D17,Calculation!$E$566:$CS$566)+SUMIF('Allocation to schools'!$E$9:$GF$9,Totals!$D17,'Allocation to schools'!$E$107:$GF$107) -> 0 | EC17: =SUMIF(Calculation!$E$4:$CS$4,Totals!$D17,Calculation!$E$724:$CS$724)+SUMIF('Allocation to schools'!$E$9:$GF$9,Totals!$D17,'Allocation to schools'!$E$108:$GF$108) -> 0 | ED17: =SUMIF(Calculation!$E$4:$CS$4,Totals!$D17,Calculation!$E$907:$CS$907)+SUMIF('Allocation to schools'!$E$9:$GF$9,Totals!$D17,'Allocation to schools'!$E$109:$GF$109) -> 0 | EE17: =SUMIF(Calculation!$E$4:$CS$4,Totals!$D17,Calculation!$E$1039:$CS$1039)+SUMIF('Allocation to schools'!$E$9:$GF$9,Totals!$D17,'Allocation to schools'!$E$110:$GF$110) -> 0 | EF17: =SUMIF(Calculation!$E$4:$CS$4,Totals!$D17,Calculation!$E$1204:$CS$1204)+SUMIF('Allocation to schools'!$E$9:$GF$9,Totals!$D17,'Allocation to schools'!$E$111:$GF$111) -> 0 | EH17: =SUMIF(Calculation!$E$4:$CS$4,Totals!$D17,Calculation!$E$1361:$CS$1361)+SUMIF('Allocation to schools'!$E$9:$GF$9,Totals!$D17,'Allocation to schools'!$E$112:$GF$112) -> 0 | EI17: =SUMIF(Calculation!$E$4:$CS$4,Totals!$D17,Calculation!$E$1079:$CS$1079)+SUMIF('Allocation to schools'!$E$9:$GF$9,Totals!$D17,'Allocation to schools'!$E$113:$GF$113)+SUMIF('Allocation to schools'!$E$9:$GF$9,Totals!$D17,'Allocation to schools'!$E$114:$GF$114)+SUMIF(Calculation!$E$4:$CS$4,Totals!$D17,Calculation!$E$1495:$CS$1495) -> 0 | EJ17: =SUMIF(Calculation!$E$4:$CS$4,Totals!$D17,Calculation!$E$1108:$CS$1108)+SUMIF('Allocation to schools'!$E$9:$GF$9,Totals!$D17,'Allocation to schools'!$E$115:$GF$115)+SUMIF('Allocation to schools'!$E$9:$GF$9,Totals!$D17,'Allocation to schools'!$E$116:$GF$116) -> 0 | EK17: =SUMIF(Calculation!$E$4:$CS$4,Totals!$D17,Calculation!$E$1372:$CS$1372)+SUMIF('Allocation to schools'!$E$9:$GF$9,Totals!$D17,'Allocation to schools'!$E$117:$GF$117) -> 0 | EN17: =SUMIF(Calculation!$E$4:$CS$4,Totals!$D17,Calculation!$E$110:$CS$110)+SUMIFS('Allocation to schools'!$E$162:$GF$162,'Allocation to schools'!$E$9:$GF$9,Totals!$D17,'Allocation to schools'!$E$10:$GF$10,"from federal sources") -> 0 | EO17: =SUMIF(Calculation!$E$4:$CS$4,Totals!$D17,Calculation!$E$215:$CS$215)+SUMIFS('Allocation to schools'!$E$163:$GF$163,'Allocation to schools'!$E$9:$GF$9,Totals!$D17,'Allocation to schools'!$E$10:$GF$10,"from federal sources") -> 0 | EP17: =SUMIF(Calculation!$E$4:$CS$4,Totals!$D17,Calculation!$E$633:$CS$633)+SUMIFS('Allocation to schools'!$E$164:$GF$164,'Allocation to schools'!$E$9:$GF$9,Totals!$D17,'Allocation to schools'!$E$10:$GF$10,"from federal sources") -> 0 | EQ17: =SUMIF(Calculation!$E$4:$CS$4,Totals!$D17,Calculation!$E$738:$CS$738)+SUMIFS('Allocation to schools'!$E$165:$GF$165,'Allocation to schools'!$E$9:$GF$9,Totals!$D17,'Allocation to schools'!$E$10:$GF$10,"from federal sources")+IF(SUMIFS('Allocation to schools'!$E$80:$GI$80,'Allocation to schools'!$E$9:$GI$9,Totals!$D17,'Allocation to schools'!$E$10:$GI$10,"from federal sources")+SUMIFS('Allocation to schools'!$E$83:$GI$83,'Allocation to schools'!$E$9:$GI$9,Totals!$D17,'Allocation to schools'!$E$10:$GI$10,"from federal sources")>0,0,SUMIF('Data entry'!$B$13:$CS$13,Totals!$D17,'Data entry'!$B$97:$CS$97)) -> 0 | ER17: =SUMIF(Calculation!$E$4:$CS$4,Totals!$D17,Calculation!$E$948:$CS$948)+SUMIFS('Allocation to schools'!$E$166:$GF$166,'Allocation to schools'!$E$9:$GF$9,Totals!$D17,'Allocation to schools'!$E$10:$GF$10,"from federal sources") -> 0 | ES17: =SUMIF(Calculation!$E$4:$CS$4,Totals!$D17,Calculation!$E$1053:$CS$1053)+SUMIFS('Allocation to schools'!$E$167:$GF$167,'Allocation to schools'!$E$9:$GF$9,Totals!$D17,'Allocation to schools'!$E$10:$GF$10,"from federal sources") -> 0 | ET17: =SUMIF(Calculation!$E$4:$CS$4,Totals!$D17,Calculation!$E$1065:$CS$1065)+SUMIFS('Allocation to schools'!$E$168:$GF$168,'Allocation to schools'!$E$9:$GF$9,Totals!$D17,'Allocation to schools'!$E$10:$GF$10,"from federal sources") -> 0 | EU17: =SUMIF(Calculation!$E$4:$CS$4,Totals!$D17,Calculation!$E$1113:$CS$1113)+SUMIFS('Allocation to schools'!$E$169:$GF$169,'Allocation to schools'!$E$9:$GF$9,Totals!$D17,'Allocation to schools'!$E$10:$GF$10,"from federal sources") -> 0 | EV17: =SUMIF(Calculation!$E$4:$CS$4,Totals!$D17,Calculation!$E$1218:$CS$1218)+SUMIFS('Allocation to schools'!$E$170:$GF$170,'Allocation to schools'!$E$9:$GF$9,Totals!$D17,'Allocation to schools'!$E$10:$GF$10,"from federal sources") -> 0 | EX17: =SUMIF(Calculation!$E$4:$CS$4,Totals!$D17,Calculation!$E$1392:$CS$1392)+SUMIFS('Allocation to schools'!$E$171:$GF$171,'Allocation to schools'!$E$9:$GF$9,Totals!$D17,'Allocation to schools'!$E$10:$GF$10,"from federal sources") -> 0 | EY17: =(SUMIF(Calculation!$E$4:$CS$4,Totals!$D17,Calculation!$E$97:$CS$97)-SUMIF(Calculation!$E$4:$CS$4,Totals!$D17,Calculation!$E$110:$CS$110))+SUMIFS('Allocation to schools'!$E$162:$GF$162,'Allocation to schools'!$E$9:$GF$9,Totals!$D17,'Allocation to schools'!$E$10:$GF$10,"from local & State sources") -> 0 | EZ17: =(SUMIF(Calculation!$E$4:$CS$4,Totals!$D17,Calculation!$E$202:$CS$202)-SUMIF(Calculation!$E$4:$CS$4,Totals!$D17,Calculation!$E$215:$CS$215))+SUMIFS('Allocation to schools'!$E$163:$GF$163,'Allocation to schools'!$E$9:$GF$9,Totals!$D17,'Allocation to schools'!$E$10:$GF$10,"from local & State sources") -> 0 | FA17: =(SUMIF(Calculation!$E$4:$CS$4,Totals!$D17,Calculation!$E$567:$CS$567)-SUMIF(Calculation!$E$4:$CS$4,Totals!$D17,Calculation!$E$633:$CS$633))+SUMIFS('Allocation to schools'!$E$164:$GF$164,'Allocation to schools'!$E$9:$GF$9,Totals!$D17,'Allocation to schools'!$E$10:$GF$10,"from local & State sources") -> 0 | FB17: =(SUMIF(Calculation!$E$4:$CS$4,Totals!$D17,Calculation!$E$725:$CS$725)-SUMIF(Calculation!$E$4:$CS$4,Totals!$D17,Calculation!$E$738:$CS$738))+SUMIFS('Allocation to schools'!$E$165:$GF$165,'Allocation to schools'!$E$9:$GF$9,Totals!$D17,'Allocation to schools'!$E$10:$GF$10,"from local & State sources")-IF(SUMIFS('Allocation to schools'!$E$80:$GI$80,'Allocation to schools'!$E$9:$GI$9,Totals!$D17,'Allocation to schools'!$E$10:$GI$10,"from federal sources")+SUMIFS('Allocation to schools'!$E$83:$GI$83,'Allocation to schools'!$E$9:$GI$9,Totals!$D17,'Allocation to schools'!$E$10:$GI$10,"from federal sources")>0,0,SUMIF('Data entry'!$B$13:$CS$13,Totals!$D17,'Data entry'!$B$97:$CS$97)) -> 0 | FC17: =(SUMIF(Calculation!$E$4:$CS$4,Totals!$D17,Calculation!$E$908:$CS$908)-SUMIF(Calculation!$E$4:$CS$4,Totals!$D17,Calculation!$E$948:$CS$948))+SUMIFS('Allocation to schools'!$E$166:$GF$166,'Allocation to schools'!$E$9:$GF$9,Totals!$D17,'Allocation to schools'!$E$10:$GF$10,"from local & State sources") -> 0 | FD17: =(SUMIF(Calculation!$E$4:$CS$4,Totals!$D17,Calculation!$E$1040:$CS$1040)-SUMIF(Calculation!$E$4:$CS$4,Totals!$D17,Calculation!$E$1053:$CS$1053))+SUMIFS('Allocation to schools'!$E$167:$GF$167,'Allocation to schools'!$E$9:$GF$9,Totals!$D17,'Allocation to schools'!$E$10:$GF$10,"from local & State sources") -> 0 | FE17: =(SUMIF(Calculation!$E$4:$CS$4,Totals!$D17,Calculation!$E$1060:$CS$1060)-SUMIF(Calculation!$E$4:$CS$4,Totals!$D17,Calculation!$E$1065:$CS$1065))+SUMIFS('Allocation to schools'!$E$168:$GF$168,'Allocation to schools'!$E$9:$GF$9,Totals!$D17,'Allocation to schools'!$E$10:$GF$10,"from local & State sources") -> 0 | FF17: =(SUMIF(Calculation!$E$4:$CS$4,Totals!$D17,Calculation!$E$1086:$CS$1086)-SUMIF(Calculation!$E$4:$CS$4,Totals!$D17,Calculation!$E$1113:$CS$1113))+SUMIFS('Allocation to schools'!$E$169:$GF$169,'Allocation to schools'!$E$9:$GF$9,Totals!$D17,'Allocation to schools'!$E$10:$GF$10,"from local & State sources") -> 0 | FG17: =(SUMIF(Calculation!$E$4:$CS$4,Totals!$D17,Calculation!$E$1205:$CS$1205)-SUMIF(Calculation!$E$4:$CS$4,Totals!$D17,Calculation!$E$1218:$CS$1218))+SUMIFS('Allocation to schools'!$E$170:$GF$170,'Allocation to schools'!$E$9:$GF$9,Totals!$D17,'Allocation to schools'!$E$10:$GF$10,"from local & State sources") -> 0 | FI17: =(SUMIF(Calculation!$E$4:$CS$4,Totals!$D17,Calculation!$E$1373:$CS$1373)-SUMIF(Calculation!$E$4:$CS$4,Totals!$D17,Calculation!$E$1392:$CS$1392))+SUMIFS('Allocation to schools'!$E$171:$GF$171,'Allocation to schools'!$E$9:$GF$9,Totals!$D17,'Allocation to schools'!$E$10:$GF$10,"from local & State sources") -> 0 | FJ17: =SUMIF('Data entry'!$B$13:$CS$13,Totals!$D17,'Data entry'!$B$15:$CS$15) -> 0 | FL17: =SUMIF('Data entry'!$B$13:$CS$13,Totals!$D17,'Data entry'!$B$20:$CS$20) -> 0 | FN17: =SUMIF('Data entry'!$B$13:$CS$13,Totals!$D17,'Data entry'!$B$25:$CS$25) -> 0 | FO17: =SUMIF('Data entry'!$B$13:$CS$13,Totals!$D17,'Data entry'!$B$30:$CS$30) -> 0 | FP17: =SUMIF('Data entry'!$B$13:$CS$13,Totals!$D17,'Data entry'!$B$35:$CS$35) -> 0 | FQ17: =SUMIF('Data entry'!$B$13:$CS$13,Totals!$D17,'Data entry'!$B$16:$CS$16) -> 0 | FS17: =SUMIF('Data entry'!$B$13:$CS$13,Totals!$D17,'Data entry'!$B$21:$CS$21) -> 0 | FU17: =SUMIF('Data entry'!$B$13:$CS$13,Totals!$D17,'Data entry'!$B$26:$CS$26) -> 0 | FV17: =SUMIF('Data entry'!$B$13:$CS$13,Totals!$D17,'Data entry'!$B$31:$CS$31) -> 0 | FW17: =SUMIF('Data entry'!$B$13:$CS$13,Totals!$D17,'Data entry'!$B$36:$CS$36) -> 0 | FX17: =SUMIF('Data entry'!$B$13:$CS$13,Totals!$D17,'Data entry'!$B$17:$CS$17) -> 0 | FZ17: =SUMIF('Data entry'!$B$13:$CS$13,Totals!$D17,'Data entry'!$B$22:$CS$22) -> 0 | GB17: =SUMIF('Data entry'!$B$13:$CS$13,Totals!$D17,'Data entry'!$B$27:$CS$27) -> 0 | GC17: =SUMIF('Data entry'!$B$13:$CS$13,Totals!$D17,'Data entry'!$B$32:$CS$32) -> 0 | GD17: =SUMIF('Data entry'!$B$13:$CS$13,Totals!$D17,'Data entry'!$B$37:$CS$37) -> 0 | GE17: =SUMIF('Data entry'!$B$13:$CS$13,Totals!$D17,'Data entry'!$B$18:$CS$18) -> 0 | GG17: =SUMIF('Data entry'!$B$13:$CS$13,Totals!$D17,'Data entry'!$B$23:$CS$23) -> 0 | GI17: =SUMIF('Data entry'!$B$13:$CS$13,Totals!$D17,'Data entry'!$B$28:$CS$28) -> 0 | GJ17: =SUMIF('Data entry'!$B$13:$CS$13,Totals!$D17,'Data entry'!$B$33:$CS$33) -> 0 | GK17: =SUMIF('Data entry'!$B$13:$CS$13,Totals!$D17,'Data entry'!$B$38:$CS$38) -> 0 | GL17: =SUMIF('Data entry'!$B$13:$CS$13,Totals!$D17,'Data entry'!$B$19:$CS$19) -> 0 | GN17: =SUMIF('Data entry'!$B$13:$CS$13,Totals!$D17,'Data entry'!$B$24:$CS$24) -> 0 | GP17: =SUMIF('Data entry'!$B$13:$CS$13,Totals!$D17,'Data entry'!$B$29:$CS$29) -> 0 | GQ17: =SUMIF('Data entry'!$B$13:$CS$13,Totals!$D17,'Data entry'!$B$34:$CS$34) -> 0 | GR17: =SUMIF('Data entry'!$B$13:$CS$13,Totals!$D17,'Data entry'!$B$39:$CS$39) -> 0 | GS17: =SUMIF('Data entry'!$B$13:$CS$13,Totals!$D17,'Data entry'!$B$41:$CS$41) -> 0 | GT17: =SUMIF(Calculation!$E$4:$CS$4,Totals!$D17,Calculation!$E$1460:$CS$1460)+SUMIFS('Allocation to schools'!$E$20:$GF$20,'Allocation to schools'!$E$9:$GF$9,Totals!$D17,'Allocation to schools'!$E$10:$GF$10,"from federal sources") -> 0 | GU17: =SUMIF(Calculation!$E$4:$CS$4,Totals!$D17,Calculation!$E$1461:$CS$1461)+SUMIFS('Allocation to schools'!$E$20:$GF$20,'Allocation to schools'!$E$9:$GF$9,Totals!$D17,'Allocation to schools'!$E$10:$GF$10,"from local & State sources") -> 0 | GV17: =SUMIF(Calculation!$E$4:$CS$4,Totals!$D17,Calculation!$E$1394:$CS$1394)+SUMIF('Allocation to schools'!$E$9:$GF$9,Totals!$D17,'Allocation to schools'!$E$127:$GF$127) -> 0 | GW17: =SUMIF(Calculation!$E$4:$CS$4,Totals!$D17,Calculation!$E$1396:$CS$1396)+SUMIF('Allocation to schools'!$E$9:$GF$9,Totals!$D17,'Allocation to schools'!$E$128:$GF$128) -> 0 | GX17: =SUMIF(Calculation!$E$4:$CS$4,Totals!$D17,Calculation!$E$1400:$CS$1400)+SUMIF('Allocation to schools'!$E$9:$GF$9,Totals!$D17,'Allocation to schools'!$E$129:$GF$129) -> 0 | GY17: =SUMIF(Calculation!$E$4:$CS$4,Totals!$D17,Calculation!$E$1402:$CS$1402)+SUMIF('Allocation to schools'!$E$9:$GF$9,Totals!$D17,'Allocation to schools'!$E$130:$GF$130) -> 0 | GZ17: =SUMIF(Calculation!$E$4:$CS$4,Totals!$D17,Calculation!$E$1404:$CS$1404)+SUMIF('Allocation to schools'!$E$9:$GF$9,Totals!$D17,'Allocation to schools'!$E$131:$GF$131) -> 0 | HA17: =SUMIF(Calculation!$E$4:$CS$4,Totals!$D17,Calculation!$E$1406:$CS$1406)+SUMIF('Allocation to schools'!$E$9:$GF$9,Totals!$D17,'Allocation to schools'!$E$132:$GF$132) -> 0 | HB17: =SUMIF(Calculation!$E$4:$CS$4,Totals!$D17,Calculation!$E$1408:$CS$1408)+SUMIF('Allocation to schools'!$E$9:$GF$9,Totals!$D17,'Allocation to schools'!$E$133:$GF$133) -> 0 | HC17: =SUMIF(Calculation!$E$4:$CS$4,Totals!$D17,Calculation!$E$1412:$CS$1412)+SUMIF('Allocation to schools'!$E$9:$GF$9,Totals!$D17,'Allocation to schools'!$E$134:$GF$134) -> 0 | HD17: =SUMIF(Calculation!$E$4:$CS$4,Totals!$D17,Calculation!$E$1414:$CS$1414)+SUMIF('Allocation to schools'!$E$9:$GF$9,Totals!$D17,'Allocation to schools'!$E$135:$GF$135) -> 0 | HE17: =SUMIF(Calculation!$E$4:$CS$4,Totals!$D17,Calculation!$E$1416:$CS$1416)+SUMIF('Allocation to schools'!$E$9:$GF$9,Totals!$D17,'Allocation to schools'!$E$136:$GF$136) -> 0 | HF17: =SUMIF(Calculation!$E$4:$CS$4,Totals!$D17,Calculation!$E$1418:$CS$1418)+SUMIF('Allocation to schools'!$E$9:$GF$9,Totals!$D17,'Allocation to schools'!$E$137:$GF$137) -> 0 | HG17: =SUMIF(Calculation!$E$4:$CS$4,Totals!$D17,Calculation!$E$1420:$CS$1420)+SUMIF('Allocation to schools'!$E$9:$GF$9,Totals!$D17,'Allocation to schools'!$E$138:$GF$138) -> 0 | HH17: =SUMIF(Calculation!$E$4:$CS$4,Totals!$D17,Calculation!$E$1424:$CS$1424)+SUMIF('Allocation to schools'!$E$9:$GF$9,Totals!$D17,'Allocation to schools'!$E$139:$GF$139) -> 0 | HI17: =SUMIF(Calculation!$E$4:$CS$4,Totals!$D17,Calculation!$E$1426:$CS$1426)+SUMIF('Allocation to schools'!$E$9:$GF$9,Totals!$D17,'Allocation to schools'!$E$140:$GF$140) -> 0 | HJ17: =SUMIF(Calculation!$E$4:$CS$4,Totals!$D17,Calculation!$E$1428:$CS$1428)+SUMIF('Allocation to schools'!$E$9:$GF$9,Totals!$D17,'Allocation to schools'!$E$141:$GF$141) -> 0 | HK17: =SUMIF(Calculation!$E$4:$CS$4,Totals!$D17,Calculation!$E$1430:$CS$1430)+SUMIF('Allocation to schools'!$E$9:$GF$9,Totals!$D17,'Allocation to schools'!$E$142:$GF$142) -> 0 | HL17: =SUMIF(Calculation!$E$4:$CS$4,Totals!$D17,Calculation!$E$1432:$CS$1432)+SUMIF('Allocation to schools'!$E$9:$GF$9,Totals!$D17,'Allocation to schools'!$E$143:$GF$143) -> 0 | HM17: =SUMIF(Calculation!$E$4:$CS$4,Totals!$D17,Calculation!$E$1436:$CS$1436)+SUMIF('Allocation to schools'!$E$9:$GF$9,Totals!$D17,'Allocation to schools'!$E$144:$GF$144) -> 0 | HN17: =SUMIF('Allocation to schools'!$E$9:$GF$9,Totals!$D17,'Allocation to schools'!$E$145:$GF$145)+SUMIF(Calculation!$E$4:$CS$4,Totals!$D17,Calculation!$E$1438:$CS$1438) -> 0 | HO17: =SUMIF('Allocation to schools'!$E$9:$GF$9,Totals!$D17,'Allocation to schools'!$E$146:$GF$146)+SUMIF(Calculation!$E$4:$CS$4,Totals!$D17,Calculation!$E$1436:$CS$1436) -> 0 | HP17: =SUMIF('Allocation to schools'!$E$9:$GF$9,Totals!$D17,'Allocation to schools'!$E$150:$GF$150)+SUMIF(Calculation!$E$4:$CS$4,Totals!$D17,Calculation!$E$1480:$CS$1480) -> 0 | HQ17: =SUMIF('Allocation to schools'!$E$9:$GF$9,Totals!$D17,'Allocation to schools'!$E$151:$GF$151)+SUMIF(Calculation!$E$4:$CS$4,Totals!$D17,Calculation!$E$1481:$CS$1481) -> 0 | HR17: =SUMIF(Calculation!$E$4:$CS$4,Totals!$D17,Calculation!$E$1482:$CS$1482)+SUMIF('Allocation to schools'!$E$9:$GF$9,Totals!$D17,'Allocation to schools'!$E$152:$GF$152) -> 0 | HS17: =SUMIF(Calculation!$E$4:$CS$4,Totals!$D17,Calculation!$E$1483:$CS$1483)+SUMIF('Allocation to schools'!$E$9:$GF$9,Totals!$D17,'Allocation to schools'!$E$153:$GF$153) -> 0 | HT17: =SUMIF('Data entry'!$B$13:$CS$13,Totals!$D17,'Data entry'!$B$44:$CS$44) -> 0 | HU17: =SUMIF(Calculation!$E$4:$CS$4,Totals!$D17,Calculation!$E$1484:$CS$1484)+SUMIF('Allocation to schools'!$E$9:$GF$9,Totals!$D17,'Allocation to schools'!$E$154:$GF$154) -> 0 | HV17: =SUMIF('Data entry'!$B$13:$CS$13,Totals!$D17,'Data entry'!$B$45:$CS$45) -> 0 | HW17: =SUMIF(Calculation!$E$4:$CS$4,Totals!$D17,Calculation!$E$1495:$CS$1495)+SUMIF('Allocation to schools'!$E$9:$GF$9,Totals!$D17,'Allocation to schools'!$E$114:$GF$114)+SUMIF(Calculation!$E$4:$CS$4,Totals!$D17,Calculation!$E$1502:$CS$1502)+SUMIF('Allocation to schools'!$E$9:$GF$9,Totals!$D17,'Allocation to schools'!$E$116:$GF$116) -> 0 | HX17: =SUMIF(Calculation!$E$4:$CS$4,Totals!$D17,Calculation!$E$1486:$CS$1486)+SUMIF('Allocation to schools'!$E$9:$GF$9,Totals!$D17,'Allocation to schools'!$E$158:$GF$158) -> 0 | HY17: =SUMIF(Calculation!$E$4:$CS$4,Totals!$D17,Calculation!$E$1487:$CS$1487)+SUMIF('Allocation to schools'!$E$9:$GF$9,Totals!$D17,'Allocation to schools'!$E$159:$GF$159) -> 0 | HZ17: =SUMIF('Data entry'!$B$13:$CS$13,Totals!$D17,'Data entry'!$B$73:$CS$73) -> 0 | IA17: =SUMIF('Data entry'!$B$13:$CS$13,Totals!$D17,'Data entry'!$B$76:$CS$76) -> 0 | IB17: =SUMIF('Data entry'!$B$13:$CS$13,Totals!$D17,'Data entry'!$B$79:$CS$79) -> 0 | IC17: =SUMIF('Data entry'!$B$13:$CS$13,Totals!$D17,'Data entry'!$B$80:$CS$80) -> 0 | ID17: =SUMIF('Data entry'!$B$13:$CS$13,Totals!$D17,'Data entry'!$B$82:$CS$82) -> 0 | IE17: =SUMIF('Data entry'!$B$13:$CS$13,Totals!$D17,'Data entry'!$B$83:$CS$83) -> 0 | IF17: =SUMIF('Data entry'!$B$13:$CS$13,Totals!$D17,'Data entry'!$B$85:$CS$85) -> 0 | IG17: =SUMIF('Data entry'!$B$13:$CS$13,Totals!$D17,'Data entry'!$B$86:$CS$86) -> 0 | IH17: =SUMIF('Data entry'!$B$13:$CS$13,Totals!$D17,'Data entry'!$B$87:$CS$87) -> 0 | II17: =SUMIF('Data entry'!$B$13:$CS$13,Totals!$D17,'Data entry'!$B$88:$CS$88) -> 0 | IJ17: =SUMIF('Data entry'!$B$13:$CS$13,Totals!$D17,'Data entry'!$B$89:$CS$89) -> 0 | IK17: =SUMIF('Data entry'!$B$13:$CS$13,Totals!$D17,'Data entry'!$B$90:$CS$90) -> 0 | IL17: =SUMIF('Data entry'!$B$13:$CS$13,Totals!$D17,'Data entry'!$B$91:$CS$91) -> 0 | IM17: =SUMIF('Data entry'!$B$13:$CS$13,Totals!$D17,'Data entry'!$B$92:$CS$92) -> 0 | IN17: =SUMIF('Data entry'!$B$13:$CS$13,Totals!$D17,'Data entry'!$B$93:$CS$93) -> 0 | IO17: =SUMIF('Data entry'!$B$13:$CS$13,Totals!$D17,'Data entry'!$B$94:$CS$94) -> 0 | IP17: =SUMIF('Data entry'!$B$13:$CS$13,Totals!$D17,'Data entry'!$B$95:$CS$95) -> 0 | IQ17: =SUMIF('Data entry'!$B$13:$CS$13,Totals!$D17,'Data entry'!$B$96:$CS$96) -> 0 | IR17: =SUMIF('Data entry'!$B$13:$CS$13,Totals!$D17,'Data entry'!$B$97:$CS$97) -> 0 | IS17: =SUMIF('Data entry'!$B$13:$CS$13,Totals!$D17,'Data entry'!$B$98:$CS$98) -> 0 | IT17: =ID17+IF17+(SUM(IG17:IS17)) -> 0 | IU17: =SUMIF('Data entry'!$B$13:$CS$13,Totals!$D17,'Data entry'!$B$107:$CS$107) -> 0 | IV17: =SUMIF('Data entry'!$B$13:$CS$13,Totals!$D17,'Data entry'!$B$108:$CS$108) -> 0 | IW17: =SUMIF('Data entry'!$B$13:$CS$13,Totals!$D17,'Data entry'!$B$109:$CS$109) -> 0 | IX17: =SUMIF('Data entry'!$B$13:$CS$13,Totals!$D17,'Data entry'!$B$110:$CS$110) -> 0 | IY17: =SUMIF('Data entry'!$B$13:$CS$13,Totals!$D17,'Data entry'!$B$111:$CS$111) -> 0 | IZ17: =SUMIF('Data entry'!$B$13:$CS$13,Totals!$D17,'Data entry'!$B$112:$CS$112) -> 0 | JA17: =SUMIF('Data entry'!$B$13:$CS$13,Totals!$D17,'Data entry'!$B$113:$CS$113) -> 0 | JB17: =SUMIF('Data entry'!$B$13:$CS$13,Totals!$D17,'Data entry'!$B$114:$CS$114) -> 0 | JC17: =SUMIF('Data entry'!$B$13:$CS$13,Totals!$D17,'Data entry'!$B$115:$CS$115) -> 0 | JD17: =SUMIF('Data entry'!$B$13:$CS$13,Totals!$D17,'Data entry'!$B$117:$CS$117) -> 0 | JE17: =SUMIF('Data entry'!$B$13:$CS$13,Totals!$D17,'Data entry'!$B$119:$CS$119) -> 0 | JF17: =SUMIF('Data entry'!$B$13:$CS$13,Totals!$D17,'Data entry'!$B$124:$CS$124) -> 0 | JG17: =SUMIF('Data entry'!$B$13:$CS$13,Totals!$D17,'Data entry'!$B$125:$CS$125) -> 0 | JH17: =SUMIF('Data entry'!$B$13:$CS$13,Totals!$D17,'Data entry'!$B$126:$CS$126) -> 0 | JI17: =SUMIF('Data entry'!$B$13:$CS$13,Totals!$D17,'Data entry'!$B$127:$CS$127) -> 0 | JJ17: =SUMIF('Data entry'!$B$13:$CS$13,Totals!$D17,'Data entry'!$B$128:$CS$128) -> 0 | JK17: =SUMIF('Data entry'!$B$13:$CS$13,Totals!$D17,'Data entry'!$B$129:$CS$129) -> 0 | JL17: =SUMIF('Data entry'!$B$13:$CS$13,Totals!$D17,'Data entry'!$B$130:$CS$130) -> 0 | JM17: =SUMIF('Data entry'!$B$13:$CS$13,Totals!$D17,'Data entry'!$B$131:$CS$131) -> 0 | JN17: =SUMIF('Data entry'!$B$13:$CS$13,Totals!$D17,'Data entry'!$B$132:$CS$132) -> 0 | JO17: =SUMIF('Data entry'!$B$13:$CS$13,Totals!$D17,'Data entry'!$B$134:$CS$134) -> 0 | JP17: =SUMIF('Data entry'!$B$13:$CS$13,Totals!$D17,'Data entry'!$B$136:$CS$136) -> 0 | JQ17: =SUMIF('Data entry'!$B$13:$CS$13,Totals!$D17,'Data entry'!$B$138:$CS$138) -> 0 | JR17: =IF(D17=0,"0%",SUMIF('Data entry'!$B$13:$CS$13,Totals!$D17,'Data entry'!$B$139:$CS$139)) -> 0 | JS17: =SUMIF(Calculation!$E$4:$CS$4,Totals!$D17,Calculation!$E$1442:$CS$1442)+SUMIF('Allocation to schools'!$E$9:$GF$9,Totals!$D17,'Allocation to schools'!$E$122:$GF$122) -> 0 | JT17: =SUMIF('Data entry'!$B$13:$CS$13,Totals!$D17,'Data entry'!$B$102:$CS$102) -> 0 | JU17: =IF(JP17=0,"The School's programs 200, 512, 514, and 515 special education spending was equal to base, weighted, IDEA, and other special education funding.",IF(JP17>0,"The School's programs 200, 512, 514, and 515 special education spending was less than base, weighted, IDEA, and other special education funding.","The School's programs 200, 512, 514, and 515 special education spending was greater than base, weighted, IDEA, and other special education funding.")) -> The School's programs 200, 512, 514, and 515 special education spending was equal to base, weighted, IDEA, and other special education funding.
A18: CTED (Member Districts) | C18: =B2 -> 130209000 | D18: =IF(VLOOKUP(A18,'School listing'!$A$7:$F$99,6,FALSE)="","",VLOOKUP(A18,'School listing'!$A$7:$F$99,6,FALSE)) ->  | F18: =Calculation!G1448 -> 0 | G18: =SUMIF(Calculation!$E$4:$CS$4,Totals!$D18,Calculation!$E$12:$CS$12)+SUMIF('Allocation to schools'!$E$9:$GF$9,Totals!$D18,'Allocation to schools'!$E$12:$GF$12)+SUMIF('Allocation to schools'!$E$9:$GF$9,Totals!$D18,'Allocation to schools'!$E$20:$GF$20) -> 0 | H18: =SUMIF(Calculation!$E$4:$CS$4,Totals!$D18,Calculation!$E$117:$CS$117)+SUMIF('Allocation to schools'!$E$9:$GF$9,Totals!$D18,'Allocation to schools'!$E$13:$GF$13)+SUMIF('Allocation to schools'!$E$9:$GF$9,Totals!$D18,'Allocation to schools'!$E$21:$GF$21) -> 0 | I18: =SUMIF(Calculation!$E$4:$CS$4,Totals!$D18,Calculation!$E$242:$CS$242)+SUMIF('Allocation to schools'!$E$9:$GF$9,Totals!$D18,'Allocation to schools'!$E$14:$GF$14) -> 0 | J18: =SUMIF(Calculation!$E$4:$CS$4,Totals!$D18,Calculation!$E$640:$CS$640)+SUMIF('Allocation to schools'!$E$9:$GF$9,Totals!$D18,'Allocation to schools'!$E$15:$GF$15) -> 0 | K18: =SUMIF(Calculation!$E$4:$CS$4,Totals!$D18,Calculation!$E$751:$CS$751)+SUMIF('Allocation to schools'!$E$9:$GF$9,Totals!$D18,'Allocation to schools'!$E$16:$GF$16) -> 0 | L18: =SUMIF(Calculation!$E$4:$CS$4,Totals!$D18,Calculation!$E$955:$CS$955)+SUMIF('Allocation to schools'!$E$9:$GF$9,Totals!$D18,'Allocation to schools'!$E$17:$GF$17) -> 0 | M18: =SUMIF(Calculation!$E$4:$CS$4,Totals!$D18,Calculation!$E$1120:$CS$1120)+SUMIF('Allocation to schools'!$E$9:$GF$9,Totals!$D18,'Allocation to schools'!$E$18:$GF$18) -> 0 | N18: =SUMIF(Calculation!$E$4:$CS$4,Totals!$D18,Calculation!$E$1503:$CS$1503)+SUMIFS('Allocation to schools'!$E$12:$GF$12,'Allocation to schools'!$E$10:$GF$10,"from federal sources",'Allocation to schools'!$E$9:$GF$9,Totals!$D18)+SUMIFS('Allocation to schools'!$E$20:$GF$20,'Allocation to schools'!$E$10:$GF$10,"from federal sources",'Allocation to schools'!$E$9:$GF$9,Totals!$D18) -> 0 | O18: =SUMIF(Calculation!$E$4:$CS$4,Totals!$D18,Calculation!$E$1504:$CS$1504)+SUMIFS('Allocation to schools'!$E$13:$GF$13,'Allocation to schools'!$E$10:$GF$10,"from federal sources",'Allocation to schools'!$E$9:$GF$9,Totals!$D18)+SUMIFS('Allocation to schools'!$E$21:$GF$21,'Allocation to schools'!$E$10:$GF$10,"from federal sources",'Allocation to schools'!$E$9:$GF$9,Totals!$D18) -> 0 | P18: =SUMIF(Calculation!$E$4:$CS$4,Totals!$D18,Calculation!$E$1505:$CS$1505)+SUMIFS('Allocation to schools'!$E$172:$GF$172,'Allocation to schools'!$E$10:$GF$10,"from federal sources",'Allocation to schools'!$E$9:$GF$9,Totals!$D18) -> 0 | Q18: =SUMIF(Calculation!$E$4:$CS$4,Totals!$D18,Calculation!$E$1229:$CS$1229)+SUMIF('Allocation to schools'!$E$9:$GF$9,Totals!$D18,'Allocation to schools'!$E$19:$GF$19)+SUMIF('Allocation to schools'!$E$9:$GF$9,Totals!$D18,'Allocation to schools'!$E$22:$GF$22) -> 0 | R18: =SUMIF(Calculation!$E$4:$CS$4,Totals!$D18,Calculation!$E$19:$CS$19)+SUMIF('Allocation to schools'!$E$9:$GF$9,Totals!$D18,'Allocation to schools'!$E$23:$GF$23) -> 0 | S18: =SUMIF(Calculation!$E$4:$CS$4,Totals!$D18,Calculation!$E$124:$CS$124)+SUMIF('Allocation to schools'!$E$9:$GF$9,Totals!$D18,'Allocation to schools'!$E$24:$GF$24) -> 0 | T18: =SUMIF(Calculation!$E$4:$CS$4,Totals!$D18,Calculation!$E$269:$CS$269)+SUMIF('Allocation to schools'!$E$9:$GF$9,Totals!$D18,'Allocation to schools'!$E$25:$GF$25) -> 0 | U18: =SUMIF(Calculation!$E$4:$CS$4,Totals!$D18,Calculation!$E$647:$CS$647)+SUMIF('Allocation to schools'!$E$9:$GF$9,Totals!$D18,'Allocation to schools'!$E$26:$GF$26) -> 0 | V18: =SUMIF(Calculation!$E$4:$CS$4,Totals!$D18,Calculation!$E$764:$CS$764)+SUMIF('Allocation to schools'!$E$9:$GF$9,Totals!$D18,'Allocation to schools'!$E$27:$GF$27) -> 0 | W18: =SUMIF(Calculation!$E$4:$CS$4,Totals!$D18,Calculation!$E$962:$CS$962)+SUMIF('Allocation to schools'!$E$9:$GF$9,Totals!$D18,'Allocation to schools'!$E$28:$GF$28) -> 0 | X18: =SUMIF(Calculation!$E$4:$CS$4,Totals!$D18,Calculation!$E$1127:$CS$1127)+SUMIF('Allocation to schools'!$E$9:$GF$9,Totals!$D18,'Allocation to schools'!$E$29:$GF$29) -> 0 | Y18: =SUMIF(Calculation!$E$4:$CS$4,Totals!$D18,Calculation!$E$1506:$CS$1506)+SUMIFS('Allocation to schools'!$E$23:$GF$23,'Allocation to schools'!$E$10:$GF$10,"from federal sources",'Allocation to schools'!$E$9:$GF$9,Totals!$D18) -> 0 | Z18: =SUMIF(Calculation!$E$4:$CS$4,Totals!$D18,Calculation!$E$1507:$CS$1507)+SUMIFS('Allocation to schools'!$E$24:$GF$24,'Allocation to schools'!$E$10:$GF$10,"from federal sources",'Allocation to schools'!$E$9:$GF$9,Totals!$D18) -> 0 | AA18: =SUMIF(Calculation!$E$4:$CS$4,Totals!$D18,Calculation!$E$1520:$CS$1520)+SUMIFS('Allocation to schools'!$E$173:$GF$173,'Allocation to schools'!$E$10:$GF$10,"from federal sources",'Allocation to schools'!$E$9:$GF$9,Totals!$D18) -> 0 | AB18: =SUMIF(Calculation!$E$4:$CS$4,Totals!$D18,Calculation!$E$1240:$CS$1240)+SUMIF('Allocation to schools'!$E$9:$GF$9,Totals!$D18,'Allocation to schools'!$E$30:$GF$30) -> 0 | AC18: =SUMIF(Calculation!$E$4:$CS$4,Totals!$D18,Calculation!$E$26:$CS$26)+SUMIF('Allocation to schools'!$E$9:$GF$9,Totals!$D18,'Allocation to schools'!$E$31:$GF$31) -> 0 | AD18: =SUMIF(Calculation!$E$4:$CS$4,Totals!$D18,Calculation!$E$131:$CS$131)+SUMIF('Allocation to schools'!$E$9:$GF$9,Totals!$D18,'Allocation to schools'!$E$32:$GF$32) -> 0 | AE18: =SUMIF(Calculation!$E$4:$CS$4,Totals!$D18,Calculation!$E$296:$CS$296)+SUMIF('Allocation to schools'!$E$9:$GF$9,Totals!$D18,'Allocation to schools'!$E$33:$GF$33) -> 0 | AF18: =SUMIF(Calculation!$E$4:$CS$4,Totals!$D18,Calculation!$E$654:$CS$654)+SUMIF('Allocation to schools'!$E$9:$GF$9,Totals!$D18,'Allocation to schools'!$E$34:$GF$34) -> 0 | AG18: =SUMIF(Calculation!$E$4:$CS$4,Totals!$D18,Calculation!$E$777:$CS$777)+SUMIF('Allocation to schools'!$E$9:$GF$9,Totals!$D18,'Allocation to schools'!$E$35:$GF$35) -> 0 | AH18: =SUMIF(Calculation!$E$4:$CS$4,Totals!$D18,Calculation!$E$969:$CS$969)+SUMIF('Allocation to schools'!$E$9:$GF$9,Totals!$D18,'Allocation to schools'!$E$36:$GF$36) -> 0 | AI18: =SUMIF(Calculation!$E$4:$CS$4,Totals!$D18,Calculation!$E$1134:$CS$1134)+SUMIF('Allocation to schools'!$E$9:$GF$9,Totals!$D18,'Allocation to schools'!$E$37:$GF$37) -> 0 | AJ18: =SUMIF(Calculation!$E$4:$CS$4,Totals!$D18,Calculation!$E$1521:$CS$1521)+SUMIFS('Allocation to schools'!$E$31:$GF$31,'Allocation to schools'!$E$10:$GF$10,"from federal sources",'Allocation to schools'!$E$9:$GF$9,Totals!$D18) -> 0 | AK18: =SUMIF(Calculation!$E$4:$CS$4,Totals!$D18,Calculation!$E$1522:$CS$1522)+SUMIFS('Allocation to schools'!$E$32:$GF$32,'Allocation to schools'!$E$10:$GF$10,"from federal sources",'Allocation to schools'!$E$9:$GF$9,Totals!$D18) -> 0 | AL18: =SUMIF(Calculation!$E$4:$CS$4,Totals!$D18,Calculation!$E$1535:$CS$1535)+SUMIFS('Allocation to schools'!$E$174:$GF$174,'Allocation to schools'!$E$10:$GF$10,"from federal sources",'Allocation to schools'!$E$9:$GF$9,Totals!$D18) -> 0 | AM18: =SUMIF(Calculation!$E$4:$CS$4,Totals!$D18,Calculation!$E$1251:$CS$1251)+SUMIF('Allocation to schools'!$E$9:$GF$9,Totals!$D18,'Allocation to schools'!$E$38:$GF$38) -> 0 | AN18: =SUMIF(Calculation!$E$4:$CS$4,Totals!$D18,Calculation!$E$33:$CS$33)+SUMIF('Allocation to schools'!$E$9:$GF$9,Totals!$D18,'Allocation to schools'!$E$39:$GF$39) -> 0 | AO18: =SUMIF(Calculation!$E$4:$CS$4,Totals!$D18,Calculation!$E$138:$CS$138)+SUMIF('Allocation to schools'!$E$9:$GF$9,Totals!$D18,'Allocation to schools'!$E$40:$GF$40) -> 0 | AP18: =SUMIF(Calculation!$E$4:$CS$4,Totals!$D18,Calculation!$E$323:$CS$323)+SUMIF('Allocation to schools'!$E$9:$GF$9,Totals!$D18,'Allocation to schools'!$E$41:$GF$41) -> 0 | AQ18: =SUMIF(Calculation!$E$4:$CS$4,Totals!$D18,Calculation!$E$661:$CS$661)+SUMIF('Allocation to schools'!$E$9:$GF$9,Totals!$D18,'Allocation to schools'!$E$42:$GF$42) -> 0 | AR18: =SUMIF(Calculation!$E$4:$CS$4,Totals!$D18,Calculation!$E$790:$CS$790)+SUMIF('Allocation to schools'!$E$9:$GF$9,Totals!$D18,'Allocation to schools'!$E$43:$GF$43) -> 0 | AS18: =SUMIF(Calculation!$E$4:$CS$4,Totals!$D18,Calculation!$E$976:$CS$976)+SUMIF('Allocation to schools'!$E$9:$GF$9,Totals!$D18,'Allocation to schools'!$E$44:$GF$44) -> 0 | AT18: =SUMIF(Calculation!$E$4:$CS$4,Totals!$D18,Calculation!$E$1060:$CS$1060)+SUMIF('Allocation to schools'!$E$9:$GF$9,Totals!$D18,'Allocation to schools'!$E$45:$GF$45) -> 0 | AU18: =SUMIF(Calculation!$E$4:$CS$4,Totals!$D18,Calculation!$E$1141:$CS$1141)+SUMIF('Allocation to schools'!$E$9:$GF$9,Totals!$D18,'Allocation to schools'!$E$46:$GF$46) -> 0 | AV18: =SUMIF(Calculation!$E$4:$CS$4,Totals!$D18,Calculation!$E$1536:$CS$1536)+SUMIFS('Allocation to schools'!$E$39:$GF$39,'Allocation to schools'!$E$10:$GF$10,"from federal sources",'Allocation to schools'!$E$9:$GF$9,Totals!$D18) -> 0 | AW18: =SUMIF(Calculation!$E$4:$CS$4,Totals!$D18,Calculation!$E$1537:$CS$1537)+SUMIFS('Allocation to schools'!$E$40:$GF$40,'Allocation to schools'!$E$10:$GF$10,"from federal sources",'Allocation to schools'!$E$9:$GF$9,Totals!$D18) -> 0 | AX18: =SUMIF(Calculation!$E$4:$CS$4,Totals!$D18,Calculation!$E$1551:$CS$1551)+SUMIFS('Allocation to schools'!$E$175:$GF$175,'Allocation to schools'!$E$10:$GF$10,"from federal sources",'Allocation to schools'!$E$9:$GF$9,Totals!$D18) -> 0 | AY18: =SUMIF(Calculation!$E$4:$CS$4,Totals!$D18,Calculation!$E$1262:$CS$1262)+SUMIF('Allocation to schools'!$E$9:$GF$9,Totals!$D18,'Allocation to schools'!$E$47:$GF$47) -> 0 | AZ18: =SUMIF(Calculation!$E$4:$CS$4,Totals!$D18,Calculation!$E$40:$CS$40)+SUMIF('Allocation to schools'!$E$9:$GF$9,Totals!$D18,'Allocation to schools'!$E$48:$GF$48) -> 0 | BA18: =SUMIF(Calculation!$E$4:$CS$4,Totals!$D18,Calculation!$E$145:$CS$145)+SUMIF('Allocation to schools'!$E$9:$GF$9,Totals!$D18,'Allocation to schools'!$E$49:$GF$49) -> 0 | BB18: =SUMIF(Calculation!$E$4:$CS$4,Totals!$D18,Calculation!$E$350:$CS$350)+SUMIF('Allocation to schools'!$E$9:$GF$9,Totals!$D18,'Allocation to schools'!$E$50:$GF$50) -> 0 | BC18: =SUMIF(Calculation!$E$4:$CS$4,Totals!$D18,Calculation!$E$668:$CS$668)+SUMIF('Allocation to schools'!$E$9:$GF$9,Totals!$D18,'Allocation to schools'!$E$51:$GF$51) -> 0 | BD18: =SUMIF(Calculation!$E$4:$CS$4,Totals!$D18,Calculation!$E$803:$CS$803)+SUMIF('Allocation to schools'!$E$9:$GF$9,Totals!$D18,'Allocation to schools'!$E$52:$GF$52) -> 0 | BE18: =SUMIF(Calculation!$E$4:$CS$4,Totals!$D18,Calculation!$E$983:$CS$983)+SUMIF('Allocation to schools'!$E$9:$GF$9,Totals!$D18,'Allocation to schools'!$E$53:$GF$53) -> 0 | BF18: =SUMIF(Calculation!$E$4:$CS$4,Totals!$D18,Calculation!$E$1148:$CS$1148)+SUMIF('Allocation to schools'!$E$9:$GF$9,Totals!$D18,'Allocation to schools'!$E$54:$GF$54) -> 0 | BG18: =SUMIF(Calculation!$E$4:$CS$4,Totals!$D18,Calculation!$E$1552:$CS$1552)+SUMIFS('Allocation to schools'!$E$48:$GF$48,'Allocation to schools'!$E$10:$GF$10,"from federal sources",'Allocation to schools'!$E$9:$GF$9,Totals!$D18) -> 0 | BH18: =SUMIF(Calculation!$E$4:$CS$4,Totals!$D18,Calculation!$E$1553:$CS$1553)+SUMIFS('Allocation to schools'!$E$49:$GF$49,'Allocation to schools'!$E$10:$GF$10,"from federal sources",'Allocation to schools'!$E$9:$GF$9,Totals!$D18) -> 0 | BI18: =SUMIF(Calculation!$E$4:$CS$4,Totals!$D18,Calculation!$E$1566:$CS$1566)+SUMIFS('Allocation to schools'!$E$176:$GF$176,'Allocation to schools'!$E$10:$GF$10,"from federal sources",'Allocation to schools'!$E$9:$GF$9,Totals!$D18) -> 0 | BJ18: =SUMIF(Calculation!$E$4:$CS$4,Totals!$D18,Calculation!$E$1273:$CS$1273)+SUMIF('Allocation to schools'!$E$9:$GF$9,Totals!$D18,'Allocation to schools'!$E$55:$GF$55) -> 0 | BK18: =SUMIF(Calculation!$E$4:$CS$4,Totals!$D18,Calculation!$E$47:$CS$47)+SUMIF(Calculation!$E$4:$CS$4,Totals!$D18,Calculation!$E$54:$CS$54)+SUMIF('Allocation to schools'!$E$9:$GF$9,Totals!$D18,'Allocation to schools'!$E$56:$GF$56) -> 0 | BL18: =SUMIF(Calculation!$E$4:$CS$4,Totals!$D18,Calculation!$E$152:$CS$152)+SUMIF(Calculation!$E$4:$CS$4,Totals!$D18,Calculation!$E$159:$CS$159)+SUMIF('Allocation to schools'!$E$9:$GF$9,Totals!$D18,'Allocation to schools'!$E$57:$GF$57) -> 0 | BM18: =SUMIF(Calculation!$E$4:$CS$4,Totals!$D18,Calculation!$E$377:$CS$377)+SUMIF(Calculation!$E$4:$CS$4,Totals!$D18,Calculation!$E$404:$CS$404)+SUMIF('Allocation to schools'!$E$9:$GF$9,Totals!$D18,'Allocation to schools'!$E$58:$GF$58) -> 0 | BN18: =SUMIF(Calculation!$E$4:$CS$4,Totals!$D18,Calculation!$E$675:$CS$675)+SUMIF(Calculation!$E$4:$CS$4,Totals!$D18,Calculation!$E$682:$CS$682)+SUMIF('Allocation to schools'!$E$9:$GF$9,Totals!$D18,'Allocation to schools'!$E$59:$GF$59) -> 0 | BO18: =SUMIF(Calculation!$E$4:$CS$4,Totals!$D18,Calculation!$E$816:$CS$816)+SUMIF(Calculation!$E$4:$CS$4,Totals!$D18,Calculation!$E$829:$CS$829)+SUMIF('Allocation to schools'!$E$9:$GF$9,Totals!$D18,'Allocation to schools'!$E$60:$GF$60) -> 0 | BP18: =SUMIF(Calculation!$E$4:$CS$4,Totals!$D18,Calculation!$E$990:$CS$990)+SUMIF(Calculation!$E$4:$CS$4,Totals!$D18,Calculation!$E$997:$CS$997)+SUMIF('Allocation to schools'!$E$9:$GF$9,Totals!$D18,'Allocation to schools'!$E$61:$GF$61) -> 0 | BQ18: =SUMIF(Calculation!$E$4:$CS$4,Totals!$D18,Calculation!$E$1086:$CS$1086)+SUMIF('Allocation to schools'!$E$9:$GF$9,Totals!$D18,'Allocation to schools'!$E$62:$GF$62) -> 0 | BR18: =SUMIF(Calculation!$E$4:$CS$4,Totals!$D18,Calculation!$E$1155:$CS$1155)+SUMIF(Calculation!$E$4:$CS$4,Totals!$D18,Calculation!$E$1162:$CS$1162)+SUMIF('Allocation to schools'!$E$9:$GF$9,Totals!$D18,'Allocation to schools'!$E$63:$GF$63) -> 0 | BS18: =SUMIF(Calculation!$E$4:$CS$4,Totals!$D18,Calculation!$E$1567:$CS$1567)+SUMIF(Calculation!$E$4:$CS$4,Totals!$D18,Calculation!$E$1583:$CS$1583)+SUMIFS('Allocation to schools'!$E$56:$GF$56,'Allocation to schools'!$E$10:$GF$10,"from federal sources",'Allocation to schools'!$E$9:$GF$9,Totals!$D18) -> 0 | BT18: =SUMIF(Calculation!$E$4:$CS$4,Totals!$D18,Calculation!$E$1568:$CS$1568)+SUMIF(Calculation!$E$4:$CS$4,Totals!$D18,Calculation!$E$1584:$CS$1584)+SUMIFS('Allocation to schools'!$E$57:$GF$57,'Allocation to schools'!$E$10:$GF$10,"from federal sources",'Allocation to schools'!$E$9:$GF$9,Totals!$D18) -> 0 | BU18: =SUMIF(Calculation!$E$4:$CS$4,Totals!$D18,Calculation!$E$1582:$CS$1582)+SUMIF(Calculation!$E$4:$CS$4,Totals!$D18,Calculation!$E$1598:$CS$1598)+SUMIFS('Allocation to schools'!$E$177:$GF$177,'Allocation to schools'!$E$10:$GF$10,"from federal sources",'Allocation to schools'!$E$9:$GF$9,Totals!$D18) -> 0 | BV18: =SUMIF(Calculation!$E$4:$CS$4,Totals!$D18,Calculation!$E$1284:$CS$1284)+SUMIF(Calculation!$E$4:$CS$4,Totals!$D18,Calculation!$E$1295:$CS$1295)+SUMIF('Allocation to schools'!$E$9:$GF$9,Totals!$D18,'Allocation to schools'!$E$64:$GF$64) -> 0 | BW18: =SUMIF(Calculation!$E$4:$CS$4,Totals!$D18,Calculation!$E$61:$CS$61)+SUMIF('Allocation to schools'!$E$9:$GF$9,Totals!$D18,'Allocation to schools'!$E$65:$GF$65) -> 0 | BX18: =SUMIF(Calculation!$E$4:$CS$4,Totals!$D18,Calculation!$E$166:$CS$166)+SUMIF('Allocation to schools'!$E$9:$GF$9,Totals!$D18,'Allocation to schools'!$E$66:$GF$66) -> 0 | BY18: =SUMIF(Calculation!$E$4:$CS$4,Totals!$D18,Calculation!$E$431:$CS$431)+SUMIF('Allocation to schools'!$E$9:$GF$9,Totals!$D18,'Allocation to schools'!$E$67:$GF$67) -> 0 | BZ18: =SUMIF(Calculation!$E$4:$CS$4,Totals!$D18,Calculation!$E$689:$CS$689)+SUMIF('Allocation to schools'!$E$9:$GF$9,Totals!$D18,'Allocation to schools'!$E$68:$GF$68) -> 0 | CA18: =SUMIF(Calculation!$E$4:$CS$4,Totals!$D18,Calculation!$E$842:$CS$842)+SUMIF('Allocation to schools'!$E$9:$GF$9,Totals!$D18,'Allocation to schools'!$E$69:$GF$69) -> 0 | CB18: =SUMIF(Calculation!$E$4:$CS$4,Totals!$D18,Calculation!$E$1004:$CS$1004)+SUMIF('Allocation to schools'!$E$9:$GF$9,Totals!$D18,'Allocation to schools'!$E$70:$GF$70) -> 0 | CC18: =SUMIF(Calculation!$E$4:$CS$4,Totals!$D18,Calculation!$E$1169:$CS$1169)+SUMIF('Allocation to schools'!$E$9:$GF$9,Totals!$D18,'Allocation to schools'!$E$71:$GF$71) -> 0 | CD18: =SUMIF(Calculation!$E$4:$CS$4,Totals!$D18,Calculation!$E$1599:$CS$1599)+SUMIFS('Allocation to schools'!$E$65:$GF$65,'Allocation to schools'!$E$10:$GF$10,"from federal sources",'Allocation to schools'!$E$9:$GF$9,Totals!$D18) -> 0 | CE18: =SUMIF(Calculation!$E$4:$CS$4,Totals!$D18,Calculation!$E$1600:$CS$1600)+SUMIFS('Allocation to schools'!$E$66:$GF$66,'Allocation to schools'!$E$10:$GF$10,"from federal sources",'Allocation to schools'!$E$9:$GF$9,Totals!$D18) -> 0 | CF18: =SUMIF(Calculation!$E$4:$CS$4,Totals!$D18,Calculation!$E$1613:$CS$1613)+SUMIFS('Allocation to schools'!$E$178:$GF$178,'Allocation to schools'!$E$10:$GF$10,"from federal sources",'Allocation to schools'!$E$9:$GF$9,Totals!$D18) -> 0 | CG18: =SUMIF(Calculation!$E$4:$CS$4,Totals!$D18,Calculation!$E$1306:$CS$1306)+SUMIF('Allocation to schools'!$E$9:$GF$9,Totals!$D18,'Allocation to schools'!$E$72:$GF$72) -> 0 | CH18: =SUMIF(Calculation!$E$4:$CS$4,Totals!$D18,Calculation!$E$68:$CS$68)+SUMIF('Allocation to schools'!$E$9:$GF$9,Totals!$D18,'Allocation to schools'!$E$73:$GF$73) -> 0 | CI18: =SUMIF(Calculation!$E$4:$CS$4,Totals!$D18,Calculation!$E$173:$CS$173)+SUMIF('Allocation to schools'!$E$9:$GF$9,Totals!$D18,'Allocation to schools'!$E$74:$GF$74) -> 0 | CJ18: =SUMIF(Calculation!$E$4:$CS$4,Totals!$D18,Calculation!$E$458:$CS$458)+SUMIF('Allocation to schools'!$E$9:$GF$9,Totals!$D18,'Allocation to schools'!$E$75:$GF$75) -> 0 | CK18: =SUMIF(Calculation!$E$4:$CS$4,Totals!$D18,Calculation!$E$696:$CS$696)+SUMIF('Allocation to schools'!$E$9:$GF$9,Totals!$D18,'Allocation to schools'!$E$76:$GF$76) -> 0 | CL18: =SUMIF(Calculation!$E$4:$CS$4,Totals!$D18,Calculation!$E$855:$CS$855)+SUMIF('Allocation to schools'!$E$9:$GF$9,Totals!$D18,'Allocation to schools'!$E$77:$GF$77) -> 0 | CM18: =SUMIF(Calculation!$E$4:$CS$4,Totals!$D18,Calculation!$E$1011:$CS$1011)+SUMIF('Allocation to schools'!$E$9:$GF$9,Totals!$D18,'Allocation to schools'!$E$78:$GF$78) -> 0 | CN18: =SUMIF(Calculation!$E$4:$CS$4,Totals!$D18,Calculation!$E$1176:$CS$1176)+SUMIF('Allocation to schools'!$E$9:$GF$9,Totals!$D18,'Allocation to schools'!$E$79:$GF$79) -> 0 | CO18: =SUMIF(Calculation!$E$4:$CS$4,Totals!$D18,Calculation!$E$1614:$CS$1614)+SUMIFS('Allocation to schools'!$E$73:$GF$73,'Allocation to schools'!$E$10:$GF$10,"from federal sources",'Allocation to schools'!$E$9:$GF$9,Totals!$D18) -> 0 | CP18: =SUMIF(Calculation!$E$4:$CS$4,Totals!$D18,Calculation!$E$1615:$CS$1615)+SUMIFS('Allocation to schools'!$E$74:$GF$74,'Allocation to schools'!$E$10:$GF$10,"from federal sources",'Allocation to schools'!$E$9:$GF$9,Totals!$D18) -> 0 | CQ18: =SUMIF(Calculation!$E$4:$CS$4,Totals!$D18,Calculation!$E$1628:$CS$1628)+SUMIFS('Allocation to schools'!$E$179:$GF$179,'Allocation to schools'!$E$10:$GF$10,"from federal sources",'Allocation to schools'!$E$9:$GF$9,Totals!$D18) -> 0 | CR18: =SUMIF(Calculation!$E$4:$CS$4,Totals!$D18,Calculation!$E$75:$CS$75)+SUMIF('Allocation to schools'!$E$9:$GF$9,Totals!$D18,'Allocation to schools'!$E$80:$GF$80) -> 0 | CS18: =SUMIF(Calculation!$E$4:$CS$4,Totals!$D18,Calculation!$E$180:$CS$180)+SUMIF('Allocation to schools'!$E$9:$GF$9,Totals!$D18,'Allocation to schools'!$E$81:$GF$81) -> 0 | CT18: =SUMIF(Calculation!$E$4:$CS$4,Totals!$D18,Calculation!$E$485:$CS$485)+SUMIF('Allocation to schools'!$E$9:$GF$9,Totals!$D18,'Allocation to schools'!$E$82:$GF$82) -> 0 | CU18: =SUMIF(Calculation!$E$4:$CS$4,Totals!$D18,Calculation!$E$703:$CS$703)+SUMIF('Allocation to schools'!$E$9:$GF$9,Totals!$D18,'Allocation to schools'!$E$83:$GF$83) -> 0 | CV18: =SUMIF(Calculation!$E$4:$CS$4,Totals!$D18,Calculation!$E$868:$CS$868)+SUMIF('Allocation to schools'!$E$9:$GF$9,Totals!$D18,'Allocation to schools'!$E$84:$GF$84) -> 0 | CW18: =SUMIF(Calculation!$E$4:$CS$4,Totals!$D18,Calculation!$E$1018:$CS$1018)+SUMIF('Allocation to schools'!$E$9:$GF$9,Totals!$D18,'Allocation to schools'!$E$85:$GF$85) -> 0 | CX18: =SUMIF(Calculation!$E$4:$CS$4,Totals!$D18,Calculation!$E$1183:$CS$1183)+SUMIF('Allocation to schools'!$E$9:$GF$9,Totals!$D18,'Allocation to schools'!$E$86:$GF$86) -> 0 | CY18: =SUMIF(Calculation!$E$4:$CS$4,Totals!$D18,Calculation!$E$1629:$CS$1629)+SUMIFS('Allocation to schools'!$E$80:$GF$80,'Allocation to schools'!$E$10:$GF$10,"from federal sources",'Allocation to schools'!$E$9:$GF$9,Totals!$D18) -> 0 | CZ18: =SUMIF(Calculation!$E$4:$CS$4,Totals!$D18,Calculation!$E$1630:$CS$1630)+SUMIFS('Allocation to schools'!$E$81:$GF$81,'Allocation to schools'!$E$10:$GF$10,"from federal sources",'Allocation to schools'!$E$9:$GF$9,Totals!$D18) -> 0 | DA18: =SUMIF(Calculation!$E$4:$CS$4,Totals!$D18,Calculation!$E$1643:$CS$1643)+SUMIFS('Allocation to schools'!$E$180:$GF$180,'Allocation to schools'!$E$10:$GF$10,"from federal sources",'Allocation to schools'!$E$9:$GF$9,Totals!$D18)+IF(SUMIFS('Allocation to schools'!$E$180:$GI$180,'Allocation to schools'!$E$9:$GI$9,Totals!$D18,'Allocation to schools'!$E$10:$GI$10,"from federal sources")>0,0,SUMIF('Data entry'!$B$13:$CS$13,Totals!$D18,'Data entry'!$B$97:$CS$97)) -> 0 | DB18: =SUMIF(Calculation!$E$4:$CS$4,Totals!$D18,Calculation!$E$1317:$CS$1317)+SUMIF('Allocation to schools'!$E$9:$GF$9,Totals!$D18,'Allocation to schools'!$E$87:$GF$87) -> 0 | DC18: =SUMIF(Calculation!$E$4:$CS$4,Totals!$D18,Calculation!$E$82:$CS$82)+SUMIF('Allocation to schools'!$E$9:$GF$9,Totals!$D18,'Allocation to schools'!$E$88:$GF$88) -> 0 | DD18: =SUMIF(Calculation!$E$4:$CS$4,Totals!$D18,Calculation!$E$187:$CS$187)+SUMIF('Allocation to schools'!$E$9:$GF$9,Totals!$D18,'Allocation to schools'!$E$89:$GF$89) -> 0 | DE18: =SUMIF(Calculation!$E$4:$CS$4,Totals!$D18,Calculation!$E$512:$CS$512)+SUMIF('Allocation to schools'!$E$9:$GF$9,Totals!$D18,'Allocation to schools'!$E$90:$GF$90) -> 0 | DF18: =SUMIF(Calculation!$E$4:$CS$4,Totals!$D18,Calculation!$E$710:$CS$710)+SUMIF('Allocation to schools'!$E$9:$GF$9,Totals!$D18,'Allocation to schools'!$E$91:$GF$91) -> 0 | DG18: =SUMIF(Calculation!$E$4:$CS$4,Totals!$D18,Calculation!$E$881:$CS$881)+SUMIF('Allocation to schools'!$E$9:$GF$9,Totals!$D18,'Allocation to schools'!$E$92:$GF$92) -> 0 | DH18: =SUMIF(Calculation!$E$4:$CS$4,Totals!$D18,Calculation!$E$1025:$CS$1025)+SUMIF('Allocation to schools'!$E$9:$GF$9,Totals!$D18,'Allocation to schools'!$E$93:$GF$93) -> 0 | DI18: =SUMIF(Calculation!$E$4:$CS$4,Totals!$D18,Calculation!$E$1190:$CS$1190)+SUMIF('Allocation to schools'!$E$9:$GF$9,Totals!$D18,'Allocation to schools'!$E$94:$GF$94) -> 0 | DJ18: =SUMIF(Calculation!$E$4:$CS$4,Totals!$D18,Calculation!$E$1644:$CS$1644)+SUMIFS('Allocation to schools'!$E$88:$GF$88,'Allocation to schools'!$E$10:$GF$10,"from federal sources",'Allocation to schools'!$E$9:$GF$9,Totals!$D18) -> 0 | DK18: =SUMIF(Calculation!$E$4:$CS$4,Totals!$D18,Calculation!$E$1645:$CS$1645)+SUMIFS('Allocation to schools'!$E$89:$GF$89,'Allocation to schools'!$E$10:$GF$10,"from federal sources",'Allocation to schools'!$E$9:$GF$9,Totals!$D18) -> 0 | DL18: =SUMIF(Calculation!$E$4:$CS$4,Totals!$D18,Calculation!$E$1658:$CS$1658)+SUMIFS('Allocation to schools'!$E$181:$GF$181,'Allocation to schools'!$E$10:$GF$10,"from federal sources",'Allocation to schools'!$E$9:$GF$9,Totals!$D18) -> 0 | DM18: =SUMIF(Calculation!$E$4:$CS$4,Totals!$D18,Calculation!$E$1328:$CS$1328)+SUMIF('Allocation to schools'!$E$9:$GF$9,Totals!$D18,'Allocation to schools'!$E$95:$GF$95) -> 0 | DN18: =SUMIF(Calculation!$E$4:$CS$4,Totals!$D18,Calculation!$E$1339:$CS$1339)+SUMIF('Allocation to schools'!$E$9:$GF$9,Totals!$D18,'Allocation to schools'!$E$96:$GF$96) -> 0 | DO18: =SUMIF(Calculation!$E$4:$CS$4,Totals!$D18,Calculation!$E$89:$CS$89)+SUMIF('Allocation to schools'!$E$9:$GF$9,Totals!$D18,'Allocation to schools'!$E$97:$GF$97) -> 0 | DP18: =SUMIF(Calculation!$E$4:$CS$4,Totals!$D18,Calculation!$E$194:$CS$194)+SUMIF('Allocation to schools'!$E$9:$GF$9,Totals!$D18,'Allocation to schools'!$E$98:$GF$98) -> 0 | DQ18: =SUMIF(Calculation!$E$4:$CS$4,Totals!$D18,Calculation!$E$539:$CS$539)+SUMIF('Allocation to schools'!$E$9:$GF$9,Totals!$D18,'Allocation to schools'!$E$99:$GF$99) -> 0 | DR18: =SUMIF(Calculation!$E$4:$CS$4,Totals!$D18,Calculation!$E$717:$CS$717)+SUMIF('Allocation to schools'!$E$9:$GF$9,Totals!$D18,'Allocation to schools'!$E$100:$GF$100) -> 0 | DS18: =SUMIF(Calculation!$E$4:$CS$4,Totals!$D18,Calculation!$E$894:$CS$894)+SUMIF('Allocation to schools'!$E$9:$GF$9,Totals!$D18,'Allocation to schools'!$E$101:$GF$101) -> 0 | DT18: =SUMIF(Calculation!$E$4:$CS$4,Totals!$D18,Calculation!$E$1032:$CS$1032)+SUMIF('Allocation to schools'!$E$9:$GF$9,Totals!$D18,'Allocation to schools'!$E$102:$GF$102) -> 0 | DU18: =SUMIF(Calculation!$E$4:$CS$4,Totals!$D18,Calculation!$E$1197:$CS$1197)+SUMIF('Allocation to schools'!$E$9:$GF$9,Totals!$D18,'Allocation to schools'!$E$103:$GF$103) -> 0 | DV18: =SUMIF(Calculation!$E$4:$CS$4,Totals!$D18,Calculation!$E$1659:$CS$1659)+SUMIFS('Allocation to schools'!$E$97:$GF$97,'Allocation to schools'!$E$10:$GF$10,"from federal sources",'Allocation to schools'!$E$9:$GF$9,Totals!$D18) -> 0 | DW18: =SUMIF(Calculation!$E$4:$CS$4,Totals!$D18,Calculation!$E$1660:$CS$1660)+SUMIFS('Allocation to schools'!$E$98:$GF$98,'Allocation to schools'!$E$10:$GF$10,"from federal sources",'Allocation to schools'!$E$9:$GF$9,Totals!$D18) -> 0 | DX18: =SUMIF(Calculation!$E$4:$CS$4,Totals!$D18,Calculation!$E$1673:$CS$1673)+SUMIFS('Allocation to schools'!$E$182:$GF$182,'Allocation to schools'!$E$10:$GF$10,"from federal sources",'Allocation to schools'!$E$9:$GF$9,Totals!$D18) -> 0 | DY18: =SUMIF(Calculation!$E$4:$CS$4,Totals!$D18,Calculation!$E$1350:$CS$1350)+SUMIF('Allocation to schools'!$E$9:$GF$9,Totals!$D18,'Allocation to schools'!$E$104:$GF$104) -> 0 | DZ18: =SUMIF(Calculation!$E$4:$CS$4,Totals!$D18,Calculation!$E$96:$CS$96)+SUMIF('Allocation to schools'!$E$9:$GF$9,Totals!$D18,'Allocation to schools'!$E$105:$GF$105) -> 0 | EA18: =SUMIF(Calculation!$E$4:$CS$4,Totals!$D18,Calculation!$E$201:$CS$201)+SUMIF('Allocation to schools'!$E$9:$GF$9,Totals!$D18,'Allocation to schools'!$E$106:$GF$106) -> 0 | EB18: =SUMIF(Calculation!$E$4:$CS$4,Totals!$D18,Calculation!$E$566:$CS$566)+SUMIF('Allocation to schools'!$E$9:$GF$9,Totals!$D18,'Allocation to schools'!$E$107:$GF$107) -> 0 | EC18: =SUMIF(Calculation!$E$4:$CS$4,Totals!$D18,Calculation!$E$724:$CS$724)+SUMIF('Allocation to schools'!$E$9:$GF$9,Totals!$D18,'Allocation to schools'!$E$108:$GF$108) -> 0 | ED18: =SUMIF(Calculation!$E$4:$CS$4,Totals!$D18,Calculation!$E$907:$CS$907)+SUMIF('Allocation to schools'!$E$9:$GF$9,Totals!$D18,'Allocation to schools'!$E$109:$GF$109) -> 0 | EE18: =SUMIF(Calculation!$E$4:$CS$4,Totals!$D18,Calculation!$E$1039:$CS$1039)+SUMIF('Allocation to schools'!$E$9:$GF$9,Totals!$D18,'Allocation to schools'!$E$110:$GF$110) -> 0 | EF18: =SUMIF(Calculation!$E$4:$CS$4,Totals!$D18,Calculation!$E$1204:$CS$1204)+SUMIF('Allocation to schools'!$E$9:$GF$9,Totals!$D18,'Allocation to schools'!$E$111:$GF$111) -> 0 | EH18: =SUMIF(Calculation!$E$4:$CS$4,Totals!$D18,Calculation!$E$1361:$CS$1361)+SUMIF('Allocation to schools'!$E$9:$GF$9,Totals!$D18,'Allocation to schools'!$E$112:$GF$112) -> 0 | EI18: =SUMIF(Calculation!$E$4:$CS$4,Totals!$D18,Calculation!$E$1079:$CS$1079)+SUMIF('Allocation to schools'!$E$9:$GF$9,Totals!$D18,'Allocation to schools'!$E$113:$GF$113)+SUMIF('Allocation to schools'!$E$9:$GF$9,Totals!$D18,'Allocation to schools'!$E$114:$GF$114)+SUMIF(Calculation!$E$4:$CS$4,Totals!$D18,Calculation!$E$1495:$CS$1495) -> 0 | EJ18: =SUMIF(Calculation!$E$4:$CS$4,Totals!$D18,Calculation!$E$1108:$CS$1108)+SUMIF('Allocation to schools'!$E$9:$GF$9,Totals!$D18,'Allocation to schools'!$E$115:$GF$115)+SUMIF('Allocation to schools'!$E$9:$GF$9,Totals!$D18,'Allocation to schools'!$E$116:$GF$116) -> 0 | EK18: =SUMIF(Calculation!$E$4:$CS$4,Totals!$D18,Calculation!$E$1372:$CS$1372)+SUMIF('Allocation to schools'!$E$9:$GF$9,Totals!$D18,'Allocation to schools'!$E$117:$GF$117) -> 0 | EN18: =SUMIF(Calculation!$E$4:$CS$4,Totals!$D18,Calculation!$E$110:$CS$110)+SUMIFS('Allocation to schools'!$E$162:$GF$162,'Allocation to schools'!$E$9:$GF$9,Totals!$D18,'Allocation to schools'!$E$10:$GF$10,"from federal sources") -> 0 | EO18: =SUMIF(Calculation!$E$4:$CS$4,Totals!$D18,Calculation!$E$215:$CS$215)+SUMIFS('Allocation to schools'!$E$163:$GF$163,'Allocation to schools'!$E$9:$GF$9,Totals!$D18,'Allocation to schools'!$E$10:$GF$10,"from federal sources") -> 0 | EP18: =SUMIF(Calculation!$E$4:$CS$4,Totals!$D18,Calculation!$E$633:$CS$633)+SUMIFS('Allocation to schools'!$E$164:$GF$164,'Allocation to schools'!$E$9:$GF$9,Totals!$D18,'Allocation to schools'!$E$10:$GF$10,"from federal sources") -> 0 | EQ18: =SUMIF(Calculation!$E$4:$CS$4,Totals!$D18,Calculation!$E$738:$CS$738)+SUMIFS('Allocation to schools'!$E$165:$GF$165,'Allocation to schools'!$E$9:$GF$9,Totals!$D18,'Allocation to schools'!$E$10:$GF$10,"from federal sources")+IF(SUMIFS('Allocation to schools'!$E$80:$GI$80,'Allocation to schools'!$E$9:$GI$9,Totals!$D18,'Allocation to schools'!$E$10:$GI$10,"from federal sources")+SUMIFS('Allocation to schools'!$E$83:$GI$83,'Allocation to schools'!$E$9:$GI$9,Totals!$D18,'Allocation to schools'!$E$10:$GI$10,"from federal sources")>0,0,SUMIF('Data entry'!$B$13:$CS$13,Totals!$D18,'Data entry'!$B$97:$CS$97)) -> 0 | ER18: =SUMIF(Calculation!$E$4:$CS$4,Totals!$D18,Calculation!$E$948:$CS$948)+SUMIFS('Allocation to schools'!$E$166:$GF$166,'Allocation to schools'!$E$9:$GF$9,Totals!$D18,'Allocation to schools'!$E$10:$GF$10,"from federal sources") -> 0 | ES18: =SUMIF(Calculation!$E$4:$CS$4,Totals!$D18,Calculation!$E$1053:$CS$1053)+SUMIFS('Allocation to schools'!$E$167:$GF$167,'Allocation to schools'!$E$9:$GF$9,Totals!$D18,'Allocation to schools'!$E$10:$GF$10,"from federal sources") -> 0 | ET18: =SUMIF(Calculation!$E$4:$CS$4,Totals!$D18,Calculation!$E$1065:$CS$1065)+SUMIFS('Allocation to schools'!$E$168:$GF$168,'Allocation to schools'!$E$9:$GF$9,Totals!$D18,'Allocation to schools'!$E$10:$GF$10,"from federal sources") -> 0 | EU18: =SUMIF(Calculation!$E$4:$CS$4,Totals!$D18,Calculation!$E$1113:$CS$1113)+SUMIFS('Allocation to schools'!$E$169:$GF$169,'Allocation to schools'!$E$9:$GF$9,Totals!$D18,'Allocation to schools'!$E$10:$GF$10,"from federal sources") -> 0 | EV18: =SUMIF(Calculation!$E$4:$CS$4,Totals!$D18,Calculation!$E$1218:$CS$1218)+SUMIFS('Allocation to schools'!$E$170:$GF$170,'Allocation to schools'!$E$9:$GF$9,Totals!$D18,'Allocation to schools'!$E$10:$GF$10,"from federal sources") -> 0 | EX18: =SUMIF(Calculation!$E$4:$CS$4,Totals!$D18,Calculation!$E$1392:$CS$1392)+SUMIFS('Allocation to schools'!$E$171:$GF$171,'Allocation to schools'!$E$9:$GF$9,Totals!$D18,'Allocation to schools'!$E$10:$GF$10,"from federal sources") -> 0 | EY18: =(SUMIF(Calculation!$E$4:$CS$4,Totals!$D18,Calculation!$E$97:$CS$97)-SUMIF(Calculation!$E$4:$CS$4,Totals!$D18,Calculation!$E$110:$CS$110))+SUMIFS('Allocation to schools'!$E$162:$GF$162,'Allocation to schools'!$E$9:$GF$9,Totals!$D18,'Allocation to schools'!$E$10:$GF$10,"from local & State sources") -> 0 | EZ18: =(SUMIF(Calculation!$E$4:$CS$4,Totals!$D18,Calculation!$E$202:$CS$202)-SUMIF(Calculation!$E$4:$CS$4,Totals!$D18,Calculation!$E$215:$CS$215))+SUMIFS('Allocation to schools'!$E$163:$GF$163,'Allocation to schools'!$E$9:$GF$9,Totals!$D18,'Allocation to schools'!$E$10:$GF$10,"from local & State sources") -> 0 | FA18: =(SUMIF(Calculation!$E$4:$CS$4,Totals!$D18,Calculation!$E$567:$CS$567)-SUMIF(Calculation!$E$4:$CS$4,Totals!$D18,Calculation!$E$633:$CS$633))+SUMIFS('Allocation to schools'!$E$164:$GF$164,'Allocation to schools'!$E$9:$GF$9,Totals!$D18,'Allocation to schools'!$E$10:$GF$10,"from local & State sources") -> 0 | FB18: =(SUMIF(Calculation!$E$4:$CS$4,Totals!$D18,Calculation!$E$725:$CS$725)-SUMIF(Calculation!$E$4:$CS$4,Totals!$D18,Calculation!$E$738:$CS$738))+SUMIFS('Allocation to schools'!$E$165:$GF$165,'Allocation to schools'!$E$9:$GF$9,Totals!$D18,'Allocation to schools'!$E$10:$GF$10,"from local & State sources")-IF(SUMIFS('Allocation to schools'!$E$80:$GI$80,'Allocation to schools'!$E$9:$GI$9,Totals!$D18,'Allocation to schools'!$E$10:$GI$10,"from federal sources")+SUMIFS('Allocation to schools'!$E$83:$GI$83,'Allocation to schools'!$E$9:$GI$9,Totals!$D18,'Allocation to schools'!$E$10:$GI$10,"from federal sources")>0,0,SUMIF('Data entry'!$B$13:$CS$13,Totals!$D18,'Data entry'!$B$97:$CS$97)) -> 0 | FC18: =(SUMIF(Calculation!$E$4:$CS$4,Totals!$D18,Calculation!$E$908:$CS$908)-SUMIF(Calculation!$E$4:$CS$4,Totals!$D18,Calculation!$E$948:$CS$948))+SUMIFS('Allocation to schools'!$E$166:$GF$166,'Allocation to schools'!$E$9:$GF$9,Totals!$D18,'Allocation to schools'!$E$10:$GF$10,"from local & State sources") -> 0 | FD18: =(SUMIF(Calculation!$E$4:$CS$4,Totals!$D18,Calculation!$E$1040:$CS$1040)-SUMIF(Calculation!$E$4:$CS$4,Totals!$D18,Calculation!$E$1053:$CS$1053))+SUMIFS('Allocation to schools'!$E$167:$GF$167,'Allocation to schools'!$E$9:$GF$9,Totals!$D18,'Allocation to schools'!$E$10:$GF$10,"from local & State sources") -> 0 | FE18: =(SUMIF(Calculation!$E$4:$CS$4,Totals!$D18,Calculation!$E$1060:$CS$1060)-SUMIF(Calculation!$E$4:$CS$4,Totals!$D18,Calculation!$E$1065:$CS$1065))+SUMIFS('Allocation to schools'!$E$168:$GF$168,'Allocation to schools'!$E$9:$GF$9,Totals!$D18,'Allocation to schools'!$E$10:$GF$10,"from local & State sources") -> 0 | FF18: =(SUMIF(Calculation!$E$4:$CS$4,Totals!$D18,Calculation!$E$1086:$CS$1086)-SUMIF(Calculation!$E$4:$CS$4,Totals!$D18,Calculation!$E$1113:$CS$1113))+SUMIFS('Allocation to schools'!$E$169:$GF$169,'Allocation to schools'!$E$9:$GF$9,Totals!$D18,'Allocation to schools'!$E$10:$GF$10,"from local & State sources") -> 0 | FG18: =(SUMIF(Calculation!$E$4:$CS$4,Totals!$D18,Calculation!$E$1205:$CS$1205)-SUMIF(Calculation!$E$4:$CS$4,Totals!$D18,Calculation!$E$1218:$CS$1218))+SUMIFS('Allocation to schools'!$E$170:$GF$170,'Allocation to schools'!$E$9:$GF$9,Totals!$D18,'Allocation to schools'!$E$10:$GF$10,"from local & State sources") -> 0 | FI18: =(SUMIF(Calculation!$E$4:$CS$4,Totals!$D18,Calculation!$E$1373:$CS$1373)-SUMIF(Calculation!$E$4:$CS$4,Totals!$D18,Calculation!$E$1392:$CS$1392))+SUMIFS('Allocation to schools'!$E$171:$GF$171,'Allocation to schools'!$E$9:$GF$9,Totals!$D18,'Allocation to schools'!$E$10:$GF$10,"from local & State sources") -> 0 | FJ18: =SUMIF('Data entry'!$B$13:$CS$13,Totals!$D18,'Data entry'!$B$15:$CS$15) -> 0 | FL18: =SUMIF('Data entry'!$B$13:$CS$13,Totals!$D18,'Data entry'!$B$20:$CS$20) -> 0 | FN18: =SUMIF('Data entry'!$B$13:$CS$13,Totals!$D18,'Data entry'!$B$25:$CS$25) -> 0 | FO18: =SUMIF('Data entry'!$B$13:$CS$13,Totals!$D18,'Data entry'!$B$30:$CS$30) -> 0 | FP18: =SUMIF('Data entry'!$B$13:$CS$13,Totals!$D18,'Data entry'!$B$35:$CS$35) -> 0 | FQ18: =SUMIF('Data entry'!$B$13:$CS$13,Totals!$D18,'Data entry'!$B$16:$CS$16) -> 0 | FS18: =SUMIF('Data entry'!$B$13:$CS$13,Totals!$D18,'Data entry'!$B$21:$CS$21) -> 0 | FU18: =SUMIF('Data entry'!$B$13:$CS$13,Totals!$D18,'Data entry'!$B$26:$CS$26) -> 0 | FV18: =SUMIF('Data entry'!$B$13:$CS$13,Totals!$D18,'Data entry'!$B$31:$CS$31) -> 0 | FW18: =SUMIF('Data entry'!$B$13:$CS$13,Totals!$D18,'Data entry'!$B$36:$CS$36) -> 0 | FX18: =SUMIF('Data entry'!$B$13:$CS$13,Totals!$D18,'Data entry'!$B$17:$CS$17) -> 0 | FZ18: =SUMIF('Data entry'!$B$13:$CS$13,Totals!$D18,'Data entry'!$B$22:$CS$22) -> 0 | GB18: =SUMIF('Data entry'!$B$13:$CS$13,Totals!$D18,'Data entry'!$B$27:$CS$27) -> 0 | GC18: =SUMIF('Data entry'!$B$13:$CS$13,Totals!$D18,'Data entry'!$B$32:$CS$32) -> 0 | GD18: =SUMIF('Data entry'!$B$13:$CS$13,Totals!$D18,'Data entry'!$B$37:$CS$37) -> 0 | GE18: =SUMIF('Data entry'!$B$13:$CS$13,Totals!$D18,'Data entry'!$B$18:$CS$18) -> 0 | GG18: =SUMIF('Data entry'!$B$13:$CS$13,Totals!$D18,'Data entry'!$B$23:$CS$23) -> 0 | GI18: =SUMIF('Data entry'!$B$13:$CS$13,Totals!$D18,'Data entry'!$B$28:$CS$28) -> 0 | GJ18: =SUMIF('Data entry'!$B$13:$CS$13,Totals!$D18,'Data entry'!$B$33:$CS$33) -> 0 | GK18: =SUMIF('Data entry'!$B$13:$CS$13,Totals!$D18,'Data entry'!$B$38:$CS$38) -> 0 | GL18: =SUMIF('Data entry'!$B$13:$CS$13,Totals!$D18,'Data entry'!$B$19:$CS$19) -> 0 | GN18: =SUMIF('Data entry'!$B$13:$CS$13,Totals!$D18,'Data entry'!$B$24:$CS$24) -> 0 | GP18: =SUMIF('Data entry'!$B$13:$CS$13,Totals!$D18,'Data entry'!$B$29:$CS$29) -> 0 | GQ18: =SUMIF('Data entry'!$B$13:$CS$13,Totals!$D18,'Data entry'!$B$34:$CS$34) -> 0 | GR18: =SUMIF('Data entry'!$B$13:$CS$13,Totals!$D18,'Data entry'!$B$39:$CS$39) -> 0 | GS18: =SUMIF('Data entry'!$B$13:$CS$13,Totals!$D18,'Data entry'!$B$41:$CS$41) -> 0 | GT18: =SUMIF(Calculation!$E$4:$CS$4,Totals!$D18,Calculation!$E$1460:$CS$1460)+SUMIFS('Allocation to schools'!$E$20:$GF$20,'Allocation to schools'!$E$9:$GF$9,Totals!$D18,'Allocation to schools'!$E$10:$GF$10,"from federal sources") -> 0 | GU18: =SUMIF(Calculation!$E$4:$CS$4,Totals!$D18,Calculation!$E$1461:$CS$1461)+SUMIFS('Allocation to schools'!$E$20:$GF$20,'Allocation to schools'!$E$9:$GF$9,Totals!$D18,'Allocation to schools'!$E$10:$GF$10,"from local & State sources") -> 0 | GV18: =SUMIF(Calculation!$E$4:$CS$4,Totals!$D18,Calculation!$E$1394:$CS$1394)+SUMIF('Allocation to schools'!$E$9:$GF$9,Totals!$D18,'Allocation to schools'!$E$127:$GF$127) -> 0 | GW18: =SUMIF(Calculation!$E$4:$CS$4,Totals!$D18,Calculation!$E$1396:$CS$1396)+SUMIF('Allocation to schools'!$E$9:$GF$9,Totals!$D18,'Allocation to schools'!$E$128:$GF$128) -> 0 | GX18: =SUMIF(Calculation!$E$4:$CS$4,Totals!$D18,Calculation!$E$1400:$CS$1400)+SUMIF('Allocation to schools'!$E$9:$GF$9,Totals!$D18,'Allocation to schools'!$E$129:$GF$129) -> 0 | GY18: =SUMIF(Calculation!$E$4:$CS$4,Totals!$D18,Calculation!$E$1402:$CS$1402)+SUMIF('Allocation to schools'!$E$9:$GF$9,Totals!$D18,'Allocation to schools'!$E$130:$GF$130) -> 0 | GZ18: =SUMIF(Calculation!$E$4:$CS$4,Totals!$D18,Calculation!$E$1404:$CS$1404)+SUMIF('Allocation to schools'!$E$9:$GF$9,Totals!$D18,'Allocation to schools'!$E$131:$GF$131) -> 0 | HA18: =SUMIF(Calculation!$E$4:$CS$4,Totals!$D18,Calculation!$E$1406:$CS$1406)+SUMIF('Allocation to schools'!$E$9:$GF$9,Totals!$D18,'Allocation to schools'!$E$132:$GF$132) -> 0 | HB18: =SUMIF(Calculation!$E$4:$CS$4,Totals!$D18,Calculation!$E$1408:$CS$1408)+SUMIF('Allocation to schools'!$E$9:$GF$9,Totals!$D18,'Allocation to schools'!$E$133:$GF$133) -> 0 | HC18: =SUMIF(Calculation!$E$4:$CS$4,Totals!$D18,Calculation!$E$1412:$CS$1412)+SUMIF('Allocation to schools'!$E$9:$GF$9,Totals!$D18,'Allocation to schools'!$E$134:$GF$134) -> 0 | HD18: =SUMIF(Calculation!$E$4:$CS$4,Totals!$D18,Calculation!$E$1414:$CS$1414)+SUMIF('Allocation to schools'!$E$9:$GF$9,Totals!$D18,'Allocation to schools'!$E$135:$GF$135) -> 0 | HE18: =SUMIF(Calculation!$E$4:$CS$4,Totals!$D18,Calculation!$E$1416:$CS$1416)+SUMIF('Allocation to schools'!$E$9:$GF$9,Totals!$D18,'Allocation to schools'!$E$136:$GF$136) -> 0 | HF18: =SUMIF(Calculation!$E$4:$CS$4,Totals!$D18,Calculation!$E$1418:$CS$1418)+SUMIF('Allocation to schools'!$E$9:$GF$9,Totals!$D18,'Allocation to schools'!$E$137:$GF$137) -> 0 | HG18: =SUMIF(Calculation!$E$4:$CS$4,Totals!$D18,Calculation!$E$1420:$CS$1420)+SUMIF('Allocation to schools'!$E$9:$GF$9,Totals!$D18,'Allocation to schools'!$E$138:$GF$138) -> 0 | HH18: =SUMIF(Calculation!$E$4:$CS$4,Totals!$D18,Calculation!$E$1424:$CS$1424)+SUMIF('Allocation to schools'!$E$9:$GF$9,Totals!$D18,'Allocation to schools'!$E$139:$GF$139) -> 0 | HI18: =SUMIF(Calculation!$E$4:$CS$4,Totals!$D18,Calculation!$E$1426:$CS$1426)+SUMIF('Allocation to schools'!$E$9:$GF$9,Totals!$D18,'Allocation to schools'!$E$140:$GF$140) -> 0 | HJ18: =SUMIF(Calculation!$E$4:$CS$4,Totals!$D18,Calculation!$E$1428:$CS$1428)+SUMIF('Allocation to schools'!$E$9:$GF$9,Totals!$D18,'Allocation to schools'!$E$141:$GF$141) -> 0 | HK18: =SUMIF(Calculation!$E$4:$CS$4,Totals!$D18,Calculation!$E$1430:$CS$1430)+SUMIF('Allocation to schools'!$E$9:$GF$9,Totals!$D18,'Allocation to schools'!$E$142:$GF$142) -> 0 | HL18: =SUMIF(Calculation!$E$4:$CS$4,Totals!$D18,Calculation!$E$1432:$CS$1432)+SUMIF('Allocation to schools'!$E$9:$GF$9,Totals!$D18,'Allocation to schools'!$E$143:$GF$143) -> 0 | HM18: =SUMIF(Calculation!$E$4:$CS$4,Totals!$D18,Calculation!$E$1436:$CS$1436)+SUMIF('Allocation to schools'!$E$9:$GF$9,Totals!$D18,'Allocation to schools'!$E$144:$GF$144) -> 0 | HN18: =SUMIF('Allocation to schools'!$E$9:$GF$9,Totals!$D18,'Allocation to schools'!$E$145:$GF$145)+SUMIF(Calculation!$E$4:$CS$4,Totals!$D18,Calculation!$E$1438:$CS$1438) -> 0 | HO18: =SUMIF('Allocation to schools'!$E$9:$GF$9,Totals!$D18,'Allocation to schools'!$E$146:$GF$146)+SUMIF(Calculation!$E$4:$CS$4,Totals!$D18,Calculation!$E$1436:$CS$1436) -> 0 | HP18: =SUMIF('Allocation to schools'!$E$9:$GF$9,Totals!$D18,'Allocation to schools'!$E$150:$GF$150)+SUMIF(Calculation!$E$4:$CS$4,Totals!$D18,Calculation!$E$1480:$CS$1480) -> 0 | HQ18: =SUMIF('Allocation to schools'!$E$9:$GF$9,Totals!$D18,'Allocation to schools'!$E$151:$GF$151)+SUMIF(Calculation!$E$4:$CS$4,Totals!$D18,Calculation!$E$1481:$CS$1481) -> 0 | HR18: =SUMIF(Calculation!$E$4:$CS$4,Totals!$D18,Calculation!$E$1482:$CS$1482)+SUMIF('Allocation to schools'!$E$9:$GF$9,Totals!$D18,'Allocation to schools'!$E$152:$GF$152) -> 0 | HS18: =SUMIF(Calculation!$E$4:$CS$4,Totals!$D18,Calculation!$E$1483:$CS$1483)+SUMIF('Allocation to schools'!$E$9:$GF$9,Totals!$D18,'Allocation to schools'!$E$153:$GF$153) -> 0 | HT18: =SUMIF('Data entry'!$B$13:$CS$13,Totals!$D18,'Data entry'!$B$44:$CS$44) -> 0 | HU18: =SUMIF(Calculation!$E$4:$CS$4,Totals!$D18,Calculation!$E$1484:$CS$1484)+SUMIF('Allocation to schools'!$E$9:$GF$9,Totals!$D18,'Allocation to schools'!$E$154:$GF$154) -> 0 | HV18: =SUMIF('Data entry'!$B$13:$CS$13,Totals!$D18,'Data entry'!$B$45:$CS$45) -> 0 | HW18: =SUMIF(Calculation!$E$4:$CS$4,Totals!$D18,Calculation!$E$1495:$CS$1495)+SUMIF('Allocation to schools'!$E$9:$GF$9,Totals!$D18,'Allocation to schools'!$E$114:$GF$114)+SUMIF(Calculation!$E$4:$CS$4,Totals!$D18,Calculation!$E$1502:$CS$1502)+SUMIF('Allocation to schools'!$E$9:$GF$9,Totals!$D18,'Allocation to schools'!$E$116:$GF$116) -> 0 | HX18: =SUMIF(Calculation!$E$4:$CS$4,Totals!$D18,Calculation!$E$1486:$CS$1486)+SUMIF('Allocation to schools'!$E$9:$GF$9,Totals!$D18,'Allocation to schools'!$E$158:$GF$158) -> 0 | HY18: =SUMIF(Calculation!$E$4:$CS$4,Totals!$D18,Calculation!$E$1487:$CS$1487)+SUMIF('Allocation to schools'!$E$9:$GF$9,Totals!$D18,'Allocation to schools'!$E$159:$GF$159) -> 0 | HZ18: =SUMIF('Data entry'!$B$13:$CS$13,Totals!$D18,'Data entry'!$B$73:$CS$73) -> 0 | IA18: =SUMIF('Data entry'!$B$13:$CS$13,Totals!$D18,'Data entry'!$B$76:$CS$76) -> 0 | IB18: =SUMIF('Data entry'!$B$13:$CS$13,Totals!$D18,'Data entry'!$B$79:$CS$79) -> 0 | IC18: =SUMIF('Data entry'!$B$13:$CS$13,Totals!$D18,'Data entry'!$B$80:$CS$80) -> 0 | ID18: =SUMIF('Data entry'!$B$13:$CS$13,Totals!$D18,'Data entry'!$B$82:$CS$82) -> 0 | IE18: =SUMIF('Data entry'!$B$13:$CS$13,Totals!$D18,'Data entry'!$B$83:$CS$83) -> 0 | IF18: =SUMIF('Data entry'!$B$13:$CS$13,Totals!$D18,'Data entry'!$B$85:$CS$85) -> 0 | IG18: =SUMIF('Data entry'!$B$13:$CS$13,Totals!$D18,'Data entry'!$B$86:$CS$86) -> 0 | IH18: =SUMIF('Data entry'!$B$13:$CS$13,Totals!$D18,'Data entry'!$B$87:$CS$87) -> 0 | II18: =SUMIF('Data entry'!$B$13:$CS$13,Totals!$D18,'Data entry'!$B$88:$CS$88) -> 0 | IJ18: =SUMIF('Data entry'!$B$13:$CS$13,Totals!$D18,'Data entry'!$B$89:$CS$89) -> 0 | IK18: =SUMIF('Data entry'!$B$13:$CS$13,Totals!$D18,'Data entry'!$B$90:$CS$90) -> 0 | IL18: =SUMIF('Data entry'!$B$13:$CS$13,Totals!$D18,'Data entry'!$B$91:$CS$91) -> 0 | IM18: =SUMIF('Data entry'!$B$13:$CS$13,Totals!$D18,'Data entry'!$B$92:$CS$92) -> 0 | IN18: =SUMIF('Data entry'!$B$13:$CS$13,Totals!$D18,'Data entry'!$B$93:$CS$93) -> 0 | IO18: =SUMIF('Data entry'!$B$13:$CS$13,Totals!$D18,'Data entry'!$B$94:$CS$94) -> 0 | IP18: =SUMIF('Data entry'!$B$13:$CS$13,Totals!$D18,'Data entry'!$B$95:$CS$95) -> 0 | IQ18: =SUMIF('Data entry'!$B$13:$CS$13,Totals!$D18,'Data entry'!$B$96:$CS$96) -> 0 | IR18: =SUMIF('Data entry'!$B$13:$CS$13,Totals!$D18,'Data entry'!$B$97:$CS$97) -> 0 | IS18: =SUMIF('Data entry'!$B$13:$CS$13,Totals!$D18,'Data entry'!$B$98:$CS$98) -> 0 | IT18: 0 | IU18: =SUMIF('Data entry'!$B$13:$CS$13,Totals!$D18,'Data entry'!$B$107:$CS$107) -> 0 | IV18: =SUMIF('Data entry'!$B$13:$CS$13,Totals!$D18,'Data entry'!$B$108:$CS$108) -> 0 | IW18: =SUMIF('Data entry'!$B$13:$CS$13,Totals!$D18,'Data entry'!$B$109:$CS$109) -> 0 | IX18: =SUMIF('Data entry'!$B$13:$CS$13,Totals!$D18,'Data entry'!$B$110:$CS$110) -> 0 | IY18: =SUMIF('Data entry'!$B$13:$CS$13,Totals!$D18,'Data entry'!$B$111:$CS$111) -> 0 | IZ18: =SUMIF('Data entry'!$B$13:$CS$13,Totals!$D18,'Data entry'!$B$112:$CS$112) -> 0 | JA18: =SUMIF('Data entry'!$B$13:$CS$13,Totals!$D18,'Data entry'!$B$113:$CS$113) -> 0 | JB18: =SUMIF('Data entry'!$B$13:$CS$13,Totals!$D18,'Data entry'!$B$114:$CS$114) -> 0 | JC18: =SUMIF('Data entry'!$B$13:$CS$13,Totals!$D18,'Data entry'!$B$115:$CS$115) -> 0 | JD18: =SUMIF('Data entry'!$B$13:$CS$13,Totals!$D18,'Data entry'!$B$117:$CS$117) -> 0 | JE18: =SUMIF('Data entry'!$B$13:$CS$13,Totals!$D18,'Data entry'!$B$119:$CS$119) -> 0 | JF18: =SUMIF('Data entry'!$B$13:$CS$13,Totals!$D18,'Data entry'!$B$124:$CS$124) -> 0 | JG18: =SUMIF('Data entry'!$B$13:$CS$13,Totals!$D18,'Data entry'!$B$125:$CS$125) -> 0 | JH18: =SUMIF('Data entry'!$B$13:$CS$13,Totals!$D18,'Data entry'!$B$126:$CS$126) -> 0 | JI18: =SUMIF('Data entry'!$B$13:$CS$13,Totals!$D18,'Data entry'!$B$127:$CS$127) -> 0 | JJ18: =SUMIF('Data entry'!$B$13:$CS$13,Totals!$D18,'Data entry'!$B$128:$CS$128) -> 0 | JK18: =SUMIF('Data entry'!$B$13:$CS$13,Totals!$D18,'Data entry'!$B$129:$CS$129) -> 0 | JL18: =SUMIF('Data entry'!$B$13:$CS$13,Totals!$D18,'Data entry'!$B$130:$CS$130) -> 0 | JM18: =SUMIF('Data entry'!$B$13:$CS$13,Totals!$D18,'Data entry'!$B$131:$CS$131) -> 0 | JN18: =SUMIF('Data entry'!$B$13:$CS$13,Totals!$D18,'Data entry'!$B$132:$CS$132) -> 0 | JO18: =SUMIF('Data entry'!$B$13:$CS$13,Totals!$D18,'Data entry'!$B$134:$CS$134) -> 0 | JP18: =SUMIF('Data entry'!$B$13:$CS$13,Totals!$D18,'Data entry'!$B$136:$CS$136) -> 0 | JQ18: =SUMIF('Data entry'!$B$13:$CS$13,Totals!$D18,'Data entry'!$B$138:$CS$138) -> 0 | JR18: =IF(D18=0,"0%",SUMIF('Data entry'!$B$13:$CS$13,Totals!$D18,'Data entry'!$B$139:$CS$139)) -> 0 | JS18: =SUMIF(Calculation!$E$4:$CS$4,Totals!$D18,Calculation!$E$1442:$CS$1442)+SUMIF('Allocation to schools'!$E$9:$GF$9,Totals!$D18,'Allocation to schools'!$E$122:$GF$122) -> 0 | JT18: =SUMIF('Data entry'!$B$13:$CS$13,Totals!$D18,'Data entry'!$B$102:$CS$102) -> 0 | JU18: =IF(JP18=0,"The School's programs 200, 512, 514, and 515 special education spending was equal to base, weighted, IDEA, and other special education funding.",IF(JP18>0,"The School's programs 200, 512, 514, and 515 special education spending was less than base, weighted, IDEA, and other special education funding.","The School's programs 200, 512, 514, and 515 special education spending was greater than base, weighted, IDEA, and other special education funding.")) -> The School's programs 200, 512, 514, and 515 special education spending was equal to base, weighted, IDEA, and other special education funding.
A19: Districtwide | C19: =B2 -> 130209000 | D19: =IF(VLOOKUP(A19,'School listing'!$A$7:$F$99,6,FALSE)="","",VLOOKUP(A19,'School listing'!$A$7:$F$99,6,FALSE)) -> 500 | F19: =Calculation!$E$1445 -> 0 | G19: ='Allocation to schools'!$D$12+'Allocation to schools'!$D$20 -> 18128.34 | H19: ='Allocation to schools'!$D$13+'Allocation to schools'!$D$21 -> 3756.17 | I19: ='Allocation to schools'!$D$14 -> 2730.23 | J19: ='Allocation to schools'!$D$15 -> 14883.56 | K19: ='Allocation to schools'!$D$16 -> 0 | L19: ='Allocation to schools'!$D$17 -> 0 | M19: ='Allocation to schools'!$D$18 -> 0 | N19: =Calculation!$E$1503-SUMIFS('Allocation to schools'!$E$12:$GF$12,'Allocation to schools'!$E$10:$GF$10,"from federal sources")-SUMIFS('Allocation to schools'!$E$20:$GF$20,'Allocation to schools'!$E$10:$GF$10,"from federal sources")-'Data entry'!$B$55 -> 0 | O19: =Calculation!$E$1504-SUMIFS('Allocation to schools'!$E$13:$GF$13,'Allocation to schools'!$E$10:$GF$10,"from federal sources")-SUMIFS('Allocation to schools'!$E$21:$GF$21,'Allocation to schools'!$E$10:$GF$10,"from federal sources") -> 0 | P19: =Calculation!$E$1505-SUMIFS('Allocation to schools'!$E$172:$GF$172,'Allocation to schools'!$E$10:$GF$10,"from federal sources") -> 1073.22 | Q19: ='Allocation to schools'!$D$19+'Allocation to schools'!$D$22 -> 0 | R19: ='Allocation to schools'!$D$23 -> 157378.41 | S19: ='Allocation to schools'!$D$24 -> 49151.39 | T19: ='Allocation to schools'!$D$25 -> 101673 | U19: ='Allocation to schools'!$D$26 -> 0 | V19: ='Allocation to schools'!$D$27 -> 0 | W19: ='Allocation to schools'!$D$28 -> 0 | X19: ='Allocation to schools'!$D$29 -> 0 | Y19: =Calculation!$E$1506-SUMIFS('Allocation to schools'!$E$23:$GF$23,'Allocation to schools'!$E$10:$GF$10,"from federal sources")-'Data entry'!$B$56 -> 14188.47 | Z19: =Calculation!$E$1507-SUMIFS('Allocation to schools'!$E$24:$GF$24,'Allocation to schools'!$E$10:$GF$10,"from federal sources") -> 3528.35 | AA19: =Calculation!$E$1520-SUMIFS('Allocation to schools'!$E$173:$GF$173,'Allocation to schools'!$E$10:$GF$10,"from federal sources") -> 12755 | AB19: ='Allocation to schools'!$D$30 -> 0 | AC19: ='Allocation to schools'!$D$31 -> 252093.22 | AD19: ='Allocation to schools'!$D$32 -> 65669.12 | AE19: ='Allocation to schools'!$D$33 -> 75681.2 | AF19: ='Allocation to schools'!$D$34 -> 52581.85 | AG19: ='Allocation to schools'!$D$35 -> 0 | AH19: ='Allocation to schools'!$D$36 -> 500 | AI19: ='Allocation to schools'!$D$37 -> 0 | AJ19: =Calculation!$E$1521-SUMIFS('Allocation to schools'!$E$31:$GF$31,'Allocation to schools'!$E$10:$GF$10,"from federal sources")-'Data entry'!$B$57 -> 5176.78 | AK19: =Calculation!$E$1522-SUMIFS('Allocation to schools'!$E$32:$GF$32,'Allocation to schools'!$E$10:$GF$10,"from federal sources") -> 1191.45 | AL19: =Calculation!$E$1535-SUMIFS('Allocation to schools'!$E$174:$GF$174,'Allocation to schools'!$E$10:$GF$10,"from federal sources") -> 73374.9 | AM19: ='Allocation to schools'!$D$38 -> 0 | AN19: ='Allocation to schools'!$D$39 -> 179826.66 | AO19: ='Allocation to schools'!$D$40 -> 41747.4 | AP19: ='Allocation to schools'!$D$41 -> 30838.34 | AQ19: ='Allocation to schools'!$D$42 -> 2694.8 | AR19: ='Allocation to schools'!$D$43 -> 0 | AS19: ='Allocation to schools'!$D$44 -> 6078 | AT19: ='Allocation to schools'!$D$45 -> 0 | AU19: ='Allocation to schools'!$D$46 -> 0 | AV19: =Calculation!$E$1536-SUMIFS('Allocation to schools'!$E$39:$GF$39,'Allocation to schools'!$E$10:$GF$10,"from federal sources")-'Data entry'!$B$58 -> 0 | AW19: =Calculation!$E$1537-SUMIFS('Allocation to schools'!$E$40:$GF$40,'Allocation to schools'!$E$10:$GF$10,"from federal sources") -> 0 | AX19: =Calculation!$E$1551-SUMIFS('Allocation to schools'!$E$175:$GF$175,'Allocation to schools'!$E$10:$GF$10,"from federal sources") -> 30301.5 | AY19: ='Allocation to schools'!$D$47 -> 0 | AZ19: ='Allocation to schools'!$D$48 -> 0 | BA19: ='Allocation to schools'!$D$49 -> 0 | BB19: ='Allocation to schools'!$D$50 -> 6486.5 | BC19: ='Allocation to schools'!$D$51 -> 0 | BD19: ='Allocation to schools'!$D$52 -> 758.37 | BE19: ='Allocation to schools'!$D$53 -> 0 | BF19: ='Allocation to schools'!$D$54 -> 0 | BG19: =Calculation!$E$1552-SUMIFS('Allocation to schools'!$E$48:$GF$48,'Allocation to schools'!$E$10:$GF$10,"from federal sources")-'Data entry'!$B$59 -> 0 | BH19: =Calculation!$E$1553-SUMIFS('Allocation to schools'!$E$49:$GF$49,'Allocation to schools'!$E$10:$GF$10,"from federal sources") -> 0 | BI19: =Calculation!$E$1566-SUMIFS('Allocation to schools'!$E$176:$GF$176,'Allocation to schools'!$E$10:$GF$10,"from federal sources") -> 0 | BJ19: ='Allocation to schools'!$D$55 -> 0 | BK19: ='Allocation to schools'!$D$56 -> 291747.95 | BL19: ='Allocation to schools'!$D$57 -> 189644.49 | BM19: ='Allocation to schools'!$D$58 -> 180976.31 | BN19: ='Allocation to schools'!$D$59 -> 58544.6 | BO19: ='Allocation to schools'!$D$60 -> 11382.91 | BP19: ='Allocation to schools'!$D$61 -> 28834.67 | BQ19: ='Allocation to schools'!$D$62 -> 0 | BR19: ='Allocation to schools'!$D$63 -> 0 | BS19: =Calculation!$E$1567+Calculation!$E$1583-SUMIFS('Allocation to schools'!$E$56:$GF$56,'Allocation to schools'!$E$10:$GF$10,"from federal sources")-'Data entry'!$B$60 -> 0 | BT19: =Calculation!$E$1568+Calculation!$E$1584-SUMIFS('Allocation to schools'!$E$57:$GF$57,'Allocation to schools'!$E$10:$GF$10,"from federal sources") -> 0 | BU19: =Calculation!$E$1582+Calculation!$E$1598-SUMIFS('Allocation to schools'!$E$177:$GF$177,'Allocation to schools'!$E$10:$GF$10,"from federal sources") -> 42255.72 | BV19: ='Allocation to schools'!$D$64 -> 0 | BW19: ='Allocation to schools'!$D$65 -> 23877.28 | BX19: ='Allocation to schools'!$D$66 -> 6418.54 | BY19: ='Allocation to schools'!$D$67 -> 270367.49 | BZ19: ='Allocation to schools'!$D$68 -> 42026.9 | CA19: ='Allocation to schools'!$D$69 -> 15000 | CB19: ='Allocation to schools'!$D$70 -> 50 | CC19: ='Allocation to schools'!$D$71 -> 0 | CD19: =Calculation!$E$1599-SUMIFS('Allocation to schools'!$E$65:$GF$65,'Allocation to schools'!$E$10:$GF$10,"from federal sources")-'Data entry'!$B$61 -> 0 | CE19: =Calculation!$E$1600-SUMIFS('Allocation to schools'!$E$66:$GF$66,'Allocation to schools'!$E$10:$GF$10,"from federal sources") -> 0 | CF19: =Calculation!$E$1613-SUMIFS('Allocation to schools'!$E$178:$GF$178,'Allocation to schools'!$E$10:$GF$10,"from federal sources") -> 25622.32 | CG19: ='Allocation to schools'!$D$72 -> 0 | CH19: ='Allocation to schools'!$D$73 -> 246541.28 | CI19: ='Allocation to schools'!$D$74 -> 68298.68 | CJ19: ='Allocation to schools'!$D$75 -> 88516.3 | CK19: ='Allocation to schools'!$D$76 -> 64863.07 | CL19: ='Allocation to schools'!$D$77 -> 170079.25 | CM19: ='Allocation to schools'!$D$78 -> 37.5 | CN19: ='Allocation to schools'!$D$79 -> 0 | CO19: =Calculation!$E$1614-SUMIFS('Allocation to schools'!$E$73:$GF$73,'Allocation to schools'!$E$10:$GF$10,"from federal sources")-'Data entry'!$B$62 -> 1897.85 | CP19: =Calculation!$E$1615-SUMIFS('Allocation to schools'!$E$74:$GF$74,'Allocation to schools'!$E$10:$GF$10,"from federal sources") -> 455.68 | CQ19: =Calculation!$E$1628-SUMIFS('Allocation to schools'!$E$179:$GF$179,'Allocation to schools'!$E$10:$GF$10,"from federal sources") -> 170079.25 | CR19: ='Allocation to schools'!$D$80 -> 0 | CS19: ='Allocation to schools'!$D$81 -> 0 | CT19: ='Allocation to schools'!$D$82 -> 355119.86 | CU19: ='Allocation to schools'!$D$83 -> 2688 | CV19: ='Allocation to schools'!$D$84 -> 0 | CW19: ='Allocation to schools'!$D$85 -> 0 | CX19: ='Allocation to schools'!$D$86 -> 0 | CY19: =Calculation!$E$1629-SUMIFS('Allocation to schools'!$E$80:$GF$80,'Allocation to schools'!$E$10:$GF$10,"from federal sources")-'Data entry'!$B$63 -> 0 | CZ19: =Calculation!$E$1630-SUMIFS('Allocation to schools'!$E$81:$GF$81,'Allocation to schools'!$E$10:$GF$10,"from federal sources") -> 0 | DA19: =Calculation!$E$1643-SUMIFS('Allocation to schools'!$E$180:$GF$180,'Allocation to schools'!$E$10:$GF$10,"from federal sources")+SUMIF('Data entry'!$B$13:$CP$13,Totals!$D19,'Data entry'!$B$97:$CS$97) -> 277355.52 | DB19: ='Allocation to schools'!$D$87 -> 0 | DC19: ='Allocation to schools'!$D$88 -> 0 | DD19: ='Allocation to schools'!$D$89 -> 0 | DE19: ='Allocation to schools'!$D$90 -> 0 | DF19: ='Allocation to schools'!$D$91 -> 0 | DG19: ='Allocation to schools'!$D$92 -> 0 | DH19: ='Allocation to schools'!$D$93 -> 0 | DI19: ='Allocation to schools'!$D$94 -> 0 | DJ19: =Calculation!$E$1644-SUMIFS('Allocation to schools'!$E$88:$GF$88,'Allocation to schools'!$E$10:$GF$10,"from federal sources")-'Data entry'!$B$64 -> 0 | DK19: =Calculation!$E$1645-SUMIFS('Allocation to schools'!$E$89:$GF$89,'Allocation to schools'!$E$10:$GF$10,"from federal sources") -> 0 | DL19: =Calculation!$E$1658-SUMIFS('Allocation to schools'!$E$181:$GF$181,'Allocation to schools'!$E$10:$GF$10,"from federal sources") -> 0 | DM19: ='Allocation to schools'!$D$95 -> 0 | DN19: ='Allocation to schools'!$D$96 -> 0 | DO19: ='Allocation to schools'!$D$97 -> 0 | DP19: ='Allocation to schools'!$D$98 -> 0 | DQ19: ='Allocation to schools'!$D$99 -> 0 | DR19: ='Allocation to schools'!$D$100 -> 0 | DS19: ='Allocation to schools'!$D$101 -> 0 | DT19: ='Allocation to schools'!$D$102 -> 0 | DU19: ='Allocation to schools'!$D$103 -> 0 | DV19: =Calculation!$E$1659-SUMIFS('Allocation to schools'!$E$97:$GF$97,'Allocation to schools'!$E$10:$GF$10,"from federal sources")-'Data entry'!$B$65 -> 0 | DW19: =Calculation!$E$1660-SUMIFS('Allocation to schools'!$E$98:$GF$98,'Allocation to schools'!$E$10:$GF$10,"from federal sources") -> 0 | DX19: =Calculation!$E$1673-SUMIFS('Allocation to schools'!$E$182:$GF$182,'Allocation to schools'!$E$10:$GF$10,"from federal sources") -> 0 | DY19: ='Allocation to schools'!$D$104 -> 0 | DZ19: ='Allocation to schools'!$D$105 -> 0 | EA19: ='Allocation to schools'!$D$106 -> 0 | EB19: ='Allocation to schools'!$D$107 -> 0 | EC19: ='Allocation to schools'!$D$108 -> 0 | ED19: ='Allocation to schools'!$D$109 -> 0 | EE19: ='Allocation to schools'!$D$110 -> 0 | EF19: ='Allocation to schools'!$D$111 -> 0 | EH19: ='Allocation to schools'!$D$112 -> 0 | EI19: =Calculation!$E$1072+'Allocation to schools'!$D$113+'Allocation to schools'!$D$114 -> 3043349.4 | EJ19: =Calculation!$E$1093+'Allocation to schools'!$D$115+'Allocation to schools'!$D$116+Calculation!$E$1107 -> 724978.55 | EK19: ='Allocation to schools'!$D$117 -> 0 | EN19: =SUMIF(Calculation!$E$4:$CS$4,Totals!$D19,Calculation!$E$110:$CS$110)-SUMIFS('Allocation to schools'!$E$162:$GF$162,'Allocation to schools'!$E$10:$GF$10,"from federal sources")-'Data entry'!B66 -> 21263.1 | EO19: =SUMIF(Calculation!$E$4:$CS$4,Totals!$D19,Calculation!$E$215:$CS$215)-SUMIFS('Allocation to schools'!$E$163:$GF$163,'Allocation to schools'!$E$10:$GF$10,"from federal sources") -> 5175.48 | EP19: =SUMIF(Calculation!$E$4:$CS$4,Totals!$D19,Calculation!$E$633:$CS$633)-SUMIFS('Allocation to schools'!$E$164:$GF$164,'Allocation to schools'!$E$10:$GF$10,"from federal sources") -> 142473.89 | EQ19: =SUMIF(Calculation!$E$4:$CS$4,Totals!$D19,Calculation!$E$738:$CS$738)-SUMIFS('Allocation to schools'!$E$165:$GF$165,'Allocation to schools'!$E$10:$GF$10,"from federal sources")+SUMIF('Data entry'!$B$13:$CS$13,Totals!$D19,'Data entry'!$B$97:$CS$97) -> 297278.57 | ER19: =SUMIF(Calculation!$E$4:$CS$4,Totals!$D19,Calculation!$E$948:$CS$948)-SUMIFS('Allocation to schools'!$E$166:$GF$166,'Allocation to schools'!$E$10:$GF$10,"from federal sources") -> 170079.25 | ES19: =SUMIF(Calculation!$E$4:$CS$4,Totals!$D19,Calculation!$E$1053:$CS$1053)-SUMIFS('Allocation to schools'!$E$167:$GF$167,'Allocation to schools'!$E$10:$GF$10,"from federal sources") -> 22985.72 | ET19: =SUMIF(Calculation!$E$4:$CS$4,Totals!$D19,Calculation!$E$1065:$CS$1065)-SUMIFS('Allocation to schools'!$E$168:$GF$168,'Allocation to schools'!$E$10:$GF$10,"from federal sources") -> 0 | EU19: =SUMIF(Calculation!$E$4:$CS$4,Totals!$D19,Calculation!$E$1113:$CS$1113)-SUMIFS('Allocation to schools'!$E$169:$GF$169,'Allocation to schools'!$E$10:$GF$10,"from federal sources") -> 0 | EV19: =SUMIF(Calculation!$E$4:$CS$4,Totals!$D19,Calculation!$E$1218:$CS$1218)-SUMIFS('Allocation to schools'!$E$170:$GF$170,'Allocation to schools'!$E$10:$GF$10,"from federal sources") -> 0 | EX19: =SUMIF(Calculation!$E$4:$CS$4,Totals!$D19,Calculation!$E$1392:$CS$1392)-SUMIFS('Allocation to schools'!$E$171:$GF$171,'Allocation to schools'!$E$10:$GF$10,"from federal sources") -> 0 | EY19: =(SUMIF(Calculation!$E$4:$CS$4,Totals!$D19,Calculation!$E$97:$CS$97)-SUMIF(Calculation!$E$4:$CS$4,Totals!$D19,Calculation!$E$110:$CS$110))-SUMIFS('Allocation to schools'!$E$162:$GF$162,'Allocation to schools'!$E$10:$GF$10,"from local & State sources")+'Data entry'!B66 -> 1148330.04 | EZ19: =(SUMIF(Calculation!$E$4:$CS$4,Totals!$D19,Calculation!$E$202:$CS$202)-SUMIF(Calculation!$E$4:$CS$4,Totals!$D19,Calculation!$E$215:$CS$215))-SUMIFS('Allocation to schools'!$E$163:$GF$163,'Allocation to schools'!$E$10:$GF$10,"from local & State sources") -> 419510.31 | FA19: =(SUMIF(Calculation!$E$4:$CS$4,Totals!$D19,Calculation!$E$567:$CS$567)-SUMIF(Calculation!$E$4:$CS$4,Totals!$D19,Calculation!$E$633:$CS$633))-SUMIFS('Allocation to schools'!$E$164:$GF$164,'Allocation to schools'!$E$10:$GF$10,"from local & State sources") -> 969915.34 | FB19: =(SUMIF(Calculation!$E$4:$CS$4,Totals!$D19,Calculation!$E$725:$CS$725)-SUMIF(Calculation!$E$4:$CS$4,Totals!$D19,Calculation!$E$738:$CS$738))-SUMIFS('Allocation to schools'!$E$165:$GF$165,'Allocation to schools'!$E$10:$GF$10,"from local & State sources")-SUMIF('Data entry'!$B$13:$CS$13,Totals!$D19,'Data entry'!$B$97:$CS$97) -> -58995.79 | FC19: =(SUMIF(Calculation!$E$4:$CS$4,Totals!$D19,Calculation!$E$908:$CS$908)-SUMIF(Calculation!$E$4:$CS$4,Totals!$D19,Calculation!$E$948:$CS$948))-SUMIFS('Allocation to schools'!$E$166:$GF$166,'Allocation to schools'!$E$10:$GF$10,"from local & State sources") -> 27141.28 | FD19: =(SUMIF(Calculation!$E$4:$CS$4,Totals!$D19,Calculation!$E$1040:$CS$1040)-SUMIF(Calculation!$E$4:$CS$4,Totals!$D19,Calculation!$E$1053:$CS$1053))-SUMIFS('Allocation to schools'!$E$167:$GF$167,'Allocation to schools'!$E$10:$GF$10,"from local & State sources") -> 12514.45 | FE19: =(SUMIF(Calculation!$E$4:$CS$4,Totals!$D19,Calculation!$E$1060:$CS$1060)-SUMIF(Calculation!$E$4:$CS$4,Totals!$D19,Calculation!$E$1065:$CS$1065))-SUMIFS('Allocation to schools'!$E$168:$GF$168,'Allocation to schools'!$E$10:$GF$10,"from local & State sources") -> 0 | FF19: =(SUMIF(Calculation!$E$4:$CS$4,Totals!$D19,Calculation!$E$1086:$CS$1086)-SUMIF(Calculation!$E$4:$CS$4,Totals!$D19,Calculation!$E$1113:$CS$1113))-SUMIFS('Allocation to schools'!$E$169:$GF$169,'Allocation to schools'!$E$10:$GF$10,"from local & State sources") -> 0 | FG19: =(SUMIF(Calculation!$E$4:$CS$4,Totals!$D19,Calculation!$E$1205:$CS$1205)-SUMIF(Calculation!$E$4:$CS$4,Totals!$D19,Calculation!$E$1218:$CS$1218))-SUMIFS('Allocation to schools'!$E$170:$GF$170,'Allocation to schools'!$E$10:$GF$10,"from local & State sources") -> 0 | FI19: =(SUMIF(Calculation!$E$4:$CS$4,Totals!$D19,Calculation!$E$1373:$CS$1373)-SUMIF(Calculation!$E$4:$CS$4,Totals!$D19,Calculation!$E$1392:$CS$1392))-SUMIFS('Allocation to schools'!$E$171:$GF$171,'Allocation to schools'!$E$10:$GF$10,"from local & State sources") -> 0 | FJ19: =SUMIF('Data entry'!$B$13:$CS$13,Totals!$D19,'Data entry'!$B$15:$CS$15) -> 8700 | FL19: =SUMIF('Data entry'!$B$13:$CS$13,Totals!$D19,'Data entry'!$B$20:$CS$20) -> 0 | FN19: =SUMIF('Data entry'!$B$13:$CS$13,Totals!$D19,'Data entry'!$B$25:$CS$25) -> 809.22 | FO19: =SUMIF('Data entry'!$B$13:$CS$13,Totals!$D19,'Data entry'!$B$30:$CS$30) -> 0 | FP19: =SUMIF('Data entry'!$B$13:$CS$13,Totals!$D19,'Data entry'!$B$35:$CS$35) -> 3756.17 | FQ19: =SUMIF('Data entry'!$B$13:$CS$13,Totals!$D19,'Data entry'!$B$16:$CS$16) -> 0 | FS19: =SUMIF('Data entry'!$B$13:$CS$13,Totals!$D19,'Data entry'!$B$21:$CS$21) -> 0 | FU19: =SUMIF('Data entry'!$B$13:$CS$13,Totals!$D19,'Data entry'!$B$26:$CS$26) -> 0 | FV19: =SUMIF('Data entry'!$B$13:$CS$13,Totals!$D19,'Data entry'!$B$31:$CS$31) -> 0 | FW19: =SUMIF('Data entry'!$B$13:$CS$13,Totals!$D19,'Data entry'!$B$36:$CS$36) -> 0 | FX19: =SUMIF('Data entry'!$B$13:$CS$13,Totals!$D19,'Data entry'!$B$17:$CS$17) -> 0 | FZ19: =SUMIF('Data entry'!$B$13:$CS$13,Totals!$D19,'Data entry'!$B$22:$CS$22) -> 0 | GB19: =SUMIF('Data entry'!$B$13:$CS$13,Totals!$D19,'Data entry'!$B$27:$CS$27) -> 0 | GC19: =SUMIF('Data entry'!$B$13:$CS$13,Totals!$D19,'Data entry'!$B$32:$CS$32) -> 0 | GD19: =SUMIF('Data entry'!$B$13:$CS$13,Totals!$D19,'Data entry'!$B$37:$CS$37) -> 0 | GE19: =SUMIF('Data entry'!$B$13:$CS$13,Totals!$D19,'Data entry'!$B$18:$CS$18) -> 0 | GG19: =SUMIF('Data entry'!$B$13:$CS$13,Totals!$D19,'Data entry'!$B$23:$CS$23) -> 0 | GI19: =SUMIF('Data entry'!$B$13:$CS$13,Totals!$D19,'Data entry'!$B$28:$CS$28) -> 0 | GJ19: =SUMIF('Data entry'!$B$13:$CS$13,Totals!$D19,'Data entry'!$B$33:$CS$33) -> 0 | GK19: =SUMIF('Data entry'!$B$13:$CS$13,Totals!$D19,'Data entry'!$B$38:$CS$38) -> 0 | GL19: =SUMIF('Data entry'!$B$13:$CS$13,Totals!$D19,'Data entry'!$B$19:$CS$19) -> 0 | GN19: =SUMIF('Data entry'!$B$13:$CS$13,Totals!$D19,'Data entry'!$B$24:$CS$24) -> 0 | GP19: =SUMIF('Data entry'!$B$13:$CS$13,Totals!$D19,'Data entry'!$B$29:$CS$29) -> 0 | GQ19: =SUMIF('Data entry'!$B$13:$CS$13,Totals!$D19,'Data entry'!$B$34:$CS$34) -> 0 | GR19: =SUMIF('Data entry'!$B$13:$CS$13,Totals!$D19,'Data entry'!$B$39:$CS$39) -> 0 | GS19: =SUMIF('Data entry'!$B$13:$CS$13,Totals!$D19,'Data entry'!$B$41:$CS$41) -> 0 | GT19: =SUMIF(Calculation!$E$4:$CS$4,Totals!$D19,Calculation!$E$1460:$CS$1460)-SUMIFS('Allocation to schools'!$E$20:$GF$20,'Allocation to schools'!$E$10:$GF$10,"from federal sources") -> 0 | GU19: =SUMIF(Calculation!$E$4:$CS$4,Totals!$D19,Calculation!$E$1461:$CS$1461)-SUMIFS('Allocation to schools'!$E$20:$GF$20,'Allocation to schools'!$E$10:$GF$10,"from local & State sources") -> 0 | GV19: ='Allocation to schools'!$D$127 -> 0 | GW19: ='Allocation to schools'!$D$128 -> 0 | GX19: ='Allocation to schools'!$D$129 -> 0 | GY19: ='Allocation to schools'!$D$130 -> 0 | GZ19: ='Allocation to schools'!$D$131 -> 0 | HA19: ='Allocation to schools'!$D$132 -> 8044.35 | HB19: ='Allocation to schools'!$D$133 -> 1726.93 | HC19: ='Allocation to schools'!$D$134 -> 0 | HD19: ='Allocation to schools'!$D$135 -> 0 | HE19: ='Allocation to schools'!$D$136 -> 0 | HF19: ='Allocation to schools'!$D$137 -> 0 | HG19: ='Allocation to schools'!$D$138 -> 0 | HH19: ='Allocation to schools'!$D$139 -> 0 | HI19: ='Allocation to schools'!$D$140 -> 0 | HJ19: ='Allocation to schools'!$D$141 -> 0 | HK19: ='Allocation to schools'!$D$142 -> 0 | HL19: ='Allocation to schools'!$D$143 -> 0 | HM19: ='Allocation to schools'!$D$144 -> 0 | HN19: ='Allocation to schools'!$D$145 -> 0 | HO19: ='Allocation to schools'!$D$146 -> 0 | HP19: ='Allocation to schools'!$D$150 -> 0 | HQ19: ='Allocation to schools'!$D$151 -> 0 | HR19: ='Allocation to schools'!$D$152 -> 0 | HS19: ='Allocation to schools'!$D$153 -> 25821.3 | HT19: =SUMIF('Data entry'!$B$13:$CS$13,Totals!$D19,'Data entry'!$B$44:$CS$44) -> 12005.63 | HU19: ='Allocation to schools'!$D$154 -> 112489.76 | HV19: =SUMIF('Data entry'!$B$13:$CS$13,Totals!$D19,'Data entry'!$B$45:$CS$45) -> 0 | HW19: ='Allocation to schools'!D114+'Allocation to schools'!$D$116 -> 0 | HX19: ='Allocation to schools'!$D$158 -> 68590 | HY19: ='Allocation to schools'!$D$159 -> 0 | HZ19: =SUMIF('Data entry'!$B$13:$CS$13,Totals!$D19,'Data entry'!$B$73:$CS$73) -> 0 | IA19: =SUMIF('Data entry'!$B$13:$CS$13,Totals!$D19,'Data entry'!$B$76:$CS$76) -> 0 | IB19: =SUMIF('Data entry'!$B$13:$CS$13,Totals!$D19,'Data entry'!$B$79:$CS$79) -> 0 | IC19: =SUMIF('Data entry'!$B$13:$CS$13,Totals!$D19,'Data entry'!$B$80:$CS$80) -> 0 | ID19: =SUMIF('Data entry'!$B$13:$CS$13,Totals!$D19,'Data entry'!$B$82:$CS$82) -> 6626619.208 | IE19: =SUMIF('Data entry'!$B$13:$CS$13,Totals!$D19,'Data entry'!$B$83:$CS$83) -> 831651.85 | IF19: =SUMIF('Data entry'!$B$13:$CS$13,Totals!$D19,'Data entry'!$B$85:$CS$85) -> 831651.85 | IG19: =SUMIF('Data entry'!$B$13:$CS$13,Totals!$D19,'Data entry'!$B$86:$CS$86) -> 449294.35 | IH19: =SUMIF('Data entry'!$B$13:$CS$13,Totals!$D19,'Data entry'!$B$87:$CS$87) -> 891346 | II19: =SUMIF('Data entry'!$B$13:$CS$13,Totals!$D19,'Data entry'!$B$88:$CS$88) -> 0 | IJ19: =SUMIF('Data entry'!$B$13:$CS$13,Totals!$D19,'Data entry'!$B$89:$CS$89) -> 0 | IK19: =SUMIF('Data entry'!$B$13:$CS$13,Totals!$D19,'Data entry'!$B$90:$CS$90) -> 0 | IL19: =SUMIF('Data entry'!$B$13:$CS$13,Totals!$D19,'Data entry'!$B$91:$CS$91) -> 309036.86 | IM19: =SUMIF('Data entry'!$B$13:$CS$13,Totals!$D19,'Data entry'!$B$92:$CS$92) -> 0 | IN19: =SUMIF('Data entry'!$B$13:$CS$13,Totals!$D19,'Data entry'!$B$93:$CS$93) -> 0 | IO19: =SUMIF('Data entry'!$B$13:$CS$13,Totals!$D19,'Data entry'!$B$94:$CS$94) -> 88234.25 | IP19: =SUMIF('Data entry'!$B$13:$CS$13,Totals!$D19,'Data entry'!$B$95:$CS$95) -> 413448.18 | IQ19: =SUMIF('Data entry'!$B$13:$CS$13,Totals!$D19,'Data entry'!$B$96:$CS$96) -> 0 | IR19: =SUMIF('Data entry'!$B$13:$CS$13,Totals!$D19,'Data entry'!$B$97:$CS$97) -> 277355.52 | IS19: =SUMIF('Data entry'!$B$13:$CS$13,Totals!$D19,'Data entry'!$B$98:$CS$98) -> 214089.15 | IT19: 10101075.37 | IU19: =SUMIF('Data entry'!$B$13:$CS$13,Totals!$D19,'Data entry'!$B$107:$CS$107) -> 0 | IV19: =SUMIF('Data entry'!$B$13:$CS$13,Totals!$D19,'Data entry'!$B$108:$CS$108) -> 0 | IW19: =SUMIF('Data entry'!$B$13:$CS$13,Totals!$D19,'Data entry'!$B$109:$CS$109) -> 0 | IX19: =SUMIF('Data entry'!$B$13:$CS$13,Totals!$D19,'Data entry'!$B$110:$CS$110) -> 0 | IY19: =SUMIF('Data entry'!$B$13:$CS$13,Totals!$D19,'Data entry'!$B$111:$CS$111) -> 0 | IZ19: =SUMIF('Data entry'!$B$13:$CS$13,Totals!$D19,'Data entry'!$B$112:$CS$112) -> 0 | JA19: =SUMIF('Data entry'!$B$13:$CS$13,Totals!$D19,'Data entry'!$B$113:$CS$113) -> 0 | JB19: =SUMIF('Data entry'!$B$13:$CS$13,Totals!$D19,'Data entry'!$B$114:$CS$114) -> 0 | JC19: =SUMIF('Data entry'!$B$13:$CS$13,Totals!$D19,'Data entry'!$B$115:$CS$115) -> 0 | JD19: =SUMIF('Data entry'!$B$13:$CS$13,Totals!$D19,'Data entry'!$B$117:$CS$117) -> 0 | JE19: =SUMIF('Data entry'!$B$13:$CS$13,Totals!$D19,'Data entry'!$B$119:$CS$119) -> 0 | JF19: =SUMIF('Data entry'!$B$13:$CS$13,Totals!$D19,'Data entry'!$B$124:$CS$124) -> 0 | JG19: =SUMIF('Data entry'!$B$13:$CS$13,Totals!$D19,'Data entry'!$B$125:$CS$125) -> 0 | JH19: =SUMIF('Data entry'!$B$13:$CS$13,Totals!$D19,'Data entry'!$B$126:$CS$126) -> 0 | JI19: =SUMIF('Data entry'!$B$13:$CS$13,Totals!$D19,'Data entry'!$B$127:$CS$127) -> 0 | JJ19: =SUMIF('Data entry'!$B$13:$CS$13,Totals!$D19,'Data entry'!$B$128:$CS$128) -> 0 | JK19: =SUMIF('Data entry'!$B$13:$CS$13,Totals!$D19,'Data entry'!$B$129:$CS$129) -> 0 | JL19: =SUMIF('Data entry'!$B$13:$CS$13,Totals!$D19,'Data entry'!$B$130:$CS$130) -> 0 | JM19: =SUMIF('Data entry'!$B$13:$CS$13,Totals!$D19,'Data entry'!$B$131:$CS$131) -> 0 | JN19: =SUMIF('Data entry'!$B$13:$CS$13,Totals!$D19,'Data entry'!$B$132:$CS$132) -> 0 | JO19: =SUMIF('Data entry'!$B$13:$CS$13,Totals!$D19,'Data entry'!$B$134:$CS$134) -> 366983.08 | JP19: =SUMIF('Data entry'!$B$13:$CS$13,Totals!$D19,'Data entry'!$B$136:$CS$136) -> -366983.08 | JQ19: =SUMIF('Data entry'!$B$13:$CS$13,Totals!$D19,'Data entry'!$B$138:$CS$138) -> 353880.23 | JR19: =IF(D19=0,"0%",SUMIF('Data entry'!$B$13:$CS$13,Totals!$D19,'Data entry'!$B$139:$CS$139)) -> 0.9642957654 | JS19: ='Allocation to schools'!$D$122 -> 0 | JT19: =SUMIF('Data entry'!$B$13:$CS$13,Totals!$D19,'Data entry'!$B$102:$CS$102) -> 0
A20: School 1 | B20: =VLOOKUP(A20,'School listing'!$A$7:$E$99,2,FALSE) -> West Sedona School | C20: =IF(VLOOKUP(A20,'School listing'!$A$7:$E$99,3,FALSE)="","",VLOOKUP(A20,'School listing'!$A$7:$E$99,3,FALSE)) -> 130209120 | D20: =IF(VLOOKUP(A20,'School listing'!$A$7:$F$99,6,FALSE)="","",VLOOKUP(A20,'School listing'!$A$7:$F$99,6,FALSE)) -> 120 | E20: =VLOOKUP(A20,'School listing'!$A$7:$E$99,4,FALSE) -> 271 | G20: =SUMIF(Calculation!$E$4:$CS$4,Totals!$D20,Calculation!$E$12:$CS$12)+SUMIF('Allocation to schools'!$E$9:$GF$9,Totals!$D20,'Allocation to schools'!$E$12:$GF$12)+SUMIF('Allocation to schools'!$E$9:$GF$9,Totals!$D20,'Allocation to schools'!$E$20:$GF$20) -> 1620704.11 | H20: =SUMIF(Calculation!$E$4:$CS$4,Totals!$D20,Calculation!$E$117:$CS$117)+SUMIF('Allocation to schools'!$E$9:$GF$9,Totals!$D20,'Allocation to schools'!$E$13:$GF$13)+SUMIF('Allocation to schools'!$E$9:$GF$9,Totals!$D20,'Allocation to schools'!$E$21:$GF$21) -> 489505.15 | I20: =SUMIF(Calculation!$E$4:$CS$4,Totals!$D20,Calculation!$E$242:$CS$242)+SUMIF('Allocation to schools'!$E$9:$GF$9,Totals!$D20,'Allocation to schools'!$E$14:$GF$14) -> 47114.47 | J20: =SUMIF(Calculation!$E$4:$CS$4,Totals!$D20,Calculation!$E$640:$CS$640)+SUMIF('Allocation to schools'!$E$9:$GF$9,Totals!$D20,'Allocation to schools'!$E$15:$GF$15) -> 45997.59 | K20: =SUMIF(Calculation!$E$4:$CS$4,Totals!$D20,Calculation!$E$751:$CS$751)+SUMIF('Allocation to schools'!$E$9:$GF$9,Totals!$D20,'Allocation to schools'!$E$16:$GF$16) -> 22141.8 | L20: =SUMIF(Calculation!$E$4:$CS$4,Totals!$D20,Calculation!$E$955:$CS$955)+SUMIF('Allocation to schools'!$E$9:$GF$9,Totals!$D20,'Allocation to schools'!$E$17:$GF$17) -> 1200 | M20: =SUMIF(Calculation!$E$4:$CS$4,Totals!$D20,Calculation!$E$1120:$CS$1120)+SUMIF('Allocation to schools'!$E$9:$GF$9,Totals!$D20,'Allocation to schools'!$E$18:$GF$18) -> 863.06 | N20: =SUMIF(Calculation!$E$4:$CS$4,Totals!$D20,Calculation!$E$1503:$CS$1503)+SUMIFS('Allocation to schools'!$E$12:$GF$12,'Allocation to schools'!$E$10:$GF$10,"from federal sources",'Allocation to schools'!$E$9:$GF$9,Totals!$D20)+SUMIFS('Allocation to schools'!$E$20:$GF$20,'Allocation to schools'!$E$10:$GF$10,"from federal sources",'Allocation to schools'!$E$9:$GF$9,Totals!$D20) -> 290600.98 | O20: =SUMIF(Calculation!$E$4:$CS$4,Totals!$D20,Calculation!$E$1504:$CS$1504)+SUMIFS('Allocation to schools'!$E$13:$GF$13,'Allocation to schools'!$E$10:$GF$10,"from federal sources",'Allocation to schools'!$E$9:$GF$9,Totals!$D20)+SUMIFS('Allocation to schools'!$E$21:$GF$21,'Allocation to schools'!$E$10:$GF$10,"from federal sources",'Allocation to schools'!$E$9:$GF$9,Totals!$D20) -> 74301.99 | P20: =SUMIF(Calculation!$E$4:$CS$4,Totals!$D20,Calculation!$E$1505:$CS$1505)+SUMIFS('Allocation to schools'!$E$172:$GF$172,'Allocation to schools'!$E$10:$GF$10,"from federal sources",'Allocation to schools'!$E$9:$GF$9,Totals!$D20) -> 24708.08 | Q20: =SUMIF(Calculation!$E$4:$CS$4,Totals!$D20,Calculation!$E$1229:$CS$1229)+SUMIF('Allocation to schools'!$E$9:$GF$9,Totals!$D20,'Allocation to schools'!$E$19:$GF$19)+SUMIF('Allocation to schools'!$E$9:$GF$9,Totals!$D20,'Allocation to schools'!$E$22:$GF$22) -> 0 | R20: =SUMIF(Calculation!$E$4:$CS$4,Totals!$D20,Calculation!$E$19:$CS$19)+SUMIF('Allocation to schools'!$E$9:$GF$9,Totals!$D20,'Allocation to schools'!$E$23:$GF$23) -> 143386.93 | S20: =SUMIF(Calculation!$E$4:$CS$4,Totals!$D20,Calculation!$E$124:$CS$124)+SUMIF('Allocation to schools'!$E$9:$GF$9,Totals!$D20,'Allocation to schools'!$E$24:$GF$24) -> 38809.57 | T20: =SUMIF(Calculation!$E$4:$CS$4,Totals!$D20,Calculation!$E$269:$CS$269)+SUMIF('Allocation to schools'!$E$9:$GF$9,Totals!$D20,'Allocation to schools'!$E$25:$GF$25) -> 0 | U20: =SUMIF(Calculation!$E$4:$CS$4,Totals!$D20,Calculation!$E$647:$CS$647)+SUMIF('Allocation to schools'!$E$9:$GF$9,Totals!$D20,'Allocation to schools'!$E$26:$GF$26) -> 3925.19 | V20: =SUMIF(Calculation!$E$4:$CS$4,Totals!$D20,Calculation!$E$764:$CS$764)+SUMIF('Allocation to schools'!$E$9:$GF$9,Totals!$D20,'Allocation to schools'!$E$27:$GF$27) -> 1537.75 | W20: =SUMIF(Calculation!$E$4:$CS$4,Totals!$D20,Calculation!$E$962:$CS$962)+SUMIF('Allocation to schools'!$E$9:$GF$9,Totals!$D20,'Allocation to schools'!$E$28:$GF$28) -> 0 | X20: =SUMIF(Calculation!$E$4:$CS$4,Totals!$D20,Calculation!$E$1127:$CS$1127)+SUMIF('Allocation to schools'!$E$9:$GF$9,Totals!$D20,'Allocation to schools'!$E$29:$GF$29) -> 0 | Y20: =SUMIF(Calculation!$E$4:$CS$4,Totals!$D20,Calculation!$E$1506:$CS$1506)+SUMIFS('Allocation to schools'!$E$23:$GF$23,'Allocation to schools'!$E$10:$GF$10,"from federal sources",'Allocation to schools'!$E$9:$GF$9,Totals!$D20) -> 11311.99 | Z20: =SUMIF(Calculation!$E$4:$CS$4,Totals!$D20,Calculation!$E$1507:$CS$1507)+SUMIFS('Allocation to schools'!$E$24:$GF$24,'Allocation to schools'!$E$10:$GF$10,"from federal sources",'Allocation to schools'!$E$9:$GF$9,Totals!$D20) -> 2342.76 | AA20: =SUMIF(Calculation!$E$4:$CS$4,Totals!$D20,Calculation!$E$1520:$CS$1520)+SUMIFS('Allocation to schools'!$E$173:$GF$173,'Allocation to schools'!$E$10:$GF$10,"from federal sources",'Allocation to schools'!$E$9:$GF$9,Totals!$D20) -> 3204.06 | AB20: =SUMIF(Calculation!$E$4:$CS$4,Totals!$D20,Calculation!$E$1240:$CS$1240)+SUMIF('Allocation to schools'!$E$9:$GF$9,Totals!$D20,'Allocation to schools'!$E$30:$GF$30) -> 0 | AC20: =SUMIF(Calculation!$E$4:$CS$4,Totals!$D20,Calculation!$E$26:$CS$26)+SUMIF('Allocation to schools'!$E$9:$GF$9,Totals!$D20,'Allocation to schools'!$E$31:$GF$31) -> 3125 | AD20: =SUMIF(Calculation!$E$4:$CS$4,Totals!$D20,Calculation!$E$131:$CS$131)+SUMIF('Allocation to schools'!$E$9:$GF$9,Totals!$D20,'Allocation to schools'!$E$32:$GF$32) -> 527.06 | AE20: =SUMIF(Calculation!$E$4:$CS$4,Totals!$D20,Calculation!$E$296:$CS$296)+SUMIF('Allocation to schools'!$E$9:$GF$9,Totals!$D20,'Allocation to schools'!$E$33:$GF$33) -> 3656.46 | AF20: =SUMIF(Calculation!$E$4:$CS$4,Totals!$D20,Calculation!$E$654:$CS$654)+SUMIF('Allocation to schools'!$E$9:$GF$9,Totals!$D20,'Allocation to schools'!$E$34:$GF$34) -> 89.43 | AG20: =SUMIF(Calculation!$E$4:$CS$4,Totals!$D20,Calculation!$E$777:$CS$777)+SUMIF('Allocation to schools'!$E$9:$GF$9,Totals!$D20,'Allocation to schools'!$E$35:$GF$35) -> 2662.82 | AH20: =SUMIF(Calculation!$E$4:$CS$4,Totals!$D20,Calculation!$E$969:$CS$969)+SUMIF('Allocation to schools'!$E$9:$GF$9,Totals!$D20,'Allocation to schools'!$E$36:$GF$36) -> 0 | AI20: =SUMIF(Calculation!$E$4:$CS$4,Totals!$D20,Calculation!$E$1134:$CS$1134)+SUMIF('Allocation to schools'!$E$9:$GF$9,Totals!$D20,'Allocation to schools'!$E$37:$GF$37) -> 0 | AJ20: =SUMIF(Calculation!$E$4:$CS$4,Totals!$D20,Calculation!$E$1521:$CS$1521)+SUMIFS('Allocation to schools'!$E$31:$GF$31,'Allocation to schools'!$E$10:$GF$10,"from federal sources",'Allocation to schools'!$E$9:$GF$9,Totals!$D20) -> 800 | AK20: =SUMIF(Calculation!$E$4:$CS$4,Totals!$D20,Calculation!$E$1522:$CS$1522)+SUMIFS('Allocation to schools'!$E$32:$GF$32,'Allocation to schools'!$E$10:$GF$10,"from federal sources",'Allocation to schools'!$E$9:$GF$9,Totals!$D20) -> 165.68 | AL20: =SUMIF(Calculation!$E$4:$CS$4,Totals!$D20,Calculation!$E$1535:$CS$1535)+SUMIFS('Allocation to schools'!$E$174:$GF$174,'Allocation to schools'!$E$10:$GF$10,"from federal sources",'Allocation to schools'!$E$9:$GF$9,Totals!$D20) -> 2894.9 | AM20: =SUMIF(Calculation!$E$4:$CS$4,Totals!$D20,Calculation!$E$1251:$CS$1251)+SUMIF('Allocation to schools'!$E$9:$GF$9,Totals!$D20,'Allocation to schools'!$E$38:$GF$38) -> 0 | AN20: =SUMIF(Calculation!$E$4:$CS$4,Totals!$D20,Calculation!$E$33:$CS$33)+SUMIF('Allocation to schools'!$E$9:$GF$9,Totals!$D20,'Allocation to schools'!$E$39:$GF$39) -> 0 | AO20: =SUMIF(Calculation!$E$4:$CS$4,Totals!$D20,Calculation!$E$138:$CS$138)+SUMIF('Allocation to schools'!$E$9:$GF$9,Totals!$D20,'Allocation to schools'!$E$40:$GF$40) -> 0 | AP20: =SUMIF(Calculation!$E$4:$CS$4,Totals!$D20,Calculation!$E$323:$CS$323)+SUMIF('Allocation to schools'!$E$9:$GF$9,Totals!$D20,'Allocation to schools'!$E$41:$GF$41) -> 0 | AQ20: =SUMIF(Calculation!$E$4:$CS$4,Totals!$D20,Calculation!$E$661:$CS$661)+SUMIF('Allocation to schools'!$E$9:$GF$9,Totals!$D20,'Allocation to schools'!$E$42:$GF$42) -> 0 | AR20: =SUMIF(Calculation!$E$4:$CS$4,Totals!$D20,Calculation!$E$790:$CS$790)+SUMIF('Allocation to schools'!$E$9:$GF$9,Totals!$D20,'Allocation to schools'!$E$43:$GF$43) -> 0 | AS20: =SUMIF(Calculation!$E$4:$CS$4,Totals!$D20,Calculation!$E$976:$CS$976)+SUMIF('Allocation to schools'!$E$9:$GF$9,Totals!$D20,'Allocation to schools'!$E$44:$GF$44) -> 0 | AT20: =SUMIF(Calculation!$E$4:$CS$4,Totals!$D20,Calculation!$E$1060:$CS$1060)+SUMIF('Allocation to schools'!$E$9:$GF$9,Totals!$D20,'Allocation to schools'!$E$45:$GF$45) -> 0 | AU20: =SUMIF(Calculation!$E$4:$CS$4,Totals!$D20,Calculation!$E$1141:$CS$1141)+SUMIF('Allocation to schools'!$E$9:$GF$9,Totals!$D20,'Allocation to schools'!$E$46:$GF$46) -> 0 | AV20: =SUMIF(Calculation!$E$4:$CS$4,Totals!$D20,Calculation!$E$1536:$CS$1536)+SUMIFS('Allocation to schools'!$E$39:$GF$39,'Allocation to schools'!$E$10:$GF$10,"from federal sources",'Allocation to schools'!$E$9:$GF$9,Totals!$D20) -> 0 | AW20: =SUMIF(Calculation!$E$4:$CS$4,Totals!$D20,Calculation!$E$1537:$CS$1537)+SUMIFS('Allocation to schools'!$E$40:$GF$40,'Allocation to schools'!$E$10:$GF$10,"from federal sources",'Allocation to schools'!$E$9:$GF$9,Totals!$D20) -> 0 | AX20: =SUMIF(Calculation!$E$4:$CS$4,Totals!$D20,Calculation!$E$1551:$CS$1551)+SUMIFS('Allocation to schools'!$E$175:$GF$175,'Allocation to schools'!$E$10:$GF$10,"from federal sources",'Allocation to schools'!$E$9:$GF$9,Totals!$D20) -> 0 | AY20: =SUMIF(Calculation!$E$4:$CS$4,Totals!$D20,Calculation!$E$1262:$CS$1262)+SUMIF('Allocation to schools'!$E$9:$GF$9,Totals!$D20,'Allocation to schools'!$E$47:$GF$47) -> 0 | AZ20: =SUMIF(Calculation!$E$4:$CS$4,Totals!$D20,Calculation!$E$40:$CS$40)+SUMIF('Allocation to schools'!$E$9:$GF$9,Totals!$D20,'Allocation to schools'!$E$48:$GF$48) -> 104852.04 | BA20: =SUMIF(Calculation!$E$4:$CS$4,Totals!$D20,Calculation!$E$145:$CS$145)+SUMIF('Allocation to schools'!$E$9:$GF$9,Totals!$D20,'Allocation to schools'!$E$49:$GF$49) -> 31779.07 | BB20: =SUMIF(Calculation!$E$4:$CS$4,Totals!$D20,Calculation!$E$350:$CS$350)+SUMIF('Allocation to schools'!$E$9:$GF$9,Totals!$D20,'Allocation to schools'!$E$50:$GF$50) -> 1039.53 | BC20: =SUMIF(Calculation!$E$4:$CS$4,Totals!$D20,Calculation!$E$668:$CS$668)+SUMIF('Allocation to schools'!$E$9:$GF$9,Totals!$D20,'Allocation to schools'!$E$51:$GF$51) -> 0 | BD20: =SUMIF(Calculation!$E$4:$CS$4,Totals!$D20,Calculation!$E$803:$CS$803)+SUMIF('Allocation to schools'!$E$9:$GF$9,Totals!$D20,'Allocation to schools'!$E$52:$GF$52) -> 0 | BE20: =SUMIF(Calculation!$E$4:$CS$4,Totals!$D20,Calculation!$E$983:$CS$983)+SUMIF('Allocation to schools'!$E$9:$GF$9,Totals!$D20,'Allocation to schools'!$E$53:$GF$53) -> 0 | BF20: =SUMIF(Calculation!$E$4:$CS$4,Totals!$D20,Calculation!$E$1148:$CS$1148)+SUMIF('Allocation to schools'!$E$9:$GF$9,Totals!$D20,'Allocation to schools'!$E$54:$GF$54) -> 0 | BG20: =SUMIF(Calculation!$E$4:$CS$4,Totals!$D20,Calculation!$E$1552:$CS$1552)+SUMIFS('Allocation to schools'!$E$48:$GF$48,'Allocation to schools'!$E$10:$GF$10,"from federal sources",'Allocation to schools'!$E$9:$GF$9,Totals!$D20) -> 0 | BH20: =SUMIF(Calculation!$E$4:$CS$4,Totals!$D20,Calculation!$E$1553:$CS$1553)+SUMIFS('Allocation to schools'!$E$49:$GF$49,'Allocation to schools'!$E$10:$GF$10,"from federal sources",'Allocation to schools'!$E$9:$GF$9,Totals!$D20) -> 0 | BI20: =SUMIF(Calculation!$E$4:$CS$4,Totals!$D20,Calculation!$E$1566:$CS$1566)+SUMIFS('Allocation to schools'!$E$176:$GF$176,'Allocation to schools'!$E$10:$GF$10,"from federal sources",'Allocation to schools'!$E$9:$GF$9,Totals!$D20) -> 0 | BJ20: =SUMIF(Calculation!$E$4:$CS$4,Totals!$D20,Calculation!$E$1273:$CS$1273)+SUMIF('Allocation to schools'!$E$9:$GF$9,Totals!$D20,'Allocation to schools'!$E$55:$GF$55) -> 0 | BK20: =SUMIF(Calculation!$E$4:$CS$4,Totals!$D20,Calculation!$E$47:$CS$47)+SUMIF(Calculation!$E$4:$CS$4,Totals!$D20,Calculation!$E$54:$CS$54)+SUMIF('Allocation to schools'!$E$9:$GF$9,Totals!$D20,'Allocation to schools'!$E$56:$GF$56) -> 0 | BL20: =SUMIF(Calculation!$E$4:$CS$4,Totals!$D20,Calculation!$E$152:$CS$152)+SUMIF(Calculation!$E$4:$CS$4,Totals!$D20,Calculation!$E$159:$CS$159)+SUMIF('Allocation to schools'!$E$9:$GF$9,Totals!$D20,'Allocation to schools'!$E$57:$GF$57) -> 0 | BM20: =SUMIF(Calculation!$E$4:$CS$4,Totals!$D20,Calculation!$E$377:$CS$377)+SUMIF(Calculation!$E$4:$CS$4,Totals!$D20,Calculation!$E$404:$CS$404)+SUMIF('Allocation to schools'!$E$9:$GF$9,Totals!$D20,'Allocation to schools'!$E$58:$GF$58) -> 1200 | BN20: =SUMIF(Calculation!$E$4:$CS$4,Totals!$D20,Calculation!$E$675:$CS$675)+SUMIF(Calculation!$E$4:$CS$4,Totals!$D20,Calculation!$E$682:$CS$682)+SUMIF('Allocation to schools'!$E$9:$GF$9,Totals!$D20,'Allocation to schools'!$E$59:$GF$59) -> 613.5 | BO20: =SUMIF(Calculation!$E$4:$CS$4,Totals!$D20,Calculation!$E$816:$CS$816)+SUMIF(Calculation!$E$4:$CS$4,Totals!$D20,Calculation!$E$829:$CS$829)+SUMIF('Allocation to schools'!$E$9:$GF$9,Totals!$D20,'Allocation to schools'!$E$60:$GF$60) -> 6328.03 | BP20: =SUMIF(Calculation!$E$4:$CS$4,Totals!$D20,Calculation!$E$990:$CS$990)+SUMIF(Calculation!$E$4:$CS$4,Totals!$D20,Calculation!$E$997:$CS$997)+SUMIF('Allocation to schools'!$E$9:$GF$9,Totals!$D20,'Allocation to schools'!$E$61:$GF$61) -> 0 | BQ20: =SUMIF(Calculation!$E$4:$CS$4,Totals!$D20,Calculation!$E$1086:$CS$1086)+SUMIF('Allocation to schools'!$E$9:$GF$9,Totals!$D20,'Allocation to schools'!$E$62:$GF$62) -> 0 | BR20: =SUMIF(Calculation!$E$4:$CS$4,Totals!$D20,Calculation!$E$1155:$CS$1155)+SUMIF(Calculation!$E$4:$CS$4,Totals!$D20,Calculation!$E$1162:$CS$1162)+SUMIF('Allocation to schools'!$E$9:$GF$9,Totals!$D20,'Allocation to schools'!$E$63:$GF$63) -> 0 | BS20: =SUMIF(Calculation!$E$4:$CS$4,Totals!$D20,Calculation!$E$1567:$CS$1567)+SUMIF(Calculation!$E$4:$CS$4,Totals!$D20,Calculation!$E$1583:$CS$1583)+SUMIFS('Allocation to schools'!$E$56:$GF$56,'Allocation to schools'!$E$10:$GF$10,"from federal sources",'Allocation to schools'!$E$9:$GF$9,Totals!$D20) -> 0 | BT20: =SUMIF(Calculation!$E$4:$CS$4,Totals!$D20,Calculation!$E$1568:$CS$1568)+SUMIF(Calculation!$E$4:$CS$4,Totals!$D20,Calculation!$E$1584:$CS$1584)+SUMIFS('Allocation to schools'!$E$57:$GF$57,'Allocation to schools'!$E$10:$GF$10,"from federal sources",'Allocation to schools'!$E$9:$GF$9,Totals!$D20) -> 0 | BU20: =SUMIF(Calculation!$E$4:$CS$4,Totals!$D20,Calculation!$E$1582:$CS$1582)+SUMIF(Calculation!$E$4:$CS$4,Totals!$D20,Calculation!$E$1598:$CS$1598)+SUMIFS('Allocation to schools'!$E$177:$GF$177,'Allocation to schools'!$E$10:$GF$10,"from federal sources",'Allocation to schools'!$E$9:$GF$9,Totals!$D20) -> 0 | BV20: =SUMIF(Calculation!$E$4:$CS$4,Totals!$D20,Calculation!$E$1284:$CS$1284)+SUMIF(Calculation!$E$4:$CS$4,Totals!$D20,Calculation!$E$1295:$CS$1295)+SUMIF('Allocation to schools'!$E$9:$GF$9,Totals!$D20,'Allocation to schools'!$E$64:$GF$64) -> 0 | BW20: =SUMIF(Calculation!$E$4:$CS$4,Totals!$D20,Calculation!$E$61:$CS$61)+SUMIF('Allocation to schools'!$E$9:$GF$9,Totals!$D20,'Allocation to schools'!$E$65:$GF$65) -> 55738.61 | BX20: =SUMIF(Calculation!$E$4:$CS$4,Totals!$D20,Calculation!$E$166:$CS$166)+SUMIF('Allocation to schools'!$E$9:$GF$9,Totals!$D20,'Allocation to schools'!$E$66:$GF$66) -> 22365.63 | BY20: =SUMIF(Calculation!$E$4:$CS$4,Totals!$D20,Calculation!$E$431:$CS$431)+SUMIF('Allocation to schools'!$E$9:$GF$9,Totals!$D20,'Allocation to schools'!$E$67:$GF$67) -> 175952.73 | BZ20: =SUMIF(Calculation!$E$4:$CS$4,Totals!$D20,Calculation!$E$689:$CS$689)+SUMIF('Allocation to schools'!$E$9:$GF$9,Totals!$D20,'Allocation to schools'!$E$68:$GF$68) -> 122728.38 | CA20: =SUMIF(Calculation!$E$4:$CS$4,Totals!$D20,Calculation!$E$842:$CS$842)+SUMIF('Allocation to schools'!$E$9:$GF$9,Totals!$D20,'Allocation to schools'!$E$69:$GF$69) -> 9981.66 | CB20: =SUMIF(Calculation!$E$4:$CS$4,Totals!$D20,Calculation!$E$1004:$CS$1004)+SUMIF('Allocation to schools'!$E$9:$GF$9,Totals!$D20,'Allocation to schools'!$E$70:$GF$70) -> 1335 | CC20: =SUMIF(Calculation!$E$4:$CS$4,Totals!$D20,Calculation!$E$1169:$CS$1169)+SUMIF('Allocation to schools'!$E$9:$GF$9,Totals!$D20,'Allocation to schools'!$E$71:$GF$71) -> 0 | CD20: =SUMIF(Calculation!$E$4:$CS$4,Totals!$D20,Calculation!$E$1599:$CS$1599)+SUMIFS('Allocation to schools'!$E$65:$GF$65,'Allocation to schools'!$E$10:$GF$10,"from federal sources",'Allocation to schools'!$E$9:$GF$9,Totals!$D20) -> 0 | CE20: =SUMIF(Calculation!$E$4:$CS$4,Totals!$D20,Calculation!$E$1600:$CS$1600)+SUMIFS('Allocation to schools'!$E$66:$GF$66,'Allocation to schools'!$E$10:$GF$10,"from federal sources",'Allocation to schools'!$E$9:$GF$9,Totals!$D20) -> 0 | CF20: =SUMIF(Calculation!$E$4:$CS$4,Totals!$D20,Calculation!$E$1613:$CS$1613)+SUMIFS('Allocation to schools'!$E$178:$GF$178,'Allocation to schools'!$E$10:$GF$10,"from federal sources",'Allocation to schools'!$E$9:$GF$9,Totals!$D20) -> 4726.34 | CG20: =SUMIF(Calculation!$E$4:$CS$4,Totals!$D20,Calculation!$E$1306:$CS$1306)+SUMIF('Allocation to schools'!$E$9:$GF$9,Totals!$D20,'Allocation to schools'!$E$72:$GF$72) -> 0 | CH20: =SUMIF(Calculation!$E$4:$CS$4,Totals!$D20,Calculation!$E$68:$CS$68)+SUMIF('Allocation to schools'!$E$9:$GF$9,Totals!$D20,'Allocation to schools'!$E$73:$GF$73) -> 0 | CI20: =SUMIF(Calculation!$E$4:$CS$4,Totals!$D20,Calculation!$E$173:$CS$173)+SUMIF('Allocation to schools'!$E$9:$GF$9,Totals!$D20,'Allocation to schools'!$E$74:$GF$74) -> 0 | CJ20: =SUMIF(Calculation!$E$4:$CS$4,Totals!$D20,Calculation!$E$458:$CS$458)+SUMIF('Allocation to schools'!$E$9:$GF$9,Totals!$D20,'Allocation to schools'!$E$75:$GF$75) -> 1413.8 | CK20: =SUMIF(Calculation!$E$4:$CS$4,Totals!$D20,Calculation!$E$696:$CS$696)+SUMIF('Allocation to schools'!$E$9:$GF$9,Totals!$D20,'Allocation to schools'!$E$76:$GF$76) -> 3339.56 | CL20: =SUMIF(Calculation!$E$4:$CS$4,Totals!$D20,Calculation!$E$855:$CS$855)+SUMIF('Allocation to schools'!$E$9:$GF$9,Totals!$D20,'Allocation to schools'!$E$77:$GF$77) -> 0 | CM20: =SUMIF(Calculation!$E$4:$CS$4,Totals!$D20,Calculation!$E$1011:$CS$1011)+SUMIF('Allocation to schools'!$E$9:$GF$9,Totals!$D20,'Allocation to schools'!$E$78:$GF$78) -> 0 | CN20: =SUMIF(Calculation!$E$4:$CS$4,Totals!$D20,Calculation!$E$1176:$CS$1176)+SUMIF('Allocation to schools'!$E$9:$GF$9,Totals!$D20,'Allocation to schools'!$E$79:$GF$79) -> 0 | CO20: =SUMIF(Calculation!$E$4:$CS$4,Totals!$D20,Calculation!$E$1614:$CS$1614)+SUMIFS('Allocation to schools'!$E$73:$GF$73,'Allocation to schools'!$E$10:$GF$10,"from federal sources",'Allocation to schools'!$E$9:$GF$9,Totals!$D20) -> 0 | CP20: =SUMIF(Calculation!$E$4:$CS$4,Totals!$D20,Calculation!$E$1615:$CS$1615)+SUMIFS('Allocation to schools'!$E$74:$GF$74,'Allocation to schools'!$E$10:$GF$10,"from federal sources",'Allocation to schools'!$E$9:$GF$9,Totals!$D20) -> 0 | CQ20: =SUMIF(Calculation!$E$4:$CS$4,Totals!$D20,Calculation!$E$1628:$CS$1628)+SUMIFS('Allocation to schools'!$E$179:$GF$179,'Allocation to schools'!$E$10:$GF$10,"from federal sources",'Allocation to schools'!$E$9:$GF$9,Totals!$D20) -> 0 | CR20: =SUMIF(Calculation!$E$4:$CS$4,Totals!$D20,Calculation!$E$75:$CS$75)+SUMIF('Allocation to schools'!$E$9:$GF$9,Totals!$D20,'Allocation to schools'!$E$80:$GF$80) -> 0 | CS20: =SUMIF(Calculation!$E$4:$CS$4,Totals!$D20,Calculation!$E$180:$CS$180)+SUMIF('Allocation to schools'!$E$9:$GF$9,Totals!$D20,'Allocation to schools'!$E$81:$GF$81) -> 0 | CT20: =SUMIF(Calculation!$E$4:$CS$4,Totals!$D20,Calculation!$E$485:$CS$485)+SUMIF('Allocation to schools'!$E$9:$GF$9,Totals!$D20,'Allocation to schools'!$E$82:$GF$82) -> 0 | CU20: =SUMIF(Calculation!$E$4:$CS$4,Totals!$D20,Calculation!$E$703:$CS$703)+SUMIF('Allocation to schools'!$E$9:$GF$9,Totals!$D20,'Allocation to schools'!$E$83:$GF$83) -> 0 | CV20: =SUMIF(Calculation!$E$4:$CS$4,Totals!$D20,Calculation!$E$868:$CS$868)+SUMIF('Allocation to schools'!$E$9:$GF$9,Totals!$D20,'Allocation to schools'!$E$84:$GF$84) -> 0 | CW20: =SUMIF(Calculation!$E$4:$CS$4,Totals!$D20,Calculation!$E$1018:$CS$1018)+SUMIF('Allocation to schools'!$E$9:$GF$9,Totals!$D20,'Allocation to schools'!$E$85:$GF$85) -> 580 | CX20: =SUMIF(Calculation!$E$4:$CS$4,Totals!$D20,Calculation!$E$1183:$CS$1183)+SUMIF('Allocation to schools'!$E$9:$GF$9,Totals!$D20,'Allocation to schools'!$E$86:$GF$86) -> 0 | CY20: =SUMIF(Calculation!$E$4:$CS$4,Totals!$D20,Calculation!$E$1629:$CS$1629)+SUMIFS('Allocation to schools'!$E$80:$GF$80,'Allocation to schools'!$E$10:$GF$10,"from federal sources",'Allocation to schools'!$E$9:$GF$9,Totals!$D20) -> 0 | CZ20: =SUMIF(Calculation!$E$4:$CS$4,Totals!$D20,Calculation!$E$1630:$CS$1630)+SUMIFS('Allocation to schools'!$E$81:$GF$81,'Allocation to schools'!$E$10:$GF$10,"from federal sources",'Allocation to schools'!$E$9:$GF$9,Totals!$D20) -> 0 | DA20: =SUMIF(Calculation!$E$4:$CS$4,Totals!$D20,Calculation!$E$1643:$CS$1643)+SUMIFS('Allocation to schools'!$E$180:$GF$180,'Allocation to schools'!$E$10:$GF$10,"from federal sources",'Allocation to schools'!$E$9:$GF$9,Totals!$D20)+IF(SUMIFS('Allocation to schools'!$E$180:$GI$180,'Allocation to schools'!$E$9:$GI$9,Totals!$D20,'Allocation to schools'!$E$10:$GI$10,"from federal sources")>0,0,SUMIF('Data entry'!$B$13:$CS$13,Totals!$D20,'Data entry'!$B$97:$CS$97)) -> 0 | DB20: =SUMIF(Calculation!$E$4:$CS$4,Totals!$D20,Calculation!$E$1317:$CS$1317)+SUMIF('Allocation to schools'!$E$9:$GF$9,Totals!$D20,'Allocation to schools'!$E$87:$GF$87) -> 0 | DC20: =SUMIF(Calculation!$E$4:$CS$4,Totals!$D20,Calculation!$E$82:$CS$82)+SUMIF('Allocation to schools'!$E$9:$GF$9,Totals!$D20,'Allocation to schools'!$E$88:$GF$88) -> 0 | DD20: =SUMIF(Calculation!$E$4:$CS$4,Totals!$D20,Calculation!$E$187:$CS$187)+SUMIF('Allocation to schools'!$E$9:$GF$9,Totals!$D20,'Allocation to schools'!$E$89:$GF$89) -> 0 | DE20: =SUMIF(Calculation!$E$4:$CS$4,Totals!$D20,Calculation!$E$512:$CS$512)+SUMIF('Allocation to schools'!$E$9:$GF$9,Totals!$D20,'Allocation to schools'!$E$90:$GF$90) -> 0 | DF20: =SUMIF(Calculation!$E$4:$CS$4,Totals!$D20,Calculation!$E$710:$CS$710)+SUMIF('Allocation to schools'!$E$9:$GF$9,Totals!$D20,'Allocation to schools'!$E$91:$GF$91) -> 0 | DG20: =SUMIF(Calculation!$E$4:$CS$4,Totals!$D20,Calculation!$E$881:$CS$881)+SUMIF('Allocation to schools'!$E$9:$GF$9,Totals!$D20,'Allocation to schools'!$E$92:$GF$92) -> 0 | DH20: =SUMIF(Calculation!$E$4:$CS$4,Totals!$D20,Calculation!$E$1025:$CS$1025)+SUMIF('Allocation to schools'!$E$9:$GF$9,Totals!$D20,'Allocation to schools'!$E$93:$GF$93) -> 0 | DI20: =SUMIF(Calculation!$E$4:$CS$4,Totals!$D20,Calculation!$E$1190:$CS$1190)+SUMIF('Allocation to schools'!$E$9:$GF$9,Totals!$D20,'Allocation to schools'!$E$94:$GF$94) -> 0 | DJ20: =SUMIF(Calculation!$E$4:$CS$4,Totals!$D20,Calculation!$E$1644:$CS$1644)+SUMIFS('Allocation to schools'!$E$88:$GF$88,'Allocation to schools'!$E$10:$GF$10,"from federal sources",'Allocation to schools'!$E$9:$GF$9,Totals!$D20) -> 0 | DK20: =SUMIF(Calculation!$E$4:$CS$4,Totals!$D20,Calculation!$E$1645:$CS$1645)+SUMIFS('Allocation to schools'!$E$89:$GF$89,'Allocation to schools'!$E$10:$GF$10,"from federal sources",'Allocation to schools'!$E$9:$GF$9,Totals!$D20) -> 0 | DL20: =SUMIF(Calculation!$E$4:$CS$4,Totals!$D20,Calculation!$E$1658:$CS$1658)+SUMIFS('Allocation to schools'!$E$181:$GF$181,'Allocation to schools'!$E$10:$GF$10,"from federal sources",'Allocation to schools'!$E$9:$GF$9,Totals!$D20) -> 0 | DM20: =SUMIF(Calculation!$E$4:$CS$4,Totals!$D20,Calculation!$E$1328:$CS$1328)+SUMIF('Allocation to schools'!$E$9:$GF$9,Totals!$D20,'Allocation to schools'!$E$95:$GF$95) -> 0 | DN20: =SUMIF(Calculation!$E$4:$CS$4,Totals!$D20,Calculation!$E$1339:$CS$1339)+SUMIF('Allocation to schools'!$E$9:$GF$9,Totals!$D20,'Allocation to schools'!$E$96:$GF$96) -> 0 | DO20: =SUMIF(Calculation!$E$4:$CS$4,Totals!$D20,Calculation!$E$89:$CS$89)+SUMIF('Allocation to schools'!$E$9:$GF$9,Totals!$D20,'Allocation to schools'!$E$97:$GF$97) -> 0 | DP20: =SUMIF(Calculation!$E$4:$CS$4,Totals!$D20,Calculation!$E$194:$CS$194)+SUMIF('Allocation to schools'!$E$9:$GF$9,Totals!$D20,'Allocation to schools'!$E$98:$GF$98) -> 0 | DQ20: =SUMIF(Calculation!$E$4:$CS$4,Totals!$D20,Calculation!$E$539:$CS$539)+SUMIF('Allocation to schools'!$E$9:$GF$9,Totals!$D20,'Allocation to schools'!$E$99:$GF$99) -> 0 | DR20: =SUMIF(Calculation!$E$4:$CS$4,Totals!$D20,Calculation!$E$717:$CS$717)+SUMIF('Allocation to schools'!$E$9:$GF$9,Totals!$D20,'Allocation to schools'!$E$100:$GF$100) -> 0 | DS20: =SUMIF(Calculation!$E$4:$CS$4,Totals!$D20,Calculation!$E$894:$CS$894)+SUMIF('Allocation to schools'!$E$9:$GF$9,Totals!$D20,'Allocation to schools'!$E$101:$GF$101) -> 0 | DT20: =SUMIF(Calculation!$E$4:$CS$4,Totals!$D20,Calculation!$E$1032:$CS$1032)+SUMIF('Allocation to schools'!$E$9:$GF$9,Totals!$D20,'Allocation to schools'!$E$102:$GF$102) -> 0 | DU20: =SUMIF(Calculation!$E$4:$CS$4,Totals!$D20,Calculation!$E$1197:$CS$1197)+SUMIF('Allocation to schools'!$E$9:$GF$9,Totals!$D20,'Allocation to schools'!$E$103:$GF$103) -> 0 | DV20: =SUMIF(Calculation!$E$4:$CS$4,Totals!$D20,Calculation!$E$1659:$CS$1659)+SUMIFS('Allocation to schools'!$E$97:$GF$97,'Allocation to schools'!$E$10:$GF$10,"from federal sources",'Allocation to schools'!$E$9:$GF$9,Totals!$D20) -> 0 | DW20: =SUMIF(Calculation!$E$4:$CS$4,Totals!$D20,Calculation!$E$1660:$CS$1660)+SUMIFS('Allocation to schools'!$E$98:$GF$98,'Allocation to schools'!$E$10:$GF$10,"from federal sources",'Allocation to schools'!$E$9:$GF$9,Totals!$D20) -> 0 | DX20: =SUMIF(Calculation!$E$4:$CS$4,Totals!$D20,Calculation!$E$1673:$CS$1673)+SUMIFS('Allocation to schools'!$E$182:$GF$182,'Allocation to schools'!$E$10:$GF$10,"from federal sources",'Allocation to schools'!$E$9:$GF$9,Totals!$D20) -> 0 | DY20: =SUMIF(Calculation!$E$4:$CS$4,Totals!$D20,Calculation!$E$1350:$CS$1350)+SUMIF('Allocation to schools'!$E$9:$GF$9,Totals!$D20,'Allocation to schools'!$E$104:$GF$104) -> 0 | DZ20: =SUMIF(Calculation!$E$4:$CS$4,Totals!$D20,Calculation!$E$96:$CS$96)+SUMIF('Allocation to schools'!$E$9:$GF$9,Totals!$D20,'Allocation to schools'!$E$105:$GF$105) -> 0 | EA20: =SUMIF(Calculation!$E$4:$CS$4,Totals!$D20,Calculation!$E$201:$CS$201)+SUMIF('Allocation to schools'!$E$9:$GF$9,Totals!$D20,'Allocation to schools'!$E$106:$GF$106) -> 0 | EB20: =SUMIF(Calculation!$E$4:$CS$4,Totals!$D20,Calculation!$E$566:$CS$566)+SUMIF('Allocation to schools'!$E$9:$GF$9,Totals!$D20,'Allocation to schools'!$E$107:$GF$107) -> 0 | EC20: =SUMIF(Calculation!$E$4:$CS$4,Totals!$D20,Calculation!$E$724:$CS$724)+SUMIF('Allocation to schools'!$E$9:$GF$9,Totals!$D20,'Allocation to schools'!$E$108:$GF$108) -> 0 | ED20: =SUMIF(Calculation!$E$4:$CS$4,Totals!$D20,Calculation!$E$907:$CS$907)+SUMIF('Allocation to schools'!$E$9:$GF$9,Totals!$D20,'Allocation to schools'!$E$109:$GF$109) -> 0 | EE20: =SUMIF(Calculation!$E$4:$CS$4,Totals!$D20,Calculation!$E$1039:$CS$1039)+SUMIF('Allocation to schools'!$E$9:$GF$9,Totals!$D20,'Allocation to schools'!$E$110:$GF$110) -> 0 | EF20: =SUMIF(Calculation!$E$4:$CS$4,Totals!$D20,Calculation!$E$1204:$CS$1204)+SUMIF('Allocation to schools'!$E$9:$GF$9,Totals!$D20,'Allocation to schools'!$E$111:$GF$111) -> 0 | EH20: =SUMIF(Calculation!$E$4:$CS$4,Totals!$D20,Calculation!$E$1361:$CS$1361)+SUMIF('Allocation to schools'!$E$9:$GF$9,Totals!$D20,'Allocation to schools'!$E$112:$GF$112) -> 0 | EI20: =SUMIF(Calculation!$E$4:$CS$4,Totals!$D20,Calculation!$E$1079:$CS$1079)+SUMIF('Allocation to schools'!$E$9:$GF$9,Totals!$D20,'Allocation to schools'!$E$113:$GF$113)+SUMIF('Allocation to schools'!$E$9:$GF$9,Totals!$D20,'Allocation to schools'!$E$113:$GF$113)+SUMIF(Calculation!$E$4:$CS$4,Totals!$D20,Calculation!$E$1495:$CS$1495) -> 220.8 | EJ20: =SUMIF(Calculation!$E$4:$CS$4,Totals!$D20,Calculation!$E$1108:$CS$1108)+SUMIF('Allocation to schools'!$E$9:$GF$9,Totals!$D20,'Allocation to schools'!$E$115:$GF$115)+SUMIF('Allocation to schools'!$E$9:$GF$9,Totals!$D20,'Allocation to schools'!$E$116:$GF$116) -> 0 | EK20: =SUMIF(Calculation!$E$4:$CS$4,Totals!$D20,Calculation!$E$1372:$CS$1372)+SUMIF('Allocation to schools'!$E$9:$GF$9,Totals!$D20,'Allocation to schools'!$E$117:$GF$117) -> 0 | EN20: =SUMIF(Calculation!$E$4:$CS$4,Totals!$D20,Calculation!$E$110:$CS$110)+SUMIFS('Allocation to schools'!$E$162:$GF$162,'Allocation to schools'!$E$9:$GF$9,Totals!$D20,'Allocation to schools'!$E$10:$GF$10,"from federal sources") -> 302712.97 | EO20: =SUMIF(Calculation!$E$4:$CS$4,Totals!$D20,Calculation!$E$215:$CS$215)+SUMIFS('Allocation to schools'!$E$163:$GF$163,'Allocation to schools'!$E$9:$GF$9,Totals!$D20,'Allocation to schools'!$E$10:$GF$10,"from federal sources") -> 76810.43 | EP20: =SUMIF(Calculation!$E$4:$CS$4,Totals!$D20,Calculation!$E$633:$CS$633)+SUMIFS('Allocation to schools'!$E$164:$GF$164,'Allocation to schools'!$E$9:$GF$9,Totals!$D20,'Allocation to schools'!$E$10:$GF$10,"from federal sources") -> 1296 | EQ20: =SUMIF(Calculation!$E$4:$CS$4,Totals!$D20,Calculation!$E$738:$CS$738)+SUMIFS('Allocation to schools'!$E$165:$GF$165,'Allocation to schools'!$E$9:$GF$9,Totals!$D20,'Allocation to schools'!$E$10:$GF$10,"from federal sources")+IF(SUMIFS('Allocation to schools'!$E$80:$GI$80,'Allocation to schools'!$E$9:$GI$9,Totals!$D20,'Allocation to schools'!$E$10:$GI$10,"from federal sources")+SUMIFS('Allocation to schools'!$E$83:$GI$83,'Allocation to schools'!$E$9:$GI$9,Totals!$D20,'Allocation to schools'!$E$10:$GI$10,"from federal sources")>0,0,SUMIF('Data entry'!$B$13:$CS$13,Totals!$D20,'Data entry'!$B$97:$CS$97)) -> 9297.83 | ER20: =SUMIF(Calculation!$E$4:$CS$4,Totals!$D20,Calculation!$E$948:$CS$948)+SUMIFS('Allocation to schools'!$E$166:$GF$166,'Allocation to schools'!$E$9:$GF$9,Totals!$D20,'Allocation to schools'!$E$10:$GF$10,"from federal sources") -> 24939.55 | ES20: =SUMIF(Calculation!$E$4:$CS$4,Totals!$D20,Calculation!$E$1053:$CS$1053)+SUMIFS('Allocation to schools'!$E$167:$GF$167,'Allocation to schools'!$E$9:$GF$9,Totals!$D20,'Allocation to schools'!$E$10:$GF$10,"from federal sources") -> 0 | ET20: =SUMIF(Calculation!$E$4:$CS$4,Totals!$D20,Calculation!$E$1065:$CS$1065)+SUMIFS('Allocation to schools'!$E$168:$GF$168,'Allocation to schools'!$E$9:$GF$9,Totals!$D20,'Allocation to schools'!$E$10:$GF$10,"from federal sources") -> 0 | EU20: =SUMIF(Calculation!$E$4:$CS$4,Totals!$D20,Calculation!$E$1113:$CS$1113)+SUMIFS('Allocation to schools'!$E$169:$GF$169,'Allocation to schools'!$E$9:$GF$9,Totals!$D20,'Allocation to schools'!$E$10:$GF$10,"from federal sources") -> 0 | EV20: =SUMIF(Calculation!$E$4:$CS$4,Totals!$D20,Calculation!$E$1218:$CS$1218)+SUMIFS('Allocation to schools'!$E$170:$GF$170,'Allocation to schools'!$E$9:$GF$9,Totals!$D20,'Allocation to schools'!$E$10:$GF$10,"from federal sources") -> 0 | EX20: =SUMIF(Calculation!$E$4:$CS$4,Totals!$D20,Calculation!$E$1392:$CS$1392)+SUMIFS('Allocation to schools'!$E$171:$GF$171,'Allocation to schools'!$E$9:$GF$9,Totals!$D20,'Allocation to schools'!$E$10:$GF$10,"from federal sources") -> 0 | EY20: =(SUMIF(Calculation!$E$4:$CS$4,Totals!$D20,Calculation!$E$97:$CS$97)-SUMIF(Calculation!$E$4:$CS$4,Totals!$D20,Calculation!$E$110:$CS$110))+SUMIFS('Allocation to schools'!$E$162:$GF$162,'Allocation to schools'!$E$9:$GF$9,Totals!$D20,'Allocation to schools'!$E$10:$GF$10,"from local & State sources") -> 1625093.72 | EZ20: =(SUMIF(Calculation!$E$4:$CS$4,Totals!$D20,Calculation!$E$202:$CS$202)-SUMIF(Calculation!$E$4:$CS$4,Totals!$D20,Calculation!$E$215:$CS$215))+SUMIFS('Allocation to schools'!$E$163:$GF$163,'Allocation to schools'!$E$9:$GF$9,Totals!$D20,'Allocation to schools'!$E$10:$GF$10,"from local & State sources") -> 506176.05 | FA20: =(SUMIF(Calculation!$E$4:$CS$4,Totals!$D20,Calculation!$E$567:$CS$567)-SUMIF(Calculation!$E$4:$CS$4,Totals!$D20,Calculation!$E$633:$CS$633))+SUMIFS('Allocation to schools'!$E$164:$GF$164,'Allocation to schools'!$E$9:$GF$9,Totals!$D20,'Allocation to schools'!$E$10:$GF$10,"from local & State sources") -> 229080.99 | FB20: =(SUMIF(Calculation!$E$4:$CS$4,Totals!$D20,Calculation!$E$725:$CS$725)-SUMIF(Calculation!$E$4:$CS$4,Totals!$D20,Calculation!$E$738:$CS$738))+SUMIFS('Allocation to schools'!$E$165:$GF$165,'Allocation to schools'!$E$9:$GF$9,Totals!$D20,'Allocation to schools'!$E$10:$GF$10,"from local & State sources")-IF(SUMIFS('Allocation to schools'!$E$80:$GI$80,'Allocation to schools'!$E$9:$GI$9,Totals!$D20,'Allocation to schools'!$E$10:$GI$10,"from federal sources")+SUMIFS('Allocation to schools'!$E$83:$GI$83,'Allocation to schools'!$E$9:$GI$9,Totals!$D20,'Allocation to schools'!$E$10:$GI$10,"from federal sources")>0,0,SUMIF('Data entry'!$B$13:$CS$13,Totals!$D20,'Data entry'!$B$97:$CS$97)) -> 167395.82 | FC20: =(SUMIF(Calculation!$E$4:$CS$4,Totals!$D20,Calculation!$E$908:$CS$908)-SUMIF(Calculation!$E$4:$CS$4,Totals!$D20,Calculation!$E$948:$CS$948))+SUMIFS('Allocation to schools'!$E$166:$GF$166,'Allocation to schools'!$E$9:$GF$9,Totals!$D20,'Allocation to schools'!$E$10:$GF$10,"from local & State sources") -> 17712.51 | FD20: =(SUMIF(Calculation!$E$4:$CS$4,Totals!$D20,Calculation!$E$1040:$CS$1040)-SUMIF(Calculation!$E$4:$CS$4,Totals!$D20,Calculation!$E$1053:$CS$1053))+SUMIFS('Allocation to schools'!$E$167:$GF$167,'Allocation to schools'!$E$9:$GF$9,Totals!$D20,'Allocation to schools'!$E$10:$GF$10,"from local & State sources") -> 3115 | FE20: =(SUMIF(Calculation!$E$4:$CS$4,Totals!$D20,Calculation!$E$1060:$CS$1060)-SUMIF(Calculation!$E$4:$CS$4,Totals!$D20,Calculation!$E$1065:$CS$1065))+SUMIFS('Allocation to schools'!$E$168:$GF$168,'Allocation to schools'!$E$9:$GF$9,Totals!$D20,'Allocation to schools'!$E$10:$GF$10,"from local & State sources") -> 0 | FF20: =(SUMIF(Calculation!$E$4:$CS$4,Totals!$D20,Calculation!$E$1086:$CS$1086)-SUMIF(Calculation!$E$4:$CS$4,Totals!$D20,Calculation!$E$1113:$CS$1113))+SUMIFS('Allocation to schools'!$E$169:$GF$169,'Allocation to schools'!$E$9:$GF$9,Totals!$D20,'Allocation to schools'!$E$10:$GF$10,"from local & State sources") -> 0 | FG20: =(SUMIF(Calculation!$E$4:$CS$4,Totals!$D20,Calculation!$E$1205:$CS$1205)-SUMIF(Calculation!$E$4:$CS$4,Totals!$D20,Calculation!$E$1218:$CS$1218))+SUMIFS('Allocation to schools'!$E$170:$GF$170,'Allocation to schools'!$E$9:$GF$9,Totals!$D20,'Allocation to schools'!$E$10:$GF$10,"from local & State sources") -> 863.06 | FI20: =(SUMIF(Calculation!$E$4:$CS$4,Totals!$D20,Calculation!$E$1373:$CS$1373)-SUMIF(Calculation!$E$4:$CS$4,Totals!$D20,Calculation!$E$1392:$CS$1392))+SUMIFS('Allocation to schools'!$E$171:$GF$171,'Allocation to schools'!$E$9:$GF$9,Totals!$D20,'Allocation to schools'!$E$10:$GF$10,"from local & State sources") -> 0 | FJ20: =SUMIF('Data entry'!$B$13:$CS$13,Totals!$D20,'Data entry'!$B$15:$CS$15) -> 1131745.35 | FL20: =SUMIF('Data entry'!$B$13:$CS$13,Totals!$D20,'Data entry'!$B$20:$CS$20) -> 0 | FN20: =SUMIF('Data entry'!$B$13:$CS$13,Totals!$D20,'Data entry'!$B$25:$CS$25) -> 0 | FO20: =SUMIF('Data entry'!$B$13:$CS$13,Totals!$D20,'Data entry'!$B$30:$CS$30) -> 21043.75 | FP20: =SUMIF('Data entry'!$B$13:$CS$13,Totals!$D20,'Data entry'!$B$35:$CS$35) -> 338572.77 | FQ20: =SUMIF('Data entry'!$B$13:$CS$13,Totals!$D20,'Data entry'!$B$16:$CS$16) -> 179313.68 | FS20: =SUMIF('Data entry'!$B$13:$CS$13,Totals!$D20,'Data entry'!$B$21:$CS$21) -> 0 | FU20: =SUMIF('Data entry'!$B$13:$CS$13,Totals!$D20,'Data entry'!$B$26:$CS$26) -> 0 | FV20: =SUMIF('Data entry'!$B$13:$CS$13,Totals!$D20,'Data entry'!$B$31:$CS$31) -> 3656.25 | FW20: =SUMIF('Data entry'!$B$13:$CS$13,Totals!$D20,'Data entry'!$B$36:$CS$36) -> 49484.85 | FX20: =SUMIF('Data entry'!$B$13:$CS$13,Totals!$D20,'Data entry'!$B$17:$CS$17) -> 0 | FZ20: =SUMIF('Data entry'!$B$13:$CS$13,Totals!$D20,'Data entry'!$B$22:$CS$22) -> 0 | GB20: =SUMIF('Data entry'!$B$13:$CS$13,Totals!$D20,'Data entry'!$B$27:$CS$27) -> 0 | GC20: =SUMIF('Data entry'!$B$13:$CS$13,Totals!$D20,'Data entry'!$B$32:$CS$32) -> 0 | GD20: =SUMIF('Data entry'!$B$13:$CS$13,Totals!$D20,'Data entry'!$B$37:$CS$37) -> 0 | GE20: =SUMIF('Data entry'!$B$13:$CS$13,Totals!$D20,'Data entry'!$B$18:$CS$18) -> 33986 | GG20: =SUMIF('Data entry'!$B$13:$CS$13,Totals!$D20,'Data entry'!$B$23:$CS$23) -> 0 | GI20: =SUMIF('Data entry'!$B$13:$CS$13,Totals!$D20,'Data entry'!$B$28:$CS$28) -> 0 | GJ20: =SUMIF('Data entry'!$B$13:$CS$13,Totals!$D20,'Data entry'!$B$33:$CS$33) -> 0 | GK20: =SUMIF('Data entry'!$B$13:$CS$13,Totals!$D20,'Data entry'!$B$38:$CS$38) -> 6256.88 | GL20: =SUMIF('Data entry'!$B$13:$CS$13,Totals!$D20,'Data entry'!$B$19:$CS$19) -> 0 | GN20: =SUMIF('Data entry'!$B$13:$CS$13,Totals!$D20,'Data entry'!$B$24:$CS$24) -> 0 | GP20: =SUMIF('Data entry'!$B$13:$CS$13,Totals!$D20,'Data entry'!$B$29:$CS$29) -> 0 | GQ20: =SUMIF('Data entry'!$B$13:$CS$13,Totals!$D20,'Data entry'!$B$34:$CS$34) -> 0 | GR20: =SUMIF('Data entry'!$B$13:$CS$13,Totals!$D20,'Data entry'!$B$39:$CS$39) -> 0 | GS20: =SUMIF('Data entry'!$B$13:$CS$13,Totals!$D20,'Data entry'!$B$41:$CS$41) -> 0 | GT20: =SUMIF(Calculation!$E$4:$CS$4,Totals!$D20,Calculation!$E$1460:$CS$1460)+SUMIFS('Allocation to schools'!$E$20:$GF$20,'Allocation to schools'!$E$9:$GF$9,Totals!$D20,'Allocation to schools'!$E$10:$GF$10,"from federal sources") -> 75624.13 | GU20: =SUMIF(Calculation!$E$4:$CS$4,Totals!$D20,Calculation!$E$1461:$CS$1461)+SUMIFS('Allocation to schools'!$E$20:$GF$20,'Allocation to schools'!$E$9:$GF$9,Totals!$D20,'Allocation to schools'!$E$10:$GF$10,"from local & State sources") -> 187684.69 | GV20: =SUMIF(Calculation!$E$4:$CS$4,Totals!$D20,Calculation!$E$1394:$CS$1394)+SUMIF('Allocation to schools'!$E$9:$GF$9,Totals!$D20,'Allocation to schools'!$E$127:$GF$127) -> 190668.95 | GW20: =SUMIF(Calculation!$E$4:$CS$4,Totals!$D20,Calculation!$E$1396:$CS$1396)+SUMIF('Allocation to schools'!$E$9:$GF$9,Totals!$D20,'Allocation to schools'!$E$128:$GF$128) -> 43945.39 | GX20: =SUMIF(Calculation!$E$4:$CS$4,Totals!$D20,Calculation!$E$1400:$CS$1400)+SUMIF('Allocation to schools'!$E$9:$GF$9,Totals!$D20,'Allocation to schools'!$E$129:$GF$129) -> 0 | GY20: =SUMIF(Calculation!$E$4:$CS$4,Totals!$D20,Calculation!$E$1402:$CS$1402)+SUMIF('Allocation to schools'!$E$9:$GF$9,Totals!$D20,'Allocation to schools'!$E$130:$GF$130) -> 0 | GZ20: =SUMIF(Calculation!$E$4:$CS$4,Totals!$D20,Calculation!$E$1404:$CS$1404)+SUMIF('Allocation to schools'!$E$9:$GF$9,Totals!$D20,'Allocation to schools'!$E$131:$GF$131) -> 0 | HA20: =SUMIF(Calculation!$E$4:$CS$4,Totals!$D20,Calculation!$E$1406:$CS$1406)+SUMIF('Allocation to schools'!$E$9:$GF$9,Totals!$D20,'Allocation to schools'!$E$132:$GF$132) -> 22559.15 | HB20: =SUMIF(Calculation!$E$4:$CS$4,Totals!$D20,Calculation!$E$1408:$CS$1408)+SUMIF('Allocation to schools'!$E$9:$GF$9,Totals!$D20,'Allocation to schools'!$E$133:$GF$133) -> 3918.21 | HC20: =SUMIF(Calculation!$E$4:$CS$4,Totals!$D20,Calculation!$E$1412:$CS$1412)+SUMIF('Allocation to schools'!$E$9:$GF$9,Totals!$D20,'Allocation to schools'!$E$134:$GF$134) -> 0 | HD20: =SUMIF(Calculation!$E$4:$CS$4,Totals!$D20,Calculation!$E$1414:$CS$1414)+SUMIF('Allocation to schools'!$E$9:$GF$9,Totals!$D20,'Allocation to schools'!$E$135:$GF$135) -> 0 | HE20: =SUMIF(Calculation!$E$4:$CS$4,Totals!$D20,Calculation!$E$1416:$CS$1416)+SUMIF('Allocation to schools'!$E$9:$GF$9,Totals!$D20,'Allocation to schools'!$E$136:$GF$136) -> 0 | HF20: =SUMIF(Calculation!$E$4:$CS$4,Totals!$D20,Calculation!$E$1418:$CS$1418)+SUMIF('Allocation to schools'!$E$9:$GF$9,Totals!$D20,'Allocation to schools'!$E$137:$GF$137) -> 0 | HG20: =SUMIF(Calculation!$E$4:$CS$4,Totals!$D20,Calculation!$E$1420:$CS$1420)+SUMIF('Allocation to schools'!$E$9:$GF$9,Totals!$D20,'Allocation to schools'!$E$138:$GF$138) -> 0 | HH20: =SUMIF(Calculation!$E$4:$CS$4,Totals!$D20,Calculation!$E$1424:$CS$1424)+SUMIF('Allocation to schools'!$E$9:$GF$9,Totals!$D20,'Allocation to schools'!$E$139:$GF$139) -> 0 | HI20: =SUMIF(Calculation!$E$4:$CS$4,Totals!$D20,Calculation!$E$1426:$CS$1426)+SUMIF('Allocation to schools'!$E$9:$GF$9,Totals!$D20,'Allocation to schools'!$E$140:$GF$140) -> 0 | HJ20: =SUMIF(Calculation!$E$4:$CS$4,Totals!$D20,Calculation!$E$1428:$CS$1428)+SUMIF('Allocation to schools'!$E$9:$GF$9,Totals!$D20,'Allocation to schools'!$E$141:$GF$141) -> 0 | HK20: =SUMIF(Calculation!$E$4:$CS$4,Totals!$D20,Calculation!$E$1430:$CS$1430)+SUMIF('Allocation to schools'!$E$9:$GF$9,Totals!$D20,'Allocation to schools'!$E$142:$GF$142) -> 0 | HL20: =SUMIF(Calculation!$E$4:$CS$4,Totals!$D20,Calculation!$E$1432:$CS$1432)+SUMIF('Allocation to schools'!$E$9:$GF$9,Totals!$D20,'Allocation to schools'!$E$143:$GF$143) -> 0 | HM20: =SUMIF(Calculation!$E$4:$CS$4,Totals!$D20,Calculation!$E$1436:$CS$1436)+SUMIF('Allocation to schools'!$E$9:$GF$9,Totals!$D20,'Allocation to schools'!$E$144:$GF$144) -> 0 | HN20: =SUMIF('Allocation to schools'!$E$9:$GF$9,Totals!$D20,'Allocation to schools'!$E$145:$GF$145)+SUMIF(Calculation!$E$4:$CS$4,Totals!$D20,Calculation!$E$1438:$CS$1438) -> 0 | HO20: =SUMIF('Allocation to schools'!$E$9:$GF$9,Totals!$D20,'Allocation to schools'!$E$146:$GF$146)+SUMIF(Calculation!$E$4:$CS$4,Totals!$D20,Calculation!$E$1436:$CS$1436) -> 0 | HP20: =SUMIF('Allocation to schools'!$E$9:$GF$9,Totals!$D20,'Allocation to schools'!$E$150:$GF$150)+SUMIF(Calculation!$E$4:$CS$4,Totals!$D20,Calculation!$E$1480:$CS$1480) -> 0 | HQ20: =SUMIF('Allocation to schools'!$E$9:$GF$9,Totals!$D20,'Allocation to schools'!$E$151:$GF$151)+SUMIF(Calculation!$E$4:$CS$4,Totals!$D20,Calculation!$E$1480:$CS$1480) -> 0 | HR20: =SUMIF(Calculation!$E$4:$CS$4,Totals!$D20,Calculation!$E$1482:$CS$1482)+SUMIF('Allocation to schools'!$E$9:$GF$9,Totals!$D20,'Allocation to schools'!$E$152:$GF$152) -> 0 | HS20: =SUMIF(Calculation!$E$4:$CS$4,Totals!$D20,Calculation!$E$1483:$CS$1483)+SUMIF('Allocation to schools'!$E$9:$GF$9,Totals!$D20,'Allocation to schools'!$E$153:$GF$153) -> 7773.63 | HT20: =SUMIF('Data entry'!$B$13:$CS$13,Totals!$D20,'Data entry'!$B$44:$CS$44) -> 22242.18 | HU20: =SUMIF(Calculation!$E$4:$CS$4,Totals!$D20,Calculation!$E$1484:$CS$1484)+SUMIF('Allocation to schools'!$E$9:$GF$9,Totals!$D20,'Allocation to schools'!$E$154:$GF$154) -> 89.43 | HV20: =SUMIF('Data entry'!$B$13:$CS$13,Totals!$D20,'Data entry'!$B$45:$CS$45) -> 0 | HW20: =SUMIF(Calculation!$E$4:$CS$4,Totals!$D20,Calculation!$E$1495:$CS$1495)+SUMIF('Allocation to schools'!$E$9:$GF$9,Totals!$D20,'Allocation to schools'!$E$114:$GF$114)+SUMIF(Calculation!$E$4:$CS$4,Totals!$D20,Calculation!$E$1502:$CS$1502)+SUMIF('Allocation to schools'!$E$9:$GF$9,Totals!$D20,'Allocation to schools'!$E$116:$GF$116) -> 220.8 | HX20: =SUMIF(Calculation!$E$4:$CS$4,Totals!$D20,Calculation!$E$1486:$CS$1486)+SUMIF('Allocation to schools'!$E$9:$GF$9,Totals!$D20,'Allocation to schools'!$E$158:$GF$158) -> 3714.06 | HY20: =SUMIF(Calculation!$E$4:$CS$4,Totals!$D20,Calculation!$E$1487:$CS$1487)+SUMIF('Allocation to schools'!$E$9:$GF$9,Totals!$D20,'Allocation to schools'!$E$159:$GF$159) -> 0 | HZ20: =SUMIF('Data entry'!$B$13:$CS$13,Totals!$D20,'Data entry'!$B$73:$CS$73) -> 1706344.12 | IA20: =SUMIF('Data entry'!$B$13:$CS$13,Totals!$D20,'Data entry'!$B$76:$CS$76) -> 134985.3813 | IB20: =SUMIF('Data entry'!$B$13:$CS$13,Totals!$D20,'Data entry'!$B$79:$CS$79) -> 215895.1324 | IC20: =SUMIF('Data entry'!$B$13:$CS$13,Totals!$D20,'Data entry'!$B$80:$CS$80) -> 0 | ID20: =SUMIF('Data entry'!$B$13:$CS$13,Totals!$D20,'Data entry'!$B$82:$CS$82) -> 0 | IE20: =SUMIF('Data entry'!$B$13:$CS$13,Totals!$D20,'Data entry'!$B$83:$CS$83) -> 0 | IF20: =SUMIF('Data entry'!$B$13:$CS$13,Totals!$D20,'Data entry'!$B$85:$CS$85) -> 0 | IG20: =SUMIF('Data entry'!$B$13:$CS$13,Totals!$D20,'Data entry'!$B$86:$CS$86) -> 0 | IH20: =SUMIF('Data entry'!$B$13:$CS$13,Totals!$D20,'Data entry'!$B$87:$CS$87) -> 0 | II20: =SUMIF('Data entry'!$B$13:$CS$13,Totals!$D20,'Data entry'!$B$88:$CS$88) -> 0 | IJ20: =SUMIF('Data entry'!$B$13:$CS$13,Totals!$D20,'Data entry'!$B$89:$CS$89) -> 0 | IK20: =SUMIF('Data entry'!$B$13:$CS$13,Totals!$D20,'Data entry'!$B$90:$CS$90) -> 0 | IL20: =SUMIF('Data entry'!$B$13:$CS$13,Totals!$D20,'Data entry'!$B$91:$CS$91) -> 0 | IM20: =SUMIF('Data entry'!$B$13:$CS$13,Totals!$D20,'Data entry'!$B$92:$CS$92) -> 0 | IN20: =SUMIF('Data entry'!$B$13:$CS$13,Totals!$D20,'Data entry'!$B$93:$CS$93) -> 0 | IO20: =SUMIF('Data entry'!$B$13:$CS$13,Totals!$D20,'Data entry'!$B$94:$CS$94) -> 0 | IP20: =SUMIF('Data entry'!$B$13:$CS$13,Totals!$D20,'Data entry'!$B$95:$CS$95) -> 0 | IQ20: =SUMIF('Data entry'!$B$13:$CS$13,Totals!$D20,'Data entry'!$B$96:$CS$96) -> 0 | IR20: =SUMIF('Data entry'!$B$13:$CS$13,Totals!$D20,'Data entry'!$B$97:$CS$97) -> 0 | IS20: =SUMIF('Data entry'!$B$13:$CS$13,Totals!$D20,'Data entry'!$B$98:$CS$98) -> 0 | IT20: 0 | IU20: =SUMIF('Data entry'!$B$13:$CS$13,Totals!$D20,'Data entry'!$B$107:$CS$107) -> 354577.9536 | IV20: =SUMIF('Data entry'!$B$13:$CS$13,Totals!$D20,'Data entry'!$B$108:$CS$108) -> 52669.1558 | IW20: =SUMIF('Data entry'!$B$13:$CS$13,Totals!$D20,'Data entry'!$B$109:$CS$109) -> 189135.0457 | IX20: =SUMIF('Data entry'!$B$13:$CS$13,Totals!$D20,'Data entry'!$B$110:$CS$110) -> 3145.4144 | IY20: =SUMIF('Data entry'!$B$13:$CS$13,Totals!$D20,'Data entry'!$B$111:$CS$111) -> 599527.5695 | IZ20: =SUMIF('Data entry'!$B$13:$CS$13,Totals!$D20,'Data entry'!$B$112:$CS$112) -> 0 | JA20: =SUMIF('Data entry'!$B$13:$CS$13,Totals!$D20,'Data entry'!$B$113:$CS$113) -> 599527.5695 | JB20: =SUMIF('Data entry'!$B$13:$CS$13,Totals!$D20,'Data entry'!$B$114:$CS$114) -> 0 | JC20: =SUMIF('Data entry'!$B$13:$CS$13,Totals!$D20,'Data entry'!$B$115:$CS$115) -> 599527.5695 | JD20: =SUMIF('Data entry'!$B$13:$CS$13,Totals!$D20,'Data entry'!$B$117:$CS$117) -> 0 | JE20: =SUMIF('Data entry'!$B$13:$CS$13,Totals!$D20,'Data entry'!$B$119:$CS$119) -> 599527.5695 | JF20: =SUMIF('Data entry'!$B$13:$CS$13,Totals!$D20,'Data entry'!$B$124:$CS$124) -> 193406.1565 | JG20: =SUMIF('Data entry'!$B$13:$CS$13,Totals!$D20,'Data entry'!$B$125:$CS$125) -> 28728.63043 | JH20: =SUMIF('Data entry'!$B$13:$CS$13,Totals!$D20,'Data entry'!$B$126:$CS$126) -> 189135.0457 | JI20: =SUMIF('Data entry'!$B$13:$CS$13,Totals!$D20,'Data entry'!$B$127:$CS$127) -> 3145.4144 | JJ20: =SUMIF('Data entry'!$B$13:$CS$13,Totals!$D20,'Data entry'!$B$128:$CS$128) -> 414415.2471 | JK20: =SUMIF('Data entry'!$B$13:$CS$13,Totals!$D20,'Data entry'!$B$129:$CS$129) -> 0 | JL20: =SUMIF('Data entry'!$B$13:$CS$13,Totals!$D20,'Data entry'!$B$130:$CS$130) -> 414415.2471 | JM20: =SUMIF('Data entry'!$B$13:$CS$13,Totals!$D20,'Data entry'!$B$131:$CS$131) -> 0 | JN20: =SUMIF('Data entry'!$B$13:$CS$13,Totals!$D20,'Data entry'!$B$132:$CS$132) -> 414415.2471 | JO20: =SUMIF('Data entry'!$B$13:$CS$13,Totals!$D20,'Data entry'!$B$134:$CS$134) -> 465561.63 | JP20: =SUMIF('Data entry'!$B$13:$CS$13,Totals!$D20,'Data entry'!$B$136:$CS$136) -> -51146.38294 | JQ20: =SUMIF('Data entry'!$B$13:$CS$13,Totals!$D20,'Data entry'!$B$138:$CS$138) -> 460657.24 | JR20: =IF(D20=0,"0%",SUMIF('Data entry'!$B$13:$CS$13,Totals!$D20,'Data entry'!$B$139:$CS$139)) -> 0.9894656482 | JS20: =SUMIF(Calculation!$E$4:$CS$4,Totals!$D20,Calculation!$E$1442:$CS$1442)+SUMIF('Allocation to schools'!$E$9:$GF$9,Totals!$D20,'Allocation to schools'!$E$122:$GF$122) -> 0 | JT20: =SUMIF('Data entry'!$B$13:$CS$13,Totals!$D20,'Data entry'!$B$102:$CS$102) -> 0 | JU20: The School's programs 200, 512, 514, and 515 special education spending was greater than base, weighted, IDEA, and other special education funding.
A21: School 2 | B21: =VLOOKUP(A21,'School listing'!$A$7:$E$99,2,FALSE) -> Sedona Red Rock Jr/Sr High School | C21: =IF(VLOOKUP(A21,'School listing'!$A$7:$E$99,3,FALSE)="","",VLOOKUP(A21,'School listing'!$A$7:$E$99,3,FALSE)) -> 130209210 | D21: =IF(VLOOKUP(A21,'School listing'!$A$7:$F$99,6,FALSE)="","",VLOOKUP(A21,'School listing'!$A$7:$F$99,6,FALSE)) -> 210 | E21: =VLOOKUP(A21,'School listing'!$A$7:$E$99,4,FALSE) -> 461 | G21: =SUMIF(Calculation!$E$4:$CS$4,Totals!$D21,Calculation!$E$12:$CS$12)+SUMIF('Allocation to schools'!$E$9:$GF$9,Totals!$D21,'Allocation to schools'!$E$12:$GF$12)+SUMIF('Allocation to schools'!$E$9:$GF$9,Totals!$D21,'Allocation to schools'!$E$20:$GF$20) -> 1832815.58 | H21: =SUMIF(Calculation!$E$4:$CS$4,Totals!$D21,Calculation!$E$117:$CS$117)+SUMIF('Allocation to schools'!$E$9:$GF$9,Totals!$D21,'Allocation to schools'!$E$13:$GF$13)+SUMIF('Allocation to schools'!$E$9:$GF$9,Totals!$D21,'Allocation to schools'!$E$21:$GF$21) -> 516519.46 | I21: =SUMIF(Calculation!$E$4:$CS$4,Totals!$D21,Calculation!$E$242:$CS$242)+SUMIF('Allocation to schools'!$E$9:$GF$9,Totals!$D21,'Allocation to schools'!$E$14:$GF$14) -> 113649.52 | J21: =SUMIF(Calculation!$E$4:$CS$4,Totals!$D21,Calculation!$E$640:$CS$640)+SUMIF('Allocation to schools'!$E$9:$GF$9,Totals!$D21,'Allocation to schools'!$E$15:$GF$15) -> 138172.59 | K21: =SUMIF(Calculation!$E$4:$CS$4,Totals!$D21,Calculation!$E$751:$CS$751)+SUMIF('Allocation to schools'!$E$9:$GF$9,Totals!$D21,'Allocation to schools'!$E$16:$GF$16) -> 52059.89 | L21: =SUMIF(Calculation!$E$4:$CS$4,Totals!$D21,Calculation!$E$955:$CS$955)+SUMIF('Allocation to schools'!$E$9:$GF$9,Totals!$D21,'Allocation to schools'!$E$17:$GF$17) -> 41733.2 | M21: =SUMIF(Calculation!$E$4:$CS$4,Totals!$D21,Calculation!$E$1120:$CS$1120)+SUMIF('Allocation to schools'!$E$9:$GF$9,Totals!$D21,'Allocation to schools'!$E$18:$GF$18) -> 22829.26 | N21: =SUMIF(Calculation!$E$4:$CS$4,Totals!$D21,Calculation!$E$1503:$CS$1503)+SUMIFS('Allocation to schools'!$E$12:$GF$12,'Allocation to schools'!$E$10:$GF$10,"from federal sources",'Allocation to schools'!$E$9:$GF$9,Totals!$D21)+SUMIFS('Allocation to schools'!$E$20:$GF$20,'Allocation to schools'!$E$10:$GF$10,"from federal sources",'Allocation to schools'!$E$9:$GF$9,Totals!$D21) -> 29245 | O21: =SUMIF(Calculation!$E$4:$CS$4,Totals!$D21,Calculation!$E$1504:$CS$1504)+SUMIFS('Allocation to schools'!$E$13:$GF$13,'Allocation to schools'!$E$10:$GF$10,"from federal sources",'Allocation to schools'!$E$9:$GF$9,Totals!$D21)+SUMIFS('Allocation to schools'!$E$21:$GF$21,'Allocation to schools'!$E$10:$GF$10,"from federal sources",'Allocation to schools'!$E$9:$GF$9,Totals!$D21) -> 6220.2 | P21: =SUMIF(Calculation!$E$4:$CS$4,Totals!$D21,Calculation!$E$1505:$CS$1505)+SUMIFS('Allocation to schools'!$E$172:$GF$172,'Allocation to schools'!$E$10:$GF$10,"from federal sources",'Allocation to schools'!$E$9:$GF$9,Totals!$D21) -> 57859.84 | Q21: =SUMIF(Calculation!$E$4:$CS$4,Totals!$D21,Calculation!$E$1229:$CS$1229)+SUMIF('Allocation to schools'!$E$9:$GF$9,Totals!$D21,'Allocation to schools'!$E$19:$GF$19)+SUMIF('Allocation to schools'!$E$9:$GF$9,Totals!$D21,'Allocation to schools'!$E$22:$GF$22) -> 0 | R21: =SUMIF(Calculation!$E$4:$CS$4,Totals!$D21,Calculation!$E$19:$CS$19)+SUMIF('Allocation to schools'!$E$9:$GF$9,Totals!$D21,'Allocation to schools'!$E$23:$GF$23) -> 245960.02 | S21: =SUMIF(Calculation!$E$4:$CS$4,Totals!$D21,Calculation!$E$124:$CS$124)+SUMIF('Allocation to schools'!$E$9:$GF$9,Totals!$D21,'Allocation to schools'!$E$24:$GF$24) -> 65893.61 | T21: =SUMIF(Calculation!$E$4:$CS$4,Totals!$D21,Calculation!$E$269:$CS$269)+SUMIF('Allocation to schools'!$E$9:$GF$9,Totals!$D21,'Allocation to schools'!$E$25:$GF$25) -> 195 | U21: =SUMIF(Calculation!$E$4:$CS$4,Totals!$D21,Calculation!$E$647:$CS$647)+SUMIF('Allocation to schools'!$E$9:$GF$9,Totals!$D21,'Allocation to schools'!$E$26:$GF$26) -> 5566.93 | V21: =SUMIF(Calculation!$E$4:$CS$4,Totals!$D21,Calculation!$E$764:$CS$764)+SUMIF('Allocation to schools'!$E$9:$GF$9,Totals!$D21,'Allocation to schools'!$E$27:$GF$27) -> 0 | W21: =SUMIF(Calculation!$E$4:$CS$4,Totals!$D21,Calculation!$E$962:$CS$962)+SUMIF('Allocation to schools'!$E$9:$GF$9,Totals!$D21,'Allocation to schools'!$E$28:$GF$28) -> 0 | X21: =SUMIF(Calculation!$E$4:$CS$4,Totals!$D21,Calculation!$E$1127:$CS$1127)+SUMIF('Allocation to schools'!$E$9:$GF$9,Totals!$D21,'Allocation to schools'!$E$29:$GF$29) -> 0 | Y21: =SUMIF(Calculation!$E$4:$CS$4,Totals!$D21,Calculation!$E$1506:$CS$1506)+SUMIFS('Allocation to schools'!$E$23:$GF$23,'Allocation to schools'!$E$10:$GF$10,"from federal sources",'Allocation to schools'!$E$9:$GF$9,Totals!$D21) -> 233.35 | Z21: =SUMIF(Calculation!$E$4:$CS$4,Totals!$D21,Calculation!$E$1507:$CS$1507)+SUMIFS('Allocation to schools'!$E$24:$GF$24,'Allocation to schools'!$E$10:$GF$10,"from federal sources",'Allocation to schools'!$E$9:$GF$9,Totals!$D21) -> 48.33 | AA21: =SUMIF(Calculation!$E$4:$CS$4,Totals!$D21,Calculation!$E$1520:$CS$1520)+SUMIFS('Allocation to schools'!$E$173:$GF$173,'Allocation to schools'!$E$10:$GF$10,"from federal sources",'Allocation to schools'!$E$9:$GF$9,Totals!$D21) -> 0 | AB21: =SUMIF(Calculation!$E$4:$CS$4,Totals!$D21,Calculation!$E$1240:$CS$1240)+SUMIF('Allocation to schools'!$E$9:$GF$9,Totals!$D21,'Allocation to schools'!$E$30:$GF$30) -> 0 | AC21: =SUMIF(Calculation!$E$4:$CS$4,Totals!$D21,Calculation!$E$26:$CS$26)+SUMIF('Allocation to schools'!$E$9:$GF$9,Totals!$D21,'Allocation to schools'!$E$31:$GF$31) -> 2375 | AD21: =SUMIF(Calculation!$E$4:$CS$4,Totals!$D21,Calculation!$E$131:$CS$131)+SUMIF('Allocation to schools'!$E$9:$GF$9,Totals!$D21,'Allocation to schools'!$E$32:$GF$32) -> 491.39 | AE21: =SUMIF(Calculation!$E$4:$CS$4,Totals!$D21,Calculation!$E$296:$CS$296)+SUMIF('Allocation to schools'!$E$9:$GF$9,Totals!$D21,'Allocation to schools'!$E$33:$GF$33) -> 7778.94 | AF21: =SUMIF(Calculation!$E$4:$CS$4,Totals!$D21,Calculation!$E$654:$CS$654)+SUMIF('Allocation to schools'!$E$9:$GF$9,Totals!$D21,'Allocation to schools'!$E$34:$GF$34) -> 9148.01 | AG21: =SUMIF(Calculation!$E$4:$CS$4,Totals!$D21,Calculation!$E$777:$CS$777)+SUMIF('Allocation to schools'!$E$9:$GF$9,Totals!$D21,'Allocation to schools'!$E$35:$GF$35) -> 0 | AH21: =SUMIF(Calculation!$E$4:$CS$4,Totals!$D21,Calculation!$E$969:$CS$969)+SUMIF('Allocation to schools'!$E$9:$GF$9,Totals!$D21,'Allocation to schools'!$E$36:$GF$36) -> 0 | AI21: =SUMIF(Calculation!$E$4:$CS$4,Totals!$D21,Calculation!$E$1134:$CS$1134)+SUMIF('Allocation to schools'!$E$9:$GF$9,Totals!$D21,'Allocation to schools'!$E$37:$GF$37) -> 0 | AJ21: =SUMIF(Calculation!$E$4:$CS$4,Totals!$D21,Calculation!$E$1521:$CS$1521)+SUMIFS('Allocation to schools'!$E$31:$GF$31,'Allocation to schools'!$E$10:$GF$10,"from federal sources",'Allocation to schools'!$E$9:$GF$9,Totals!$D21) -> 2000 | AK21: =SUMIF(Calculation!$E$4:$CS$4,Totals!$D21,Calculation!$E$1522:$CS$1522)+SUMIFS('Allocation to schools'!$E$32:$GF$32,'Allocation to schools'!$E$10:$GF$10,"from federal sources",'Allocation to schools'!$E$9:$GF$9,Totals!$D21) -> 414.2 | AL21: =SUMIF(Calculation!$E$4:$CS$4,Totals!$D21,Calculation!$E$1535:$CS$1535)+SUMIFS('Allocation to schools'!$E$174:$GF$174,'Allocation to schools'!$E$10:$GF$10,"from federal sources",'Allocation to schools'!$E$9:$GF$9,Totals!$D21) -> 370 | AM21: =SUMIF(Calculation!$E$4:$CS$4,Totals!$D21,Calculation!$E$1251:$CS$1251)+SUMIF('Allocation to schools'!$E$9:$GF$9,Totals!$D21,'Allocation to schools'!$E$38:$GF$38) -> 0 | AN21: =SUMIF(Calculation!$E$4:$CS$4,Totals!$D21,Calculation!$E$33:$CS$33)+SUMIF('Allocation to schools'!$E$9:$GF$9,Totals!$D21,'Allocation to schools'!$E$39:$GF$39) -> 0 | AO21: =SUMIF(Calculation!$E$4:$CS$4,Totals!$D21,Calculation!$E$138:$CS$138)+SUMIF('Allocation to schools'!$E$9:$GF$9,Totals!$D21,'Allocation to schools'!$E$40:$GF$40) -> 0 | AP21: =SUMIF(Calculation!$E$4:$CS$4,Totals!$D21,Calculation!$E$323:$CS$323)+SUMIF('Allocation to schools'!$E$9:$GF$9,Totals!$D21,'Allocation to schools'!$E$41:$GF$41) -> 0 | AQ21: =SUMIF(Calculation!$E$4:$CS$4,Totals!$D21,Calculation!$E$661:$CS$661)+SUMIF('Allocation to schools'!$E$9:$GF$9,Totals!$D21,'Allocation to schools'!$E$42:$GF$42) -> 0 | AR21: =SUMIF(Calculation!$E$4:$CS$4,Totals!$D21,Calculation!$E$790:$CS$790)+SUMIF('Allocation to schools'!$E$9:$GF$9,Totals!$D21,'Allocation to schools'!$E$43:$GF$43) -> 0 | AS21: =SUMIF(Calculation!$E$4:$CS$4,Totals!$D21,Calculation!$E$976:$CS$976)+SUMIF('Allocation to schools'!$E$9:$GF$9,Totals!$D21,'Allocation to schools'!$E$44:$GF$44) -> 0 | AT21: =SUMIF(Calculation!$E$4:$CS$4,Totals!$D21,Calculation!$E$1060:$CS$1060)+SUMIF('Allocation to schools'!$E$9:$GF$9,Totals!$D21,'Allocation to schools'!$E$45:$GF$45) -> 0 | AU21: =SUMIF(Calculation!$E$4:$CS$4,Totals!$D21,Calculation!$E$1141:$CS$1141)+SUMIF('Allocation to schools'!$E$9:$GF$9,Totals!$D21,'Allocation to schools'!$E$46:$GF$46) -> 0 | AV21: =SUMIF(Calculation!$E$4:$CS$4,Totals!$D21,Calculation!$E$1536:$CS$1536)+SUMIFS('Allocation to schools'!$E$39:$GF$39,'Allocation to schools'!$E$10:$GF$10,"from federal sources",'Allocation to schools'!$E$9:$GF$9,Totals!$D21) -> 0 | AW21: =SUMIF(Calculation!$E$4:$CS$4,Totals!$D21,Calculation!$E$1537:$CS$1537)+SUMIFS('Allocation to schools'!$E$40:$GF$40,'Allocation to schools'!$E$10:$GF$10,"from federal sources",'Allocation to schools'!$E$9:$GF$9,Totals!$D21) -> 0 | AX21: =SUMIF(Calculation!$E$4:$CS$4,Totals!$D21,Calculation!$E$1551:$CS$1551)+SUMIFS('Allocation to schools'!$E$175:$GF$175,'Allocation to schools'!$E$10:$GF$10,"from federal sources",'Allocation to schools'!$E$9:$GF$9,Totals!$D21) -> 0 | AY21: =SUMIF(Calculation!$E$4:$CS$4,Totals!$D21,Calculation!$E$1262:$CS$1262)+SUMIF('Allocation to schools'!$E$9:$GF$9,Totals!$D21,'Allocation to schools'!$E$47:$GF$47) -> 0 | AZ21: =SUMIF(Calculation!$E$4:$CS$4,Totals!$D21,Calculation!$E$40:$CS$40)+SUMIF('Allocation to schools'!$E$9:$GF$9,Totals!$D21,'Allocation to schools'!$E$48:$GF$48) -> 191270.25 | BA21: =SUMIF(Calculation!$E$4:$CS$4,Totals!$D21,Calculation!$E$145:$CS$145)+SUMIF('Allocation to schools'!$E$9:$GF$9,Totals!$D21,'Allocation to schools'!$E$49:$GF$49) -> 58380.7 | BB21: =SUMIF(Calculation!$E$4:$CS$4,Totals!$D21,Calculation!$E$350:$CS$350)+SUMIF('Allocation to schools'!$E$9:$GF$9,Totals!$D21,'Allocation to schools'!$E$50:$GF$50) -> 3150.69 | BC21: =SUMIF(Calculation!$E$4:$CS$4,Totals!$D21,Calculation!$E$668:$CS$668)+SUMIF('Allocation to schools'!$E$9:$GF$9,Totals!$D21,'Allocation to schools'!$E$51:$GF$51) -> 2750.05 | BD21: =SUMIF(Calculation!$E$4:$CS$4,Totals!$D21,Calculation!$E$803:$CS$803)+SUMIF('Allocation to schools'!$E$9:$GF$9,Totals!$D21,'Allocation to schools'!$E$52:$GF$52) -> 0 | BE21: =SUMIF(Calculation!$E$4:$CS$4,Totals!$D21,Calculation!$E$983:$CS$983)+SUMIF('Allocation to schools'!$E$9:$GF$9,Totals!$D21,'Allocation to schools'!$E$53:$GF$53) -> 0 | BF21: =SUMIF(Calculation!$E$4:$CS$4,Totals!$D21,Calculation!$E$1148:$CS$1148)+SUMIF('Allocation to schools'!$E$9:$GF$9,Totals!$D21,'Allocation to schools'!$E$54:$GF$54) -> 0 | BG21: =SUMIF(Calculation!$E$4:$CS$4,Totals!$D21,Calculation!$E$1552:$CS$1552)+SUMIFS('Allocation to schools'!$E$48:$GF$48,'Allocation to schools'!$E$10:$GF$10,"from federal sources",'Allocation to schools'!$E$9:$GF$9,Totals!$D21) -> 0 | BH21: =SUMIF(Calculation!$E$4:$CS$4,Totals!$D21,Calculation!$E$1553:$CS$1553)+SUMIFS('Allocation to schools'!$E$49:$GF$49,'Allocation to schools'!$E$10:$GF$10,"from federal sources",'Allocation to schools'!$E$9:$GF$9,Totals!$D21) -> 0 | BI21: =SUMIF(Calculation!$E$4:$CS$4,Totals!$D21,Calculation!$E$1566:$CS$1566)+SUMIFS('Allocation to schools'!$E$176:$GF$176,'Allocation to schools'!$E$10:$GF$10,"from federal sources",'Allocation to schools'!$E$9:$GF$9,Totals!$D21) -> 0 | BJ21: =SUMIF(Calculation!$E$4:$CS$4,Totals!$D21,Calculation!$E$1273:$CS$1273)+SUMIF('Allocation to schools'!$E$9:$GF$9,Totals!$D21,'Allocation to schools'!$E$55:$GF$55) -> 0 | BK21: =SUMIF(Calculation!$E$4:$CS$4,Totals!$D21,Calculation!$E$47:$CS$47)+SUMIF(Calculation!$E$4:$CS$4,Totals!$D21,Calculation!$E$54:$CS$54)+SUMIF('Allocation to schools'!$E$9:$GF$9,Totals!$D21,'Allocation to schools'!$E$56:$GF$56) -> 0 | BL21: =SUMIF(Calculation!$E$4:$CS$4,Totals!$D21,Calculation!$E$152:$CS$152)+SUMIF(Calculation!$E$4:$CS$4,Totals!$D21,Calculation!$E$159:$CS$159)+SUMIF('Allocation to schools'!$E$9:$GF$9,Totals!$D21,'Allocation to schools'!$E$57:$GF$57) -> 0 | BM21: =SUMIF(Calculation!$E$4:$CS$4,Totals!$D21,Calculation!$E$377:$CS$377)+SUMIF(Calculation!$E$4:$CS$4,Totals!$D21,Calculation!$E$404:$CS$404)+SUMIF('Allocation to schools'!$E$9:$GF$9,Totals!$D21,'Allocation to schools'!$E$58:$GF$58) -> 1200 | BN21: =SUMIF(Calculation!$E$4:$CS$4,Totals!$D21,Calculation!$E$675:$CS$675)+SUMIF(Calculation!$E$4:$CS$4,Totals!$D21,Calculation!$E$682:$CS$682)+SUMIF('Allocation to schools'!$E$9:$GF$9,Totals!$D21,'Allocation to schools'!$E$59:$GF$59) -> 7308.58 | BO21: =SUMIF(Calculation!$E$4:$CS$4,Totals!$D21,Calculation!$E$816:$CS$816)+SUMIF(Calculation!$E$4:$CS$4,Totals!$D21,Calculation!$E$829:$CS$829)+SUMIF('Allocation to schools'!$E$9:$GF$9,Totals!$D21,'Allocation to schools'!$E$60:$GF$60) -> 5544.47 | BP21: =SUMIF(Calculation!$E$4:$CS$4,Totals!$D21,Calculation!$E$990:$CS$990)+SUMIF(Calculation!$E$4:$CS$4,Totals!$D21,Calculation!$E$997:$CS$997)+SUMIF('Allocation to schools'!$E$9:$GF$9,Totals!$D21,'Allocation to schools'!$E$61:$GF$61) -> 0 | BQ21: =SUMIF(Calculation!$E$4:$CS$4,Totals!$D21,Calculation!$E$1086:$CS$1086)+SUMIF('Allocation to schools'!$E$9:$GF$9,Totals!$D21,'Allocation to schools'!$E$62:$GF$62) -> 0 | BR21: =SUMIF(Calculation!$E$4:$CS$4,Totals!$D21,Calculation!$E$1155:$CS$1155)+SUMIF(Calculation!$E$4:$CS$4,Totals!$D21,Calculation!$E$1162:$CS$1162)+SUMIF('Allocation to schools'!$E$9:$GF$9,Totals!$D21,'Allocation to schools'!$E$63:$GF$63) -> 0 | BS21: =SUMIF(Calculation!$E$4:$CS$4,Totals!$D21,Calculation!$E$1567:$CS$1567)+SUMIF(Calculation!$E$4:$CS$4,Totals!$D21,Calculation!$E$1583:$CS$1583)+SUMIFS('Allocation to schools'!$E$56:$GF$56,'Allocation to schools'!$E$10:$GF$10,"from federal sources",'Allocation to schools'!$E$9:$GF$9,Totals!$D21) -> 0 | BT21: =SUMIF(Calculation!$E$4:$CS$4,Totals!$D21,Calculation!$E$1568:$CS$1568)+SUMIF(Calculation!$E$4:$CS$4,Totals!$D21,Calculation!$E$1584:$CS$1584)+SUMIFS('Allocation to schools'!$E$57:$GF$57,'Allocation to schools'!$E$10:$GF$10,"from federal sources",'Allocation to schools'!$E$9:$GF$9,Totals!$D21) -> 0 | BU21: =SUMIF(Calculation!$E$4:$CS$4,Totals!$D21,Calculation!$E$1582:$CS$1582)+SUMIF(Calculation!$E$4:$CS$4,Totals!$D21,Calculation!$E$1598:$CS$1598)+SUMIFS('Allocation to schools'!$E$177:$GF$177,'Allocation to schools'!$E$10:$GF$10,"from federal sources",'Allocation to schools'!$E$9:$GF$9,Totals!$D21) -> 0 | BV21: =SUMIF(Calculation!$E$4:$CS$4,Totals!$D21,Calculation!$E$1284:$CS$1284)+SUMIF(Calculation!$E$4:$CS$4,Totals!$D21,Calculation!$E$1295:$CS$1295)+SUMIF('Allocation to schools'!$E$9:$GF$9,Totals!$D21,'Allocation to schools'!$E$64:$GF$64) -> 0 | BW21: =SUMIF(Calculation!$E$4:$CS$4,Totals!$D21,Calculation!$E$61:$CS$61)+SUMIF('Allocation to schools'!$E$9:$GF$9,Totals!$D21,'Allocation to schools'!$E$65:$GF$65) -> 167413.02 | BX21: =SUMIF(Calculation!$E$4:$CS$4,Totals!$D21,Calculation!$E$166:$CS$166)+SUMIF('Allocation to schools'!$E$9:$GF$9,Totals!$D21,'Allocation to schools'!$E$66:$GF$66) -> 62787.26 | BY21: =SUMIF(Calculation!$E$4:$CS$4,Totals!$D21,Calculation!$E$431:$CS$431)+SUMIF('Allocation to schools'!$E$9:$GF$9,Totals!$D21,'Allocation to schools'!$E$67:$GF$67) -> 282330.3 | BZ21: =SUMIF(Calculation!$E$4:$CS$4,Totals!$D21,Calculation!$E$689:$CS$689)+SUMIF('Allocation to schools'!$E$9:$GF$9,Totals!$D21,'Allocation to schools'!$E$68:$GF$68) -> 114912.44 | CA21: =SUMIF(Calculation!$E$4:$CS$4,Totals!$D21,Calculation!$E$842:$CS$842)+SUMIF('Allocation to schools'!$E$9:$GF$9,Totals!$D21,'Allocation to schools'!$E$69:$GF$69) -> 17414.84 | CB21: =SUMIF(Calculation!$E$4:$CS$4,Totals!$D21,Calculation!$E$1004:$CS$1004)+SUMIF('Allocation to schools'!$E$9:$GF$9,Totals!$D21,'Allocation to schools'!$E$70:$GF$70) -> 321 | CC21: =SUMIF(Calculation!$E$4:$CS$4,Totals!$D21,Calculation!$E$1169:$CS$1169)+SUMIF('Allocation to schools'!$E$9:$GF$9,Totals!$D21,'Allocation to schools'!$E$71:$GF$71) -> 0 | CD21: =SUMIF(Calculation!$E$4:$CS$4,Totals!$D21,Calculation!$E$1599:$CS$1599)+SUMIFS('Allocation to schools'!$E$65:$GF$65,'Allocation to schools'!$E$10:$GF$10,"from federal sources",'Allocation to schools'!$E$9:$GF$9,Totals!$D21) -> 0 | CE21: =SUMIF(Calculation!$E$4:$CS$4,Totals!$D21,Calculation!$E$1600:$CS$1600)+SUMIFS('Allocation to schools'!$E$66:$GF$66,'Allocation to schools'!$E$10:$GF$10,"from federal sources",'Allocation to schools'!$E$9:$GF$9,Totals!$D21) -> 0 | CF21: =SUMIF(Calculation!$E$4:$CS$4,Totals!$D21,Calculation!$E$1613:$CS$1613)+SUMIFS('Allocation to schools'!$E$178:$GF$178,'Allocation to schools'!$E$10:$GF$10,"from federal sources",'Allocation to schools'!$E$9:$GF$9,Totals!$D21) -> 719.9 | CG21: =SUMIF(Calculation!$E$4:$CS$4,Totals!$D21,Calculation!$E$1306:$CS$1306)+SUMIF('Allocation to schools'!$E$9:$GF$9,Totals!$D21,'Allocation to schools'!$E$72:$GF$72) -> 0 | CH21: =SUMIF(Calculation!$E$4:$CS$4,Totals!$D21,Calculation!$E$68:$CS$68)+SUMIF('Allocation to schools'!$E$9:$GF$9,Totals!$D21,'Allocation to schools'!$E$73:$GF$73) -> 0 | CI21: =SUMIF(Calculation!$E$4:$CS$4,Totals!$D21,Calculation!$E$173:$CS$173)+SUMIF('Allocation to schools'!$E$9:$GF$9,Totals!$D21,'Allocation to schools'!$E$74:$GF$74) -> 0 | CJ21: =SUMIF(Calculation!$E$4:$CS$4,Totals!$D21,Calculation!$E$458:$CS$458)+SUMIF('Allocation to schools'!$E$9:$GF$9,Totals!$D21,'Allocation to schools'!$E$75:$GF$75) -> 0 | CK21: =SUMIF(Calculation!$E$4:$CS$4,Totals!$D21,Calculation!$E$696:$CS$696)+SUMIF('Allocation to schools'!$E$9:$GF$9,Totals!$D21,'Allocation to schools'!$E$76:$GF$76) -> 0 | CL21: =SUMIF(Calculation!$E$4:$CS$4,Totals!$D21,Calculation!$E$855:$CS$855)+SUMIF('Allocation to schools'!$E$9:$GF$9,Totals!$D21,'Allocation to schools'!$E$77:$GF$77) -> 0 | CM21: =SUMIF(Calculation!$E$4:$CS$4,Totals!$D21,Calculation!$E$1011:$CS$1011)+SUMIF('Allocation to schools'!$E$9:$GF$9,Totals!$D21,'Allocation to schools'!$E$78:$GF$78) -> 0 | CN21: =SUMIF(Calculation!$E$4:$CS$4,Totals!$D21,Calculation!$E$1176:$CS$1176)+SUMIF('Allocation to schools'!$E$9:$GF$9,Totals!$D21,'Allocation to schools'!$E$79:$GF$79) -> 0 | CO21: =SUMIF(Calculation!$E$4:$CS$4,Totals!$D21,Calculation!$E$1614:$CS$1614)+SUMIFS('Allocation to schools'!$E$73:$GF$73,'Allocation to schools'!$E$10:$GF$10,"from federal sources",'Allocation to schools'!$E$9:$GF$9,Totals!$D21) -> 0 | CP21: =SUMIF(Calculation!$E$4:$CS$4,Totals!$D21,Calculation!$E$1615:$CS$1615)+SUMIFS('Allocation to schools'!$E$74:$GF$74,'Allocation to schools'!$E$10:$GF$10,"from federal sources",'Allocation to schools'!$E$9:$GF$9,Totals!$D21) -> 0 | CQ21: =SUMIF(Calculation!$E$4:$CS$4,Totals!$D21,Calculation!$E$1628:$CS$1628)+SUMIFS('Allocation to schools'!$E$179:$GF$179,'Allocation to schools'!$E$10:$GF$10,"from federal sources",'Allocation to schools'!$E$9:$GF$9,Totals!$D21) -> 0 | CR21: =SUMIF(Calculation!$E$4:$CS$4,Totals!$D21,Calculation!$E$75:$CS$75)+SUMIF('Allocation to schools'!$E$9:$GF$9,Totals!$D21,'Allocation to schools'!$E$80:$GF$80) -> 0 | CS21: =SUMIF(Calculation!$E$4:$CS$4,Totals!$D21,Calculation!$E$180:$CS$180)+SUMIF('Allocation to schools'!$E$9:$GF$9,Totals!$D21,'Allocation to schools'!$E$81:$GF$81) -> 0 | CT21: =SUMIF(Calculation!$E$4:$CS$4,Totals!$D21,Calculation!$E$485:$CS$485)+SUMIF('Allocation to schools'!$E$9:$GF$9,Totals!$D21,'Allocation to schools'!$E$82:$GF$82) -> 0 | CU21: =SUMIF(Calculation!$E$4:$CS$4,Totals!$D21,Calculation!$E$703:$CS$703)+SUMIF('Allocation to schools'!$E$9:$GF$9,Totals!$D21,'Allocation to schools'!$E$83:$GF$83) -> 0 | CV21: =SUMIF(Calculation!$E$4:$CS$4,Totals!$D21,Calculation!$E$868:$CS$868)+SUMIF('Allocation to schools'!$E$9:$GF$9,Totals!$D21,'Allocation to schools'!$E$84:$GF$84) -> 0 | CW21: =SUMIF(Calculation!$E$4:$CS$4,Totals!$D21,Calculation!$E$1018:$CS$1018)+SUMIF('Allocation to schools'!$E$9:$GF$9,Totals!$D21,'Allocation to schools'!$E$85:$GF$85) -> 765 | CX21: =SUMIF(Calculation!$E$4:$CS$4,Totals!$D21,Calculation!$E$1183:$CS$1183)+SUMIF('Allocation to schools'!$E$9:$GF$9,Totals!$D21,'Allocation to schools'!$E$86:$GF$86) -> 0 | CY21: =SUMIF(Calculation!$E$4:$CS$4,Totals!$D21,Calculation!$E$1629:$CS$1629)+SUMIFS('Allocation to schools'!$E$80:$GF$80,'Allocation to schools'!$E$10:$GF$10,"from federal sources",'Allocation to schools'!$E$9:$GF$9,Totals!$D21) -> 0 | CZ21: =SUMIF(Calculation!$E$4:$CS$4,Totals!$D21,Calculation!$E$1630:$CS$1630)+SUMIFS('Allocation to schools'!$E$81:$GF$81,'Allocation to schools'!$E$10:$GF$10,"from federal sources",'Allocation to schools'!$E$9:$GF$9,Totals!$D21) -> 0 | DA21: =SUMIF(Calculation!$E$4:$CS$4,Totals!$D21,Calculation!$E$1643:$CS$1643)+SUMIFS('Allocation to schools'!$E$180:$GF$180,'Allocation to schools'!$E$10:$GF$10,"from federal sources",'Allocation to schools'!$E$9:$GF$9,Totals!$D21)+IF(SUMIFS('Allocation to schools'!$E$180:$GI$180,'Allocation to schools'!$E$9:$GI$9,Totals!$D21,'Allocation to schools'!$E$10:$GI$10,"from federal sources")>0,0,SUMIF('Data entry'!$B$13:$CS$13,Totals!$D21,'Data entry'!$B$97:$CS$97)) -> 0 | DB21: =SUMIF(Calculation!$E$4:$CS$4,Totals!$D21,Calculation!$E$1317:$CS$1317)+SUMIF('Allocation to schools'!$E$9:$GF$9,Totals!$D21,'Allocation to schools'!$E$87:$GF$87) -> 0 | DC21: =SUMIF(Calculation!$E$4:$CS$4,Totals!$D21,Calculation!$E$82:$CS$82)+SUMIF('Allocation to schools'!$E$9:$GF$9,Totals!$D21,'Allocation to schools'!$E$88:$GF$88) -> 0 | DD21: =SUMIF(Calculation!$E$4:$CS$4,Totals!$D21,Calculation!$E$187:$CS$187)+SUMIF('Allocation to schools'!$E$9:$GF$9,Totals!$D21,'Allocation to schools'!$E$89:$GF$89) -> 0 | DE21: =SUMIF(Calculation!$E$4:$CS$4,Totals!$D21,Calculation!$E$512:$CS$512)+SUMIF('Allocation to schools'!$E$9:$GF$9,Totals!$D21,'Allocation to schools'!$E$90:$GF$90) -> 0 | DF21: =SUMIF(Calculation!$E$4:$CS$4,Totals!$D21,Calculation!$E$710:$CS$710)+SUMIF('Allocation to schools'!$E$9:$GF$9,Totals!$D21,'Allocation to schools'!$E$91:$GF$91) -> 0 | DG21: =SUMIF(Calculation!$E$4:$CS$4,Totals!$D21,Calculation!$E$881:$CS$881)+SUMIF('Allocation to schools'!$E$9:$GF$9,Totals!$D21,'Allocation to schools'!$E$92:$GF$92) -> 0 | DH21: =SUMIF(Calculation!$E$4:$CS$4,Totals!$D21,Calculation!$E$1025:$CS$1025)+SUMIF('Allocation to schools'!$E$9:$GF$9,Totals!$D21,'Allocation to schools'!$E$93:$GF$93) -> 0 | DI21: =SUMIF(Calculation!$E$4:$CS$4,Totals!$D21,Calculation!$E$1190:$CS$1190)+SUMIF('Allocation to schools'!$E$9:$GF$9,Totals!$D21,'Allocation to schools'!$E$94:$GF$94) -> 0 | DJ21: =SUMIF(Calculation!$E$4:$CS$4,Totals!$D21,Calculation!$E$1644:$CS$1644)+SUMIFS('Allocation to schools'!$E$88:$GF$88,'Allocation to schools'!$E$10:$GF$10,"from federal sources",'Allocation to schools'!$E$9:$GF$9,Totals!$D21) -> 0 | DK21: =SUMIF(Calculation!$E$4:$CS$4,Totals!$D21,Calculation!$E$1645:$CS$1645)+SUMIFS('Allocation to schools'!$E$89:$GF$89,'Allocation to schools'!$E$10:$GF$10,"from federal sources",'Allocation to schools'!$E$9:$GF$9,Totals!$D21) -> 0 | DL21: =SUMIF(Calculation!$E$4:$CS$4,Totals!$D21,Calculation!$E$1658:$CS$1658)+SUMIFS('Allocation to schools'!$E$181:$GF$181,'Allocation to schools'!$E$10:$GF$10,"from federal sources",'Allocation to schools'!$E$9:$GF$9,Totals!$D21) -> 0 | DM21: =SUMIF(Calculation!$E$4:$CS$4,Totals!$D21,Calculation!$E$1328:$CS$1328)+SUMIF('Allocation to schools'!$E$9:$GF$9,Totals!$D21,'Allocation to schools'!$E$95:$GF$95) -> 0 | DN21: =SUMIF(Calculation!$E$4:$CS$4,Totals!$D21,Calculation!$E$1339:$CS$1339)+SUMIF('Allocation to schools'!$E$9:$GF$9,Totals!$D21,'Allocation to schools'!$E$96:$GF$96) -> 0 | DO21: =SUMIF(Calculation!$E$4:$CS$4,Totals!$D21,Calculation!$E$89:$CS$89)+SUMIF('Allocation to schools'!$E$9:$GF$9,Totals!$D21,'Allocation to schools'!$E$97:$GF$97) -> 0 | DP21: =SUMIF(Calculation!$E$4:$CS$4,Totals!$D21,Calculation!$E$194:$CS$194)+SUMIF('Allocation to schools'!$E$9:$GF$9,Totals!$D21,'Allocation to schools'!$E$98:$GF$98) -> 0 | DQ21: =SUMIF(Calculation!$E$4:$CS$4,Totals!$D21,Calculation!$E$539:$CS$539)+SUMIF('Allocation to schools'!$E$9:$GF$9,Totals!$D21,'Allocation to schools'!$E$99:$GF$99) -> 0 | DR21: =SUMIF(Calculation!$E$4:$CS$4,Totals!$D21,Calculation!$E$717:$CS$717)+SUMIF('Allocation to schools'!$E$9:$GF$9,Totals!$D21,'Allocation to schools'!$E$100:$GF$100) -> 0 | DS21: =SUMIF(Calculation!$E$4:$CS$4,Totals!$D21,Calculation!$E$894:$CS$894)+SUMIF('Allocation to schools'!$E$9:$GF$9,Totals!$D21,'Allocation to schools'!$E$101:$GF$101) -> 0 | DT21: =SUMIF(Calculation!$E$4:$CS$4,Totals!$D21,Calculation!$E$1032:$CS$1032)+SUMIF('Allocation to schools'!$E$9:$GF$9,Totals!$D21,'Allocation to schools'!$E$102:$GF$102) -> 0 | DU21: =SUMIF(Calculation!$E$4:$CS$4,Totals!$D21,Calculation!$E$1197:$CS$1197)+SUMIF('Allocation to schools'!$E$9:$GF$9,Totals!$D21,'Allocation to schools'!$E$103:$GF$103) -> 0 | DV21: =SUMIF(Calculation!$E$4:$CS$4,Totals!$D21,Calculation!$E$1659:$CS$1659)+SUMIFS('Allocation to schools'!$E$97:$GF$97,'Allocation to schools'!$E$10:$GF$10,"from federal sources",'Allocation to schools'!$E$9:$GF$9,Totals!$D21) -> 0 | DW21: =SUMIF(Calculation!$E$4:$CS$4,Totals!$D21,Calculation!$E$1660:$CS$1660)+SUMIFS('Allocation to schools'!$E$98:$GF$98,'Allocation to schools'!$E$10:$GF$10,"from federal sources",'Allocation to schools'!$E$9:$GF$9,Totals!$D21) -> 0 | DX21: =SUMIF(Calculation!$E$4:$CS$4,Totals!$D21,Calculation!$E$1673:$CS$1673)+SUMIFS('Allocation to schools'!$E$182:$GF$182,'Allocation to schools'!$E$10:$GF$10,"from federal sources",'Allocation to schools'!$E$9:$GF$9,Totals!$D21) -> 0 | DY21: =SUMIF(Calculation!$E$4:$CS$4,Totals!$D21,Calculation!$E$1350:$CS$1350)+SUMIF('Allocation to schools'!$E$9:$GF$9,Totals!$D21,'Allocation to schools'!$E$104:$GF$104) -> 0 | DZ21: =SUMIF(Calculation!$E$4:$CS$4,Totals!$D21,Calculation!$E$96:$CS$96)+SUMIF('Allocation to schools'!$E$9:$GF$9,Totals!$D21,'Allocation to schools'!$E$105:$GF$105) -> 0 | EA21: =SUMIF(Calculation!$E$4:$CS$4,Totals!$D21,Calculation!$E$201:$CS$201)+SUMIF('Allocation to schools'!$E$9:$GF$9,Totals!$D21,'Allocation to schools'!$E$106:$GF$106) -> 0 | EB21: =SUMIF(Calculation!$E$4:$CS$4,Totals!$D21,Calculation!$E$566:$CS$566)+SUMIF('Allocation to schools'!$E$9:$GF$9,Totals!$D21,'Allocation to schools'!$E$107:$GF$107) -> 0 | EC21: =SUMIF(Calculation!$E$4:$CS$4,Totals!$D21,Calculation!$E$724:$CS$724)+SUMIF('Allocation to schools'!$E$9:$GF$9,Totals!$D21,'Allocation to schools'!$E$108:$GF$108) -> 0 | ED21: =SUMIF(Calculation!$E$4:$CS$4,Totals!$D21,Calculation!$E$907:$CS$907)+SUMIF('Allocation to schools'!$E$9:$GF$9,Totals!$D21,'Allocation to schools'!$E$109:$GF$109) -> 0 | EE21: =SUMIF(Calculation!$E$4:$CS$4,Totals!$D21,Calculation!$E$1039:$CS$1039)+SUMIF('Allocation to schools'!$E$9:$GF$9,Totals!$D21,'Allocation to schools'!$E$110:$GF$110) -> 0 | EF21: =SUMIF(Calculation!$E$4:$CS$4,Totals!$D21,Calculation!$E$1204:$CS$1204)+SUMIF('Allocation to schools'!$E$9:$GF$9,Totals!$D21,'Allocation to schools'!$E$111:$GF$111) -> 0 | EH21: =SUMIF(Calculation!$E$4:$CS$4,Totals!$D21,Calculation!$E$1361:$CS$1361)+SUMIF('Allocation to schools'!$E$9:$GF$9,Totals!$D21,'Allocation to schools'!$E$112:$GF$112) -> 0 | EI21: =SUMIF(Calculation!$E$4:$CS$4,Totals!$D21,Calculation!$E$1079:$CS$1079)+SUMIF('Allocation to schools'!$E$9:$GF$9,Totals!$D21,'Allocation to schools'!$E$113:$GF$113)+SUMIF('Allocation to schools'!$E$9:$GF$9,Totals!$D21,'Allocation to schools'!$E$113:$GF$113)+SUMIF(Calculation!$E$4:$CS$4,Totals!$D21,Calculation!$E$1495:$CS$1495) -> 0 | EJ21: =SUMIF(Calculation!$E$4:$CS$4,Totals!$D21,Calculation!$E$1108:$CS$1108)+SUMIF('Allocation to schools'!$E$9:$GF$9,Totals!$D21,'Allocation to schools'!$E$115:$GF$115)+SUMIF('Allocation to schools'!$E$9:$GF$9,Totals!$D21,'Allocation to schools'!$E$116:$GF$116) -> 0 | EK21: =SUMIF(Calculation!$E$4:$CS$4,Totals!$D21,Calculation!$E$1372:$CS$1372)+SUMIF('Allocation to schools'!$E$9:$GF$9,Totals!$D21,'Allocation to schools'!$E$117:$GF$117) -> 0 | EN21: =SUMIF(Calculation!$E$4:$CS$4,Totals!$D21,Calculation!$E$110:$CS$110)+SUMIFS('Allocation to schools'!$E$162:$GF$162,'Allocation to schools'!$E$9:$GF$9,Totals!$D21,'Allocation to schools'!$E$10:$GF$10,"from federal sources") -> 31478.35 | EO21: =SUMIF(Calculation!$E$4:$CS$4,Totals!$D21,Calculation!$E$215:$CS$215)+SUMIFS('Allocation to schools'!$E$163:$GF$163,'Allocation to schools'!$E$9:$GF$9,Totals!$D21,'Allocation to schools'!$E$10:$GF$10,"from federal sources") -> 6682.73 | EP21: =SUMIF(Calculation!$E$4:$CS$4,Totals!$D21,Calculation!$E$633:$CS$633)+SUMIFS('Allocation to schools'!$E$164:$GF$164,'Allocation to schools'!$E$9:$GF$9,Totals!$D21,'Allocation to schools'!$E$10:$GF$10,"from federal sources") -> 370 | EQ21: =SUMIF(Calculation!$E$4:$CS$4,Totals!$D21,Calculation!$E$738:$CS$738)+SUMIFS('Allocation to schools'!$E$165:$GF$165,'Allocation to schools'!$E$9:$GF$9,Totals!$D21,'Allocation to schools'!$E$10:$GF$10,"from federal sources")+IF(SUMIFS('Allocation to schools'!$E$80:$GI$80,'Allocation to schools'!$E$9:$GI$9,Totals!$D21,'Allocation to schools'!$E$10:$GI$10,"from federal sources")+SUMIFS('Allocation to schools'!$E$83:$GI$83,'Allocation to schools'!$E$9:$GI$9,Totals!$D21,'Allocation to schools'!$E$10:$GI$10,"from federal sources")>0,0,SUMIF('Data entry'!$B$13:$CS$13,Totals!$D21,'Data entry'!$B$97:$CS$97)) -> 20866.85 | ER21: =SUMIF(Calculation!$E$4:$CS$4,Totals!$D21,Calculation!$E$948:$CS$948)+SUMIFS('Allocation to schools'!$E$166:$GF$166,'Allocation to schools'!$E$9:$GF$9,Totals!$D21,'Allocation to schools'!$E$10:$GF$10,"from federal sources") -> 37712.89 | ES21: =SUMIF(Calculation!$E$4:$CS$4,Totals!$D21,Calculation!$E$1053:$CS$1053)+SUMIFS('Allocation to schools'!$E$167:$GF$167,'Allocation to schools'!$E$9:$GF$9,Totals!$D21,'Allocation to schools'!$E$10:$GF$10,"from federal sources") -> 0 | ET21: =SUMIF(Calculation!$E$4:$CS$4,Totals!$D21,Calculation!$E$1065:$CS$1065)+SUMIFS('Allocation to schools'!$E$168:$GF$168,'Allocation to schools'!$E$9:$GF$9,Totals!$D21,'Allocation to schools'!$E$10:$GF$10,"from federal sources") -> 0 | EU21: =SUMIF(Calculation!$E$4:$CS$4,Totals!$D21,Calculation!$E$1113:$CS$1113)+SUMIFS('Allocation to schools'!$E$169:$GF$169,'Allocation to schools'!$E$9:$GF$9,Totals!$D21,'Allocation to schools'!$E$10:$GF$10,"from federal sources") -> 0 | EV21: =SUMIF(Calculation!$E$4:$CS$4,Totals!$D21,Calculation!$E$1218:$CS$1218)+SUMIFS('Allocation to schools'!$E$170:$GF$170,'Allocation to schools'!$E$9:$GF$9,Totals!$D21,'Allocation to schools'!$E$10:$GF$10,"from federal sources") -> 0 | EX21: =SUMIF(Calculation!$E$4:$CS$4,Totals!$D21,Calculation!$E$1392:$CS$1392)+SUMIFS('Allocation to schools'!$E$171:$GF$171,'Allocation to schools'!$E$9:$GF$9,Totals!$D21,'Allocation to schools'!$E$10:$GF$10,"from federal sources") -> 0 | EY21: =(SUMIF(Calculation!$E$4:$CS$4,Totals!$D21,Calculation!$E$97:$CS$97)-SUMIF(Calculation!$E$4:$CS$4,Totals!$D21,Calculation!$E$110:$CS$110))+SUMIFS('Allocation to schools'!$E$162:$GF$162,'Allocation to schools'!$E$9:$GF$9,Totals!$D21,'Allocation to schools'!$E$10:$GF$10,"from local & State sources") -> 2408355.52 | EZ21: =(SUMIF(Calculation!$E$4:$CS$4,Totals!$D21,Calculation!$E$202:$CS$202)-SUMIF(Calculation!$E$4:$CS$4,Totals!$D21,Calculation!$E$215:$CS$215))+SUMIFS('Allocation to schools'!$E$163:$GF$163,'Allocation to schools'!$E$9:$GF$9,Totals!$D21,'Allocation to schools'!$E$10:$GF$10,"from local & State sources") -> 697389.69 | FA21: =(SUMIF(Calculation!$E$4:$CS$4,Totals!$D21,Calculation!$E$567:$CS$567)-SUMIF(Calculation!$E$4:$CS$4,Totals!$D21,Calculation!$E$633:$CS$633))+SUMIFS('Allocation to schools'!$E$164:$GF$164,'Allocation to schools'!$E$9:$GF$9,Totals!$D21,'Allocation to schools'!$E$10:$GF$10,"from local & State sources") -> 407934.45 | FB21: =(SUMIF(Calculation!$E$4:$CS$4,Totals!$D21,Calculation!$E$725:$CS$725)-SUMIF(Calculation!$E$4:$CS$4,Totals!$D21,Calculation!$E$738:$CS$738))+SUMIFS('Allocation to schools'!$E$165:$GF$165,'Allocation to schools'!$E$9:$GF$9,Totals!$D21,'Allocation to schools'!$E$10:$GF$10,"from local & State sources")-IF(SUMIFS('Allocation to schools'!$E$80:$GI$80,'Allocation to schools'!$E$9:$GI$9,Totals!$D21,'Allocation to schools'!$E$10:$GI$10,"from federal sources")+SUMIFS('Allocation to schools'!$E$83:$GI$83,'Allocation to schools'!$E$9:$GI$9,Totals!$D21,'Allocation to schools'!$E$10:$GI$10,"from federal sources")>0,0,SUMIF('Data entry'!$B$13:$CS$13,Totals!$D21,'Data entry'!$B$97:$CS$97)) -> 256991.75 | FC21: =(SUMIF(Calculation!$E$4:$CS$4,Totals!$D21,Calculation!$E$908:$CS$908)-SUMIF(Calculation!$E$4:$CS$4,Totals!$D21,Calculation!$E$948:$CS$948))+SUMIFS('Allocation to schools'!$E$166:$GF$166,'Allocation to schools'!$E$9:$GF$9,Totals!$D21,'Allocation to schools'!$E$10:$GF$10,"from local & State sources") -> 37306.31 | FD21: =(SUMIF(Calculation!$E$4:$CS$4,Totals!$D21,Calculation!$E$1040:$CS$1040)-SUMIF(Calculation!$E$4:$CS$4,Totals!$D21,Calculation!$E$1053:$CS$1053))+SUMIFS('Allocation to schools'!$E$167:$GF$167,'Allocation to schools'!$E$9:$GF$9,Totals!$D21,'Allocation to schools'!$E$10:$GF$10,"from local & State sources") -> 42819.2 | FE21: =(SUMIF(Calculation!$E$4:$CS$4,Totals!$D21,Calculation!$E$1060:$CS$1060)-SUMIF(Calculation!$E$4:$CS$4,Totals!$D21,Calculation!$E$1065:$CS$1065))+SUMIFS('Allocation to schools'!$E$168:$GF$168,'Allocation to schools'!$E$9:$GF$9,Totals!$D21,'Allocation to schools'!$E$10:$GF$10,"from local & State sources") -> 0 | FF21: =(SUMIF(Calculation!$E$4:$CS$4,Totals!$D21,Calculation!$E$1086:$CS$1086)-SUMIF(Calculation!$E$4:$CS$4,Totals!$D21,Calculation!$E$1113:$CS$1113))+SUMIFS('Allocation to schools'!$E$169:$GF$169,'Allocation to schools'!$E$9:$GF$9,Totals!$D21,'Allocation to schools'!$E$10:$GF$10,"from local & State sources") -> 0 | FG21: =(SUMIF(Calculation!$E$4:$CS$4,Totals!$D21,Calculation!$E$1205:$CS$1205)-SUMIF(Calculation!$E$4:$CS$4,Totals!$D21,Calculation!$E$1218:$CS$1218))+SUMIFS('Allocation to schools'!$E$170:$GF$170,'Allocation to schools'!$E$9:$GF$9,Totals!$D21,'Allocation to schools'!$E$10:$GF$10,"from local & State sources") -> 22829.26 | FI21: =(SUMIF(Calculation!$E$4:$CS$4,Totals!$D21,Calculation!$E$1373:$CS$1373)-SUMIF(Calculation!$E$4:$CS$4,Totals!$D21,Calculation!$E$1392:$CS$1392))+SUMIFS('Allocation to schools'!$E$171:$GF$171,'Allocation to schools'!$E$9:$GF$9,Totals!$D21,'Allocation to schools'!$E$10:$GF$10,"from local & State sources") -> 0 | FJ21: =SUMIF('Data entry'!$B$13:$CS$13,Totals!$D21,'Data entry'!$B$15:$CS$15) -> 1168101.77 | FL21: =SUMIF('Data entry'!$B$13:$CS$13,Totals!$D21,'Data entry'!$B$20:$CS$20) -> 0 | FN21: =SUMIF('Data entry'!$B$13:$CS$13,Totals!$D21,'Data entry'!$B$25:$CS$25) -> 0 | FO21: =SUMIF('Data entry'!$B$13:$CS$13,Totals!$D21,'Data entry'!$B$30:$CS$30) -> 45225 | FP21: =SUMIF('Data entry'!$B$13:$CS$13,Totals!$D21,'Data entry'!$B$35:$CS$35) -> 371091.57 | FQ21: =SUMIF('Data entry'!$B$13:$CS$13,Totals!$D21,'Data entry'!$B$16:$CS$16) -> 242077.52 | FS21: =SUMIF('Data entry'!$B$13:$CS$13,Totals!$D21,'Data entry'!$B$21:$CS$21) -> 0 | FU21: =SUMIF('Data entry'!$B$13:$CS$13,Totals!$D21,'Data entry'!$B$26:$CS$26) -> 0 | FV21: =SUMIF('Data entry'!$B$13:$CS$13,Totals!$D21,'Data entry'!$B$31:$CS$31) -> 3225 | FW21: =SUMIF('Data entry'!$B$13:$CS$13,Totals!$D21,'Data entry'!$B$36:$CS$36) -> 59826.11 | FX21: =SUMIF('Data entry'!$B$13:$CS$13,Totals!$D21,'Data entry'!$B$17:$CS$17) -> 162532.94 | FZ21: =SUMIF('Data entry'!$B$13:$CS$13,Totals!$D21,'Data entry'!$B$22:$CS$22) -> 0 | GB21: =SUMIF('Data entry'!$B$13:$CS$13,Totals!$D21,'Data entry'!$B$27:$CS$27) -> 0 | GC21: =SUMIF('Data entry'!$B$13:$CS$13,Totals!$D21,'Data entry'!$B$32:$CS$32) -> 0 | GD21: =SUMIF('Data entry'!$B$13:$CS$13,Totals!$D21,'Data entry'!$B$37:$CS$37) -> 45816.66 | GE21: =SUMIF('Data entry'!$B$13:$CS$13,Totals!$D21,'Data entry'!$B$18:$CS$18) -> 0 | GG21: =SUMIF('Data entry'!$B$13:$CS$13,Totals!$D21,'Data entry'!$B$23:$CS$23) -> 0 | GI21: =SUMIF('Data entry'!$B$13:$CS$13,Totals!$D21,'Data entry'!$B$28:$CS$28) -> 0 | GJ21: =SUMIF('Data entry'!$B$13:$CS$13,Totals!$D21,'Data entry'!$B$33:$CS$33) -> 0 | GK21: =SUMIF('Data entry'!$B$13:$CS$13,Totals!$D21,'Data entry'!$B$38:$CS$38) -> 0 | GL21: =SUMIF('Data entry'!$B$13:$CS$13,Totals!$D21,'Data entry'!$B$19:$CS$19) -> 0 | GN21: =SUMIF('Data entry'!$B$13:$CS$13,Totals!$D21,'Data entry'!$B$24:$CS$24) -> 0 | GP21: =SUMIF('Data entry'!$B$13:$CS$13,Totals!$D21,'Data entry'!$B$29:$CS$29) -> 0 | GQ21: =SUMIF('Data entry'!$B$13:$CS$13,Totals!$D21,'Data entry'!$B$34:$CS$34) -> 0 | GR21: =SUMIF('Data entry'!$B$13:$CS$13,Totals!$D21,'Data entry'!$B$39:$CS$39) -> 0 | GS21: =SUMIF('Data entry'!$B$13:$CS$13,Totals!$D21,'Data entry'!$B$41:$CS$41) -> 0 | GT21: =SUMIF(Calculation!$E$4:$CS$4,Totals!$D21,Calculation!$E$1460:$CS$1460)+SUMIFS('Allocation to schools'!$E$20:$GF$20,'Allocation to schools'!$E$9:$GF$9,Totals!$D21,'Allocation to schools'!$E$10:$GF$10,"from federal sources") -> 0 | GU21: =SUMIF(Calculation!$E$4:$CS$4,Totals!$D21,Calculation!$E$1461:$CS$1461)+SUMIFS('Allocation to schools'!$E$20:$GF$20,'Allocation to schools'!$E$9:$GF$9,Totals!$D21,'Allocation to schools'!$E$10:$GF$10,"from local & State sources") -> 28349.52 | GV21: =SUMIF(Calculation!$E$4:$CS$4,Totals!$D21,Calculation!$E$1394:$CS$1394)+SUMIF('Allocation to schools'!$E$9:$GF$9,Totals!$D21,'Allocation to schools'!$E$127:$GF$127) -> 248581.68 | GW21: =SUMIF(Calculation!$E$4:$CS$4,Totals!$D21,Calculation!$E$1396:$CS$1396)+SUMIF('Allocation to schools'!$E$9:$GF$9,Totals!$D21,'Allocation to schools'!$E$128:$GF$128) -> 57058.92 | GX21: =SUMIF(Calculation!$E$4:$CS$4,Totals!$D21,Calculation!$E$1400:$CS$1400)+SUMIF('Allocation to schools'!$E$9:$GF$9,Totals!$D21,'Allocation to schools'!$E$129:$GF$129) -> 0 | GY21: =SUMIF(Calculation!$E$4:$CS$4,Totals!$D21,Calculation!$E$1402:$CS$1402)+SUMIF('Allocation to schools'!$E$9:$GF$9,Totals!$D21,'Allocation to schools'!$E$130:$GF$130) -> 0 | GZ21: =SUMIF(Calculation!$E$4:$CS$4,Totals!$D21,Calculation!$E$1404:$CS$1404)+SUMIF('Allocation to schools'!$E$9:$GF$9,Totals!$D21,'Allocation to schools'!$E$131:$GF$131) -> 0 | HA21: =SUMIF(Calculation!$E$4:$CS$4,Totals!$D21,Calculation!$E$1406:$CS$1406)+SUMIF('Allocation to schools'!$E$9:$GF$9,Totals!$D21,'Allocation to schools'!$E$132:$GF$132) -> 18500 | HB21: =SUMIF(Calculation!$E$4:$CS$4,Totals!$D21,Calculation!$E$1408:$CS$1408)+SUMIF('Allocation to schools'!$E$9:$GF$9,Totals!$D21,'Allocation to schools'!$E$133:$GF$133) -> 4521.49 | HC21: =SUMIF(Calculation!$E$4:$CS$4,Totals!$D21,Calculation!$E$1412:$CS$1412)+SUMIF('Allocation to schools'!$E$9:$GF$9,Totals!$D21,'Allocation to schools'!$E$134:$GF$134) -> 0 | HD21: =SUMIF(Calculation!$E$4:$CS$4,Totals!$D21,Calculation!$E$1414:$CS$1414)+SUMIF('Allocation to schools'!$E$9:$GF$9,Totals!$D21,'Allocation to schools'!$E$135:$GF$135) -> 0 | HE21: =SUMIF(Calculation!$E$4:$CS$4,Totals!$D21,Calculation!$E$1416:$CS$1416)+SUMIF('Allocation to schools'!$E$9:$GF$9,Totals!$D21,'Allocation to schools'!$E$136:$GF$136) -> 0 | HF21: =SUMIF(Calculation!$E$4:$CS$4,Totals!$D21,Calculation!$E$1418:$CS$1418)+SUMIF('Allocation to schools'!$E$9:$GF$9,Totals!$D21,'Allocation to schools'!$E$137:$GF$137) -> 0 | HG21: =SUMIF(Calculation!$E$4:$CS$4,Totals!$D21,Calculation!$E$1420:$CS$1420)+SUMIF('Allocation to schools'!$E$9:$GF$9,Totals!$D21,'Allocation to schools'!$E$138:$GF$138) -> 0 | HH21: =SUMIF(Calculation!$E$4:$CS$4,Totals!$D21,Calculation!$E$1424:$CS$1424)+SUMIF('Allocation to schools'!$E$9:$GF$9,Totals!$D21,'Allocation to schools'!$E$139:$GF$139) -> 0 | HI21: =SUMIF(Calculation!$E$4:$CS$4,Totals!$D21,Calculation!$E$1426:$CS$1426)+SUMIF('Allocation to schools'!$E$9:$GF$9,Totals!$D21,'Allocation to schools'!$E$140:$GF$140) -> 0 | HJ21: =SUMIF(Calculation!$E$4:$CS$4,Totals!$D21,Calculation!$E$1428:$CS$1428)+SUMIF('Allocation to schools'!$E$9:$GF$9,Totals!$D21,'Allocation to schools'!$E$141:$GF$141) -> 0 | HK21: =SUMIF(Calculation!$E$4:$CS$4,Totals!$D21,Calculation!$E$1430:$CS$1430)+SUMIF('Allocation to schools'!$E$9:$GF$9,Totals!$D21,'Allocation to schools'!$E$142:$GF$142) -> 0 | HL21: =SUMIF(Calculation!$E$4:$CS$4,Totals!$D21,Calculation!$E$1432:$CS$1432)+SUMIF('Allocation to schools'!$E$9:$GF$9,Totals!$D21,'Allocation to schools'!$E$143:$GF$143) -> 0 | HM21: =SUMIF(Calculation!$E$4:$CS$4,Totals!$D21,Calculation!$E$1436:$CS$1436)+SUMIF('Allocation to schools'!$E$9:$GF$9,Totals!$D21,'Allocation to schools'!$E$144:$GF$144) -> 0 | HN21: =SUMIF('Allocation to schools'!$E$9:$GF$9,Totals!$D21,'Allocation to schools'!$E$145:$GF$145)+SUMIF(Calculation!$E$4:$CS$4,Totals!$D21,Calculation!$E$1438:$CS$1438) -> 0 | HO21: =SUMIF('Allocation to schools'!$E$9:$GF$9,Totals!$D21,'Allocation to schools'!$E$146:$GF$146)+SUMIF(Calculation!$E$4:$CS$4,Totals!$D21,Calculation!$E$1436:$CS$1436) -> 0 | HP21: =SUMIF('Allocation to schools'!$E$9:$GF$9,Totals!$D21,'Allocation to schools'!$E$150:$GF$150)+SUMIF(Calculation!$E$4:$CS$4,Totals!$D21,Calculation!$E$1480:$CS$1480) -> 0 | HQ21: =SUMIF('Allocation to schools'!$E$9:$GF$9,Totals!$D21,'Allocation to schools'!$E$151:$GF$151)+SUMIF(Calculation!$E$4:$CS$4,Totals!$D21,Calculation!$E$1480:$CS$1480) -> 0 | HR21: =SUMIF(Calculation!$E$4:$CS$4,Totals!$D21,Calculation!$E$1482:$CS$1482)+SUMIF('Allocation to schools'!$E$9:$GF$9,Totals!$D21,'Allocation to schools'!$E$152:$GF$152) -> 0 | HS21: =SUMIF(Calculation!$E$4:$CS$4,Totals!$D21,Calculation!$E$1483:$CS$1483)+SUMIF('Allocation to schools'!$E$9:$GF$9,Totals!$D21,'Allocation to schools'!$E$153:$GF$153) -> 8278.79 | HT21: =SUMIF('Data entry'!$B$13:$CS$13,Totals!$D21,'Data entry'!$B$44:$CS$44) -> 69057.59 | HU21: =SUMIF(Calculation!$E$4:$CS$4,Totals!$D21,Calculation!$E$1484:$CS$1484)+SUMIF('Allocation to schools'!$E$9:$GF$9,Totals!$D21,'Allocation to schools'!$E$154:$GF$154) -> 13200.01 | HV21: =SUMIF('Data entry'!$B$13:$CS$13,Totals!$D21,'Data entry'!$B$45:$CS$45) -> 0 | HW21: =SUMIF(Calculation!$E$4:$CS$4,Totals!$D21,Calculation!$E$1495:$CS$1495)+SUMIF('Allocation to schools'!$E$9:$GF$9,Totals!$D21,'Allocation to schools'!$E$114:$GF$114)+SUMIF(Calculation!$E$4:$CS$4,Totals!$D21,Calculation!$E$1502:$CS$1502)+SUMIF('Allocation to schools'!$E$9:$GF$9,Totals!$D21,'Allocation to schools'!$E$116:$GF$116) -> 0 | HX21: =SUMIF(Calculation!$E$4:$CS$4,Totals!$D21,Calculation!$E$1486:$CS$1486)+SUMIF('Allocation to schools'!$E$9:$GF$9,Totals!$D21,'Allocation to schools'!$E$158:$GF$158) -> 8582.58 | HY21: =SUMIF(Calculation!$E$4:$CS$4,Totals!$D21,Calculation!$E$1487:$CS$1487)+SUMIF('Allocation to schools'!$E$9:$GF$9,Totals!$D21,'Allocation to schools'!$E$159:$GF$159) -> 0 | HZ21: =SUMIF('Data entry'!$B$13:$CS$13,Totals!$D21,'Data entry'!$B$73:$CS$73) -> 3660477.902 | IA21: =SUMIF('Data entry'!$B$13:$CS$13,Totals!$D21,'Data entry'!$B$76:$CS$76) -> 360226.8817 | IB21: =SUMIF('Data entry'!$B$13:$CS$13,Totals!$D21,'Data entry'!$B$79:$CS$79) -> 513679.4709 | IC21: =SUMIF('Data entry'!$B$13:$CS$13,Totals!$D21,'Data entry'!$B$80:$CS$80) -> 0 | ID21: =SUMIF('Data entry'!$B$13:$CS$13,Totals!$D21,'Data entry'!$B$82:$CS$82) -> 0 | IE21: =SUMIF('Data entry'!$B$13:$CS$13,Totals!$D21,'Data entry'!$B$83:$CS$83) -> 0 | IF21: =SUMIF('Data entry'!$B$13:$CS$13,Totals!$D21,'Data entry'!$B$85:$CS$85) -> 0 | IG21: =SUMIF('Data entry'!$B$13:$CS$13,Totals!$D21,'Data entry'!$B$86:$CS$86) -> 0 | IH21: =SUMIF('Data entry'!$B$13:$CS$13,Totals!$D21,'Data entry'!$B$87:$CS$87) -> 0 | II21: =SUMIF('Data entry'!$B$13:$CS$13,Totals!$D21,'Data entry'!$B$88:$CS$88) -> 0 | IJ21: =SUMIF('Data entry'!$B$13:$CS$13,Totals!$D21,'Data entry'!$B$89:$CS$89) -> 0 | IK21: =SUMIF('Data entry'!$B$13:$CS$13,Totals!$D21,'Data entry'!$B$90:$CS$90) -> 0 | IL21: =SUMIF('Data entry'!$B$13:$CS$13,Totals!$D21,'Data entry'!$B$91:$CS$91) -> 0 | IM21: =SUMIF('Data entry'!$B$13:$CS$13,Totals!$D21,'Data entry'!$B$92:$CS$92) -> 0 | IN21: =SUMIF('Data entry'!$B$13:$CS$13,Totals!$D21,'Data entry'!$B$93:$CS$93) -> 0 | IO21: =SUMIF('Data entry'!$B$13:$CS$13,Totals!$D21,'Data entry'!$B$94:$CS$94) -> 0 | IP21: =SUMIF('Data entry'!$B$13:$CS$13,Totals!$D21,'Data entry'!$B$95:$CS$95) -> 0 | IQ21: =SUMIF('Data entry'!$B$13:$CS$13,Totals!$D21,'Data entry'!$B$96:$CS$96) -> 0 | IR21: =SUMIF('Data entry'!$B$13:$CS$13,Totals!$D21,'Data entry'!$B$97:$CS$97) -> 0 | IS21: =SUMIF('Data entry'!$B$13:$CS$13,Totals!$D21,'Data entry'!$B$98:$CS$98) -> 0 | IT21: 0 | IU21: =SUMIF('Data entry'!$B$13:$CS$13,Totals!$D21,'Data entry'!$B$107:$CS$107) -> 944262.339 | IV21: =SUMIF('Data entry'!$B$13:$CS$13,Totals!$D21,'Data entry'!$B$108:$CS$108) -> 152158.2687 | IW21: =SUMIF('Data entry'!$B$13:$CS$13,Totals!$D21,'Data entry'!$B$109:$CS$109) -> 500186.585 | IX21: =SUMIF('Data entry'!$B$13:$CS$13,Totals!$D21,'Data entry'!$B$110:$CS$110) -> 19658.84 | IY21: =SUMIF('Data entry'!$B$13:$CS$13,Totals!$D21,'Data entry'!$B$111:$CS$111) -> 1616266.033 | IZ21: =SUMIF('Data entry'!$B$13:$CS$13,Totals!$D21,'Data entry'!$B$112:$CS$112) -> 0 | JA21: =SUMIF('Data entry'!$B$13:$CS$13,Totals!$D21,'Data entry'!$B$113:$CS$113) -> 1616266.033 | JB21: =SUMIF('Data entry'!$B$13:$CS$13,Totals!$D21,'Data entry'!$B$114:$CS$114) -> 0 | JC21: =SUMIF('Data entry'!$B$13:$CS$13,Totals!$D21,'Data entry'!$B$115:$CS$115) -> 1616266.033 | JD21: =SUMIF('Data entry'!$B$13:$CS$13,Totals!$D21,'Data entry'!$B$117:$CS$117) -> 0 | JE21: =SUMIF('Data entry'!$B$13:$CS$13,Totals!$D21,'Data entry'!$B$119:$CS$119) -> 1616266.033 | JF21: =SUMIF('Data entry'!$B$13:$CS$13,Totals!$D21,'Data entry'!$B$124:$CS$124) -> 515052.1849 | JG21: =SUMIF('Data entry'!$B$13:$CS$13,Totals!$D21,'Data entry'!$B$125:$CS$125) -> 82995.41927 | JH21: =SUMIF('Data entry'!$B$13:$CS$13,Totals!$D21,'Data entry'!$B$126:$CS$126) -> 500186.585 | JI21: =SUMIF('Data entry'!$B$13:$CS$13,Totals!$D21,'Data entry'!$B$127:$CS$127) -> 19658.84 | JJ21: =SUMIF('Data entry'!$B$13:$CS$13,Totals!$D21,'Data entry'!$B$128:$CS$128) -> 1117893.029 | JK21: =SUMIF('Data entry'!$B$13:$CS$13,Totals!$D21,'Data entry'!$B$129:$CS$129) -> 0 | JL21: =SUMIF('Data entry'!$B$13:$CS$13,Totals!$D21,'Data entry'!$B$130:$CS$130) -> 1117893.029 | JM21: =SUMIF('Data entry'!$B$13:$CS$13,Totals!$D21,'Data entry'!$B$131:$CS$131) -> 0 | JN21: =SUMIF('Data entry'!$B$13:$CS$13,Totals!$D21,'Data entry'!$B$132:$CS$132) -> 1117893.029 | JO21: =SUMIF('Data entry'!$B$13:$CS$13,Totals!$D21,'Data entry'!$B$134:$CS$134) -> 327663.28 | JP21: =SUMIF('Data entry'!$B$13:$CS$13,Totals!$D21,'Data entry'!$B$136:$CS$136) -> 790229.7492 | JQ21: =SUMIF('Data entry'!$B$13:$CS$13,Totals!$D21,'Data entry'!$B$138:$CS$138) -> 318772.52 | JR21: =IF(D21=0,"0%",SUMIF('Data entry'!$B$13:$CS$13,Totals!$D21,'Data entry'!$B$139:$CS$139)) -> 0.9728661692 | JS21: =SUMIF(Calculation!$E$4:$CS$4,Totals!$D21,Calculation!$E$1442:$CS$1442)+SUMIF('Allocation to schools'!$E$9:$GF$9,Totals!$D21,'Allocation to schools'!$E$122:$GF$122) -> 0 | JT21: =SUMIF('Data entry'!$B$13:$CS$13,Totals!$D21,'Data entry'!$B$102:$CS$102) -> 0 | JU21: The School's programs 200, 512, 514, and 515 special education spending was less than base, weighted, IDEA, and other special education funding.
A22: School 3 | B22: =VLOOKUP(A22,'School listing'!$A$7:$E$99,2,FALSE) -> Red Rock Academy | C22: =IF(VLOOKUP(A22,'School listing'!$A$7:$E$99,3,FALSE)="","",VLOOKUP(A22,'School listing'!$A$7:$E$99,3,FALSE)) -> 130209211 | D22: =IF(VLOOKUP(A22,'School listing'!$A$7:$F$99,6,FALSE)="","",VLOOKUP(A22,'School listing'!$A$7:$F$99,6,FALSE)) -> 211 | E22: =VLOOKUP(A22,'School listing'!$A$7:$E$99,4,FALSE) -> 10 | G22: =SUMIF(Calculation!$E$4:$CS$4,Totals!$D22,Calculation!$E$12:$CS$12)+SUMIF('Allocation to schools'!$E$9:$GF$9,Totals!$D22,'Allocation to schools'!$E$12:$GF$12)+SUMIF('Allocation to schools'!$E$9:$GF$9,Totals!$D22,'Allocation to schools'!$E$20:$GF$20) -> 0 | H22: =SUMIF(Calculation!$E$4:$CS$4,Totals!$D22,Calculation!$E$117:$CS$117)+SUMIF('Allocation to schools'!$E$9:$GF$9,Totals!$D22,'Allocation to schools'!$E$13:$GF$13)+SUMIF('Allocation to schools'!$E$9:$GF$9,Totals!$D22,'Allocation to schools'!$E$21:$GF$21) -> 0 | I22: =SUMIF(Calculation!$E$4:$CS$4,Totals!$D22,Calculation!$E$242:$CS$242)+SUMIF('Allocation to schools'!$E$9:$GF$9,Totals!$D22,'Allocation to schools'!$E$14:$GF$14) -> 0 | J22: =SUMIF(Calculation!$E$4:$CS$4,Totals!$D22,Calculation!$E$640:$CS$640)+SUMIF('Allocation to schools'!$E$9:$GF$9,Totals!$D22,'Allocation to schools'!$E$15:$GF$15) -> 0 | K22: =SUMIF(Calculation!$E$4:$CS$4,Totals!$D22,Calculation!$E$751:$CS$751)+SUMIF('Allocation to schools'!$E$9:$GF$9,Totals!$D22,'Allocation to schools'!$E$16:$GF$16) -> 0 | L22: =SUMIF(Calculation!$E$4:$CS$4,Totals!$D22,Calculation!$E$955:$CS$955)+SUMIF('Allocation to schools'!$E$9:$GF$9,Totals!$D22,'Allocation to schools'!$E$17:$GF$17) -> 0 | M22: =SUMIF(Calculation!$E$4:$CS$4,Totals!$D22,Calculation!$E$1120:$CS$1120)+SUMIF('Allocation to schools'!$E$9:$GF$9,Totals!$D22,'Allocation to schools'!$E$18:$GF$18) -> 0 | N22: =SUMIF(Calculation!$E$4:$CS$4,Totals!$D22,Calculation!$E$1503:$CS$1503)+SUMIFS('Allocation to schools'!$E$12:$GF$12,'Allocation to schools'!$E$10:$GF$10,"from federal sources",'Allocation to schools'!$E$9:$GF$9,Totals!$D22)+SUMIFS('Allocation to schools'!$E$20:$GF$20,'Allocation to schools'!$E$10:$GF$10,"from federal sources",'Allocation to schools'!$E$9:$GF$9,Totals!$D22) -> 0 | O22: =SUMIF(Calculation!$E$4:$CS$4,Totals!$D22,Calculation!$E$1504:$CS$1504)+SUMIFS('Allocation to schools'!$E$13:$GF$13,'Allocation to schools'!$E$10:$GF$10,"from federal sources",'Allocation to schools'!$E$9:$GF$9,Totals!$D22)+SUMIFS('Allocation to schools'!$E$21:$GF$21,'Allocation to schools'!$E$10:$GF$10,"from federal sources",'Allocation to schools'!$E$9:$GF$9,Totals!$D22) -> 0 | P22: =SUMIF(Calculation!$E$4:$CS$4,Totals!$D22,Calculation!$E$1505:$CS$1505)+SUMIFS('Allocation to schools'!$E$172:$GF$172,'Allocation to schools'!$E$10:$GF$10,"from federal sources",'Allocation to schools'!$E$9:$GF$9,Totals!$D22) -> 0 | Q22: =SUMIF(Calculation!$E$4:$CS$4,Totals!$D22,Calculation!$E$1229:$CS$1229)+SUMIF('Allocation to schools'!$E$9:$GF$9,Totals!$D22,'Allocation to schools'!$E$19:$GF$19)+SUMIF('Allocation to schools'!$E$9:$GF$9,Totals!$D22,'Allocation to schools'!$E$22:$GF$22) -> 0 | R22: =SUMIF(Calculation!$E$4:$CS$4,Totals!$D22,Calculation!$E$19:$CS$19)+SUMIF('Allocation to schools'!$E$9:$GF$9,Totals!$D22,'Allocation to schools'!$E$23:$GF$23) -> 0 | S22: =SUMIF(Calculation!$E$4:$CS$4,Totals!$D22,Calculation!$E$124:$CS$124)+SUMIF('Allocation to schools'!$E$9:$GF$9,Totals!$D22,'Allocation to schools'!$E$24:$GF$24) -> 0 | T22: =SUMIF(Calculation!$E$4:$CS$4,Totals!$D22,Calculation!$E$269:$CS$269)+SUMIF('Allocation to schools'!$E$9:$GF$9,Totals!$D22,'Allocation to schools'!$E$25:$GF$25) -> 0 | U22: =SUMIF(Calculation!$E$4:$CS$4,Totals!$D22,Calculation!$E$647:$CS$647)+SUMIF('Allocation to schools'!$E$9:$GF$9,Totals!$D22,'Allocation to schools'!$E$26:$GF$26) -> 0 | V22: =SUMIF(Calculation!$E$4:$CS$4,Totals!$D22,Calculation!$E$764:$CS$764)+SUMIF('Allocation to schools'!$E$9:$GF$9,Totals!$D22,'Allocation to schools'!$E$27:$GF$27) -> 0 | W22: =SUMIF(Calculation!$E$4:$CS$4,Totals!$D22,Calculation!$E$962:$CS$962)+SUMIF('Allocation to schools'!$E$9:$GF$9,Totals!$D22,'Allocation to schools'!$E$28:$GF$28) -> 0 | X22: =SUMIF(Calculation!$E$4:$CS$4,Totals!$D22,Calculation!$E$1127:$CS$1127)+SUMIF('Allocation to schools'!$E$9:$GF$9,Totals!$D22,'Allocation to schools'!$E$29:$GF$29) -> 0 | Y22: =SUMIF(Calculation!$E$4:$CS$4,Totals!$D22,Calculation!$E$1506:$CS$1506)+SUMIFS('Allocation to schools'!$E$23:$GF$23,'Allocation to schools'!$E$10:$GF$10,"from federal sources",'Allocation to schools'!$E$9:$GF$9,Totals!$D22) -> 0 | Z22: =SUMIF(Calculation!$E$4:$CS$4,Totals!$D22,Calculation!$E$1507:$CS$1507)+SUMIFS('Allocation to schools'!$E$24:$GF$24,'Allocation to schools'!$E$10:$GF$10,"from federal sources",'Allocation to schools'!$E$9:$GF$9,Totals!$D22) -> 0 | AA22: =SUMIF(Calculation!$E$4:$CS$4,Totals!$D22,Calculation!$E$1520:$CS$1520)+SUMIFS('Allocation to schools'!$E$173:$GF$173,'Allocation to schools'!$E$10:$GF$10,"from federal sources",'Allocation to schools'!$E$9:$GF$9,Totals!$D22) -> 0 | AB22: =SUMIF(Calculation!$E$4:$CS$4,Totals!$D22,Calculation!$E$1240:$CS$1240)+SUMIF('Allocation to schools'!$E$9:$GF$9,Totals!$D22,'Allocation to schools'!$E$30:$GF$30) -> 0 | AC22: =SUMIF(Calculation!$E$4:$CS$4,Totals!$D22,Calculation!$E$26:$CS$26)+SUMIF('Allocation to schools'!$E$9:$GF$9,Totals!$D22,'Allocation to schools'!$E$31:$GF$31) -> 0 | AD22: =SUMIF(Calculation!$E$4:$CS$4,Totals!$D22,Calculation!$E$131:$CS$131)+SUMIF('Allocation to schools'!$E$9:$GF$9,Totals!$D22,'Allocation to schools'!$E$32:$GF$32) -> 0 | AE22: =SUMIF(Calculation!$E$4:$CS$4,Totals!$D22,Calculation!$E$296:$CS$296)+SUMIF('Allocation to schools'!$E$9:$GF$9,Totals!$D22,'Allocation to schools'!$E$33:$GF$33) -> 0 | AF22: =SUMIF(Calculation!$E$4:$CS$4,Totals!$D22,Calculation!$E$654:$CS$654)+SUMIF('Allocation to schools'!$E$9:$GF$9,Totals!$D22,'Allocation to schools'!$E$34:$GF$34) -> 0 | AG22: =SUMIF(Calculation!$E$4:$CS$4,Totals!$D22,Calculation!$E$777:$CS$777)+SUMIF('Allocation to schools'!$E$9:$GF$9,Totals!$D22,'Allocation to schools'!$E$35:$GF$35) -> 0 | AH22: =SUMIF(Calculation!$E$4:$CS$4,Totals!$D22,Calculation!$E$969:$CS$969)+SUMIF('Allocation to schools'!$E$9:$GF$9,Totals!$D22,'Allocation to schools'!$E$36:$GF$36) -> 0 | AI22: =SUMIF(Calculation!$E$4:$CS$4,Totals!$D22,Calculation!$E$1134:$CS$1134)+SUMIF('Allocation to schools'!$E$9:$GF$9,Totals!$D22,'Allocation to schools'!$E$37:$GF$37) -> 0 | AJ22: =SUMIF(Calculation!$E$4:$CS$4,Totals!$D22,Calculation!$E$1521:$CS$1521)+SUMIFS('Allocation to schools'!$E$31:$GF$31,'Allocation to schools'!$E$10:$GF$10,"from federal sources",'Allocation to schools'!$E$9:$GF$9,Totals!$D22) -> 0 | AK22: =SUMIF(Calculation!$E$4:$CS$4,Totals!$D22,Calculation!$E$1522:$CS$1522)+SUMIFS('Allocation to schools'!$E$32:$GF$32,'Allocation to schools'!$E$10:$GF$10,"from federal sources",'Allocation to schools'!$E$9:$GF$9,Totals!$D22) -> 0 | AL22: =SUMIF(Calculation!$E$4:$CS$4,Totals!$D22,Calculation!$E$1535:$CS$1535)+SUMIFS('Allocation to schools'!$E$174:$GF$174,'Allocation to schools'!$E$10:$GF$10,"from federal sources",'Allocation to schools'!$E$9:$GF$9,Totals!$D22) -> 0 | AM22: =SUMIF(Calculation!$E$4:$CS$4,Totals!$D22,Calculation!$E$1251:$CS$1251)+SUMIF('Allocation to schools'!$E$9:$GF$9,Totals!$D22,'Allocation to schools'!$E$38:$GF$38) -> 0 | AN22: =SUMIF(Calculation!$E$4:$CS$4,Totals!$D22,Calculation!$E$33:$CS$33)+SUMIF('Allocation to schools'!$E$9:$GF$9,Totals!$D22,'Allocation to schools'!$E$39:$GF$39) -> 0 | AO22: =SUMIF(Calculation!$E$4:$CS$4,Totals!$D22,Calculation!$E$138:$CS$138)+SUMIF('Allocation to schools'!$E$9:$GF$9,Totals!$D22,'Allocation to schools'!$E$40:$GF$40) -> 0 | AP22: =SUMIF(Calculation!$E$4:$CS$4,Totals!$D22,Calculation!$E$323:$CS$323)+SUMIF('Allocation to schools'!$E$9:$GF$9,Totals!$D22,'Allocation to schools'!$E$41:$GF$41) -> 0 | AQ22: =SUMIF(Calculation!$E$4:$CS$4,Totals!$D22,Calculation!$E$661:$CS$661)+SUMIF('Allocation to schools'!$E$9:$GF$9,Totals!$D22,'Allocation to schools'!$E$42:$GF$42) -> 0 | AR22: =SUMIF(Calculation!$E$4:$CS$4,Totals!$D22,Calculation!$E$790:$CS$790)+SUMIF('Allocation to schools'!$E$9:$GF$9,Totals!$D22,'Allocation to schools'!$E$43:$GF$43) -> 0 | AS22: =SUMIF(Calculation!$E$4:$CS$4,Totals!$D22,Calculation!$E$976:$CS$976)+SUMIF('Allocation to schools'!$E$9:$GF$9,Totals!$D22,'Allocation to schools'!$E$44:$GF$44) -> 0 | AT22: =SUMIF(Calculation!$E$4:$CS$4,Totals!$D22,Calculation!$E$1060:$CS$1060)+SUMIF('Allocation to schools'!$E$9:$GF$9,Totals!$D22,'Allocation to schools'!$E$45:$GF$45) -> 0 | AU22: =SUMIF(Calculation!$E$4:$CS$4,Totals!$D22,Calculation!$E$1141:$CS$1141)+SUMIF('Allocation to schools'!$E$9:$GF$9,Totals!$D22,'Allocation to schools'!$E$46:$GF$46) -> 0 | AV22: =SUMIF(Calculation!$E$4:$CS$4,Totals!$D22,Calculation!$E$1536:$CS$1536)+SUMIFS('Allocation to schools'!$E$39:$GF$39,'Allocation to schools'!$E$10:$GF$10,"from federal sources",'Allocation to schools'!$E$9:$GF$9,Totals!$D22) -> 0 | AW22: =SUMIF(Calculation!$E$4:$CS$4,Totals!$D22,Calculation!$E$1537:$CS$1537)+SUMIFS('Allocation to schools'!$E$40:$GF$40,'Allocation to schools'!$E$10:$GF$10,"from federal sources",'Allocation to schools'!$E$9:$GF$9,Totals!$D22) -> 0 | AX22: =SUMIF(Calculation!$E$4:$CS$4,Totals!$D22,Calculation!$E$1551:$CS$1551)+SUMIFS('Allocation to schools'!$E$175:$GF$175,'Allocation to schools'!$E$10:$GF$10,"from federal sources",'Allocation to schools'!$E$9:$GF$9,Totals!$D22) -> 0 | AY22: =SUMIF(Calculation!$E$4:$CS$4,Totals!$D22,Calculation!$E$1262:$CS$1262)+SUMIF('Allocation to schools'!$E$9:$GF$9,Totals!$D22,'Allocation to schools'!$E$47:$GF$47) -> 0 | AZ22: =SUMIF(Calculation!$E$4:$CS$4,Totals!$D22,Calculation!$E$40:$CS$40)+SUMIF('Allocation to schools'!$E$9:$GF$9,Totals!$D22,'Allocation to schools'!$E$48:$GF$48) -> 0 | BA22: =SUMIF(Calculation!$E$4:$CS$4,Totals!$D22,Calculation!$E$145:$CS$145)+SUMIF('Allocation to schools'!$E$9:$GF$9,Totals!$D22,'Allocation to schools'!$E$49:$GF$49) -> 0 | BB22: =SUMIF(Calculation!$E$4:$CS$4,Totals!$D22,Calculation!$E$350:$CS$350)+SUMIF('Allocation to schools'!$E$9:$GF$9,Totals!$D22,'Allocation to schools'!$E$50:$GF$50) -> 0 | BC22: =SUMIF(Calculation!$E$4:$CS$4,Totals!$D22,Calculation!$E$668:$CS$668)+SUMIF('Allocation to schools'!$E$9:$GF$9,Totals!$D22,'Allocation to schools'!$E$51:$GF$51) -> 0 | BD22: =SUMIF(Calculation!$E$4:$CS$4,Totals!$D22,Calculation!$E$803:$CS$803)+SUMIF('Allocation to schools'!$E$9:$GF$9,Totals!$D22,'Allocation to schools'!$E$52:$GF$52) -> 0 | BE22: =SUMIF(Calculation!$E$4:$CS$4,Totals!$D22,Calculation!$E$983:$CS$983)+SUMIF('Allocation to schools'!$E$9:$GF$9,Totals!$D22,'Allocation to schools'!$E$53:$GF$53) -> 0 | BF22: =SUMIF(Calculation!$E$4:$CS$4,Totals!$D22,Calculation!$E$1148:$CS$1148)+SUMIF('Allocation to schools'!$E$9:$GF$9,Totals!$D22,'Allocation to schools'!$E$54:$GF$54) -> 0 | BG22: =SUMIF(Calculation!$E$4:$CS$4,Totals!$D22,Calculation!$E$1552:$CS$1552)+SUMIFS('Allocation to schools'!$E$48:$GF$48,'Allocation to schools'!$E$10:$GF$10,"from federal sources",'Allocation to schools'!$E$9:$GF$9,Totals!$D22) -> 0 | BH22: =SUMIF(Calculation!$E$4:$CS$4,Totals!$D22,Calculation!$E$1553:$CS$1553)+SUMIFS('Allocation to schools'!$E$49:$GF$49,'Allocation to schools'!$E$10:$GF$10,"from federal sources",'Allocation to schools'!$E$9:$GF$9,Totals!$D22) -> 0 | BI22: =SUMIF(Calculation!$E$4:$CS$4,Totals!$D22,Calculation!$E$1566:$CS$1566)+SUMIFS('Allocation to schools'!$E$176:$GF$176,'Allocation to schools'!$E$10:$GF$10,"from federal sources",'Allocation to schools'!$E$9:$GF$9,Totals!$D22) -> 0 | BJ22: =SUMIF(Calculation!$E$4:$CS$4,Totals!$D22,Calculation!$E$1273:$CS$1273)+SUMIF('Allocation to schools'!$E$9:$GF$9,Totals!$D22,'Allocation to schools'!$E$55:$GF$55) -> 0 | BK22: =SUMIF(Calculation!$E$4:$CS$4,Totals!$D22,Calculation!$E$47:$CS$47)+SUMIF(Calculation!$E$4:$CS$4,Totals!$D22,Calculation!$E$54:$CS$54)+SUMIF('Allocation to schools'!$E$9:$GF$9,Totals!$D22,'Allocation to schools'!$E$56:$GF$56) -> 0 | BL22: =SUMIF(Calculation!$E$4:$CS$4,Totals!$D22,Calculation!$E$152:$CS$152)+SUMIF(Calculation!$E$4:$CS$4,Totals!$D22,Calculation!$E$159:$CS$159)+SUMIF('Allocation to schools'!$E$9:$GF$9,Totals!$D22,'Allocation to schools'!$E$57:$GF$57) -> 0 | BM22: =SUMIF(Calculation!$E$4:$CS$4,Totals!$D22,Calculation!$E$377:$CS$377)+SUMIF(Calculation!$E$4:$CS$4,Totals!$D22,Calculation!$E$404:$CS$404)+SUMIF('Allocation to schools'!$E$9:$GF$9,Totals!$D22,'Allocation to schools'!$E$58:$GF$58) -> 0 | BN22: =SUMIF(Calculation!$E$4:$CS$4,Totals!$D22,Calculation!$E$675:$CS$675)+SUMIF(Calculation!$E$4:$CS$4,Totals!$D22,Calculation!$E$682:$CS$682)+SUMIF('Allocation to schools'!$E$9:$GF$9,Totals!$D22,'Allocation to schools'!$E$59:$GF$59) -> 0 | BO22: =SUMIF(Calculation!$E$4:$CS$4,Totals!$D22,Calculation!$E$816:$CS$816)+SUMIF(Calculation!$E$4:$CS$4,Totals!$D22,Calculation!$E$829:$CS$829)+SUMIF('Allocation to schools'!$E$9:$GF$9,Totals!$D22,'Allocation to schools'!$E$60:$GF$60) -> 0 | BP22: =SUMIF(Calculation!$E$4:$CS$4,Totals!$D22,Calculation!$E$990:$CS$990)+SUMIF(Calculation!$E$4:$CS$4,Totals!$D22,Calculation!$E$997:$CS$997)+SUMIF('Allocation to schools'!$E$9:$GF$9,Totals!$D22,'Allocation to schools'!$E$61:$GF$61) -> 0 | BQ22: =SUMIF(Calculation!$E$4:$CS$4,Totals!$D22,Calculation!$E$1086:$CS$1086)+SUMIF('Allocation to schools'!$E$9:$GF$9,Totals!$D22,'Allocation to schools'!$E$62:$GF$62) -> 0 | BR22: =SUMIF(Calculation!$E$4:$CS$4,Totals!$D22,Calculation!$E$1155:$CS$1155)+SUMIF(Calculation!$E$4:$CS$4,Totals!$D22,Calculation!$E$1162:$CS$1162)+SUMIF('Allocation to schools'!$E$9:$GF$9,Totals!$D22,'Allocation to schools'!$E$63:$GF$63) -> 0 | BS22: =SUMIF(Calculation!$E$4:$CS$4,Totals!$D22,Calculation!$E$1567:$CS$1567)+SUMIF(Calculation!$E$4:$CS$4,Totals!$D22,Calculation!$E$1583:$CS$1583)+SUMIFS('Allocation to schools'!$E$56:$GF$56,'Allocation to schools'!$E$10:$GF$10,"from federal sources",'Allocation to schools'!$E$9:$GF$9,Totals!$D22) -> 0 | BT22: =SUMIF(Calculation!$E$4:$CS$4,Totals!$D22,Calculation!$E$1568:$CS$1568)+SUMIF(Calculation!$E$4:$CS$4,Totals!$D22,Calculation!$E$1584:$CS$1584)+SUMIFS('Allocation to schools'!$E$57:$GF$57,'Allocation to schools'!$E$10:$GF$10,"from federal sources",'Allocation to schools'!$E$9:$GF$9,Totals!$D22) -> 0 | BU22: =SUMIF(Calculation!$E$4:$CS$4,Totals!$D22,Calculation!$E$1582:$CS$1582)+SUMIF(Calculation!$E$4:$CS$4,Totals!$D22,Calculation!$E$1598:$CS$1598)+SUMIFS('Allocation to schools'!$E$177:$GF$177,'Allocation to schools'!$E$10:$GF$10,"from federal sources",'Allocation to schools'!$E$9:$GF$9,Totals!$D22) -> 0 | BV22: =SUMIF(Calculation!$E$4:$CS$4,Totals!$D22,Calculation!$E$1284:$CS$1284)+SUMIF(Calculation!$E$4:$CS$4,Totals!$D22,Calculation!$E$1295:$CS$1295)+SUMIF('Allocation to schools'!$E$9:$GF$9,Totals!$D22,'Allocation to schools'!$E$64:$GF$64) -> 0 | BW22: =SUMIF(Calculation!$E$4:$CS$4,Totals!$D22,Calculation!$E$61:$CS$61)+SUMIF('Allocation to schools'!$E$9:$GF$9,Totals!$D22,'Allocation to schools'!$E$65:$GF$65) -> 0 | BX22: =SUMIF(Calculation!$E$4:$CS$4,Totals!$D22,Calculation!$E$166:$CS$166)+SUMIF('Allocation to schools'!$E$9:$GF$9,Totals!$D22,'Allocation to schools'!$E$66:$GF$66) -> 0 | BY22: =SUMIF(Calculation!$E$4:$CS$4,Totals!$D22,Calculation!$E$431:$CS$431)+SUMIF('Allocation to schools'!$E$9:$GF$9,Totals!$D22,'Allocation to schools'!$E$67:$GF$67) -> 0 | BZ22: =SUMIF(Calculation!$E$4:$CS$4,Totals!$D22,Calculation!$E$689:$CS$689)+SUMIF('Allocation to schools'!$E$9:$GF$9,Totals!$D22,'Allocation to schools'!$E$68:$GF$68) -> 0 | CA22: =SUMIF(Calculation!$E$4:$CS$4,Totals!$D22,Calculation!$E$842:$CS$842)+SUMIF('Allocation to schools'!$E$9:$GF$9,Totals!$D22,'Allocation to schools'!$E$69:$GF$69) -> 0 | CB22: =SUMIF(Calculation!$E$4:$CS$4,Totals!$D22,Calculation!$E$1004:$CS$1004)+SUMIF('Allocation to schools'!$E$9:$GF$9,Totals!$D22,'Allocation to schools'!$E$70:$GF$70) -> 0 | CC22: =SUMIF(Calculation!$E$4:$CS$4,Totals!$D22,Calculation!$E$1169:$CS$1169)+SUMIF('Allocation to schools'!$E$9:$GF$9,Totals!$D22,'Allocation to schools'!$E$71:$GF$71) -> 0 | CD22: =SUMIF(Calculation!$E$4:$CS$4,Totals!$D22,Calculation!$E$1599:$CS$1599)+SUMIFS('Allocation to schools'!$E$65:$GF$65,'Allocation to schools'!$E$10:$GF$10,"from federal sources",'Allocation to schools'!$E$9:$GF$9,Totals!$D22) -> 0 | CE22: =SUMIF(Calculation!$E$4:$CS$4,Totals!$D22,Calculation!$E$1600:$CS$1600)+SUMIFS('Allocation to schools'!$E$66:$GF$66,'Allocation to schools'!$E$10:$GF$10,"from federal sources",'Allocation to schools'!$E$9:$GF$9,Totals!$D22) -> 0 | CF22: =SUMIF(Calculation!$E$4:$CS$4,Totals!$D22,Calculation!$E$1613:$CS$1613)+SUMIFS('Allocation to schools'!$E$178:$GF$178,'Allocation to schools'!$E$10:$GF$10,"from federal sources",'Allocation to schools'!$E$9:$GF$9,Totals!$D22) -> 0 | CG22: =SUMIF(Calculation!$E$4:$CS$4,Totals!$D22,Calculation!$E$1306:$CS$1306)+SUMIF('Allocation to schools'!$E$9:$GF$9,Totals!$D22,'Allocation to schools'!$E$72:$GF$72) -> 0 | CH22: =SUMIF(Calculation!$E$4:$CS$4,Totals!$D22,Calculation!$E$68:$CS$68)+SUMIF('Allocation to schools'!$E$9:$GF$9,Totals!$D22,'Allocation to schools'!$E$73:$GF$73) -> 0 | CI22: =SUMIF(Calculation!$E$4:$CS$4,Totals!$D22,Calculation!$E$173:$CS$173)+SUMIF('Allocation to schools'!$E$9:$GF$9,Totals!$D22,'Allocation to schools'!$E$74:$GF$74) -> 0 | CJ22: =SUMIF(Calculation!$E$4:$CS$4,Totals!$D22,Calculation!$E$458:$CS$458)+SUMIF('Allocation to schools'!$E$9:$GF$9,Totals!$D22,'Allocation to schools'!$E$75:$GF$75) -> 0 | CK22: =SUMIF(Calculation!$E$4:$CS$4,Totals!$D22,Calculation!$E$696:$CS$696)+SUMIF('Allocation to schools'!$E$9:$GF$9,Totals!$D22,'Allocation to schools'!$E$76:$GF$76) -> 0 | CL22: =SUMIF(Calculation!$E$4:$CS$4,Totals!$D22,Calculation!$E$855:$CS$855)+SUMIF('Allocation to schools'!$E$9:$GF$9,Totals!$D22,'Allocation to schools'!$E$77:$GF$77) -> 0 | CM22: =SUMIF(Calculation!$E$4:$CS$4,Totals!$D22,Calculation!$E$1011:$CS$1011)+SUMIF('Allocation to schools'!$E$9:$GF$9,Totals!$D22,'Allocation to schools'!$E$78:$GF$78) -> 0 | CN22: =SUMIF(Calculation!$E$4:$CS$4,Totals!$D22,Calculation!$E$1176:$CS$1176)+SUMIF('Allocation to schools'!$E$9:$GF$9,Totals!$D22,'Allocation to schools'!$E$79:$GF$79) -> 0 | CO22: =SUMIF(Calculation!$E$4:$CS$4,Totals!$D22,Calculation!$E$1614:$CS$1614)+SUMIFS('Allocation to schools'!$E$73:$GF$73,'Allocation to schools'!$E$10:$GF$10,"from federal sources",'Allocation to schools'!$E$9:$GF$9,Totals!$D22) -> 0 | CP22: =SUMIF(Calculation!$E$4:$CS$4,Totals!$D22,Calculation!$E$1615:$CS$1615)+SUMIFS('Allocation to schools'!$E$74:$GF$74,'Allocation to schools'!$E$10:$GF$10,"from federal sources",'Allocation to schools'!$E$9:$GF$9,Totals!$D22) -> 0 | CQ22: =SUMIF(Calculation!$E$4:$CS$4,Totals!$D22,Calculation!$E$1628:$CS$1628)+SUMIFS('Allocation to schools'!$E$179:$GF$179,'Allocation to schools'!$E$10:$GF$10,"from federal sources",'Allocation to schools'!$E$9:$GF$9,Totals!$D22) -> 0 | CR22: =SUMIF(Calculation!$E$4:$CS$4,Totals!$D22,Calculation!$E$75:$CS$75)+SUMIF('Allocation to schools'!$E$9:$GF$9,Totals!$D22,'Allocation to schools'!$E$80:$GF$80) -> 0 | CS22: =SUMIF(Calculation!$E$4:$CS$4,Totals!$D22,Calculation!$E$180:$CS$180)+SUMIF('Allocation to schools'!$E$9:$GF$9,Totals!$D22,'Allocation to schools'!$E$81:$GF$81) -> 0 | CT22: =SUMIF(Calculation!$E$4:$CS$4,Totals!$D22,Calculation!$E$485:$CS$485)+SUMIF('Allocation to schools'!$E$9:$GF$9,Totals!$D22,'Allocation to schools'!$E$82:$GF$82) -> 0 | CU22: =SUMIF(Calculation!$E$4:$CS$4,Totals!$D22,Calculation!$E$703:$CS$703)+SUMIF('Allocation to schools'!$E$9:$GF$9,Totals!$D22,'Allocation to schools'!$E$83:$GF$83) -> 0 | CV22: =SUMIF(Calculation!$E$4:$CS$4,Totals!$D22,Calculation!$E$868:$CS$868)+SUMIF('Allocation to schools'!$E$9:$GF$9,Totals!$D22,'Allocation to schools'!$E$84:$GF$84) -> 0 | CW22: =SUMIF(Calculation!$E$4:$CS$4,Totals!$D22,Calculation!$E$1018:$CS$1018)+SUMIF('Allocation to schools'!$E$9:$GF$9,Totals!$D22,'Allocation to schools'!$E$85:$GF$85) -> 0 | CX22: =SUMIF(Calculation!$E$4:$CS$4,Totals!$D22,Calculation!$E$1183:$CS$1183)+SUMIF('Allocation to schools'!$E$9:$GF$9,Totals!$D22,'Allocation to schools'!$E$86:$GF$86) -> 0 | CY22: =SUMIF(Calculation!$E$4:$CS$4,Totals!$D22,Calculation!$E$1629:$CS$1629)+SUMIFS('Allocation to schools'!$E$80:$GF$80,'Allocation to schools'!$E$10:$GF$10,"from federal sources",'Allocation to schools'!$E$9:$GF$9,Totals!$D22) -> 0 | CZ22: =SUMIF(Calculation!$E$4:$CS$4,Totals!$D22,Calculation!$E$1630:$CS$1630)+SUMIFS('Allocation to schools'!$E$81:$GF$81,'Allocation to schools'!$E$10:$GF$10,"from federal sources",'Allocation to schools'!$E$9:$GF$9,Totals!$D22) -> 0 | DA22: =SUMIF(Calculation!$E$4:$CS$4,Totals!$D22,Calculation!$E$1643:$CS$1643)+SUMIFS('Allocation to schools'!$E$180:$GF$180,'Allocation to schools'!$E$10:$GF$10,"from federal sources",'Allocation to schools'!$E$9:$GF$9,Totals!$D22)+IF(SUMIFS('Allocation to schools'!$E$180:$GI$180,'Allocation to schools'!$E$9:$GI$9,Totals!$D22,'Allocation to schools'!$E$10:$GI$10,"from federal sources")>0,0,SUMIF('Data entry'!$B$13:$CS$13,Totals!$D22,'Data entry'!$B$97:$CS$97)) -> 0 | DB22: =SUMIF(Calculation!$E$4:$CS$4,Totals!$D22,Calculation!$E$1317:$CS$1317)+SUMIF('Allocation to schools'!$E$9:$GF$9,Totals!$D22,'Allocation to schools'!$E$87:$GF$87) -> 0 | DC22: =SUMIF(Calculation!$E$4:$CS$4,Totals!$D22,Calculation!$E$82:$CS$82)+SUMIF('Allocation to schools'!$E$9:$GF$9,Totals!$D22,'Allocation to schools'!$E$88:$GF$88) -> 0 | DD22: =SUMIF(Calculation!$E$4:$CS$4,Totals!$D22,Calculation!$E$187:$CS$187)+SUMIF('Allocation to schools'!$E$9:$GF$9,Totals!$D22,'Allocation to schools'!$E$89:$GF$89) -> 0 | DE22: =SUMIF(Calculation!$E$4:$CS$4,Totals!$D22,Calculation!$E$512:$CS$512)+SUMIF('Allocation to schools'!$E$9:$GF$9,Totals!$D22,'Allocation to schools'!$E$90:$GF$90) -> 0 | DF22: =SUMIF(Calculation!$E$4:$CS$4,Totals!$D22,Calculation!$E$710:$CS$710)+SUMIF('Allocation to schools'!$E$9:$GF$9,Totals!$D22,'Allocation to schools'!$E$91:$GF$91) -> 0 | DG22: =SUMIF(Calculation!$E$4:$CS$4,Totals!$D22,Calculation!$E$881:$CS$881)+SUMIF('Allocation to schools'!$E$9:$GF$9,Totals!$D22,'Allocation to schools'!$E$92:$GF$92) -> 0 | DH22: =SUMIF(Calculation!$E$4:$CS$4,Totals!$D22,Calculation!$E$1025:$CS$1025)+SUMIF('Allocation to schools'!$E$9:$GF$9,Totals!$D22,'Allocation to schools'!$E$93:$GF$93) -> 0 | DI22: =SUMIF(Calculation!$E$4:$CS$4,Totals!$D22,Calculation!$E$1190:$CS$1190)+SUMIF('Allocation to schools'!$E$9:$GF$9,Totals!$D22,'Allocation to schools'!$E$94:$GF$94) -> 0 | DJ22: =SUMIF(Calculation!$E$4:$CS$4,Totals!$D22,Calculation!$E$1644:$CS$1644)+SUMIFS('Allocation to schools'!$E$88:$GF$88,'Allocation to schools'!$E$10:$GF$10,"from federal sources",'Allocation to schools'!$E$9:$GF$9,Totals!$D22) -> 0 | DK22: =SUMIF(Calculation!$E$4:$CS$4,Totals!$D22,Calculation!$E$1645:$CS$1645)+SUMIFS('Allocation to schools'!$E$89:$GF$89,'Allocation to schools'!$E$10:$GF$10,"from federal sources",'Allocation to schools'!$E$9:$GF$9,Totals!$D22) -> 0 | DL22: =SUMIF(Calculation!$E$4:$CS$4,Totals!$D22,Calculation!$E$1658:$CS$1658)+SUMIFS('Allocation to schools'!$E$181:$GF$181,'Allocation to schools'!$E$10:$GF$10,"from federal sources",'Allocation to schools'!$E$9:$GF$9,Totals!$D22) -> 0 | DM22: =SUMIF(Calculation!$E$4:$CS$4,Totals!$D22,Calculation!$E$1328:$CS$1328)+SUMIF('Allocation to schools'!$E$9:$GF$9,Totals!$D22,'Allocation to schools'!$E$95:$GF$95) -> 0 | DN22: =SUMIF(Calculation!$E$4:$CS$4,Totals!$D22,Calculation!$E$1339:$CS$1339)+SUMIF('Allocation to schools'!$E$9:$GF$9,Totals!$D22,'Allocation to schools'!$E$96:$GF$96) -> 0 | DO22: =SUMIF(Calculation!$E$4:$CS$4,Totals!$D22,Calculation!$E$89:$CS$89)+SUMIF('Allocation to schools'!$E$9:$GF$9,Totals!$D22,'Allocation to schools'!$E$97:$GF$97) -> 0 | DP22: =SUMIF(Calculation!$E$4:$CS$4,Totals!$D22,Calculation!$E$194:$CS$194)+SUMIF('Allocation to schools'!$E$9:$GF$9,Totals!$D22,'Allocation to schools'!$E$98:$GF$98) -> 0 | DQ22: =SUMIF(Calculation!$E$4:$CS$4,Totals!$D22,Calculation!$E$539:$CS$539)+SUMIF('Allocation to schools'!$E$9:$GF$9,Totals!$D22,'Allocation to schools'!$E$99:$GF$99) -> 0 | DR22: =SUMIF(Calculation!$E$4:$CS$4,Totals!$D22,Calculation!$E$717:$CS$717)+SUMIF('Allocation to schools'!$E$9:$GF$9,Totals!$D22,'Allocation to schools'!$E$100:$GF$100) -> 0 | DS22: =SUMIF(Calculation!$E$4:$CS$4,Totals!$D22,Calculation!$E$894:$CS$894)+SUMIF('Allocation to schools'!$E$9:$GF$9,Totals!$D22,'Allocation to schools'!$E$101:$GF$101) -> 0 | DT22: =SUMIF(Calculation!$E$4:$CS$4,Totals!$D22,Calculation!$E$1032:$CS$1032)+SUMIF('Allocation to schools'!$E$9:$GF$9,Totals!$D22,'Allocation to schools'!$E$102:$GF$102) -> 0 | DU22: =SUMIF(Calculation!$E$4:$CS$4,Totals!$D22,Calculation!$E$1197:$CS$1197)+SUMIF('Allocation to schools'!$E$9:$GF$9,Totals!$D22,'Allocation to schools'!$E$103:$GF$103) -> 0 | DV22: =SUMIF(Calculation!$E$4:$CS$4,Totals!$D22,Calculation!$E$1659:$CS$1659)+SUMIFS('Allocation to schools'!$E$97:$GF$97,'Allocation to schools'!$E$10:$GF$10,"from federal sources",'Allocation to schools'!$E$9:$GF$9,Totals!$D22) -> 0 | DW22: =SUMIF(Calculation!$E$4:$CS$4,Totals!$D22,Calculation!$E$1660:$CS$1660)+SUMIFS('Allocation to schools'!$E$98:$GF$98,'Allocation to schools'!$E$10:$GF$10,"from federal sources",'Allocation to schools'!$E$9:$GF$9,Totals!$D22) -> 0 | DX22: =SUMIF(Calculation!$E$4:$CS$4,Totals!$D22,Calculation!$E$1673:$CS$1673)+SUMIFS('Allocation to schools'!$E$182:$GF$182,'Allocation to schools'!$E$10:$GF$10,"from federal sources",'Allocation to schools'!$E$9:$GF$9,Totals!$D22) -> 0 | DY22: =SUMIF(Calculation!$E$4:$CS$4,Totals!$D22,Calculation!$E$1350:$CS$1350)+SUMIF('Allocation to schools'!$E$9:$GF$9,Totals!$D22,'Allocation to schools'!$E$104:$GF$104) -> 0 | DZ22: =SUMIF(Calculation!$E$4:$CS$4,Totals!$D22,Calculation!$E$96:$CS$96)+SUMIF('Allocation to schools'!$E$9:$GF$9,Totals!$D22,'Allocation to schools'!$E$105:$GF$105) -> 0 | EA22: =SUMIF(Calculation!$E$4:$CS$4,Totals!$D22,Calculation!$E$201:$CS$201)+SUMIF('Allocation to schools'!$E$9:$GF$9,Totals!$D22,'Allocation to schools'!$E$106:$GF$106) -> 0 | EB22: =SUMIF(Calculation!$E$4:$CS$4,Totals!$D22,Calculation!$E$566:$CS$566)+SUMIF('Allocation to schools'!$E$9:$GF$9,Totals!$D22,'Allocation to schools'!$E$107:$GF$107) -> 0 | EC22: =SUMIF(Calculation!$E$4:$CS$4,Totals!$D22,Calculation!$E$724:$CS$724)+SUMIF('Allocation to schools'!$E$9:$GF$9,Totals!$D22,'Allocation to schools'!$E$108:$GF$108) -> 0 | ED22: =SUMIF(Calculation!$E$4:$CS$4,Totals!$D22,Calculation!$E$907:$CS$907)+SUMIF('Allocation to schools'!$E$9:$GF$9,Totals!$D22,'Allocation to schools'!$E$109:$GF$109) -> 0 | EE22: =SUMIF(Calculation!$E$4:$CS$4,Totals!$D22,Calculation!$E$1039:$CS$1039)+SUMIF('Allocation to schools'!$E$9:$GF$9,Totals!$D22,'Allocation to schools'!$E$110:$GF$110) -> 0 | EF22: =SUMIF(Calculation!$E$4:$CS$4,Totals!$D22,Calculation!$E$1204:$CS$1204)+SUMIF('Allocation to schools'!$E$9:$GF$9,Totals!$D22,'Allocation to schools'!$E$111:$GF$111) -> 0 | EH22: =SUMIF(Calculation!$E$4:$CS$4,Totals!$D22,Calculation!$E$1361:$CS$1361)+SUMIF('Allocation to schools'!$E$9:$GF$9,Totals!$D22,'Allocation to schools'!$E$112:$GF$112) -> 0 | EI22: =SUMIF(Calculation!$E$4:$CS$4,Totals!$D22,Calculation!$E$1079:$CS$1079)+SUMIF('Allocation to schools'!$E$9:$GF$9,Totals!$D22,'Allocation to schools'!$E$113:$GF$113)+SUMIF('Allocation to schools'!$E$9:$GF$9,Totals!$D22,'Allocation to schools'!$E$113:$GF$113)+SUMIF(Calculation!$E$4:$CS$4,Totals!$D22,Calculation!$E$1495:$CS$1495) -> 0 | EJ22: =SUMIF(Calculation!$E$4:$CS$4,Totals!$D22,Calculation!$E$1108:$CS$1108)+SUMIF('Allocation to schools'!$E$9:$GF$9,Totals!$D22,'Allocation to schools'!$E$115:$GF$115)+SUMIF('Allocation to schools'!$E$9:$GF$9,Totals!$D22,'Allocation to schools'!$E$116:$GF$116) -> 0 | EK22: =SUMIF(Calculation!$E$4:$CS$4,Totals!$D22,Calculation!$E$1372:$CS$1372)+SUMIF('Allocation to schools'!$E$9:$GF$9,Totals!$D22,'Allocation to schools'!$E$117:$GF$117) -> 0 | EN22: =SUMIF(Calculation!$E$4:$CS$4,Totals!$D22,Calculation!$E$110:$CS$110)+SUMIFS('Allocation to schools'!$E$162:$GF$162,'Allocation to schools'!$E$9:$GF$9,Totals!$D22,'Allocation to schools'!$E$10:$GF$10,"from federal sources") -> 0 | EO22: =SUMIF(Calculation!$E$4:$CS$4,Totals!$D22,Calculation!$E$215:$CS$215)+SUMIFS('Allocation to schools'!$E$163:$GF$163,'Allocation to schools'!$E$9:$GF$9,Totals!$D22,'Allocation to schools'!$E$10:$GF$10,"from federal sources") -> 0 | EP22: =SUMIF(Calculation!$E$4:$CS$4,Totals!$D22,Calculation!$E$633:$CS$633)+SUMIFS('Allocation to schools'!$E$164:$GF$164,'Allocation to schools'!$E$9:$GF$9,Totals!$D22,'Allocation to schools'!$E$10:$GF$10,"from federal sources") -> 0 | EQ22: =SUMIF(Calculation!$E$4:$CS$4,Totals!$D22,Calculation!$E$738:$CS$738)+SUMIFS('Allocation to schools'!$E$165:$GF$165,'Allocation to schools'!$E$9:$GF$9,Totals!$D22,'Allocation to schools'!$E$10:$GF$10,"from federal sources")+IF(SUMIFS('Allocation to schools'!$E$80:$GI$80,'Allocation to schools'!$E$9:$GI$9,Totals!$D22,'Allocation to schools'!$E$10:$GI$10,"from federal sources")+SUMIFS('Allocation to schools'!$E$83:$GI$83,'Allocation to schools'!$E$9:$GI$9,Totals!$D22,'Allocation to schools'!$E$10:$GI$10,"from federal sources")>0,0,SUMIF('Data entry'!$B$13:$CS$13,Totals!$D22,'Data entry'!$B$97:$CS$97)) -> 0 | ER22: =SUMIF(Calculation!$E$4:$CS$4,Totals!$D22,Calculation!$E$948:$CS$948)+SUMIFS('Allocation to schools'!$E$166:$GF$166,'Allocation to schools'!$E$9:$GF$9,Totals!$D22,'Allocation to schools'!$E$10:$GF$10,"from federal sources") -> 0 | ES22: =SUMIF(Calculation!$E$4:$CS$4,Totals!$D22,Calculation!$E$1053:$CS$1053)+SUMIFS('Allocation to schools'!$E$167:$GF$167,'Allocation to schools'!$E$9:$GF$9,Totals!$D22,'Allocation to schools'!$E$10:$GF$10,"from federal sources") -> 0 | ET22: =SUMIF(Calculation!$E$4:$CS$4,Totals!$D22,Calculation!$E$1065:$CS$1065)+SUMIFS('Allocation to schools'!$E$168:$GF$168,'Allocation to schools'!$E$9:$GF$9,Totals!$D22,'Allocation to schools'!$E$10:$GF$10,"from federal sources") -> 0 | EU22: =SUMIF(Calculation!$E$4:$CS$4,Totals!$D22,Calculation!$E$1113:$CS$1113)+SUMIFS('Allocation to schools'!$E$169:$GF$169,'Allocation to schools'!$E$9:$GF$9,Totals!$D22,'Allocation to schools'!$E$10:$GF$10,"from federal sources") -> 0 | EV22: =SUMIF(Calculation!$E$4:$CS$4,Totals!$D22,Calculation!$E$1218:$CS$1218)+SUMIFS('Allocation to schools'!$E$170:$GF$170,'Allocation to schools'!$E$9:$GF$9,Totals!$D22,'Allocation to schools'!$E$10:$GF$10,"from federal sources") -> 0 | EX22: =SUMIF(Calculation!$E$4:$CS$4,Totals!$D22,Calculation!$E$1392:$CS$1392)+SUMIFS('Allocation to schools'!$E$171:$GF$171,'Allocation to schools'!$E$9:$GF$9,Totals!$D22,'Allocation to schools'!$E$10:$GF$10,"from federal sources") -> 0 | EY22: =(SUMIF(Calculation!$E$4:$CS$4,Totals!$D22,Calculation!$E$97:$CS$97)-SUMIF(Calculation!$E$4:$CS$4,Totals!$D22,Calculation!$E$110:$CS$110))+SUMIFS('Allocation to schools'!$E$162:$GF$162,'Allocation to schools'!$E$9:$GF$9,Totals!$D22,'Allocation to schools'!$E$10:$GF$10,"from local & State sources") -> 0 | EZ22: =(SUMIF(Calculation!$E$4:$CS$4,Totals!$D22,Calculation!$E$202:$CS$202)-SUMIF(Calculation!$E$4:$CS$4,Totals!$D22,Calculation!$E$215:$CS$215))+SUMIFS('Allocation to schools'!$E$163:$GF$163,'Allocation to schools'!$E$9:$GF$9,Totals!$D22,'Allocation to schools'!$E$10:$GF$10,"from local & State sources") -> 0 | FA22: =(SUMIF(Calculation!$E$4:$CS$4,Totals!$D22,Calculation!$E$567:$CS$567)-SUMIF(Calculation!$E$4:$CS$4,Totals!$D22,Calculation!$E$633:$CS$633))+SUMIFS('Allocation to schools'!$E$164:$GF$164,'Allocation to schools'!$E$9:$GF$9,Totals!$D22,'Allocation to schools'!$E$10:$GF$10,"from local & State sources") -> 0 | FB22: =(SUMIF(Calculation!$E$4:$CS$4,Totals!$D22,Calculation!$E$725:$CS$725)-SUMIF(Calculation!$E$4:$CS$4,Totals!$D22,Calculation!$E$738:$CS$738))+SUMIFS('Allocation to schools'!$E$165:$GF$165,'Allocation to schools'!$E$9:$GF$9,Totals!$D22,'Allocation to schools'!$E$10:$GF$10,"from local & State sources")-IF(SUMIFS('Allocation to schools'!$E$80:$GI$80,'Allocation to schools'!$E$9:$GI$9,Totals!$D22,'Allocation to schools'!$E$10:$GI$10,"from federal sources")+SUMIFS('Allocation to schools'!$E$83:$GI$83,'Allocation to schools'!$E$9:$GI$9,Totals!$D22,'Allocation to schools'!$E$10:$GI$10,"from federal sources")>0,0,SUMIF('Data entry'!$B$13:$CS$13,Totals!$D22,'Data entry'!$B$97:$CS$97)) -> 0 | FC22: =(SUMIF(Calculation!$E$4:$CS$4,Totals!$D22,Calculation!$E$908:$CS$908)-SUMIF(Calculation!$E$4:$CS$4,Totals!$D22,Calculation!$E$948:$CS$948))+SUMIFS('Allocation to schools'!$E$166:$GF$166,'Allocation to schools'!$E$9:$GF$9,Totals!$D22,'Allocation to schools'!$E$10:$GF$10,"from local & State sources") -> 0 | FD22: =(SUMIF(Calculation!$E$4:$CS$4,Totals!$D22,Calculation!$E$1040:$CS$1040)-SUMIF(Calculation!$E$4:$CS$4,Totals!$D22,Calculation!$E$1053:$CS$1053))+SUMIFS('Allocation to schools'!$E$167:$GF$167,'Allocation to schools'!$E$9:$GF$9,Totals!$D22,'Allocation to schools'!$E$10:$GF$10,"from local & State sources") -> 0 | FE22: =(SUMIF(Calculation!$E$4:$CS$4,Totals!$D22,Calculation!$E$1060:$CS$1060)-SUMIF(Calculation!$E$4:$CS$4,Totals!$D22,Calculation!$E$1065:$CS$1065))+SUMIFS('Allocation to schools'!$E$168:$GF$168,'Allocation to schools'!$E$9:$GF$9,Totals!$D22,'Allocation to schools'!$E$10:$GF$10,"from local & State sources") -> 0 | FF22: =(SUMIF(Calculation!$E$4:$CS$4,Totals!$D22,Calculation!$E$1086:$CS$1086)-SUMIF(Calculation!$E$4:$CS$4,Totals!$D22,Calculation!$E$1113:$CS$1113))+SUMIFS('Allocation to schools'!$E$169:$GF$169,'Allocation to schools'!$E$9:$GF$9,Totals!$D22,'Allocation to schools'!$E$10:$GF$10,"from local & State sources") -> 0 | FG22: =(SUMIF(Calculation!$E$4:$CS$4,Totals!$D22,Calculation!$E$1205:$CS$1205)-SUMIF(Calculation!$E$4:$CS$4,Totals!$D22,Calculation!$E$1218:$CS$1218))+SUMIFS('Allocation to schools'!$E$170:$GF$170,'Allocation to schools'!$E$9:$GF$9,Totals!$D22,'Allocation to schools'!$E$10:$GF$10,"from local & State sources") -> 0 | FI22: =(SUMIF(Calculation!$E$4:$CS$4,Totals!$D22,Calculation!$E$1373:$CS$1373)-SUMIF(Calculation!$E$4:$CS$4,Totals!$D22,Calculation!$E$1392:$CS$1392))+SUMIFS('Allocation to schools'!$E$171:$GF$171,'Allocation to schools'!$E$9:$GF$9,Totals!$D22,'Allocation to schools'!$E$10:$GF$10,"from local & State sources") -> 0 | FJ22: =SUMIF('Data entry'!$B$13:$CS$13,Totals!$D22,'Data entry'!$B$15:$CS$15) -> 0 | FL22: =SUMIF('Data entry'!$B$13:$CS$13,Totals!$D22,'Data entry'!$B$20:$CS$20) -> 0 | FN22: =SUMIF('Data entry'!$B$13:$CS$13,Totals!$D22,'Data entry'!$B$25:$CS$25) -> 0 | FO22: =SUMIF('Data entry'!$B$13:$CS$13,Totals!$D22,'Data entry'!$B$30:$CS$30) -> 0 | FP22: =SUMIF('Data entry'!$B$13:$CS$13,Totals!$D22,'Data entry'!$B$35:$CS$35) -> 0 | FQ22: =SUMIF('Data entry'!$B$13:$CS$13,Totals!$D22,'Data entry'!$B$16:$CS$16) -> 0 | FS22: =SUMIF('Data entry'!$B$13:$CS$13,Totals!$D22,'Data entry'!$B$21:$CS$21) -> 0 | FU22: =SUMIF('Data entry'!$B$13:$CS$13,Totals!$D22,'Data entry'!$B$26:$CS$26) -> 0 | FV22: =SUMIF('Data entry'!$B$13:$CS$13,Totals!$D22,'Data entry'!$B$31:$CS$31) -> 0 | FW22: =SUMIF('Data entry'!$B$13:$CS$13,Totals!$D22,'Data entry'!$B$36:$CS$36) -> 0 | FX22: =SUMIF('Data entry'!$B$13:$CS$13,Totals!$D22,'Data entry'!$B$17:$CS$17) -> 0 | FZ22: =SUMIF('Data entry'!$B$13:$CS$13,Totals!$D22,'Data entry'!$B$22:$CS$22) -> 0 | GB22: =SUMIF('Data entry'!$B$13:$CS$13,Totals!$D22,'Data entry'!$B$27:$CS$27) -> 0 | GC22: =SUMIF('Data entry'!$B$13:$CS$13,Totals!$D22,'Data entry'!$B$32:$CS$32) -> 0 | GD22: =SUMIF('Data entry'!$B$13:$CS$13,Totals!$D22,'Data entry'!$B$37:$CS$37) -> 0 | GE22: =SUMIF('Data entry'!$B$13:$CS$13,Totals!$D22,'Data entry'!$B$18:$CS$18) -> 0 | GG22: =SUMIF('Data entry'!$B$13:$CS$13,Totals!$D22,'Data entry'!$B$23:$CS$23) -> 0 | GI22: =SUMIF('Data entry'!$B$13:$CS$13,Totals!$D22,'Data entry'!$B$28:$CS$28) -> 0 | GJ22: =SUMIF('Data entry'!$B$13:$CS$13,Totals!$D22,'Data entry'!$B$33:$CS$33) -> 0 | GK22: =SUMIF('Data entry'!$B$13:$CS$13,Totals!$D22,'Data entry'!$B$38:$CS$38) -> 0 | GL22: =SUMIF('Data entry'!$B$13:$CS$13,Totals!$D22,'Data entry'!$B$19:$CS$19) -> 0 | GN22: =SUMIF('Data entry'!$B$13:$CS$13,Totals!$D22,'Data entry'!$B$24:$CS$24) -> 0 | GP22: =SUMIF('Data entry'!$B$13:$CS$13,Totals!$D22,'Data entry'!$B$29:$CS$29) -> 0 | GQ22: =SUMIF('Data entry'!$B$13:$CS$13,Totals!$D22,'Data entry'!$B$34:$CS$34) -> 0 | GR22: =SUMIF('Data entry'!$B$13:$CS$13,Totals!$D22,'Data entry'!$B$39:$CS$39) -> 0 | GS22: =SUMIF('Data entry'!$B$13:$CS$13,Totals!$D22,'Data entry'!$B$41:$CS$41) -> 0 | GT22: =SUMIF(Calculation!$E$4:$CS$4,Totals!$D22,Calculation!$E$1460:$CS$1460)+SUMIFS('Allocation to schools'!$E$20:$GF$20,'Allocation to schools'!$E$9:$GF$9,Totals!$D22,'Allocation to schools'!$E$10:$GF$10,"from federal sources") -> 0 | GU22: =SUMIF(Calculation!$E$4:$CS$4,Totals!$D22,Calculation!$E$1461:$CS$1461)+SUMIFS('Allocation to schools'!$E$20:$GF$20,'Allocation to schools'!$E$9:$GF$9,Totals!$D22,'Allocation to schools'!$E$10:$GF$10,"from local & State sources") -> 0 | GV22: =SUMIF(Calculation!$E$4:$CS$4,Totals!$D22,Calculation!$E$1394:$CS$1394)+SUMIF('Allocation to schools'!$E$9:$GF$9,Totals!$D22,'Allocation to schools'!$E$127:$GF$127) -> 0 | GW22: =SUMIF(Calculation!$E$4:$CS$4,Totals!$D22,Calculation!$E$1396:$CS$1396)+SUMIF('Allocation to schools'!$E$9:$GF$9,Totals!$D22,'Allocation to schools'!$E$128:$GF$128) -> 0 | GX22: =SUMIF(Calculation!$E$4:$CS$4,Totals!$D22,Calculation!$E$1400:$CS$1400)+SUMIF('Allocation to schools'!$E$9:$GF$9,Totals!$D22,'Allocation to schools'!$E$129:$GF$129) -> 0 | GY22: =SUMIF(Calculation!$E$4:$CS$4,Totals!$D22,Calculation!$E$1402:$CS$1402)+SUMIF('Allocation to schools'!$E$9:$GF$9,Totals!$D22,'Allocation to schools'!$E$130:$GF$130) -> 0 | GZ22: =SUMIF(Calculation!$E$4:$CS$4,Totals!$D22,Calculation!$E$1404:$CS$1404)+SUMIF('Allocation to schools'!$E$9:$GF$9,Totals!$D22,'Allocation to schools'!$E$131:$GF$131) -> 0 | HA22: =SUMIF(Calculation!$E$4:$CS$4,Totals!$D22,Calculation!$E$1406:$CS$1406)+SUMIF('Allocation to schools'!$E$9:$GF$9,Totals!$D22,'Allocation to schools'!$E$132:$GF$132) -> 0 | HB22: =SUMIF(Calculation!$E$4:$CS$4,Totals!$D22,Calculation!$E$1408:$CS$1408)+SUMIF('Allocation to schools'!$E$9:$GF$9,Totals!$D22,'Allocation to schools'!$E$133:$GF$133) -> 0 | HC22: =SUMIF(Calculation!$E$4:$CS$4,Totals!$D22,Calculation!$E$1412:$CS$1412)+SUMIF('Allocation to schools'!$E$9:$GF$9,Totals!$D22,'Allocation to schools'!$E$134:$GF$134) -> 0 | HD22: =SUMIF(Calculation!$E$4:$CS$4,Totals!$D22,Calculation!$E$1414:$CS$1414)+SUMIF('Allocation to schools'!$E$9:$GF$9,Totals!$D22,'Allocation to schools'!$E$135:$GF$135) -> 0 | HE22: =SUMIF(Calculation!$E$4:$CS$4,Totals!$D22,Calculation!$E$1416:$CS$1416)+SUMIF('Allocation to schools'!$E$9:$GF$9,Totals!$D22,'Allocation to schools'!$E$136:$GF$136) -> 0 | HF22: =SUMIF(Calculation!$E$4:$CS$4,Totals!$D22,Calculation!$E$1418:$CS$1418)+SUMIF('Allocation to schools'!$E$9:$GF$9,Totals!$D22,'Allocation to schools'!$E$137:$GF$137) -> 0 | HG22: =SUMIF(Calculation!$E$4:$CS$4,Totals!$D22,Calculation!$E$1420:$CS$1420)+SUMIF('Allocation to schools'!$E$9:$GF$9,Totals!$D22,'Allocation to schools'!$E$138:$GF$138) -> 0 | HH22: =SUMIF(Calculation!$E$4:$CS$4,Totals!$D22,Calculation!$E$1424:$CS$1424)+SUMIF('Allocation to schools'!$E$9:$GF$9,Totals!$D22,'Allocation to schools'!$E$139:$GF$139) -> 0 | HI22: =SUMIF(Calculation!$E$4:$CS$4,Totals!$D22,Calculation!$E$1426:$CS$1426)+SUMIF('Allocation to schools'!$E$9:$GF$9,Totals!$D22,'Allocation to schools'!$E$140:$GF$140) -> 0 | HJ22: =SUMIF(Calculation!$E$4:$CS$4,Totals!$D22,Calculation!$E$1428:$CS$1428)+SUMIF('Allocation to schools'!$E$9:$GF$9,Totals!$D22,'Allocation to schools'!$E$141:$GF$141) -> 0 | HK22: =SUMIF(Calculation!$E$4:$CS$4,Totals!$D22,Calculation!$E$1430:$CS$1430)+SUMIF('Allocation to schools'!$E$9:$GF$9,Totals!$D22,'Allocation to schools'!$E$142:$GF$142) -> 0 | HL22: =SUMIF(Calculation!$E$4:$CS$4,Totals!$D22,Calculation!$E$1432:$CS$1432)+SUMIF('Allocation to schools'!$E$9:$GF$9,Totals!$D22,'Allocation to schools'!$E$143:$GF$143) -> 0 | HM22: =SUMIF(Calculation!$E$4:$CS$4,Totals!$D22,Calculation!$E$1436:$CS$1436)+SUMIF('Allocation to schools'!$E$9:$GF$9,Totals!$D22,'Allocation to schools'!$E$144:$GF$144) -> 0 | HN22: =SUMIF('Allocation to schools'!$E$9:$GF$9,Totals!$D22,'Allocation to schools'!$E$145:$GF$145)+SUMIF(Calculation!$E$4:$CS$4,Totals!$D22,Calculation!$E$1438:$CS$1438) -> 0 | HO22: =SUMIF('Allocation to schools'!$E$9:$GF$9,Totals!$D22,'Allocation to schools'!$E$146:$GF$146)+SUMIF(Calculation!$E$4:$CS$4,Totals!$D22,Calculation!$E$1436:$CS$1436) -> 0 | HP22: =SUMIF('Allocation to schools'!$E$9:$GF$9,Totals!$D22,'Allocation to schools'!$E$150:$GF$150)+SUMIF(Calculation!$E$4:$CS$4,Totals!$D22,Calculation!$E$1480:$CS$1480) -> 0 | HQ22: =SUMIF('Allocation to schools'!$E$9:$GF$9,Totals!$D22,'Allocation to schools'!$E$151:$GF$151)+SUMIF(Calculation!$E$4:$CS$4,Totals!$D22,Calculation!$E$1480:$CS$1480) -> 0 | HR22: =SUMIF(Calculation!$E$4:$CS$4,Totals!$D22,Calculation!$E$1482:$CS$1482)+SUMIF('Allocation to schools'!$E$9:$GF$9,Totals!$D22,'Allocation to schools'!$E$152:$GF$152) -> 0 | HS22: =SUMIF(Calculation!$E$4:$CS$4,Totals!$D22,Calculation!$E$1483:$CS$1483)+SUMIF('Allocation to schools'!$E$9:$GF$9,Totals!$D22,'Allocation to schools'!$E$153:$GF$153) -> 0 | HT22: =SUMIF('Data entry'!$B$13:$CS$13,Totals!$D22,'Data entry'!$B$44:$CS$44) -> 0 | HU22: =SUMIF(Calculation!$E$4:$CS$4,Totals!$D22,Calculation!$E$1484:$CS$1484)+SUMIF('Allocation to schools'!$E$9:$GF$9,Totals!$D22,'Allocation to schools'!$E$154:$GF$154) -> 0 | HV22: =SUMIF('Data entry'!$B$13:$CS$13,Totals!$D22,'Data entry'!$B$45:$CS$45) -> 0 | HW22: =SUMIF(Calculation!$E$4:$CS$4,Totals!$D22,Calculation!$E$1495:$CS$1495)+SUMIF('Allocation to schools'!$E$9:$GF$9,Totals!$D22,'Allocation to schools'!$E$114:$GF$114)+SUMIF(Calculation!$E$4:$CS$4,Totals!$D22,Calculation!$E$1502:$CS$1502)+SUMIF('Allocation to schools'!$E$9:$GF$9,Totals!$D22,'Allocation to schools'!$E$116:$GF$116) -> 0 | HX22: =SUMIF(Calculation!$E$4:$CS$4,Totals!$D22,Calculation!$E$1486:$CS$1486)+SUMIF('Allocation to schools'!$E$9:$GF$9,Totals!$D22,'Allocation to schools'!$E$158:$GF$158) -> 0 | HY22: =SUMIF(Calculation!$E$4:$CS$4,Totals!$D22,Calculation!$E$1487:$CS$1487)+SUMIF('Allocation to schools'!$E$9:$GF$9,Totals!$D22,'Allocation to schools'!$E$159:$GF$159) -> 0 | HZ22: =SUMIF('Data entry'!$B$13:$CS$13,Totals!$D22,'Data entry'!$B$73:$CS$73) -> 31335.97877 | IA22: =SUMIF('Data entry'!$B$13:$CS$13,Totals!$D22,'Data entry'!$B$76:$CS$76) -> 1595.247926 | IB22: =SUMIF('Data entry'!$B$13:$CS$13,Totals!$D22,'Data entry'!$B$79:$CS$79) -> 2079.093027 | IC22: =SUMIF('Data entry'!$B$13:$CS$13,Totals!$D22,'Data entry'!$B$80:$CS$80) -> 0 | ID22: =SUMIF('Data entry'!$B$13:$CS$13,Totals!$D22,'Data entry'!$B$82:$CS$82) -> 0 | IE22: =SUMIF('Data entry'!$B$13:$CS$13,Totals!$D22,'Data entry'!$B$83:$CS$83) -> 0 | IF22: =SUMIF('Data entry'!$B$13:$CS$13,Totals!$D22,'Data entry'!$B$85:$CS$85) -> 0 | IG22: =SUMIF('Data entry'!$B$13:$CS$13,Totals!$D22,'Data entry'!$B$86:$CS$86) -> 0 | IH22: =SUMIF('Data entry'!$B$13:$CS$13,Totals!$D22,'Data entry'!$B$87:$CS$87) -> 0 | II22: =SUMIF('Data entry'!$B$13:$CS$13,Totals!$D22,'Data entry'!$B$88:$CS$88) -> 0 | IJ22: =SUMIF('Data entry'!$B$13:$CS$13,Totals!$D22,'Data entry'!$B$89:$CS$89) -> 0 | IK22: =SUMIF('Data entry'!$B$13:$CS$13,Totals!$D22,'Data entry'!$B$90:$CS$90) -> 0 | IL22: =SUMIF('Data entry'!$B$13:$CS$13,Totals!$D22,'Data entry'!$B$91:$CS$91) -> 0 | IM22: =SUMIF('Data entry'!$B$13:$CS$13,Totals!$D22,'Data entry'!$B$92:$CS$92) -> 0 | IN22: =SUMIF('Data entry'!$B$13:$CS$13,Totals!$D22,'Data entry'!$B$93:$CS$93) -> 0 | IO22: =SUMIF('Data entry'!$B$13:$CS$13,Totals!$D22,'Data entry'!$B$94:$CS$94) -> 0 | IP22: =SUMIF('Data entry'!$B$13:$CS$13,Totals!$D22,'Data entry'!$B$95:$CS$95) -> 0 | IQ22: =SUMIF('Data entry'!$B$13:$CS$13,Totals!$D22,'Data entry'!$B$96:$CS$96) -> 0 | IR22: =SUMIF('Data entry'!$B$13:$CS$13,Totals!$D22,'Data entry'!$B$97:$CS$97) -> 0 | IS22: =SUMIF('Data entry'!$B$13:$CS$13,Totals!$D22,'Data entry'!$B$98:$CS$98) -> 0 | IT22: 0 | IU22: =SUMIF('Data entry'!$B$13:$CS$13,Totals!$D22,'Data entry'!$B$107:$CS$107) -> 8712.559009 | IV22: =SUMIF('Data entry'!$B$13:$CS$13,Totals!$D22,'Data entry'!$B$108:$CS$108) -> 581.1334268 | IW22: =SUMIF('Data entry'!$B$13:$CS$13,Totals!$D22,'Data entry'!$B$109:$CS$109) -> 193.6662609 | IX22: =SUMIF('Data entry'!$B$13:$CS$13,Totals!$D22,'Data entry'!$B$110:$CS$110) -> 0 | IY22: =SUMIF('Data entry'!$B$13:$CS$13,Totals!$D22,'Data entry'!$B$111:$CS$111) -> 9487.358696 | IZ22: =SUMIF('Data entry'!$B$13:$CS$13,Totals!$D22,'Data entry'!$B$112:$CS$112) -> 0 | JA22: =SUMIF('Data entry'!$B$13:$CS$13,Totals!$D22,'Data entry'!$B$113:$CS$113) -> 9487.358696 | JB22: =SUMIF('Data entry'!$B$13:$CS$13,Totals!$D22,'Data entry'!$B$114:$CS$114) -> 0 | JC22: =SUMIF('Data entry'!$B$13:$CS$13,Totals!$D22,'Data entry'!$B$115:$CS$115) -> 9487.358696 | JD22: =SUMIF('Data entry'!$B$13:$CS$13,Totals!$D22,'Data entry'!$B$117:$CS$117) -> 0 | JE22: =SUMIF('Data entry'!$B$13:$CS$13,Totals!$D22,'Data entry'!$B$119:$CS$119) -> 9487.358696 | JF22: =SUMIF('Data entry'!$B$13:$CS$13,Totals!$D22,'Data entry'!$B$124:$CS$124) -> 4752.304914 | JG22: =SUMIF('Data entry'!$B$13:$CS$13,Totals!$D22,'Data entry'!$B$125:$CS$125) -> 316.9818692 | JH22: =SUMIF('Data entry'!$B$13:$CS$13,Totals!$D22,'Data entry'!$B$126:$CS$126) -> 193.6662609 | JI22: =SUMIF('Data entry'!$B$13:$CS$13,Totals!$D22,'Data entry'!$B$127:$CS$127) -> 0 | JJ22: =SUMIF('Data entry'!$B$13:$CS$13,Totals!$D22,'Data entry'!$B$128:$CS$128) -> 5262.953044 | JK22: =SUMIF('Data entry'!$B$13:$CS$13,Totals!$D22,'Data entry'!$B$129:$CS$129) -> 0 | JL22: =SUMIF('Data entry'!$B$13:$CS$13,Totals!$D22,'Data entry'!$B$130:$CS$130) -> 5262.953044 | JM22: =SUMIF('Data entry'!$B$13:$CS$13,Totals!$D22,'Data entry'!$B$131:$CS$131) -> 0 | JN22: =SUMIF('Data entry'!$B$13:$CS$13,Totals!$D22,'Data entry'!$B$132:$CS$132) -> 5262.953044 | JO22: =SUMIF('Data entry'!$B$13:$CS$13,Totals!$D22,'Data entry'!$B$134:$CS$134) -> 0 | JP22: =SUMIF('Data entry'!$B$13:$CS$13,Totals!$D22,'Data entry'!$B$136:$CS$136) -> 5262.953044 | JQ22: =SUMIF('Data entry'!$B$13:$CS$13,Totals!$D22,'Data entry'!$B$138:$CS$138) -> 0 | JR22: =IF(D22=0,"0%",SUMIF('Data entry'!$B$13:$CS$13,Totals!$D22,'Data entry'!$B$139:$CS$139)) -> 0 | JS22: =SUMIF(Calculation!$E$4:$CS$4,Totals!$D22,Calculation!$E$1442:$CS$1442)+SUMIF('Allocation to schools'!$E$9:$GF$9,Totals!$D22,'Allocation to schools'!$E$122:$GF$122) -> 0 | JT22: =SUMIF('Data entry'!$B$13:$CS$13,Totals!$D22,'Data entry'!$B$102:$CS$102) -> 0 | JU22: The School's programs 200, 512, 514, and 515 special education spending was less than base, weighted, IDEA, and other special education funding.
